{"text_format":"1","workbook":"xlsx","n_sheets":6,"sheets":["1. INSTRUCTIONS","2. ENTER CORE INFORMATION","3. ENTER MORT-INJ DATA","GLOSSARY OF TERMS","NOTICES","Picklists"],"not_rendered":{"charts":0,"images":2,"macros":0,"external_links":0,"defined_names":32,"comments":1,"pivot_tables":0},"unopened":[],"bounds":{"document_bytes":16777216,"sheet_cells":100000,"rows_first":2000,"rows_last":500,"rows_between":2000,"halvings":0,"cell_chars":16384,"cell_head_chars":4096},"cells_cut":0,"cells_raw":0,"read":"whole","date_system":"1900"}

{"sheet":"1. INSTRUCTIONS","index":0,"n_rows":9,"n_cols":2,"rows_kept":9,"cut":false,"hidden":false,"merged":[[0,0,0,1],[1,0,1,1]]}
["USFWS Bird and Bat Injury and Mortality Reporting System (Excel Version)"]
["Data Sheet Instructions and Information "]
[" *Please e-mail  or call  your regional Migratory Bird Permit Office with any questions about this report.","OMB Control No. 1018-0022, Expires 8/31/2023\nForm 3-202-17 (Rev.01/2020)"]
[]
["Access the  regional Migratory Bird Permit Office contact information for permit office phone, email and postal addresses. "]
["ABOUT THIS SPREADSHEET:","IF YOU DISCOVER AN EAGLE OR A THREATENED OR ENDANGERED (T&E) SPECIES"]
["   1. REQUIRED FIELDS are indicated by orange column headers. These are fields that should be filled in at a minimum for each record.  \n   2. REQUESTED FIELDS (fields with information we would like if you have it) are indicated by light grey column headers. At the very least, please try to populate all these fields, and any other applicable fields where possible, if that information is available.\n\n  ","Please complete the following steps:\nIf the animal is alive, step 1 is call your local migratory bird rehabilitation facility or a licensed veterinarian for instructions before handling the animal. Then follow steps 1-3 below.\n1. If you have a permit, please follow the instructions in your permit conditions on how to proceed before collecting or moving the carcass or its parts. If you do not have a permit, please call the USFWS employee who is working with you on your monitoring process. If you do not know the appropriate USFWS contact, please call the OLE Office in your USFWS Region (see contact information at: http://www.fws.gov/le/regional-law-enforcement-offices.html) for instructions. You must contact OLE immediately, if possible, but not later than 48 hours after discovery, or at the beginning of the next business day to notify them of the mortality.\n"]
["   IMPORTANT NOTE ABOUT REQUIRED AND REQUESTED FIELDS: If you have a permit with the USFWS, your permit conditions may require you to fill in more than just the required and requested fields, or the fields that are required and requested may differ slightly than indicated in this spreadsheet. Please check your permit conditions to make sure you are providing all the information required for compliance with your permit.\n-DROP DOWN BOXES are provided with several of the fields for your convenience, and to support greater consistency of data for these fields. Please try to use one of the options provided within the drop down boxes for these fields. However, if you can not find the appropriate match in the drop down (or your selection is \"Other - describe\", you may enter your own text in the field as well.  To enter your own text, click on the cell once and start to type your own text. To clear a field, click on the cell once and hit the Delete button.\n","2. Fill out as many of the fields  as possible on tab 3 of this workbook regarding the incident, have an official representative sign the signature block and enter the signature date in tab 2 (signatory does not have to be the Principal Officer, can also be the Primary Contact or other official company representative), and e-mail a copy of this entire workbook (all tabs included) to the individuals specified in your permit conditions (which may be a Migratory Bird Permit Office, and Ecological Services Field Office, or both).  You must report eagle mortalities and injuries no later than 48 hours after discovery, or at the beginning of the next business day. T&E mortalities should be reported no later than 24 hourse after discovery, or at the beginning of the next business day. IN THE SUBJECT LINE OF THE E-MAIL, if you are reporting an eagle write \"EAGLE REPORT - [Permittee Name]\". If you are reporting a T&E species write \"T&E REPORT - [Permittee Name]\" e.g. Eagle Report - Windy Hill Wind Farm (if eagle) or T&E Report - Wind Hill Wind Farm (if T&E). If you do not  have a permit, reports should be e-mailed to the USFWS contact who is working with you on your monitoring process.  Please ALSO COPY the following e-mail address: MigBirdReports@fws.gov. \n\n\n"]
["    3. IF YOU SELECT THE OPTION \"OTHER\" or contains the word \"OTHER\" or you have additional details about your choice: please try to provide additional details with your selection in the other details column provided  next to it.\n    4. ON TAB 3, PLEASE SCROLL RIGHT TO VIEW ADDITIONAL DATA ENTRY FIELDS. There are more fields than are immediately viewable in tab 3. Please use the scroll bar at the bottom right hand side of the spreadsheet to view all fields.\n     5. TO SUBMIT YOUR INTERIM (ANNUAL) REPORT: Please e-mail this entire workbook (including all tabs) as an e-mail attachment to your Regional Migratory Bird Permit Office (see link to webpage with contact information in header above), AND copy the following e-mail addresss: MigBirdReports@fws.gov. Your interim (annual )report should include all injuries/mortalities logged at your facility site during the reporting period (including any eagle or T&E reports).  IN THE SUBJECT LINE OF THE E-MAIL write \"ANNUAL REPORT - [Permittee Name]\". e.g. ANNUAL REPORT - Windy Hill Wind Farm.","3. Please assign a Local Specimen Number in Column B of Tab 3 to ANY birds you hand off to  a responding OLE agent or any other party that might receive the bird once it is transferred (rehabber, vet, lab, etc.). Make sure to give this Local Specimen Number to individual you hand the bird off to. If you can not assign your own unique specimen ID, please use the Source Record ID in Column A as your Local Specimen ID. If you do this, make sure you also put the Source Record ID in Column B to indicate to us you have used this as your local specimen number. \n"]

{"sheet":"2. ENTER CORE INFORMATION","index":1,"n_rows":25,"n_cols":3,"rows_kept":25,"cut":false,"hidden":false,"merged":[[0,0,0,1]]}
["CORE INFORMATION  ",null,"Required Fields"]
["Report Year (yyyy)",null,"Requested Fields"]
["Project Name"]
["FWS Permit Number (MB followed by up to 6  or 5 numbers and an upper case character, if present [e.g., MB13456B])"]
["Project Type"]
["Project Subtype"]
["If Project Type selected is \"Other\", please enter more details"]
["Project Description"]
["Primary Contact Name"]
["Primary Contact Title"]
["Primary Contact Business Phone Number (xxx-xxx-xxxx)"]
[]
["Form 3-202-17 (Rev. 01/2020)"]
["OMB Control No. 1018-0022, Expires 8/31/2023     "]
[]
["If you do not have any mortality/injury information to report for the current reporting cycle, please indicate this by checking the box in the cell to the right. "]
["If you are using a structured survey protocol, please indicate this by checking the box in the cell to the right. Please attach any information about your protocol with this document when you submit it. "]
[null,"Proprietary? (select \"Yes\" or \"No\" below)","Describe Proprietary Information in box below"]
["Is injury/mortality information proprietary? Select \"Yes\" if take records for this project contain Business Confidential (proprietary) information the U.S. Fish and Wildlife Service should review when considering release of take data (for example, in response to Freedom of Information Act requests). If \"Yes\", please summarize exactly what fields you feel are proprietary, explaining why they should be withheld, and from whom. Specifying proprietary information here does not guarantee those fields will be withheld from release, but the information you provide will be attached to every record for this project and will be carefully considered during the handling of those records. For further information, see the Privacy and Freedom of Information Act (FOIA) statements on tab 6."]
[]
["I certify that the information in this report is true and correct to the best of my knowledge. I understand that any false statement herein may subject me to the criminal penalties of 18 U.S. C. 1001."]
["Principal Officer Signature : X"]
[null,"Please type name in box above"]
["Date of Signature:"]
[null,"Please type date (mm/dd/yyyy) of signature in box above"]

{"sheet":"3. ENTER MORT-INJ DATA","index":2,"n_rows":2001,"n_cols":53,"rows_kept":1125,"cut":true,"hidden":false,"merged":[[2,14,2,16]],"bounds":{"rows_first":500,"rows_last":125,"rows_between":500,"halvings":2}}
[null,null,null,null,null,null,null,null,null,null,null,null,null,null,null,null,null,null,null,null,null,"OMB Control No. 1018-0022, Expires 8/31/2023    \nForm 3-202-17 (Rev. 01/2020)"]
["Report Year","Permittee Name","FWS Permit Number","Project Type","Project Subtype","Project Type Other","Description","Primary Contact","Primary Contact Title","Primary Contact Phone","Proprietary","Proprietary Description","Source Record ID","Local Specimen Number","Specific Species","General Species Type","Other Species or Species Type","How Identified","Other How Identified","Number of Individuals","How Found","Date Discovered","Date Collected","Latitude","Longitude","County","State","Location Accuracy","Other Location Accuracy","Condition","Condition Details","Suspected Cause ","Suspected Cause Details","Event Observed","Disposition","Other Disposition","Rehab Center Name","Rehab Center Info","Permittee Info","Date Sent to National Eagle Repository","Lab Name","Law Enforcement Info","Age                              ","How Aged","Other Aging Method","Sex","Surrounding Habitat","Other Surrounding Habitat","USGS Band Number","FWS Toe Tag ID","Additional Notes",null,"Specific Species"]
[null,null,null,null,null,null,null,null,null,null,null,null,null,null,"Note: At least one of the three species columns above needs to be populated; but not all three. \n",null,null,null,null,null,null,null,null,null,null,null,null,null,null,null,null,null,null,null,null,null,null,null,null,null,null,null,null,null,null,null,null,null,null,null,null,null,"Bald Eagle"]
[{"$f":"Report_Year","v":0},{"$f":"Permittee_Name","v":0},{"$f":"FWS_Permit_Number","v":0},{"$f":"Project_Type_Transfer","v":0},{"$f":"Project_Subtype_Transfer","v":0},{"$f":"Project_Type_Other","v":0},{"$f":"Description","v":0},{"$f":"Primary_Contact_Name","v":0},{"$f":"Primary_Contact_Title","v":0},{"$f":"Primary_Contact_Phone","v":0},{"$f":"ProprietaryYesNo","v":0},{"$f":"Proprietary_Description","v":0},{"$f":"CONCATENATE(A4,C4,AZ4)","v":"001"},null,null,null,null,null,null,null,null,null,null,null,null,null,null,null,null,null,null,null,null,null,null,null,null,null,null,null,null,null,null,null,null,null,null,null,null,null,null,1,"Golden Eagle"]
[0,0,0,0,0,0,0,0,0,0,0,0,"002",null,null,null,null,null,null,null,null,null,null,null,null,null,null,null,null,null,null,null,null,null,null,null,null,null,null,null,null,null,null,null,null,null,null,null,null,null,null,2,"Albert's Towhee"]
[0,0,0,0,0,0,0,0,0,0,0,0,"003",null,null,null,null,null,null,null,null,null,null,null,null,null,null,null,null,null,null,null,null,null,null,null,null,null,null,null,null,null,null,null,null,null,null,null,null,null,null,3,"Acadian Flycatcher"]
[0,0,0,0,0,0,0,0,0,0,0,0,"004",null,null,null,null,null,null,null,null,null,null,null,null,null,null,null,null,null,null,null,null,null,null,null,null,null,null,null,null,null,null,null,null,null,null,null,null,null,null,4,"Acorn Woodpecker"]
[0,0,0,0,0,0,0,0,0,0,0,0,"005",null,null,null,null,null,null,null,null,null,null,null,null,null,null,null,null,null,null,null,null,null,null,null,null,null,null,null,null,null,null,null,null,null,null,null,null,null,null,5,"Akeke'e"]
[0,0,0,0,0,0,0,0,0,0,0,0,"006",null,null,null,null,null,null,null,null,null,null,null,null,null,null,null,null,null,null,null,null,null,null,null,null,null,null,null,null,null,null,null,null,null,null,null,null,null,null,6,"Akepa"]
[0,0,0,0,0,0,0,0,0,0,0,0,"007",null,null,null,null,null,null,null,null,null,null,null,null,null,null,null,null,null,null,null,null,null,null,null,null,null,null,null,null,null,null,null,null,null,null,null,null,null,null,7,"Akiapola'au"]
[0,0,0,0,0,0,0,0,0,0,0,0,"008",null,null,null,null,null,null,null,null,null,null,null,null,null,null,null,null,null,null,null,null,null,null,null,null,null,null,null,null,null,null,null,null,null,null,null,null,null,null,8,"Akikiki"]
[0,0,0,0,0,0,0,0,0,0,0,0,"009",null,null,null,null,null,null,null,null,null,null,null,null,null,null,null,null,null,null,null,null,null,null,null,null,null,null,null,null,null,null,null,null,null,null,null,null,null,null,9,"Akohekohe"]
[0,0,0,0,0,0,0,0,0,0,0,0,"0010",null,null,null,null,null,null,null,null,null,null,null,null,null,null,null,null,null,null,null,null,null,null,null,null,null,null,null,null,null,null,null,null,null,null,null,null,null,null,10,"Alder Flycatcher"]
[0,0,0,0,0,0,0,0,0,0,0,0,"0011",null,null,null,null,null,null,null,null,null,null,null,null,null,null,null,null,null,null,null,null,null,null,null,null,null,null,null,null,null,null,null,null,null,null,null,null,null,null,11,"Aleutian Tern"]
[0,0,0,0,0,0,0,0,0,0,0,0,"0012",null,null,null,null,null,null,null,null,null,null,null,null,null,null,null,null,null,null,null,null,null,null,null,null,null,null,null,null,null,null,null,null,null,null,null,null,null,null,12,"Allen's Hummingbird"]
[0,0,0,0,0,0,0,0,0,0,0,0,"0013",null,null,null,null,null,null,null,null,null,null,null,null,null,null,null,null,null,null,null,null,null,null,null,null,null,null,null,null,null,null,null,null,null,null,null,null,null,null,13,"Altamira Oriole"]
[0,0,0,0,0,0,0,0,0,0,0,0,"0014",null,null,null,null,null,null,null,null,null,null,null,null,null,null,null,null,null,null,null,null,null,null,null,null,null,null,null,null,null,null,null,null,null,null,null,null,null,null,14,"American Avocet"]
[0,0,0,0,0,0,0,0,0,0,0,0,"0015",null,null,null,null,null,null,null,null,null,null,null,null,null,null,null,null,null,null,null,null,null,null,null,null,null,null,null,null,null,null,null,null,null,null,null,null,null,null,15,"American Bittern"]
[0,0,0,0,0,0,0,0,0,0,0,0,"0016",null,null,null,null,null,null,null,null,null,null,null,null,null,null,null,null,null,null,null,null,null,null,null,null,null,null,null,null,null,null,null,null,null,null,null,null,null,null,16,"American Black Duck"]
[0,0,0,0,0,0,0,0,0,0,0,0,"0017",null,null,null,null,null,null,null,null,null,null,null,null,null,null,null,null,null,null,null,null,null,null,null,null,null,null,null,null,null,null,null,null,null,null,null,null,null,null,17,"American Coot"]
[0,0,0,0,0,0,0,0,0,0,0,0,"0018",null,null,null,null,null,null,null,null,null,null,null,null,null,null,null,null,null,null,null,null,null,null,null,null,null,null,null,null,null,null,null,null,null,null,null,null,null,null,18,"American Crow"]
[0,0,0,0,0,0,0,0,0,0,0,0,"0019",null,null,null,null,null,null,null,null,null,null,null,null,null,null,null,null,null,null,null,null,null,null,null,null,null,null,null,null,null,null,null,null,null,null,null,null,null,null,19,"American Dipper"]
[0,0,0,0,0,0,0,0,0,0,0,0,"0020",null,null,null,null,null,null,null,null,null,null,null,null,null,null,null,null,null,null,null,null,null,null,null,null,null,null,null,null,null,null,null,null,null,null,null,null,null,null,20,"American Golden-Plover"]
[0,0,0,0,0,0,0,0,0,0,0,0,"0021",null,null,null,null,null,null,null,null,null,null,null,null,null,null,null,null,null,null,null,null,null,null,null,null,null,null,null,null,null,null,null,null,null,null,null,null,null,null,21,"American Goldfinch"]
[0,0,0,0,0,0,0,0,0,0,0,0,"0022",null,null,null,null,null,null,null,null,null,null,null,null,null,null,null,null,null,null,null,null,null,null,null,null,null,null,null,null,null,null,null,null,null,null,null,null,null,null,22,"American Kestrel"]
[0,0,0,0,0,0,0,0,0,0,0,0,"0023",null,null,null,null,null,null,null,null,null,null,null,null,null,null,null,null,null,null,null,null,null,null,null,null,null,null,null,null,null,null,null,null,null,null,null,null,null,null,23,"American Oystercatcher"]
[0,0,0,0,0,0,0,0,0,0,0,0,"0024",null,null,null,null,null,null,null,null,null,null,null,null,null,null,null,null,null,null,null,null,null,null,null,null,null,null,null,null,null,null,null,null,null,null,null,null,null,null,24,"American Pipit"]
[0,0,0,0,0,0,0,0,0,0,0,0,"0025",null,null,null,null,null,null,null,null,null,null,null,null,null,null,null,null,null,null,null,null,null,null,null,null,null,null,null,null,null,null,null,null,null,null,null,null,null,null,25,"American Redstart"]
[0,0,0,0,0,0,0,0,0,0,0,0,"0026",null,null,null,null,null,null,null,null,null,null,null,null,null,null,null,null,null,null,null,null,null,null,null,null,null,null,null,null,null,null,null,null,null,null,null,null,null,null,26,"American Robin"]
[0,0,0,0,0,0,0,0,0,0,0,0,"0027",null,null,null,null,null,null,null,null,null,null,null,null,null,null,null,null,null,null,null,null,null,null,null,null,null,null,null,null,null,null,null,null,null,null,null,null,null,null,27,"American Three-toed Woodpecker"]
[0,0,0,0,0,0,0,0,0,0,0,0,"0028",null,null,null,null,null,null,null,null,null,null,null,null,null,null,null,null,null,null,null,null,null,null,null,null,null,null,null,null,null,null,null,null,null,null,null,null,null,null,28,"American Tree Sparrow"]
[0,0,0,0,0,0,0,0,0,0,0,0,"0029",null,null,null,null,null,null,null,null,null,null,null,null,null,null,null,null,null,null,null,null,null,null,null,null,null,null,null,null,null,null,null,null,null,null,null,null,null,null,29,"American White Pelican"]
[0,0,0,0,0,0,0,0,0,0,0,0,"0030",null,null,null,null,null,null,null,null,null,null,null,null,null,null,null,null,null,null,null,null,null,null,null,null,null,null,null,null,null,null,null,null,null,null,null,null,null,null,30,"American Wigeon"]
[0,0,0,0,0,0,0,0,0,0,0,0,"0031",null,null,null,null,null,null,null,null,null,null,null,null,null,null,null,null,null,null,null,null,null,null,null,null,null,null,null,null,null,null,null,null,null,null,null,null,null,null,31,"American Woodcock"]
[0,0,0,0,0,0,0,0,0,0,0,0,"0032",null,null,null,null,null,null,null,null,null,null,null,null,null,null,null,null,null,null,null,null,null,null,null,null,null,null,null,null,null,null,null,null,null,null,null,null,null,null,32,"Ancient Murrelet"]
[0,0,0,0,0,0,0,0,0,0,0,0,"0033",null,null,null,null,null,null,null,null,null,null,null,null,null,null,null,null,null,null,null,null,null,null,null,null,null,null,null,null,null,null,null,null,null,null,null,null,null,null,33,"Anhinga"]
[0,0,0,0,0,0,0,0,0,0,0,0,"0034",null,null,null,null,null,null,null,null,null,null,null,null,null,null,null,null,null,null,null,null,null,null,null,null,null,null,null,null,null,null,null,null,null,null,null,null,null,null,34,"Anianiau"]
[0,0,0,0,0,0,0,0,0,0,0,0,"0035",null,null,null,null,null,null,null,null,null,null,null,null,null,null,null,null,null,null,null,null,null,null,null,null,null,null,null,null,null,null,null,null,null,null,null,null,null,null,35,"Anna's Hummingbird"]
[0,0,0,0,0,0,0,0,0,0,0,0,"0036",null,null,null,null,null,null,null,null,null,null,null,null,null,null,null,null,null,null,null,null,null,null,null,null,null,null,null,null,null,null,null,null,null,null,null,null,null,null,36,"Apapane"]
[0,0,0,0,0,0,0,0,0,0,0,0,"0037",null,null,null,null,null,null,null,null,null,null,null,null,null,null,null,null,null,null,null,null,null,null,null,null,null,null,null,null,null,null,null,null,null,null,null,null,null,null,37,"Aplomado Falcon"]
[0,0,0,0,0,0,0,0,0,0,0,0,"0038",null,null,null,null,null,null,null,null,null,null,null,null,null,null,null,null,null,null,null,null,null,null,null,null,null,null,null,null,null,null,null,null,null,null,null,null,null,null,38,"Arctic Loon"]
[0,0,0,0,0,0,0,0,0,0,0,0,"0039",null,null,null,null,null,null,null,null,null,null,null,null,null,null,null,null,null,null,null,null,null,null,null,null,null,null,null,null,null,null,null,null,null,null,null,null,null,null,39,"Arctic Tern"]
[0,0,0,0,0,0,0,0,0,0,0,0,"0040",null,null,null,null,null,null,null,null,null,null,null,null,null,null,null,null,null,null,null,null,null,null,null,null,null,null,null,null,null,null,null,null,null,null,null,null,null,null,40,"Arizona Woodpecker"]
[0,0,0,0,0,0,0,0,0,0,0,0,"0041",null,null,null,null,null,null,null,null,null,null,null,null,null,null,null,null,null,null,null,null,null,null,null,null,null,null,null,null,null,null,null,null,null,null,null,null,null,null,41,"Ash-throated Flycatcher"]
[0,0,0,0,0,0,0,0,0,0,0,0,"0042",null,null,null,null,null,null,null,null,null,null,null,null,null,null,null,null,null,null,null,null,null,null,null,null,null,null,null,null,null,null,null,null,null,null,null,null,null,null,42,"Ashy Storm-Petrel"]
[0,0,0,0,0,0,0,0,0,0,0,0,"0043",null,null,null,null,null,null,null,null,null,null,null,null,null,null,null,null,null,null,null,null,null,null,null,null,null,null,null,null,null,null,null,null,null,null,null,null,null,null,43,"Atlantic Puffin"]
[0,0,0,0,0,0,0,0,0,0,0,0,"0044",null,null,null,null,null,null,null,null,null,null,null,null,null,null,null,null,null,null,null,null,null,null,null,null,null,null,null,null,null,null,null,null,null,null,null,null,null,null,44,"Audubon's Oriole"]
[0,0,0,0,0,0,0,0,0,0,0,0,"0045",null,null,null,null,null,null,null,null,null,null,null,null,null,null,null,null,null,null,null,null,null,null,null,null,null,null,null,null,null,null,null,null,null,null,null,null,null,null,45,"Audubon's Shearwater"]
[0,0,0,0,0,0,0,0,0,0,0,0,"0046",null,null,null,null,null,null,null,null,null,null,null,null,null,null,null,null,null,null,null,null,null,null,null,null,null,null,null,null,null,null,null,null,null,null,null,null,null,null,46,"Aztec Thrush"]
[0,0,0,0,0,0,0,0,0,0,0,0,"0047",null,null,null,null,null,null,null,null,null,null,null,null,null,null,null,null,null,null,null,null,null,null,null,null,null,null,null,null,null,null,null,null,null,null,null,null,null,null,47,"Bachman's Sparrow"]
[0,0,0,0,0,0,0,0,0,0,0,0,"0048",null,null,null,null,null,null,null,null,null,null,null,null,null,null,null,null,null,null,null,null,null,null,null,null,null,null,null,null,null,null,null,null,null,null,null,null,null,null,48,"Bachman's Warbler"]
[0,0,0,0,0,0,0,0,0,0,0,0,"0049",null,null,null,null,null,null,null,null,null,null,null,null,null,null,null,null,null,null,null,null,null,null,null,null,null,null,null,null,null,null,null,null,null,null,null,null,null,null,49,"Bahama Mockingbird"]
[0,0,0,0,0,0,0,0,0,0,0,0,"0050",null,null,null,null,null,null,null,null,null,null,null,null,null,null,null,null,null,null,null,null,null,null,null,null,null,null,null,null,null,null,null,null,null,null,null,null,null,null,50,"Baird's Sandpiper"]
[0,0,0,0,0,0,0,0,0,0,0,0,"0051",null,null,null,null,null,null,null,null,null,null,null,null,null,null,null,null,null,null,null,null,null,null,null,null,null,null,null,null,null,null,null,null,null,null,null,null,null,null,51,"Baird's Sparrow"]
[0,0,0,0,0,0,0,0,0,0,0,0,"0052",null,null,null,null,null,null,null,null,null,null,null,null,null,null,null,null,null,null,null,null,null,null,null,null,null,null,null,null,null,null,null,null,null,null,null,null,null,null,52,"Baltimore Oriole"]
[0,0,0,0,0,0,0,0,0,0,0,0,"0053",null,null,null,null,null,null,null,null,null,null,null,null,null,null,null,null,null,null,null,null,null,null,null,null,null,null,null,null,null,null,null,null,null,null,null,null,null,null,53,"Band-rumped Storm-Petrel"]
[0,0,0,0,0,0,0,0,0,0,0,0,"0054",null,null,null,null,null,null,null,null,null,null,null,null,null,null,null,null,null,null,null,null,null,null,null,null,null,null,null,null,null,null,null,null,null,null,null,null,null,null,54,"Band-tailed Pigeon"]
[0,0,0,0,0,0,0,0,0,0,0,0,"0055",null,null,null,null,null,null,null,null,null,null,null,null,null,null,null,null,null,null,null,null,null,null,null,null,null,null,null,null,null,null,null,null,null,null,null,null,null,null,55,"Bank Swallow"]
[0,0,0,0,0,0,0,0,0,0,0,0,"0056",null,null,null,null,null,null,null,null,null,null,null,null,null,null,null,null,null,null,null,null,null,null,null,null,null,null,null,null,null,null,null,null,null,null,null,null,null,null,56,"Barn Owl"]
[0,0,0,0,0,0,0,0,0,0,0,0,"0057",null,null,null,null,null,null,null,null,null,null,null,null,null,null,null,null,null,null,null,null,null,null,null,null,null,null,null,null,null,null,null,null,null,null,null,null,null,null,57,"Barn Swallow"]
[0,0,0,0,0,0,0,0,0,0,0,0,"0058",null,null,null,null,null,null,null,null,null,null,null,null,null,null,null,null,null,null,null,null,null,null,null,null,null,null,null,null,null,null,null,null,null,null,null,null,null,null,58,"Barnacle Goose"]
[0,0,0,0,0,0,0,0,0,0,0,0,"0059",null,null,null,null,null,null,null,null,null,null,null,null,null,null,null,null,null,null,null,null,null,null,null,null,null,null,null,null,null,null,null,null,null,null,null,null,null,null,59,"Barred Owl"]
[0,0,0,0,0,0,0,0,0,0,0,0,"0060",null,null,null,null,null,null,null,null,null,null,null,null,null,null,null,null,null,null,null,null,null,null,null,null,null,null,null,null,null,null,null,null,null,null,null,null,null,null,60,"Barrow's Goldeneye"]
[0,0,0,0,0,0,0,0,0,0,0,0,"0061",null,null,null,null,null,null,null,null,null,null,null,null,null,null,null,null,null,null,null,null,null,null,null,null,null,null,null,null,null,null,null,null,null,null,null,null,null,null,61,"Bar-tailed Godwit"]
[0,0,0,0,0,0,0,0,0,0,0,0,"0062",null,null,null,null,null,null,null,null,null,null,null,null,null,null,null,null,null,null,null,null,null,null,null,null,null,null,null,null,null,null,null,null,null,null,null,null,null,null,62,"Bay-breasted Warbler"]
[0,0,0,0,0,0,0,0,0,0,0,0,"0063",null,null,null,null,null,null,null,null,null,null,null,null,null,null,null,null,null,null,null,null,null,null,null,null,null,null,null,null,null,null,null,null,null,null,null,null,null,null,63,"Bell's Sparrow"]
[0,0,0,0,0,0,0,0,0,0,0,0,"0064",null,null,null,null,null,null,null,null,null,null,null,null,null,null,null,null,null,null,null,null,null,null,null,null,null,null,null,null,null,null,null,null,null,null,null,null,null,null,64,"Bell's Vireo"]
[{"$f":"Report_Year","v":0},{"$f":"Permittee_Name","v":0},{"$f":"FWS_Permit_Number","v":0},{"$f":"Project_Type_Transfer","v":0},{"$f":"Project_Subtype_Transfer","v":0},{"$f":"Project_Type_Other","v":0},{"$f":"Description","v":0},{"$f":"Primary_Contact_Name","v":0},{"$f":"Primary_Contact_Title","v":0},{"$f":"Primary_Contact_Phone","v":0},{"$f":"ProprietaryYesNo","v":0},{"$f":"Proprietary_Description","v":0},{"$f":"CONCATENATE(A68,C68,AZ68)","v":"0065"},null,null,null,null,null,null,null,null,null,null,null,null,null,null,null,null,null,null,null,null,null,null,null,null,null,null,null,null,null,null,null,null,null,null,null,null,null,null,65,"Belted Kingfisher"]
[0,0,0,0,0,0,0,0,0,0,0,0,"0066",null,null,null,null,null,null,null,null,null,null,null,null,null,null,null,null,null,null,null,null,null,null,null,null,null,null,null,null,null,null,null,null,null,null,null,null,null,null,66,"Bendire's Thrasher"]
[0,0,0,0,0,0,0,0,0,0,0,0,"0067",null,null,null,null,null,null,null,null,null,null,null,null,null,null,null,null,null,null,null,null,null,null,null,null,null,null,null,null,null,null,null,null,null,null,null,null,null,null,67,"Bermuda Petrel"]
[0,0,0,0,0,0,0,0,0,0,0,0,"0068",null,null,null,null,null,null,null,null,null,null,null,null,null,null,null,null,null,null,null,null,null,null,null,null,null,null,null,null,null,null,null,null,null,null,null,null,null,null,68,"Berylline Hummingbird"]
[0,0,0,0,0,0,0,0,0,0,0,0,"0069",null,null,null,null,null,null,null,null,null,null,null,null,null,null,null,null,null,null,null,null,null,null,null,null,null,null,null,null,null,null,null,null,null,null,null,null,null,null,69,"Bewick's Wren"]
[0,0,0,0,0,0,0,0,0,0,0,0,"0070",null,null,null,null,null,null,null,null,null,null,null,null,null,null,null,null,null,null,null,null,null,null,null,null,null,null,null,null,null,null,null,null,null,null,null,null,null,null,70,"Bicknell's Thrush"]
[0,0,0,0,0,0,0,0,0,0,0,0,"0071",null,null,null,null,null,null,null,null,null,null,null,null,null,null,null,null,null,null,null,null,null,null,null,null,null,null,null,null,null,null,null,null,null,null,null,null,null,null,71,"Black Guillemot"]
[0,0,0,0,0,0,0,0,0,0,0,0,"0072",null,null,null,null,null,null,null,null,null,null,null,null,null,null,null,null,null,null,null,null,null,null,null,null,null,null,null,null,null,null,null,null,null,null,null,null,null,null,72,"Black Noddy"]
[0,0,0,0,0,0,0,0,0,0,0,0,"0073",null,null,null,null,null,null,null,null,null,null,null,null,null,null,null,null,null,null,null,null,null,null,null,null,null,null,null,null,null,null,null,null,null,null,null,null,null,null,73,"Black Oystercatcher"]
[0,0,0,0,0,0,0,0,0,0,0,0,"0074",null,null,null,null,null,null,null,null,null,null,null,null,null,null,null,null,null,null,null,null,null,null,null,null,null,null,null,null,null,null,null,null,null,null,null,null,null,null,74,"Black Phoebe"]
[0,0,0,0,0,0,0,0,0,0,0,0,"0075",null,null,null,null,null,null,null,null,null,null,null,null,null,null,null,null,null,null,null,null,null,null,null,null,null,null,null,null,null,null,null,null,null,null,null,null,null,null,75,"Black Rail"]
[0,0,0,0,0,0,0,0,0,0,0,0,"0076",null,null,null,null,null,null,null,null,null,null,null,null,null,null,null,null,null,null,null,null,null,null,null,null,null,null,null,null,null,null,null,null,null,null,null,null,null,null,76,"Black Rosy-Finch"]
[0,0,0,0,0,0,0,0,0,0,0,0,"0077",null,null,null,null,null,null,null,null,null,null,null,null,null,null,null,null,null,null,null,null,null,null,null,null,null,null,null,null,null,null,null,null,null,null,null,null,null,null,77,"Black Scoter"]
[0,0,0,0,0,0,0,0,0,0,0,0,"0078",null,null,null,null,null,null,null,null,null,null,null,null,null,null,null,null,null,null,null,null,null,null,null,null,null,null,null,null,null,null,null,null,null,null,null,null,null,null,78,"Black Skimmer"]
[0,0,0,0,0,0,0,0,0,0,0,0,"0079",null,null,null,null,null,null,null,null,null,null,null,null,null,null,null,null,null,null,null,null,null,null,null,null,null,null,null,null,null,null,null,null,null,null,null,null,null,null,79,"Black Storm-Petrel"]
[0,0,0,0,0,0,0,0,0,0,0,0,"0080",null,null,null,null,null,null,null,null,null,null,null,null,null,null,null,null,null,null,null,null,null,null,null,null,null,null,null,null,null,null,null,null,null,null,null,null,null,null,80,"Black Swift"]
[0,0,0,0,0,0,0,0,0,0,0,0,"0081",null,null,null,null,null,null,null,null,null,null,null,null,null,null,null,null,null,null,null,null,null,null,null,null,null,null,null,null,null,null,null,null,null,null,null,null,null,null,81,"Black Tern"]
[0,0,0,0,0,0,0,0,0,0,0,0,"0082",null,null,null,null,null,null,null,null,null,null,null,null,null,null,null,null,null,null,null,null,null,null,null,null,null,null,null,null,null,null,null,null,null,null,null,null,null,null,82,"Black Turnstone"]
[0,0,0,0,0,0,0,0,0,0,0,0,"0083",null,null,null,null,null,null,null,null,null,null,null,null,null,null,null,null,null,null,null,null,null,null,null,null,null,null,null,null,null,null,null,null,null,null,null,null,null,null,83,"Black Vulture"]
[0,0,0,0,0,0,0,0,0,0,0,0,"0084",null,null,null,null,null,null,null,null,null,null,null,null,null,null,null,null,null,null,null,null,null,null,null,null,null,null,null,null,null,null,null,null,null,null,null,null,null,null,84,"Black-and-white Warbler"]
[0,0,0,0,0,0,0,0,0,0,0,0,"0085",null,null,null,null,null,null,null,null,null,null,null,null,null,null,null,null,null,null,null,null,null,null,null,null,null,null,null,null,null,null,null,null,null,null,null,null,null,null,85,"Black-backed Woodpecker"]
[0,0,0,0,0,0,0,0,0,0,0,0,"0086",null,null,null,null,null,null,null,null,null,null,null,null,null,null,null,null,null,null,null,null,null,null,null,null,null,null,null,null,null,null,null,null,null,null,null,null,null,null,86,"Black-bellied Plover"]
[0,0,0,0,0,0,0,0,0,0,0,0,"0087",null,null,null,null,null,null,null,null,null,null,null,null,null,null,null,null,null,null,null,null,null,null,null,null,null,null,null,null,null,null,null,null,null,null,null,null,null,null,87,"Black-bellied Whistling-Duck"]
[0,0,0,0,0,0,0,0,0,0,0,0,"0088",null,null,null,null,null,null,null,null,null,null,null,null,null,null,null,null,null,null,null,null,null,null,null,null,null,null,null,null,null,null,null,null,null,null,null,null,null,null,88,"Black-billed Cuckoo"]
[0,0,0,0,0,0,0,0,0,0,0,0,"0089",null,null,null,null,null,null,null,null,null,null,null,null,null,null,null,null,null,null,null,null,null,null,null,null,null,null,null,null,null,null,null,null,null,null,null,null,null,null,89,"Black-billed Magpie"]
[0,0,0,0,0,0,0,0,0,0,0,0,"0090",null,null,null,null,null,null,null,null,null,null,null,null,null,null,null,null,null,null,null,null,null,null,null,null,null,null,null,null,null,null,null,null,null,null,null,null,null,null,90,"Blackburnian Warbler"]
[0,0,0,0,0,0,0,0,0,0,0,0,"0091",null,null,null,null,null,null,null,null,null,null,null,null,null,null,null,null,null,null,null,null,null,null,null,null,null,null,null,null,null,null,null,null,null,null,null,null,null,null,91,"Black-capped Chickadee"]
[0,0,0,0,0,0,0,0,0,0,0,0,"0092",null,null,null,null,null,null,null,null,null,null,null,null,null,null,null,null,null,null,null,null,null,null,null,null,null,null,null,null,null,null,null,null,null,null,null,null,null,null,92,"Black-capped Gnatcatcher"]
[0,0,0,0,0,0,0,0,0,0,0,0,"0093",null,null,null,null,null,null,null,null,null,null,null,null,null,null,null,null,null,null,null,null,null,null,null,null,null,null,null,null,null,null,null,null,null,null,null,null,null,null,93,"Black-capped Petrel"]
[0,0,0,0,0,0,0,0,0,0,0,0,"0094",null,null,null,null,null,null,null,null,null,null,null,null,null,null,null,null,null,null,null,null,null,null,null,null,null,null,null,null,null,null,null,null,null,null,null,null,null,null,94,"Black-capped Vireo"]
[0,0,0,0,0,0,0,0,0,0,0,0,"0095",null,null,null,null,null,null,null,null,null,null,null,null,null,null,null,null,null,null,null,null,null,null,null,null,null,null,null,null,null,null,null,null,null,null,null,null,null,null,95,"Black-chinned Hummingbird"]
[0,0,0,0,0,0,0,0,0,0,0,0,"0096",null,null,null,null,null,null,null,null,null,null,null,null,null,null,null,null,null,null,null,null,null,null,null,null,null,null,null,null,null,null,null,null,null,null,null,null,null,null,96,"Black-chinned Sparrow"]
[0,0,0,0,0,0,0,0,0,0,0,0,"0097",null,null,null,null,null,null,null,null,null,null,null,null,null,null,null,null,null,null,null,null,null,null,null,null,null,null,null,null,null,null,null,null,null,null,null,null,null,null,97,"Black-crested Titmouse"]
[0,0,0,0,0,0,0,0,0,0,0,0,"0098",null,null,null,null,null,null,null,null,null,null,null,null,null,null,null,null,null,null,null,null,null,null,null,null,null,null,null,null,null,null,null,null,null,null,null,null,null,null,98,"Black-crowned Night-Heron"]
[0,0,0,0,0,0,0,0,0,0,0,0,"0099",null,null,null,null,null,null,null,null,null,null,null,null,null,null,null,null,null,null,null,null,null,null,null,null,null,null,null,null,null,null,null,null,null,null,null,null,null,null,99,"Black-footed Albatross"]
[0,0,0,0,0,0,0,0,0,0,0,0,"00100",null,null,null,null,null,null,null,null,null,null,null,null,null,null,null,null,null,null,null,null,null,null,null,null,null,null,null,null,null,null,null,null,null,null,null,null,null,null,100,"Black-headed Grosbeak"]
[0,0,0,0,0,0,0,0,0,0,0,0,"00101",null,null,null,null,null,null,null,null,null,null,null,null,null,null,null,null,null,null,null,null,null,null,null,null,null,null,null,null,null,null,null,null,null,null,null,null,null,null,101,"Black-headed Gull"]
[0,0,0,0,0,0,0,0,0,0,0,0,"00102",null,null,null,null,null,null,null,null,null,null,null,null,null,null,null,null,null,null,null,null,null,null,null,null,null,null,null,null,null,null,null,null,null,null,null,null,null,null,102,"Black-legged Kittiwake"]
[0,0,0,0,0,0,0,0,0,0,0,0,"00103",null,null,null,null,null,null,null,null,null,null,null,null,null,null,null,null,null,null,null,null,null,null,null,null,null,null,null,null,null,null,null,null,null,null,null,null,null,null,103,"Black-necked Stilt"]
[0,0,0,0,0,0,0,0,0,0,0,0,"00104",null,null,null,null,null,null,null,null,null,null,null,null,null,null,null,null,null,null,null,null,null,null,null,null,null,null,null,null,null,null,null,null,null,null,null,null,null,null,104,"Blackpoll Warbler"]
[0,0,0,0,0,0,0,0,0,0,0,0,"00105",null,null,null,null,null,null,null,null,null,null,null,null,null,null,null,null,null,null,null,null,null,null,null,null,null,null,null,null,null,null,null,null,null,null,null,null,null,null,105,"Black-tailed Gnatcatcher"]
[0,0,0,0,0,0,0,0,0,0,0,0,"00106",null,null,null,null,null,null,null,null,null,null,null,null,null,null,null,null,null,null,null,null,null,null,null,null,null,null,null,null,null,null,null,null,null,null,null,null,null,null,106,"Black-tailed Godwit"]
[0,0,0,0,0,0,0,0,0,0,0,0,"00107",null,null,null,null,null,null,null,null,null,null,null,null,null,null,null,null,null,null,null,null,null,null,null,null,null,null,null,null,null,null,null,null,null,null,null,null,null,null,107,"Black-throated Blue Warbler"]
[0,0,0,0,0,0,0,0,0,0,0,0,"00108",null,null,null,null,null,null,null,null,null,null,null,null,null,null,null,null,null,null,null,null,null,null,null,null,null,null,null,null,null,null,null,null,null,null,null,null,null,null,108,"Black-throated Gray Warbler"]
[0,0,0,0,0,0,0,0,0,0,0,0,"00109",null,null,null,null,null,null,null,null,null,null,null,null,null,null,null,null,null,null,null,null,null,null,null,null,null,null,null,null,null,null,null,null,null,null,null,null,null,null,109,"Black-throated Green Warbler"]
[0,0,0,0,0,0,0,0,0,0,0,0,"00110",null,null,null,null,null,null,null,null,null,null,null,null,null,null,null,null,null,null,null,null,null,null,null,null,null,null,null,null,null,null,null,null,null,null,null,null,null,null,110,"Black-throated Sparrow"]
[0,0,0,0,0,0,0,0,0,0,0,0,"00111",null,null,null,null,null,null,null,null,null,null,null,null,null,null,null,null,null,null,null,null,null,null,null,null,null,null,null,null,null,null,null,null,null,null,null,null,null,null,111,"Black-vented Shearwater"]
[0,0,0,0,0,0,0,0,0,0,0,0,"00112",null,null,null,null,null,null,null,null,null,null,null,null,null,null,null,null,null,null,null,null,null,null,null,null,null,null,null,null,null,null,null,null,null,null,null,null,null,null,112,"Black-whiskered Vireo"]
[0,0,0,0,0,0,0,0,0,0,0,0,"00113",null,null,null,null,null,null,null,null,null,null,null,null,null,null,null,null,null,null,null,null,null,null,null,null,null,null,null,null,null,null,null,null,null,null,null,null,null,null,113,"Blue Grosbeak"]
[0,0,0,0,0,0,0,0,0,0,0,0,"00114",null,null,null,null,null,null,null,null,null,null,null,null,null,null,null,null,null,null,null,null,null,null,null,null,null,null,null,null,null,null,null,null,null,null,null,null,null,null,114,"Blue Jay"]
[0,0,0,0,0,0,0,0,0,0,0,0,"00115",null,null,null,null,null,null,null,null,null,null,null,null,null,null,null,null,null,null,null,null,null,null,null,null,null,null,null,null,null,null,null,null,null,null,null,null,null,null,115,"Blue-footed Booby"]
[0,0,0,0,0,0,0,0,0,0,0,0,"00116",null,null,null,null,null,null,null,null,null,null,null,null,null,null,null,null,null,null,null,null,null,null,null,null,null,null,null,null,null,null,null,null,null,null,null,null,null,null,116,"Blue-gray Gnatcatcher"]
[0,0,0,0,0,0,0,0,0,0,0,0,"00117",null,null,null,null,null,null,null,null,null,null,null,null,null,null,null,null,null,null,null,null,null,null,null,null,null,null,null,null,null,null,null,null,null,null,null,null,null,null,117,"Blue-gray Noddy"]
[0,0,0,0,0,0,0,0,0,0,0,0,"00118",null,null,null,null,null,null,null,null,null,null,null,null,null,null,null,null,null,null,null,null,null,null,null,null,null,null,null,null,null,null,null,null,null,null,null,null,null,null,118,"Blue-headed Vireo"]
[0,0,0,0,0,0,0,0,0,0,0,0,"00119",null,null,null,null,null,null,null,null,null,null,null,null,null,null,null,null,null,null,null,null,null,null,null,null,null,null,null,null,null,null,null,null,null,null,null,null,null,null,119,"Blue-throated Hummingbird"]
[0,0,0,0,0,0,0,0,0,0,0,0,"00120",null,null,null,null,null,null,null,null,null,null,null,null,null,null,null,null,null,null,null,null,null,null,null,null,null,null,null,null,null,null,null,null,null,null,null,null,null,null,120,"Blue-winged Teal"]
[0,0,0,0,0,0,0,0,0,0,0,0,"00121",null,null,null,null,null,null,null,null,null,null,null,null,null,null,null,null,null,null,null,null,null,null,null,null,null,null,null,null,null,null,null,null,null,null,null,null,null,null,121,"Blue-winged Warbler"]
[0,0,0,0,0,0,0,0,0,0,0,0,"00122",null,null,null,null,null,null,null,null,null,null,null,null,null,null,null,null,null,null,null,null,null,null,null,null,null,null,null,null,null,null,null,null,null,null,null,null,null,null,122,"Boat-tailed Grackle"]
[0,0,0,0,0,0,0,0,0,0,0,0,"00123",null,null,null,null,null,null,null,null,null,null,null,null,null,null,null,null,null,null,null,null,null,null,null,null,null,null,null,null,null,null,null,null,null,null,null,null,null,null,123,"Bobolink"]
[0,0,0,0,0,0,0,0,0,0,0,0,"00124",null,null,null,null,null,null,null,null,null,null,null,null,null,null,null,null,null,null,null,null,null,null,null,null,null,null,null,null,null,null,null,null,null,null,null,null,null,null,124,"Bohemian Waxwing"]
[0,0,0,0,0,0,0,0,0,0,0,0,"00125",null,null,null,null,null,null,null,null,null,null,null,null,null,null,null,null,null,null,null,null,null,null,null,null,null,null,null,null,null,null,null,null,null,null,null,null,null,null,125,"Bonaparte's Gull"]
[0,0,0,0,0,0,0,0,0,0,0,0,"00126",null,null,null,null,null,null,null,null,null,null,null,null,null,null,null,null,null,null,null,null,null,null,null,null,null,null,null,null,null,null,null,null,null,null,null,null,null,null,126,"Bonin Petrel"]
[0,0,0,0,0,0,0,0,0,0,0,0,"00127",null,null,null,null,null,null,null,null,null,null,null,null,null,null,null,null,null,null,null,null,null,null,null,null,null,null,null,null,null,null,null,null,null,null,null,null,null,null,127,"Boreal Chickadee"]
[0,0,0,0,0,0,0,0,0,0,0,0,"00128",null,null,null,null,null,null,null,null,null,null,null,null,null,null,null,null,null,null,null,null,null,null,null,null,null,null,null,null,null,null,null,null,null,null,null,null,null,null,128,"Boreal Owl"]
[{"$f":"Report_Year","v":0},{"$f":"Permittee_Name","v":0},{"$f":"FWS_Permit_Number","v":0},{"$f":"Project_Type_Transfer","v":0},{"$f":"Project_Subtype_Transfer","v":0},{"$f":"Project_Type_Other","v":0},{"$f":"Description","v":0},{"$f":"Primary_Contact_Name","v":0},{"$f":"Primary_Contact_Title","v":0},{"$f":"Primary_Contact_Phone","v":0},{"$f":"ProprietaryYesNo","v":0},{"$f":"Proprietary_Description","v":0},{"$f":"CONCATENATE(A132,C132,AZ132)","v":"00129"},null,null,null,null,null,null,null,null,null,null,null,null,null,null,null,null,null,null,null,null,null,null,null,null,null,null,null,null,null,null,null,null,null,null,null,null,null,null,129,"Botteri's Sparrow"]
[0,0,0,0,0,0,0,0,0,0,0,0,"00130",null,null,null,null,null,null,null,null,null,null,null,null,null,null,null,null,null,null,null,null,null,null,null,null,null,null,null,null,null,null,null,null,null,null,null,null,null,null,130,"Brandt's Cormorant"]
[0,0,0,0,0,0,0,0,0,0,0,0,"00131",null,null,null,null,null,null,null,null,null,null,null,null,null,null,null,null,null,null,null,null,null,null,null,null,null,null,null,null,null,null,null,null,null,null,null,null,null,null,131,"Brant"]
[0,0,0,0,0,0,0,0,0,0,0,0,"00132",null,null,null,null,null,null,null,null,null,null,null,null,null,null,null,null,null,null,null,null,null,null,null,null,null,null,null,null,null,null,null,null,null,null,null,null,null,null,132,"Brewer's Blackbird"]
[0,0,0,0,0,0,0,0,0,0,0,0,"00133",null,null,null,null,null,null,null,null,null,null,null,null,null,null,null,null,null,null,null,null,null,null,null,null,null,null,null,null,null,null,null,null,null,null,null,null,null,null,133,"Brewer's Sparrow"]
[0,0,0,0,0,0,0,0,0,0,0,0,"00134",null,null,null,null,null,null,null,null,null,null,null,null,null,null,null,null,null,null,null,null,null,null,null,null,null,null,null,null,null,null,null,null,null,null,null,null,null,null,134,"Bridled Tern"]
[0,0,0,0,0,0,0,0,0,0,0,0,"00135",null,null,null,null,null,null,null,null,null,null,null,null,null,null,null,null,null,null,null,null,null,null,null,null,null,null,null,null,null,null,null,null,null,null,null,null,null,null,135,"Bridled Titmouse"]
[0,0,0,0,0,0,0,0,0,0,0,0,"00136",null,null,null,null,null,null,null,null,null,null,null,null,null,null,null,null,null,null,null,null,null,null,null,null,null,null,null,null,null,null,null,null,null,null,null,null,null,null,136,"Bristle-thighed Curlew"]
[0,0,0,0,0,0,0,0,0,0,0,0,"00137",null,null,null,null,null,null,null,null,null,null,null,null,null,null,null,null,null,null,null,null,null,null,null,null,null,null,null,null,null,null,null,null,null,null,null,null,null,null,137,"Broad-billed Hummingbird"]
[0,0,0,0,0,0,0,0,0,0,0,0,"00138",null,null,null,null,null,null,null,null,null,null,null,null,null,null,null,null,null,null,null,null,null,null,null,null,null,null,null,null,null,null,null,null,null,null,null,null,null,null,138,"Broad-tailed Hummingbird"]
[0,0,0,0,0,0,0,0,0,0,0,0,"00139",null,null,null,null,null,null,null,null,null,null,null,null,null,null,null,null,null,null,null,null,null,null,null,null,null,null,null,null,null,null,null,null,null,null,null,null,null,null,139,"Broad-winged Hawk"]
[0,0,0,0,0,0,0,0,0,0,0,0,"00140",null,null,null,null,null,null,null,null,null,null,null,null,null,null,null,null,null,null,null,null,null,null,null,null,null,null,null,null,null,null,null,null,null,null,null,null,null,null,140,"Bronzed Cowbird"]
[0,0,0,0,0,0,0,0,0,0,0,0,"00141",null,null,null,null,null,null,null,null,null,null,null,null,null,null,null,null,null,null,null,null,null,null,null,null,null,null,null,null,null,null,null,null,null,null,null,null,null,null,141,"Brown Booby"]
[0,0,0,0,0,0,0,0,0,0,0,0,"00142",null,null,null,null,null,null,null,null,null,null,null,null,null,null,null,null,null,null,null,null,null,null,null,null,null,null,null,null,null,null,null,null,null,null,null,null,null,null,142,"Brown Creeper"]
[0,0,0,0,0,0,0,0,0,0,0,0,"00143",null,null,null,null,null,null,null,null,null,null,null,null,null,null,null,null,null,null,null,null,null,null,null,null,null,null,null,null,null,null,null,null,null,null,null,null,null,null,143,"Brown Jay"]
[0,0,0,0,0,0,0,0,0,0,0,0,"00144",null,null,null,null,null,null,null,null,null,null,null,null,null,null,null,null,null,null,null,null,null,null,null,null,null,null,null,null,null,null,null,null,null,null,null,null,null,null,144,"Brown Noddy"]
[0,0,0,0,0,0,0,0,0,0,0,0,"00145",null,null,null,null,null,null,null,null,null,null,null,null,null,null,null,null,null,null,null,null,null,null,null,null,null,null,null,null,null,null,null,null,null,null,null,null,null,null,145,"Brown Pelican"]
[0,0,0,0,0,0,0,0,0,0,0,0,"00146",null,null,null,null,null,null,null,null,null,null,null,null,null,null,null,null,null,null,null,null,null,null,null,null,null,null,null,null,null,null,null,null,null,null,null,null,null,null,146,"Brown Thrasher"]
[0,0,0,0,0,0,0,0,0,0,0,0,"00147",null,null,null,null,null,null,null,null,null,null,null,null,null,null,null,null,null,null,null,null,null,null,null,null,null,null,null,null,null,null,null,null,null,null,null,null,null,null,147,"Brown-capped Rosy-Finch"]
[0,0,0,0,0,0,0,0,0,0,0,0,"00148",null,null,null,null,null,null,null,null,null,null,null,null,null,null,null,null,null,null,null,null,null,null,null,null,null,null,null,null,null,null,null,null,null,null,null,null,null,null,148,"Brown-crested Flycatcher"]
[0,0,0,0,0,0,0,0,0,0,0,0,"00149",null,null,null,null,null,null,null,null,null,null,null,null,null,null,null,null,null,null,null,null,null,null,null,null,null,null,null,null,null,null,null,null,null,null,null,null,null,null,149,"Brown-headed Cowbird"]
[0,0,0,0,0,0,0,0,0,0,0,0,"00150",null,null,null,null,null,null,null,null,null,null,null,null,null,null,null,null,null,null,null,null,null,null,null,null,null,null,null,null,null,null,null,null,null,null,null,null,null,null,150,"Brown-headed Nuthatch"]
[0,0,0,0,0,0,0,0,0,0,0,0,"00151",null,null,null,null,null,null,null,null,null,null,null,null,null,null,null,null,null,null,null,null,null,null,null,null,null,null,null,null,null,null,null,null,null,null,null,null,null,null,151,"Buff-bellied Hummingbird"]
[0,0,0,0,0,0,0,0,0,0,0,0,"00152",null,null,null,null,null,null,null,null,null,null,null,null,null,null,null,null,null,null,null,null,null,null,null,null,null,null,null,null,null,null,null,null,null,null,null,null,null,null,152,"Buff-breasted Flycatcher"]
[0,0,0,0,0,0,0,0,0,0,0,0,"00153",null,null,null,null,null,null,null,null,null,null,null,null,null,null,null,null,null,null,null,null,null,null,null,null,null,null,null,null,null,null,null,null,null,null,null,null,null,null,153,"Buff-breasted Sandpiper"]
[0,0,0,0,0,0,0,0,0,0,0,0,"00154",null,null,null,null,null,null,null,null,null,null,null,null,null,null,null,null,null,null,null,null,null,null,null,null,null,null,null,null,null,null,null,null,null,null,null,null,null,null,154,"Buff-collared Nightjar"]
[0,0,0,0,0,0,0,0,0,0,0,0,"00155",null,null,null,null,null,null,null,null,null,null,null,null,null,null,null,null,null,null,null,null,null,null,null,null,null,null,null,null,null,null,null,null,null,null,null,null,null,null,155,"Bufflehead"]
[0,0,0,0,0,0,0,0,0,0,0,0,"00156",null,null,null,null,null,null,null,null,null,null,null,null,null,null,null,null,null,null,null,null,null,null,null,null,null,null,null,null,null,null,null,null,null,null,null,null,null,null,156,"Buller's Shearwater"]
[0,0,0,0,0,0,0,0,0,0,0,0,"00157",null,null,null,null,null,null,null,null,null,null,null,null,null,null,null,null,null,null,null,null,null,null,null,null,null,null,null,null,null,null,null,null,null,null,null,null,null,null,157,"Bullock's Oriole"]
[0,0,0,0,0,0,0,0,0,0,0,0,"00158",null,null,null,null,null,null,null,null,null,null,null,null,null,null,null,null,null,null,null,null,null,null,null,null,null,null,null,null,null,null,null,null,null,null,null,null,null,null,158,"Burrowing Owl"]
[0,0,0,0,0,0,0,0,0,0,0,0,"00159",null,null,null,null,null,null,null,null,null,null,null,null,null,null,null,null,null,null,null,null,null,null,null,null,null,null,null,null,null,null,null,null,null,null,null,null,null,null,159,"Bushtit"]
[0,0,0,0,0,0,0,0,0,0,0,0,"00160",null,null,null,null,null,null,null,null,null,null,null,null,null,null,null,null,null,null,null,null,null,null,null,null,null,null,null,null,null,null,null,null,null,null,null,null,null,null,160,"Cackling Goose"]
[0,0,0,0,0,0,0,0,0,0,0,0,"00161",null,null,null,null,null,null,null,null,null,null,null,null,null,null,null,null,null,null,null,null,null,null,null,null,null,null,null,null,null,null,null,null,null,null,null,null,null,null,161,"Cactus Wren"]
[0,0,0,0,0,0,0,0,0,0,0,0,"00162",null,null,null,null,null,null,null,null,null,null,null,null,null,null,null,null,null,null,null,null,null,null,null,null,null,null,null,null,null,null,null,null,null,null,null,null,null,null,162,"California Condor"]
[0,0,0,0,0,0,0,0,0,0,0,0,"00163",null,null,null,null,null,null,null,null,null,null,null,null,null,null,null,null,null,null,null,null,null,null,null,null,null,null,null,null,null,null,null,null,null,null,null,null,null,null,163,"California Gnatcatcher"]
[0,0,0,0,0,0,0,0,0,0,0,0,"00164",null,null,null,null,null,null,null,null,null,null,null,null,null,null,null,null,null,null,null,null,null,null,null,null,null,null,null,null,null,null,null,null,null,null,null,null,null,null,164,"California Gull"]
[0,0,0,0,0,0,0,0,0,0,0,0,"00165",null,null,null,null,null,null,null,null,null,null,null,null,null,null,null,null,null,null,null,null,null,null,null,null,null,null,null,null,null,null,null,null,null,null,null,null,null,null,165,"California Thrasher"]
[0,0,0,0,0,0,0,0,0,0,0,0,"00166",null,null,null,null,null,null,null,null,null,null,null,null,null,null,null,null,null,null,null,null,null,null,null,null,null,null,null,null,null,null,null,null,null,null,null,null,null,null,166,"California Towhee"]
[0,0,0,0,0,0,0,0,0,0,0,0,"00167",null,null,null,null,null,null,null,null,null,null,null,null,null,null,null,null,null,null,null,null,null,null,null,null,null,null,null,null,null,null,null,null,null,null,null,null,null,null,167,"Calliope Hummingbird"]
[0,0,0,0,0,0,0,0,0,0,0,0,"00168",null,null,null,null,null,null,null,null,null,null,null,null,null,null,null,null,null,null,null,null,null,null,null,null,null,null,null,null,null,null,null,null,null,null,null,null,null,null,168,"Canada Goose"]
[0,0,0,0,0,0,0,0,0,0,0,0,"00169",null,null,null,null,null,null,null,null,null,null,null,null,null,null,null,null,null,null,null,null,null,null,null,null,null,null,null,null,null,null,null,null,null,null,null,null,null,null,169,"Canada Warbler"]
[0,0,0,0,0,0,0,0,0,0,0,0,"00170",null,null,null,null,null,null,null,null,null,null,null,null,null,null,null,null,null,null,null,null,null,null,null,null,null,null,null,null,null,null,null,null,null,null,null,null,null,null,170,"Canvasback"]
[0,0,0,0,0,0,0,0,0,0,0,0,"00171",null,null,null,null,null,null,null,null,null,null,null,null,null,null,null,null,null,null,null,null,null,null,null,null,null,null,null,null,null,null,null,null,null,null,null,null,null,null,171,"Canyon Towhee"]
[0,0,0,0,0,0,0,0,0,0,0,0,"00172",null,null,null,null,null,null,null,null,null,null,null,null,null,null,null,null,null,null,null,null,null,null,null,null,null,null,null,null,null,null,null,null,null,null,null,null,null,null,172,"Canyon Wren"]
[0,0,0,0,0,0,0,0,0,0,0,0,"00173",null,null,null,null,null,null,null,null,null,null,null,null,null,null,null,null,null,null,null,null,null,null,null,null,null,null,null,null,null,null,null,null,null,null,null,null,null,null,173,"Cape May Warbler"]
[0,0,0,0,0,0,0,0,0,0,0,0,"00174",null,null,null,null,null,null,null,null,null,null,null,null,null,null,null,null,null,null,null,null,null,null,null,null,null,null,null,null,null,null,null,null,null,null,null,null,null,null,174,"Cape Verde Shearwater"]
[0,0,0,0,0,0,0,0,0,0,0,0,"00175",null,null,null,null,null,null,null,null,null,null,null,null,null,null,null,null,null,null,null,null,null,null,null,null,null,null,null,null,null,null,null,null,null,null,null,null,null,null,175,"Carolina Chickadee"]
[0,0,0,0,0,0,0,0,0,0,0,0,"00176",null,null,null,null,null,null,null,null,null,null,null,null,null,null,null,null,null,null,null,null,null,null,null,null,null,null,null,null,null,null,null,null,null,null,null,null,null,null,176,"Carolina Wren"]
[0,0,0,0,0,0,0,0,0,0,0,0,"00177",null,null,null,null,null,null,null,null,null,null,null,null,null,null,null,null,null,null,null,null,null,null,null,null,null,null,null,null,null,null,null,null,null,null,null,null,null,null,177,"Caspian Tern"]
[0,0,0,0,0,0,0,0,0,0,0,0,"00178",null,null,null,null,null,null,null,null,null,null,null,null,null,null,null,null,null,null,null,null,null,null,null,null,null,null,null,null,null,null,null,null,null,null,null,null,null,null,178,"Cassin's Auklet"]
[0,0,0,0,0,0,0,0,0,0,0,0,"00179",null,null,null,null,null,null,null,null,null,null,null,null,null,null,null,null,null,null,null,null,null,null,null,null,null,null,null,null,null,null,null,null,null,null,null,null,null,null,179,"Cassin's Finch"]
[0,0,0,0,0,0,0,0,0,0,0,0,"00180",null,null,null,null,null,null,null,null,null,null,null,null,null,null,null,null,null,null,null,null,null,null,null,null,null,null,null,null,null,null,null,null,null,null,null,null,null,null,180,"Cassin's Kingbird"]
[0,0,0,0,0,0,0,0,0,0,0,0,"00181",null,null,null,null,null,null,null,null,null,null,null,null,null,null,null,null,null,null,null,null,null,null,null,null,null,null,null,null,null,null,null,null,null,null,null,null,null,null,181,"Cassin's Sparrow"]
[0,0,0,0,0,0,0,0,0,0,0,0,"00182",null,null,null,null,null,null,null,null,null,null,null,null,null,null,null,null,null,null,null,null,null,null,null,null,null,null,null,null,null,null,null,null,null,null,null,null,null,null,182,"Cassin's Vireo"]
[0,0,0,0,0,0,0,0,0,0,0,0,"00183",null,null,null,null,null,null,null,null,null,null,null,null,null,null,null,null,null,null,null,null,null,null,null,null,null,null,null,null,null,null,null,null,null,null,null,null,null,null,183,"Cattle Egret"]
[0,0,0,0,0,0,0,0,0,0,0,0,"00184",null,null,null,null,null,null,null,null,null,null,null,null,null,null,null,null,null,null,null,null,null,null,null,null,null,null,null,null,null,null,null,null,null,null,null,null,null,null,184,"Cave Swallow"]
[0,0,0,0,0,0,0,0,0,0,0,0,"00185",null,null,null,null,null,null,null,null,null,null,null,null,null,null,null,null,null,null,null,null,null,null,null,null,null,null,null,null,null,null,null,null,null,null,null,null,null,null,185,"Cedar Waxwing"]
[0,0,0,0,0,0,0,0,0,0,0,0,"00186",null,null,null,null,null,null,null,null,null,null,null,null,null,null,null,null,null,null,null,null,null,null,null,null,null,null,null,null,null,null,null,null,null,null,null,null,null,null,186,"Cerulean Warbler"]
[0,0,0,0,0,0,0,0,0,0,0,0,"00187",null,null,null,null,null,null,null,null,null,null,null,null,null,null,null,null,null,null,null,null,null,null,null,null,null,null,null,null,null,null,null,null,null,null,null,null,null,null,187,"Chestnut-backed Chickadee"]
[0,0,0,0,0,0,0,0,0,0,0,0,"00188",null,null,null,null,null,null,null,null,null,null,null,null,null,null,null,null,null,null,null,null,null,null,null,null,null,null,null,null,null,null,null,null,null,null,null,null,null,null,188,"Chestnut-collared Longspur"]
[0,0,0,0,0,0,0,0,0,0,0,0,"00189",null,null,null,null,null,null,null,null,null,null,null,null,null,null,null,null,null,null,null,null,null,null,null,null,null,null,null,null,null,null,null,null,null,null,null,null,null,null,189,"Chestnut-sided Warbler"]
[0,0,0,0,0,0,0,0,0,0,0,0,"00190",null,null,null,null,null,null,null,null,null,null,null,null,null,null,null,null,null,null,null,null,null,null,null,null,null,null,null,null,null,null,null,null,null,null,null,null,null,null,190,"Chihuahuan Raven"]
[0,0,0,0,0,0,0,0,0,0,0,0,"00191",null,null,null,null,null,null,null,null,null,null,null,null,null,null,null,null,null,null,null,null,null,null,null,null,null,null,null,null,null,null,null,null,null,null,null,null,null,null,191,"Chimney Swift"]
[0,0,0,0,0,0,0,0,0,0,0,0,"00192",null,null,null,null,null,null,null,null,null,null,null,null,null,null,null,null,null,null,null,null,null,null,null,null,null,null,null,null,null,null,null,null,null,null,null,null,null,null,192,"Chipping Sparrow"]
[{"$f":"Report_Year","v":0},{"$f":"Permittee_Name","v":0},{"$f":"FWS_Permit_Number","v":0},{"$f":"Project_Type_Transfer","v":0},{"$f":"Project_Subtype_Transfer","v":0},{"$f":"Project_Type_Other","v":0},{"$f":"Description","v":0},{"$f":"Primary_Contact_Name","v":0},{"$f":"Primary_Contact_Title","v":0},{"$f":"Primary_Contact_Phone","v":0},{"$f":"ProprietaryYesNo","v":0},{"$f":"Proprietary_Description","v":0},{"$f":"CONCATENATE(A196,C196,AZ196)","v":"00193"},null,null,null,null,null,null,null,null,null,null,null,null,null,null,null,null,null,null,null,null,null,null,null,null,null,null,null,null,null,null,null,null,null,null,null,null,null,null,193,"Chuck-will's-widow"]
[0,0,0,0,0,0,0,0,0,0,0,0,"00194",null,null,null,null,null,null,null,null,null,null,null,null,null,null,null,null,null,null,null,null,null,null,null,null,null,null,null,null,null,null,null,null,null,null,null,null,null,null,194,"Cinnamon Teal"]
[0,0,0,0,0,0,0,0,0,0,0,0,"00195",null,null,null,null,null,null,null,null,null,null,null,null,null,null,null,null,null,null,null,null,null,null,null,null,null,null,null,null,null,null,null,null,null,null,null,null,null,null,195,"Citrine Wagtail"]
[0,0,0,0,0,0,0,0,0,0,0,0,"00196",null,null,null,null,null,null,null,null,null,null,null,null,null,null,null,null,null,null,null,null,null,null,null,null,null,null,null,null,null,null,null,null,null,null,null,null,null,null,196,"Clapper Rail"]
[0,0,0,0,0,0,0,0,0,0,0,0,"00197",null,null,null,null,null,null,null,null,null,null,null,null,null,null,null,null,null,null,null,null,null,null,null,null,null,null,null,null,null,null,null,null,null,null,null,null,null,null,197,"Clark's Grebe"]
[0,0,0,0,0,0,0,0,0,0,0,0,"00198",null,null,null,null,null,null,null,null,null,null,null,null,null,null,null,null,null,null,null,null,null,null,null,null,null,null,null,null,null,null,null,null,null,null,null,null,null,null,198,"Clark's Nutcracker"]
[0,0,0,0,0,0,0,0,0,0,0,0,"00199",null,null,null,null,null,null,null,null,null,null,null,null,null,null,null,null,null,null,null,null,null,null,null,null,null,null,null,null,null,null,null,null,null,null,null,null,null,null,199,"Clay-colored Sparrow"]
[0,0,0,0,0,0,0,0,0,0,0,0,"00200",null,null,null,null,null,null,null,null,null,null,null,null,null,null,null,null,null,null,null,null,null,null,null,null,null,null,null,null,null,null,null,null,null,null,null,null,null,null,200,"Clay-colored Thrush"]
[0,0,0,0,0,0,0,0,0,0,0,0,"00201",null,null,null,null,null,null,null,null,null,null,null,null,null,null,null,null,null,null,null,null,null,null,null,null,null,null,null,null,null,null,null,null,null,null,null,null,null,null,201,"Cliff Swallow"]
[0,0,0,0,0,0,0,0,0,0,0,0,"00202",null,null,null,null,null,null,null,null,null,null,null,null,null,null,null,null,null,null,null,null,null,null,null,null,null,null,null,null,null,null,null,null,null,null,null,null,null,null,202,"Colima Warbler"]
[0,0,0,0,0,0,0,0,0,0,0,0,"00203",null,null,null,null,null,null,null,null,null,null,null,null,null,null,null,null,null,null,null,null,null,null,null,null,null,null,null,null,null,null,null,null,null,null,null,null,null,null,203,"Common Black-Hawk"]
[0,0,0,0,0,0,0,0,0,0,0,0,"00204",null,null,null,null,null,null,null,null,null,null,null,null,null,null,null,null,null,null,null,null,null,null,null,null,null,null,null,null,null,null,null,null,null,null,null,null,null,null,204,"Common Eider"]
[0,0,0,0,0,0,0,0,0,0,0,0,"00205",null,null,null,null,null,null,null,null,null,null,null,null,null,null,null,null,null,null,null,null,null,null,null,null,null,null,null,null,null,null,null,null,null,null,null,null,null,null,205,"Common Gallinule"]
[0,0,0,0,0,0,0,0,0,0,0,0,"00206",null,null,null,null,null,null,null,null,null,null,null,null,null,null,null,null,null,null,null,null,null,null,null,null,null,null,null,null,null,null,null,null,null,null,null,null,null,null,206,"Common Goldeneye"]
[0,0,0,0,0,0,0,0,0,0,0,0,"00207",null,null,null,null,null,null,null,null,null,null,null,null,null,null,null,null,null,null,null,null,null,null,null,null,null,null,null,null,null,null,null,null,null,null,null,null,null,null,207,"Common Grackle"]
[0,0,0,0,0,0,0,0,0,0,0,0,"00208",null,null,null,null,null,null,null,null,null,null,null,null,null,null,null,null,null,null,null,null,null,null,null,null,null,null,null,null,null,null,null,null,null,null,null,null,null,null,208,"Common Ground-Dove"]
[0,0,0,0,0,0,0,0,0,0,0,0,"00209",null,null,null,null,null,null,null,null,null,null,null,null,null,null,null,null,null,null,null,null,null,null,null,null,null,null,null,null,null,null,null,null,null,null,null,null,null,null,209,"Common Loon"]
[0,0,0,0,0,0,0,0,0,0,0,0,"00210",null,null,null,null,null,null,null,null,null,null,null,null,null,null,null,null,null,null,null,null,null,null,null,null,null,null,null,null,null,null,null,null,null,null,null,null,null,null,210,"Common Merganser"]
[0,0,0,0,0,0,0,0,0,0,0,0,"00211",null,null,null,null,null,null,null,null,null,null,null,null,null,null,null,null,null,null,null,null,null,null,null,null,null,null,null,null,null,null,null,null,null,null,null,null,null,null,211,"Common Murre"]
[0,0,0,0,0,0,0,0,0,0,0,0,"00212",null,null,null,null,null,null,null,null,null,null,null,null,null,null,null,null,null,null,null,null,null,null,null,null,null,null,null,null,null,null,null,null,null,null,null,null,null,null,212,"Common Nighthawk"]
[0,0,0,0,0,0,0,0,0,0,0,0,"00213",null,null,null,null,null,null,null,null,null,null,null,null,null,null,null,null,null,null,null,null,null,null,null,null,null,null,null,null,null,null,null,null,null,null,null,null,null,null,213,"Common Pauraque"]
[0,0,0,0,0,0,0,0,0,0,0,0,"00214",null,null,null,null,null,null,null,null,null,null,null,null,null,null,null,null,null,null,null,null,null,null,null,null,null,null,null,null,null,null,null,null,null,null,null,null,null,null,214,"Common Poorwill"]
[0,0,0,0,0,0,0,0,0,0,0,0,"00215",null,null,null,null,null,null,null,null,null,null,null,null,null,null,null,null,null,null,null,null,null,null,null,null,null,null,null,null,null,null,null,null,null,null,null,null,null,null,215,"Common Raven"]
[0,0,0,0,0,0,0,0,0,0,0,0,"00216",null,null,null,null,null,null,null,null,null,null,null,null,null,null,null,null,null,null,null,null,null,null,null,null,null,null,null,null,null,null,null,null,null,null,null,null,null,null,216,"Common Redpoll"]
[0,0,0,0,0,0,0,0,0,0,0,0,"00217",null,null,null,null,null,null,null,null,null,null,null,null,null,null,null,null,null,null,null,null,null,null,null,null,null,null,null,null,null,null,null,null,null,null,null,null,null,null,217,"Common Tern"]
[0,0,0,0,0,0,0,0,0,0,0,0,"00218",null,null,null,null,null,null,null,null,null,null,null,null,null,null,null,null,null,null,null,null,null,null,null,null,null,null,null,null,null,null,null,null,null,null,null,null,null,null,218,"Common Yellowthroat"]
[0,0,0,0,0,0,0,0,0,0,0,0,"00219",null,null,null,null,null,null,null,null,null,null,null,null,null,null,null,null,null,null,null,null,null,null,null,null,null,null,null,null,null,null,null,null,null,null,null,null,null,null,219,"Connecticut Warbler"]
[0,0,0,0,0,0,0,0,0,0,0,0,"00220",null,null,null,null,null,null,null,null,null,null,null,null,null,null,null,null,null,null,null,null,null,null,null,null,null,null,null,null,null,null,null,null,null,null,null,null,null,null,220,"Cook's Petrel"]
[0,0,0,0,0,0,0,0,0,0,0,0,"00221",null,null,null,null,null,null,null,null,null,null,null,null,null,null,null,null,null,null,null,null,null,null,null,null,null,null,null,null,null,null,null,null,null,null,null,null,null,null,221,"Cooper's Hawk"]
[0,0,0,0,0,0,0,0,0,0,0,0,"00222",null,null,null,null,null,null,null,null,null,null,null,null,null,null,null,null,null,null,null,null,null,null,null,null,null,null,null,null,null,null,null,null,null,null,null,null,null,null,222,"Cordilleran Flycatcher"]
[0,0,0,0,0,0,0,0,0,0,0,0,"00223",null,null,null,null,null,null,null,null,null,null,null,null,null,null,null,null,null,null,null,null,null,null,null,null,null,null,null,null,null,null,null,null,null,null,null,null,null,null,223,"Cory's Shearwater"]
[0,0,0,0,0,0,0,0,0,0,0,0,"00224",null,null,null,null,null,null,null,null,null,null,null,null,null,null,null,null,null,null,null,null,null,null,null,null,null,null,null,null,null,null,null,null,null,null,null,null,null,null,224,"Costa's Hummingbird"]
[0,0,0,0,0,0,0,0,0,0,0,0,"00225",null,null,null,null,null,null,null,null,null,null,null,null,null,null,null,null,null,null,null,null,null,null,null,null,null,null,null,null,null,null,null,null,null,null,null,null,null,null,225,"Couch's Kingbird"]
[0,0,0,0,0,0,0,0,0,0,0,0,"00226",null,null,null,null,null,null,null,null,null,null,null,null,null,null,null,null,null,null,null,null,null,null,null,null,null,null,null,null,null,null,null,null,null,null,null,null,null,null,226,"Craveri's Murrelet"]
[0,0,0,0,0,0,0,0,0,0,0,0,"00227",null,null,null,null,null,null,null,null,null,null,null,null,null,null,null,null,null,null,null,null,null,null,null,null,null,null,null,null,null,null,null,null,null,null,null,null,null,null,227,"Crested Auklet"]
[0,0,0,0,0,0,0,0,0,0,0,0,"00228",null,null,null,null,null,null,null,null,null,null,null,null,null,null,null,null,null,null,null,null,null,null,null,null,null,null,null,null,null,null,null,null,null,null,null,null,null,null,228,"Crested Caracara"]
[0,0,0,0,0,0,0,0,0,0,0,0,"00229",null,null,null,null,null,null,null,null,null,null,null,null,null,null,null,null,null,null,null,null,null,null,null,null,null,null,null,null,null,null,null,null,null,null,null,null,null,null,229,"Crimson-collared Grosbeak"]
[0,0,0,0,0,0,0,0,0,0,0,0,"00230",null,null,null,null,null,null,null,null,null,null,null,null,null,null,null,null,null,null,null,null,null,null,null,null,null,null,null,null,null,null,null,null,null,null,null,null,null,null,230,"Crissal Thrasher"]
[0,0,0,0,0,0,0,0,0,0,0,0,"00231",null,null,null,null,null,null,null,null,null,null,null,null,null,null,null,null,null,null,null,null,null,null,null,null,null,null,null,null,null,null,null,null,null,null,null,null,null,null,231,"Curve-billed Thrasher"]
[0,0,0,0,0,0,0,0,0,0,0,0,"00232",null,null,null,null,null,null,null,null,null,null,null,null,null,null,null,null,null,null,null,null,null,null,null,null,null,null,null,null,null,null,null,null,null,null,null,null,null,null,232,"Dark-eyed Junco"]
[0,0,0,0,0,0,0,0,0,0,0,0,"00233",null,null,null,null,null,null,null,null,null,null,null,null,null,null,null,null,null,null,null,null,null,null,null,null,null,null,null,null,null,null,null,null,null,null,null,null,null,null,233,"Dickcissel"]
[0,0,0,0,0,0,0,0,0,0,0,0,"00234",null,null,null,null,null,null,null,null,null,null,null,null,null,null,null,null,null,null,null,null,null,null,null,null,null,null,null,null,null,null,null,null,null,null,null,null,null,null,234,"Double-crested Cormorant"]
[0,0,0,0,0,0,0,0,0,0,0,0,"00235",null,null,null,null,null,null,null,null,null,null,null,null,null,null,null,null,null,null,null,null,null,null,null,null,null,null,null,null,null,null,null,null,null,null,null,null,null,null,235,"Dovekie"]
[0,0,0,0,0,0,0,0,0,0,0,0,"00236",null,null,null,null,null,null,null,null,null,null,null,null,null,null,null,null,null,null,null,null,null,null,null,null,null,null,null,null,null,null,null,null,null,null,null,null,null,null,236,"Downy Woodpecker"]
[0,0,0,0,0,0,0,0,0,0,0,0,"00237",null,null,null,null,null,null,null,null,null,null,null,null,null,null,null,null,null,null,null,null,null,null,null,null,null,null,null,null,null,null,null,null,null,null,null,null,null,null,237,"Dunlin"]
[0,0,0,0,0,0,0,0,0,0,0,0,"00238",null,null,null,null,null,null,null,null,null,null,null,null,null,null,null,null,null,null,null,null,null,null,null,null,null,null,null,null,null,null,null,null,null,null,null,null,null,null,238,"Dusky Flycatcher"]
[0,0,0,0,0,0,0,0,0,0,0,0,"00239",null,null,null,null,null,null,null,null,null,null,null,null,null,null,null,null,null,null,null,null,null,null,null,null,null,null,null,null,null,null,null,null,null,null,null,null,null,null,239,"Dusky-capped Flycatcher"]
[0,0,0,0,0,0,0,0,0,0,0,0,"00240",null,null,null,null,null,null,null,null,null,null,null,null,null,null,null,null,null,null,null,null,null,null,null,null,null,null,null,null,null,null,null,null,null,null,null,null,null,null,240,"Eared Grebe"]
[0,0,0,0,0,0,0,0,0,0,0,0,"00241",null,null,null,null,null,null,null,null,null,null,null,null,null,null,null,null,null,null,null,null,null,null,null,null,null,null,null,null,null,null,null,null,null,null,null,null,null,null,241,"Eared Quetzal"]
[0,0,0,0,0,0,0,0,0,0,0,0,"00242",null,null,null,null,null,null,null,null,null,null,null,null,null,null,null,null,null,null,null,null,null,null,null,null,null,null,null,null,null,null,null,null,null,null,null,null,null,null,242,"Eastern Kingbird"]
[0,0,0,0,0,0,0,0,0,0,0,0,"00243",null,null,null,null,null,null,null,null,null,null,null,null,null,null,null,null,null,null,null,null,null,null,null,null,null,null,null,null,null,null,null,null,null,null,null,null,null,null,243,"Eastern Meadowlark"]
[0,0,0,0,0,0,0,0,0,0,0,0,"00244",null,null,null,null,null,null,null,null,null,null,null,null,null,null,null,null,null,null,null,null,null,null,null,null,null,null,null,null,null,null,null,null,null,null,null,null,null,null,244,"Eastern Phoebe"]
[0,0,0,0,0,0,0,0,0,0,0,0,"00245",null,null,null,null,null,null,null,null,null,null,null,null,null,null,null,null,null,null,null,null,null,null,null,null,null,null,null,null,null,null,null,null,null,null,null,null,null,null,245,"Eastern Screech-Owl"]
[0,0,0,0,0,0,0,0,0,0,0,0,"00246",null,null,null,null,null,null,null,null,null,null,null,null,null,null,null,null,null,null,null,null,null,null,null,null,null,null,null,null,null,null,null,null,null,null,null,null,null,null,246,"Eastern Towhee"]
[0,0,0,0,0,0,0,0,0,0,0,0,"00247",null,null,null,null,null,null,null,null,null,null,null,null,null,null,null,null,null,null,null,null,null,null,null,null,null,null,null,null,null,null,null,null,null,null,null,null,null,null,247,"Eastern Whip-poor-will"]
[0,0,0,0,0,0,0,0,0,0,0,0,"00248",null,null,null,null,null,null,null,null,null,null,null,null,null,null,null,null,null,null,null,null,null,null,null,null,null,null,null,null,null,null,null,null,null,null,null,null,null,null,248,"Eastern Wood-Pewee"]
[0,0,0,0,0,0,0,0,0,0,0,0,"00249",null,null,null,null,null,null,null,null,null,null,null,null,null,null,null,null,null,null,null,null,null,null,null,null,null,null,null,null,null,null,null,null,null,null,null,null,null,null,249,"Eastern Yellow Wagtail"]
[0,0,0,0,0,0,0,0,0,0,0,0,"00250",null,null,null,null,null,null,null,null,null,null,null,null,null,null,null,null,null,null,null,null,null,null,null,null,null,null,null,null,null,null,null,null,null,null,null,null,null,null,250,"Elegant Tern"]
[0,0,0,0,0,0,0,0,0,0,0,0,"00251",null,null,null,null,null,null,null,null,null,null,null,null,null,null,null,null,null,null,null,null,null,null,null,null,null,null,null,null,null,null,null,null,null,null,null,null,null,null,251,"Elegant Trogon"]
[0,0,0,0,0,0,0,0,0,0,0,0,"00252",null,null,null,null,null,null,null,null,null,null,null,null,null,null,null,null,null,null,null,null,null,null,null,null,null,null,null,null,null,null,null,null,null,null,null,null,null,null,252,"Elf Owl"]
[0,0,0,0,0,0,0,0,0,0,0,0,"00253",null,null,null,null,null,null,null,null,null,null,null,null,null,null,null,null,null,null,null,null,null,null,null,null,null,null,null,null,null,null,null,null,null,null,null,null,null,null,253,"Elfin-woods Warbler"]
[0,0,0,0,0,0,0,0,0,0,0,0,"00254",null,null,null,null,null,null,null,null,null,null,null,null,null,null,null,null,null,null,null,null,null,null,null,null,null,null,null,null,null,null,null,null,null,null,null,null,null,null,254,"Emperor Goose"]
[0,0,0,0,0,0,0,0,0,0,0,0,"00255",null,null,null,null,null,null,null,null,null,null,null,null,null,null,null,null,null,null,null,null,null,null,null,null,null,null,null,null,null,null,null,null,null,null,null,null,null,null,255,"Eurasian Bullfinch"]
[0,0,0,0,0,0,0,0,0,0,0,0,"00256",null,null,null,null,null,null,null,null,null,null,null,null,null,null,null,null,null,null,null,null,null,null,null,null,null,null,null,null,null,null,null,null,null,null,null,null,null,null,256,"Eurasian Wigeon"]
[{"$f":"Report_Year","v":0},{"$f":"Permittee_Name","v":0},{"$f":"FWS_Permit_Number","v":0},{"$f":"Project_Type_Transfer","v":0},{"$f":"Project_Subtype_Transfer","v":0},{"$f":"Project_Type_Other","v":0},{"$f":"Description","v":0},{"$f":"Primary_Contact_Name","v":0},{"$f":"Primary_Contact_Title","v":0},{"$f":"Primary_Contact_Phone","v":0},{"$f":"ProprietaryYesNo","v":0},{"$f":"Proprietary_Description","v":0},{"$f":"CONCATENATE(A260,C260,AZ260)","v":"00257"},null,null,null,null,null,null,null,null,null,null,null,null,null,null,null,null,null,null,null,null,null,null,null,null,null,null,null,null,null,null,null,null,null,null,null,null,null,null,257,"Evening Grosbeak"]
[0,0,0,0,0,0,0,0,0,0,0,0,"00258",null,null,null,null,null,null,null,null,null,null,null,null,null,null,null,null,null,null,null,null,null,null,null,null,null,null,null,null,null,null,null,null,null,null,null,null,null,null,258,"Falcated Duck"]
[0,0,0,0,0,0,0,0,0,0,0,0,"00259",null,null,null,null,null,null,null,null,null,null,null,null,null,null,null,null,null,null,null,null,null,null,null,null,null,null,null,null,null,null,null,null,null,null,null,null,null,null,259,"Ferruginous Hawk"]
[0,0,0,0,0,0,0,0,0,0,0,0,"00260",null,null,null,null,null,null,null,null,null,null,null,null,null,null,null,null,null,null,null,null,null,null,null,null,null,null,null,null,null,null,null,null,null,null,null,null,null,null,260,"Ferruginous Pygmy-Owl"]
[0,0,0,0,0,0,0,0,0,0,0,0,"00261",null,null,null,null,null,null,null,null,null,null,null,null,null,null,null,null,null,null,null,null,null,null,null,null,null,null,null,null,null,null,null,null,null,null,null,null,null,null,261,"Field Sparrow"]
[0,0,0,0,0,0,0,0,0,0,0,0,"00262",null,null,null,null,null,null,null,null,null,null,null,null,null,null,null,null,null,null,null,null,null,null,null,null,null,null,null,null,null,null,null,null,null,null,null,null,null,null,262,"Fish Crow"]
[0,0,0,0,0,0,0,0,0,0,0,0,"00263",null,null,null,null,null,null,null,null,null,null,null,null,null,null,null,null,null,null,null,null,null,null,null,null,null,null,null,null,null,null,null,null,null,null,null,null,null,null,263,"Five-striped Sparrow"]
[0,0,0,0,0,0,0,0,0,0,0,0,"00264",null,null,null,null,null,null,null,null,null,null,null,null,null,null,null,null,null,null,null,null,null,null,null,null,null,null,null,null,null,null,null,null,null,null,null,null,null,null,264,"Flame-colored Tanager"]
[0,0,0,0,0,0,0,0,0,0,0,0,"00265",null,null,null,null,null,null,null,null,null,null,null,null,null,null,null,null,null,null,null,null,null,null,null,null,null,null,null,null,null,null,null,null,null,null,null,null,null,null,265,"Flammulated Owl"]
[0,0,0,0,0,0,0,0,0,0,0,0,"00266",null,null,null,null,null,null,null,null,null,null,null,null,null,null,null,null,null,null,null,null,null,null,null,null,null,null,null,null,null,null,null,null,null,null,null,null,null,null,266,"Flesh-footed Shearwater"]
[0,0,0,0,0,0,0,0,0,0,0,0,"00267",null,null,null,null,null,null,null,null,null,null,null,null,null,null,null,null,null,null,null,null,null,null,null,null,null,null,null,null,null,null,null,null,null,null,null,null,null,null,267,"Florida Scrub-Jay"]
[0,0,0,0,0,0,0,0,0,0,0,0,"00268",null,null,null,null,null,null,null,null,null,null,null,null,null,null,null,null,null,null,null,null,null,null,null,null,null,null,null,null,null,null,null,null,null,null,null,null,null,null,268,"Fork-tailed Storm-Petrel"]
[0,0,0,0,0,0,0,0,0,0,0,0,"00269",null,null,null,null,null,null,null,null,null,null,null,null,null,null,null,null,null,null,null,null,null,null,null,null,null,null,null,null,null,null,null,null,null,null,null,null,null,null,269,"Forster's Tern"]
[0,0,0,0,0,0,0,0,0,0,0,0,"00270",null,null,null,null,null,null,null,null,null,null,null,null,null,null,null,null,null,null,null,null,null,null,null,null,null,null,null,null,null,null,null,null,null,null,null,null,null,null,270,"Fox Sparrow"]
[0,0,0,0,0,0,0,0,0,0,0,0,"00271",null,null,null,null,null,null,null,null,null,null,null,null,null,null,null,null,null,null,null,null,null,null,null,null,null,null,null,null,null,null,null,null,null,null,null,null,null,null,271,"Franklin's Gull"]
[0,0,0,0,0,0,0,0,0,0,0,0,"00272",null,null,null,null,null,null,null,null,null,null,null,null,null,null,null,null,null,null,null,null,null,null,null,null,null,null,null,null,null,null,null,null,null,null,null,null,null,null,272,"Friendly Ground-Dove"]
[0,0,0,0,0,0,0,0,0,0,0,0,"00273",null,null,null,null,null,null,null,null,null,null,null,null,null,null,null,null,null,null,null,null,null,null,null,null,null,null,null,null,null,null,null,null,null,null,null,null,null,null,273,"Fulvous Whistling-Duck"]
[0,0,0,0,0,0,0,0,0,0,0,0,"00274",null,null,null,null,null,null,null,null,null,null,null,null,null,null,null,null,null,null,null,null,null,null,null,null,null,null,null,null,null,null,null,null,null,null,null,null,null,null,274,"Gadwall"]
[0,0,0,0,0,0,0,0,0,0,0,0,"00275",null,null,null,null,null,null,null,null,null,null,null,null,null,null,null,null,null,null,null,null,null,null,null,null,null,null,null,null,null,null,null,null,null,null,null,null,null,null,275,"Gila Woodpecker"]
[0,0,0,0,0,0,0,0,0,0,0,0,"00276",null,null,null,null,null,null,null,null,null,null,null,null,null,null,null,null,null,null,null,null,null,null,null,null,null,null,null,null,null,null,null,null,null,null,null,null,null,null,276,"Gilded Flicker"]
[0,0,0,0,0,0,0,0,0,0,0,0,"00277",null,null,null,null,null,null,null,null,null,null,null,null,null,null,null,null,null,null,null,null,null,null,null,null,null,null,null,null,null,null,null,null,null,null,null,null,null,null,277,"Glaucous Gull"]
[0,0,0,0,0,0,0,0,0,0,0,0,"00278",null,null,null,null,null,null,null,null,null,null,null,null,null,null,null,null,null,null,null,null,null,null,null,null,null,null,null,null,null,null,null,null,null,null,null,null,null,null,278,"Glaucous-winged Gull"]
[0,0,0,0,0,0,0,0,0,0,0,0,"00279",null,null,null,null,null,null,null,null,null,null,null,null,null,null,null,null,null,null,null,null,null,null,null,null,null,null,null,null,null,null,null,null,null,null,null,null,null,null,279,"Glossy Ibis"]
[0,0,0,0,0,0,0,0,0,0,0,0,"00280",null,null,null,null,null,null,null,null,null,null,null,null,null,null,null,null,null,null,null,null,null,null,null,null,null,null,null,null,null,null,null,null,null,null,null,null,null,null,280,"Golden-cheeked Warbler"]
[0,0,0,0,0,0,0,0,0,0,0,0,"00281",null,null,null,null,null,null,null,null,null,null,null,null,null,null,null,null,null,null,null,null,null,null,null,null,null,null,null,null,null,null,null,null,null,null,null,null,null,null,281,"Golden-crowned Kinglet"]
[0,0,0,0,0,0,0,0,0,0,0,0,"00282",null,null,null,null,null,null,null,null,null,null,null,null,null,null,null,null,null,null,null,null,null,null,null,null,null,null,null,null,null,null,null,null,null,null,null,null,null,null,282,"Golden-crowned Sparrow"]
[0,0,0,0,0,0,0,0,0,0,0,0,"00283",null,null,null,null,null,null,null,null,null,null,null,null,null,null,null,null,null,null,null,null,null,null,null,null,null,null,null,null,null,null,null,null,null,null,null,null,null,null,283,"Golden-fronted Woodpecker"]
[0,0,0,0,0,0,0,0,0,0,0,0,"00284",null,null,null,null,null,null,null,null,null,null,null,null,null,null,null,null,null,null,null,null,null,null,null,null,null,null,null,null,null,null,null,null,null,null,null,null,null,null,284,"Golden-winged Warbler"]
[0,0,0,0,0,0,0,0,0,0,0,0,"00285",null,null,null,null,null,null,null,null,null,null,null,null,null,null,null,null,null,null,null,null,null,null,null,null,null,null,null,null,null,null,null,null,null,null,null,null,null,null,285,"Grace's Warbler"]
[0,0,0,0,0,0,0,0,0,0,0,0,"00286",null,null,null,null,null,null,null,null,null,null,null,null,null,null,null,null,null,null,null,null,null,null,null,null,null,null,null,null,null,null,null,null,null,null,null,null,null,null,286,"Grasshopper Sparrow"]
[0,0,0,0,0,0,0,0,0,0,0,0,"00287",null,null,null,null,null,null,null,null,null,null,null,null,null,null,null,null,null,null,null,null,null,null,null,null,null,null,null,null,null,null,null,null,null,null,null,null,null,null,287,"Gray Catbird"]
[0,0,0,0,0,0,0,0,0,0,0,0,"00288",null,null,null,null,null,null,null,null,null,null,null,null,null,null,null,null,null,null,null,null,null,null,null,null,null,null,null,null,null,null,null,null,null,null,null,null,null,null,288,"Gray Flycatcher"]
[0,0,0,0,0,0,0,0,0,0,0,0,"00289",null,null,null,null,null,null,null,null,null,null,null,null,null,null,null,null,null,null,null,null,null,null,null,null,null,null,null,null,null,null,null,null,null,null,null,null,null,null,289,"Gray Hawk"]
[0,0,0,0,0,0,0,0,0,0,0,0,"00290",null,null,null,null,null,null,null,null,null,null,null,null,null,null,null,null,null,null,null,null,null,null,null,null,null,null,null,null,null,null,null,null,null,null,null,null,null,null,290,"Gray Jay"]
[0,0,0,0,0,0,0,0,0,0,0,0,"00291",null,null,null,null,null,null,null,null,null,null,null,null,null,null,null,null,null,null,null,null,null,null,null,null,null,null,null,null,null,null,null,null,null,null,null,null,null,null,291,"Gray Kingbird"]
[0,0,0,0,0,0,0,0,0,0,0,0,"00292",null,null,null,null,null,null,null,null,null,null,null,null,null,null,null,null,null,null,null,null,null,null,null,null,null,null,null,null,null,null,null,null,null,null,null,null,null,null,292,"Gray Vireo"]
[0,0,0,0,0,0,0,0,0,0,0,0,"00293",null,null,null,null,null,null,null,null,null,null,null,null,null,null,null,null,null,null,null,null,null,null,null,null,null,null,null,null,null,null,null,null,null,null,null,null,null,null,293,"Gray Wagtail"]
[0,0,0,0,0,0,0,0,0,0,0,0,"00294",null,null,null,null,null,null,null,null,null,null,null,null,null,null,null,null,null,null,null,null,null,null,null,null,null,null,null,null,null,null,null,null,null,null,null,null,null,null,294,"Gray-backed Tern"]
[0,0,0,0,0,0,0,0,0,0,0,0,"00295",null,null,null,null,null,null,null,null,null,null,null,null,null,null,null,null,null,null,null,null,null,null,null,null,null,null,null,null,null,null,null,null,null,null,null,null,null,null,295,"Gray-cheeked Thrush"]
[0,0,0,0,0,0,0,0,0,0,0,0,"00296",null,null,null,null,null,null,null,null,null,null,null,null,null,null,null,null,null,null,null,null,null,null,null,null,null,null,null,null,null,null,null,null,null,null,null,null,null,null,296,"Gray-crowned Rosy-Finch"]
[0,0,0,0,0,0,0,0,0,0,0,0,"00297",null,null,null,null,null,null,null,null,null,null,null,null,null,null,null,null,null,null,null,null,null,null,null,null,null,null,null,null,null,null,null,null,null,null,null,null,null,null,297,"Gray-headed Chickadee"]
[0,0,0,0,0,0,0,0,0,0,0,0,"00298",null,null,null,null,null,null,null,null,null,null,null,null,null,null,null,null,null,null,null,null,null,null,null,null,null,null,null,null,null,null,null,null,null,null,null,null,null,null,298,"Gray-tailed Tattler"]
[0,0,0,0,0,0,0,0,0,0,0,0,"00299",null,null,null,null,null,null,null,null,null,null,null,null,null,null,null,null,null,null,null,null,null,null,null,null,null,null,null,null,null,null,null,null,null,null,null,null,null,null,299,"Great Black-backed Gull"]
[0,0,0,0,0,0,0,0,0,0,0,0,"00300",null,null,null,null,null,null,null,null,null,null,null,null,null,null,null,null,null,null,null,null,null,null,null,null,null,null,null,null,null,null,null,null,null,null,null,null,null,null,300,"Great Blue Heron"]
[0,0,0,0,0,0,0,0,0,0,0,0,"00301",null,null,null,null,null,null,null,null,null,null,null,null,null,null,null,null,null,null,null,null,null,null,null,null,null,null,null,null,null,null,null,null,null,null,null,null,null,null,301,"Great Cormorant"]
[0,0,0,0,0,0,0,0,0,0,0,0,"00302",null,null,null,null,null,null,null,null,null,null,null,null,null,null,null,null,null,null,null,null,null,null,null,null,null,null,null,null,null,null,null,null,null,null,null,null,null,null,302,"Great Crested Flycatcher"]
[0,0,0,0,0,0,0,0,0,0,0,0,"00303",null,null,null,null,null,null,null,null,null,null,null,null,null,null,null,null,null,null,null,null,null,null,null,null,null,null,null,null,null,null,null,null,null,null,null,null,null,null,303,"Great Crested Tern"]
[0,0,0,0,0,0,0,0,0,0,0,0,"00304",null,null,null,null,null,null,null,null,null,null,null,null,null,null,null,null,null,null,null,null,null,null,null,null,null,null,null,null,null,null,null,null,null,null,null,null,null,null,304,"Great Egret"]
[0,0,0,0,0,0,0,0,0,0,0,0,"00305",null,null,null,null,null,null,null,null,null,null,null,null,null,null,null,null,null,null,null,null,null,null,null,null,null,null,null,null,null,null,null,null,null,null,null,null,null,null,305,"Great Gray Owl"]
[0,0,0,0,0,0,0,0,0,0,0,0,"00306",null,null,null,null,null,null,null,null,null,null,null,null,null,null,null,null,null,null,null,null,null,null,null,null,null,null,null,null,null,null,null,null,null,null,null,null,null,null,306,"Great Horned Owl"]
[0,0,0,0,0,0,0,0,0,0,0,0,"00307",null,null,null,null,null,null,null,null,null,null,null,null,null,null,null,null,null,null,null,null,null,null,null,null,null,null,null,null,null,null,null,null,null,null,null,null,null,null,307,"Great Kiskadee"]
[0,0,0,0,0,0,0,0,0,0,0,0,"00308",null,null,null,null,null,null,null,null,null,null,null,null,null,null,null,null,null,null,null,null,null,null,null,null,null,null,null,null,null,null,null,null,null,null,null,null,null,null,308,"Great Shearwater"]
[0,0,0,0,0,0,0,0,0,0,0,0,"00309",null,null,null,null,null,null,null,null,null,null,null,null,null,null,null,null,null,null,null,null,null,null,null,null,null,null,null,null,null,null,null,null,null,null,null,null,null,null,309,"Great Skua"]
[0,0,0,0,0,0,0,0,0,0,0,0,"00310",null,null,null,null,null,null,null,null,null,null,null,null,null,null,null,null,null,null,null,null,null,null,null,null,null,null,null,null,null,null,null,null,null,null,null,null,null,null,310,"Greater 'Akialoa"]
[0,0,0,0,0,0,0,0,0,0,0,0,"00311",null,null,null,null,null,null,null,null,null,null,null,null,null,null,null,null,null,null,null,null,null,null,null,null,null,null,null,null,null,null,null,null,null,null,null,null,null,null,311,"Greater Pewee"]
[0,0,0,0,0,0,0,0,0,0,0,0,"00312",null,null,null,null,null,null,null,null,null,null,null,null,null,null,null,null,null,null,null,null,null,null,null,null,null,null,null,null,null,null,null,null,null,null,null,null,null,null,312,"Greater Prairie-Chicken"]
[0,0,0,0,0,0,0,0,0,0,0,0,"00313",null,null,null,null,null,null,null,null,null,null,null,null,null,null,null,null,null,null,null,null,null,null,null,null,null,null,null,null,null,null,null,null,null,null,null,null,null,null,313,"Greater Roadrunner"]
[0,0,0,0,0,0,0,0,0,0,0,0,"00314",null,null,null,null,null,null,null,null,null,null,null,null,null,null,null,null,null,null,null,null,null,null,null,null,null,null,null,null,null,null,null,null,null,null,null,null,null,null,314,"Greater Sage-Grouse"]
[0,0,0,0,0,0,0,0,0,0,0,0,"00315",null,null,null,null,null,null,null,null,null,null,null,null,null,null,null,null,null,null,null,null,null,null,null,null,null,null,null,null,null,null,null,null,null,null,null,null,null,null,315,"Greater Scaup"]
[0,0,0,0,0,0,0,0,0,0,0,0,"00316",null,null,null,null,null,null,null,null,null,null,null,null,null,null,null,null,null,null,null,null,null,null,null,null,null,null,null,null,null,null,null,null,null,null,null,null,null,null,316,"Greater White-fronted Goose"]
[0,0,0,0,0,0,0,0,0,0,0,0,"00317",null,null,null,null,null,null,null,null,null,null,null,null,null,null,null,null,null,null,null,null,null,null,null,null,null,null,null,null,null,null,null,null,null,null,null,null,null,null,317,"Greater Yellowlegs"]
[0,0,0,0,0,0,0,0,0,0,0,0,"00318",null,null,null,null,null,null,null,null,null,null,null,null,null,null,null,null,null,null,null,null,null,null,null,null,null,null,null,null,null,null,null,null,null,null,null,null,null,null,318,"Great-tailed Grackle"]
[0,0,0,0,0,0,0,0,0,0,0,0,"00319",null,null,null,null,null,null,null,null,null,null,null,null,null,null,null,null,null,null,null,null,null,null,null,null,null,null,null,null,null,null,null,null,null,null,null,null,null,null,319,"Green Heron"]
[0,0,0,0,0,0,0,0,0,0,0,0,"00320",null,null,null,null,null,null,null,null,null,null,null,null,null,null,null,null,null,null,null,null,null,null,null,null,null,null,null,null,null,null,null,null,null,null,null,null,null,null,320,"Green Jay"]
[{"$f":"Report_Year","v":0},{"$f":"Permittee_Name","v":0},{"$f":"FWS_Permit_Number","v":0},{"$f":"Project_Type_Transfer","v":0},{"$f":"Project_Subtype_Transfer","v":0},{"$f":"Project_Type_Other","v":0},{"$f":"Description","v":0},{"$f":"Primary_Contact_Name","v":0},{"$f":"Primary_Contact_Title","v":0},{"$f":"Primary_Contact_Phone","v":0},{"$f":"ProprietaryYesNo","v":0},{"$f":"Proprietary_Description","v":0},{"$f":"CONCATENATE(A324,C324,AZ324)","v":"00321"},null,null,null,null,null,null,null,null,null,null,null,null,null,null,null,null,null,null,null,null,null,null,null,null,null,null,null,null,null,null,null,null,null,null,null,null,null,null,321,"Green Kingfisher"]
[0,0,0,0,0,0,0,0,0,0,0,0,"00322",null,null,null,null,null,null,null,null,null,null,null,null,null,null,null,null,null,null,null,null,null,null,null,null,null,null,null,null,null,null,null,null,null,null,null,null,null,null,322,"Green-tailed Towhee"]
[0,0,0,0,0,0,0,0,0,0,0,0,"00323",null,null,null,null,null,null,null,null,null,null,null,null,null,null,null,null,null,null,null,null,null,null,null,null,null,null,null,null,null,null,null,null,null,null,null,null,null,null,323,"Green-winged Teal"]
[0,0,0,0,0,0,0,0,0,0,0,0,"00324",null,null,null,null,null,null,null,null,null,null,null,null,null,null,null,null,null,null,null,null,null,null,null,null,null,null,null,null,null,null,null,null,null,null,null,null,null,null,324,"Groove-billed Ani"]
[0,0,0,0,0,0,0,0,0,0,0,0,"00325",null,null,null,null,null,null,null,null,null,null,null,null,null,null,null,null,null,null,null,null,null,null,null,null,null,null,null,null,null,null,null,null,null,null,null,null,null,null,325,"Guadalupe Murrelet"]
[0,0,0,0,0,0,0,0,0,0,0,0,"00326",null,null,null,null,null,null,null,null,null,null,null,null,null,null,null,null,null,null,null,null,null,null,null,null,null,null,null,null,null,null,null,null,null,null,null,null,null,null,326,"Guam Rail"]
[0,0,0,0,0,0,0,0,0,0,0,0,"00327",null,null,null,null,null,null,null,null,null,null,null,null,null,null,null,null,null,null,null,null,null,null,null,null,null,null,null,null,null,null,null,null,null,null,null,null,null,null,327,"Gull-billed Tern"]
[0,0,0,0,0,0,0,0,0,0,0,0,"00328",null,null,null,null,null,null,null,null,null,null,null,null,null,null,null,null,null,null,null,null,null,null,null,null,null,null,null,null,null,null,null,null,null,null,null,null,null,null,328,"Gunnison Sage-Grouse"]
[0,0,0,0,0,0,0,0,0,0,0,0,"00329",null,null,null,null,null,null,null,null,null,null,null,null,null,null,null,null,null,null,null,null,null,null,null,null,null,null,null,null,null,null,null,null,null,null,null,null,null,null,329,"Gyrfalcon"]
[0,0,0,0,0,0,0,0,0,0,0,0,"00330",null,null,null,null,null,null,null,null,null,null,null,null,null,null,null,null,null,null,null,null,null,null,null,null,null,null,null,null,null,null,null,null,null,null,null,null,null,null,330,"Hairy Woodpecker"]
[0,0,0,0,0,0,0,0,0,0,0,0,"00331",null,null,null,null,null,null,null,null,null,null,null,null,null,null,null,null,null,null,null,null,null,null,null,null,null,null,null,null,null,null,null,null,null,null,null,null,null,null,331,"Hammond's Flycatcher"]
[0,0,0,0,0,0,0,0,0,0,0,0,"00332",null,null,null,null,null,null,null,null,null,null,null,null,null,null,null,null,null,null,null,null,null,null,null,null,null,null,null,null,null,null,null,null,null,null,null,null,null,null,332,"Harlequin Duck"]
[0,0,0,0,0,0,0,0,0,0,0,0,"00333",null,null,null,null,null,null,null,null,null,null,null,null,null,null,null,null,null,null,null,null,null,null,null,null,null,null,null,null,null,null,null,null,null,null,null,null,null,null,333,"Harris's Hawk"]
[0,0,0,0,0,0,0,0,0,0,0,0,"00334",null,null,null,null,null,null,null,null,null,null,null,null,null,null,null,null,null,null,null,null,null,null,null,null,null,null,null,null,null,null,null,null,null,null,null,null,null,null,334,"Harris's Sparrow"]
[0,0,0,0,0,0,0,0,0,0,0,0,"00335",null,null,null,null,null,null,null,null,null,null,null,null,null,null,null,null,null,null,null,null,null,null,null,null,null,null,null,null,null,null,null,null,null,null,null,null,null,null,335,"Hawaii Amakihi"]
[0,0,0,0,0,0,0,0,0,0,0,0,"00336",null,null,null,null,null,null,null,null,null,null,null,null,null,null,null,null,null,null,null,null,null,null,null,null,null,null,null,null,null,null,null,null,null,null,null,null,null,null,336,"Hawaii Creeper"]
[0,0,0,0,0,0,0,0,0,0,0,0,"00337",null,null,null,null,null,null,null,null,null,null,null,null,null,null,null,null,null,null,null,null,null,null,null,null,null,null,null,null,null,null,null,null,null,null,null,null,null,null,337,"Hawaiian Coot"]
[0,0,0,0,0,0,0,0,0,0,0,0,"00338",null,null,null,null,null,null,null,null,null,null,null,null,null,null,null,null,null,null,null,null,null,null,null,null,null,null,null,null,null,null,null,null,null,null,null,null,null,null,338,"Hawaiian Crow"]
[0,0,0,0,0,0,0,0,0,0,0,0,"00339",null,null,null,null,null,null,null,null,null,null,null,null,null,null,null,null,null,null,null,null,null,null,null,null,null,null,null,null,null,null,null,null,null,null,null,null,null,null,339,"Hawaiian Duck"]
[0,0,0,0,0,0,0,0,0,0,0,0,"00340",null,null,null,null,null,null,null,null,null,null,null,null,null,null,null,null,null,null,null,null,null,null,null,null,null,null,null,null,null,null,null,null,null,null,null,null,null,null,340,"Hawaiian Goose"]
[0,0,0,0,0,0,0,0,0,0,0,0,"00341",null,null,null,null,null,null,null,null,null,null,null,null,null,null,null,null,null,null,null,null,null,null,null,null,null,null,null,null,null,null,null,null,null,null,null,null,null,null,341,"Hawaiian Hawk"]
[0,0,0,0,0,0,0,0,0,0,0,0,"00342",null,null,null,null,null,null,null,null,null,null,null,null,null,null,null,null,null,null,null,null,null,null,null,null,null,null,null,null,null,null,null,null,null,null,null,null,null,null,342,"Hawaiian Petrel"]
[0,0,0,0,0,0,0,0,0,0,0,0,"00343",null,null,null,null,null,null,null,null,null,null,null,null,null,null,null,null,null,null,null,null,null,null,null,null,null,null,null,null,null,null,null,null,null,null,null,null,null,null,343,"Heermann's Gull"]
[0,0,0,0,0,0,0,0,0,0,0,0,"00344",null,null,null,null,null,null,null,null,null,null,null,null,null,null,null,null,null,null,null,null,null,null,null,null,null,null,null,null,null,null,null,null,null,null,null,null,null,null,344,"Henslow's Sparrow"]
[0,0,0,0,0,0,0,0,0,0,0,0,"00345",null,null,null,null,null,null,null,null,null,null,null,null,null,null,null,null,null,null,null,null,null,null,null,null,null,null,null,null,null,null,null,null,null,null,null,null,null,null,345,"Hepatic Tanager"]
[0,0,0,0,0,0,0,0,0,0,0,0,"00346",null,null,null,null,null,null,null,null,null,null,null,null,null,null,null,null,null,null,null,null,null,null,null,null,null,null,null,null,null,null,null,null,null,null,null,null,null,null,346,"Herald Petrel"]
[0,0,0,0,0,0,0,0,0,0,0,0,"00347",null,null,null,null,null,null,null,null,null,null,null,null,null,null,null,null,null,null,null,null,null,null,null,null,null,null,null,null,null,null,null,null,null,null,null,null,null,null,347,"Hermit Thrush"]
[0,0,0,0,0,0,0,0,0,0,0,0,"00348",null,null,null,null,null,null,null,null,null,null,null,null,null,null,null,null,null,null,null,null,null,null,null,null,null,null,null,null,null,null,null,null,null,null,null,null,null,null,348,"Hermit Warbler"]
[0,0,0,0,0,0,0,0,0,0,0,0,"00349",null,null,null,null,null,null,null,null,null,null,null,null,null,null,null,null,null,null,null,null,null,null,null,null,null,null,null,null,null,null,null,null,null,null,null,null,null,null,349,"Herring Gull"]
[0,0,0,0,0,0,0,0,0,0,0,0,"00350",null,null,null,null,null,null,null,null,null,null,null,null,null,null,null,null,null,null,null,null,null,null,null,null,null,null,null,null,null,null,null,null,null,null,null,null,null,null,350,"Hoary Redpoll"]
[0,0,0,0,0,0,0,0,0,0,0,0,"00351",null,null,null,null,null,null,null,null,null,null,null,null,null,null,null,null,null,null,null,null,null,null,null,null,null,null,null,null,null,null,null,null,null,null,null,null,null,null,351,"Hooded Merganser"]
[0,0,0,0,0,0,0,0,0,0,0,0,"00352",null,null,null,null,null,null,null,null,null,null,null,null,null,null,null,null,null,null,null,null,null,null,null,null,null,null,null,null,null,null,null,null,null,null,null,null,null,null,352,"Hooded Oriole"]
[0,0,0,0,0,0,0,0,0,0,0,0,"00353",null,null,null,null,null,null,null,null,null,null,null,null,null,null,null,null,null,null,null,null,null,null,null,null,null,null,null,null,null,null,null,null,null,null,null,null,null,null,353,"Hooded Warbler"]
[0,0,0,0,0,0,0,0,0,0,0,0,"00354",null,null,null,null,null,null,null,null,null,null,null,null,null,null,null,null,null,null,null,null,null,null,null,null,null,null,null,null,null,null,null,null,null,null,null,null,null,null,354,"Hook-billed Kite"]
[0,0,0,0,0,0,0,0,0,0,0,0,"00355",null,null,null,null,null,null,null,null,null,null,null,null,null,null,null,null,null,null,null,null,null,null,null,null,null,null,null,null,null,null,null,null,null,null,null,null,null,null,355,"Horned Grebe"]
[0,0,0,0,0,0,0,0,0,0,0,0,"00356",null,null,null,null,null,null,null,null,null,null,null,null,null,null,null,null,null,null,null,null,null,null,null,null,null,null,null,null,null,null,null,null,null,null,null,null,null,null,356,"Horned Lark"]
[0,0,0,0,0,0,0,0,0,0,0,0,"00357",null,null,null,null,null,null,null,null,null,null,null,null,null,null,null,null,null,null,null,null,null,null,null,null,null,null,null,null,null,null,null,null,null,null,null,null,null,null,357,"Horned Puffin"]
[0,0,0,0,0,0,0,0,0,0,0,0,"00358",null,null,null,null,null,null,null,null,null,null,null,null,null,null,null,null,null,null,null,null,null,null,null,null,null,null,null,null,null,null,null,null,null,null,null,null,null,null,358,"House Finch"]
[0,0,0,0,0,0,0,0,0,0,0,0,"00359",null,null,null,null,null,null,null,null,null,null,null,null,null,null,null,null,null,null,null,null,null,null,null,null,null,null,null,null,null,null,null,null,null,null,null,null,null,null,359,"House Wren"]
[0,0,0,0,0,0,0,0,0,0,0,0,"00360",null,null,null,null,null,null,null,null,null,null,null,null,null,null,null,null,null,null,null,null,null,null,null,null,null,null,null,null,null,null,null,null,null,null,null,null,null,null,360,"Hudsonian Godwit"]
[0,0,0,0,0,0,0,0,0,0,0,0,"00361",null,null,null,null,null,null,null,null,null,null,null,null,null,null,null,null,null,null,null,null,null,null,null,null,null,null,null,null,null,null,null,null,null,null,null,null,null,null,361,"Hutton's Vireo"]
[0,0,0,0,0,0,0,0,0,0,0,0,"00362",null,null,null,null,null,null,null,null,null,null,null,null,null,null,null,null,null,null,null,null,null,null,null,null,null,null,null,null,null,null,null,null,null,null,null,null,null,null,362,"Iceland Gull"]
[0,0,0,0,0,0,0,0,0,0,0,0,"00363",null,null,null,null,null,null,null,null,null,null,null,null,null,null,null,null,null,null,null,null,null,null,null,null,null,null,null,null,null,null,null,null,null,null,null,null,null,null,363,"Iiwi"]
[0,0,0,0,0,0,0,0,0,0,0,0,"00364",null,null,null,null,null,null,null,null,null,null,null,null,null,null,null,null,null,null,null,null,null,null,null,null,null,null,null,null,null,null,null,null,null,null,null,null,null,null,364,"Inca Dove"]
[0,0,0,0,0,0,0,0,0,0,0,0,"00365",null,null,null,null,null,null,null,null,null,null,null,null,null,null,null,null,null,null,null,null,null,null,null,null,null,null,null,null,null,null,null,null,null,null,null,null,null,null,365,"Indigo Bunting"]
[0,0,0,0,0,0,0,0,0,0,0,0,"00366",null,null,null,null,null,null,null,null,null,null,null,null,null,null,null,null,null,null,null,null,null,null,null,null,null,null,null,null,null,null,null,null,null,null,null,null,null,null,366,"Island Scrub-Jay"]
[0,0,0,0,0,0,0,0,0,0,0,0,"00367",null,null,null,null,null,null,null,null,null,null,null,null,null,null,null,null,null,null,null,null,null,null,null,null,null,null,null,null,null,null,null,null,null,null,null,null,null,null,367,"Ivory Gull"]
[0,0,0,0,0,0,0,0,0,0,0,0,"00368",null,null,null,null,null,null,null,null,null,null,null,null,null,null,null,null,null,null,null,null,null,null,null,null,null,null,null,null,null,null,null,null,null,null,null,null,null,null,368,"Juniper Titmouse"]
[0,0,0,0,0,0,0,0,0,0,0,0,"00369",null,null,null,null,null,null,null,null,null,null,null,null,null,null,null,null,null,null,null,null,null,null,null,null,null,null,null,null,null,null,null,null,null,null,null,null,null,null,369,"Kakawahie"]
[0,0,0,0,0,0,0,0,0,0,0,0,"00370",null,null,null,null,null,null,null,null,null,null,null,null,null,null,null,null,null,null,null,null,null,null,null,null,null,null,null,null,null,null,null,null,null,null,null,null,null,null,370,"Kama'o"]
[0,0,0,0,0,0,0,0,0,0,0,0,"00371",null,null,null,null,null,null,null,null,null,null,null,null,null,null,null,null,null,null,null,null,null,null,null,null,null,null,null,null,null,null,null,null,null,null,null,null,null,null,371,"Kauai Amakihi"]
[0,0,0,0,0,0,0,0,0,0,0,0,"00372",null,null,null,null,null,null,null,null,null,null,null,null,null,null,null,null,null,null,null,null,null,null,null,null,null,null,null,null,null,null,null,null,null,null,null,null,null,null,372,"Kauai 'O'o"]
[0,0,0,0,0,0,0,0,0,0,0,0,"00373",null,null,null,null,null,null,null,null,null,null,null,null,null,null,null,null,null,null,null,null,null,null,null,null,null,null,null,null,null,null,null,null,null,null,null,null,null,null,373,"Kelp Gull"]
[0,0,0,0,0,0,0,0,0,0,0,0,"00374",null,null,null,null,null,null,null,null,null,null,null,null,null,null,null,null,null,null,null,null,null,null,null,null,null,null,null,null,null,null,null,null,null,null,null,null,null,null,374,"Kentucky Warbler"]
[0,0,0,0,0,0,0,0,0,0,0,0,"00375",null,null,null,null,null,null,null,null,null,null,null,null,null,null,null,null,null,null,null,null,null,null,null,null,null,null,null,null,null,null,null,null,null,null,null,null,null,null,375,"Killdeer"]
[0,0,0,0,0,0,0,0,0,0,0,0,"00376",null,null,null,null,null,null,null,null,null,null,null,null,null,null,null,null,null,null,null,null,null,null,null,null,null,null,null,null,null,null,null,null,null,null,null,null,null,null,376,"King Eider"]
[0,0,0,0,0,0,0,0,0,0,0,0,"00377",null,null,null,null,null,null,null,null,null,null,null,null,null,null,null,null,null,null,null,null,null,null,null,null,null,null,null,null,null,null,null,null,null,null,null,null,null,null,377,"King Rail"]
[0,0,0,0,0,0,0,0,0,0,0,0,"00378",null,null,null,null,null,null,null,null,null,null,null,null,null,null,null,null,null,null,null,null,null,null,null,null,null,null,null,null,null,null,null,null,null,null,null,null,null,null,378,"Kirtland's Warbler"]
[0,0,0,0,0,0,0,0,0,0,0,0,"00379",null,null,null,null,null,null,null,null,null,null,null,null,null,null,null,null,null,null,null,null,null,null,null,null,null,null,null,null,null,null,null,null,null,null,null,null,null,null,379,"Kittlitz's Murrelet"]
[0,0,0,0,0,0,0,0,0,0,0,0,"00380",null,null,null,null,null,null,null,null,null,null,null,null,null,null,null,null,null,null,null,null,null,null,null,null,null,null,null,null,null,null,null,null,null,null,null,null,null,null,380,"Ladder-backed Woodpecker"]
[0,0,0,0,0,0,0,0,0,0,0,0,"00381",null,null,null,null,null,null,null,null,null,null,null,null,null,null,null,null,null,null,null,null,null,null,null,null,null,null,null,null,null,null,null,null,null,null,null,null,null,null,381,"Lapland Longspur"]
[0,0,0,0,0,0,0,0,0,0,0,0,"00382",null,null,null,null,null,null,null,null,null,null,null,null,null,null,null,null,null,null,null,null,null,null,null,null,null,null,null,null,null,null,null,null,null,null,null,null,null,null,382,"Large-billed Tern"]
[0,0,0,0,0,0,0,0,0,0,0,0,"00383",null,null,null,null,null,null,null,null,null,null,null,null,null,null,null,null,null,null,null,null,null,null,null,null,null,null,null,null,null,null,null,null,null,null,null,null,null,null,383,"Lark Bunting"]
[0,0,0,0,0,0,0,0,0,0,0,0,"00384",null,null,null,null,null,null,null,null,null,null,null,null,null,null,null,null,null,null,null,null,null,null,null,null,null,null,null,null,null,null,null,null,null,null,null,null,null,null,384,"Lark Sparrow"]
[{"$f":"Report_Year","v":0},{"$f":"Permittee_Name","v":0},{"$f":"FWS_Permit_Number","v":0},{"$f":"Project_Type_Transfer","v":0},{"$f":"Project_Subtype_Transfer","v":0},{"$f":"Project_Type_Other","v":0},{"$f":"Description","v":0},{"$f":"Primary_Contact_Name","v":0},{"$f":"Primary_Contact_Title","v":0},{"$f":"Primary_Contact_Phone","v":0},{"$f":"ProprietaryYesNo","v":0},{"$f":"Proprietary_Description","v":0},{"$f":"CONCATENATE(A388,C388,AZ388)","v":"00385"},null,null,null,null,null,null,null,null,null,null,null,null,null,null,null,null,null,null,null,null,null,null,null,null,null,null,null,null,null,null,null,null,null,null,null,null,null,null,385,"Laughing Gull"]
[0,0,0,0,0,0,0,0,0,0,0,0,"00386",null,null,null,null,null,null,null,null,null,null,null,null,null,null,null,null,null,null,null,null,null,null,null,null,null,null,null,null,null,null,null,null,null,null,null,null,null,null,386,"Lawrence's Goldfinch"]
[0,0,0,0,0,0,0,0,0,0,0,0,"00387",null,null,null,null,null,null,null,null,null,null,null,null,null,null,null,null,null,null,null,null,null,null,null,null,null,null,null,null,null,null,null,null,null,null,null,null,null,null,387,"Laysan Albatross"]
[0,0,0,0,0,0,0,0,0,0,0,0,"00388",null,null,null,null,null,null,null,null,null,null,null,null,null,null,null,null,null,null,null,null,null,null,null,null,null,null,null,null,null,null,null,null,null,null,null,null,null,null,388,"Laysan Duck"]
[0,0,0,0,0,0,0,0,0,0,0,0,"00389",null,null,null,null,null,null,null,null,null,null,null,null,null,null,null,null,null,null,null,null,null,null,null,null,null,null,null,null,null,null,null,null,null,null,null,null,null,null,389,"Laysan Finch"]
[0,0,0,0,0,0,0,0,0,0,0,0,"00390",null,null,null,null,null,null,null,null,null,null,null,null,null,null,null,null,null,null,null,null,null,null,null,null,null,null,null,null,null,null,null,null,null,null,null,null,null,null,390,"Lazuli Bunting"]
[0,0,0,0,0,0,0,0,0,0,0,0,"00391",null,null,null,null,null,null,null,null,null,null,null,null,null,null,null,null,null,null,null,null,null,null,null,null,null,null,null,null,null,null,null,null,null,null,null,null,null,null,391,"Le Conte's Sparrow"]
[0,0,0,0,0,0,0,0,0,0,0,0,"00392",null,null,null,null,null,null,null,null,null,null,null,null,null,null,null,null,null,null,null,null,null,null,null,null,null,null,null,null,null,null,null,null,null,null,null,null,null,null,392,"Le Conte's Thrasher"]
[0,0,0,0,0,0,0,0,0,0,0,0,"00393",null,null,null,null,null,null,null,null,null,null,null,null,null,null,null,null,null,null,null,null,null,null,null,null,null,null,null,null,null,null,null,null,null,null,null,null,null,null,393,"Leach's Storm-Petrel"]
[0,0,0,0,0,0,0,0,0,0,0,0,"00394",null,null,null,null,null,null,null,null,null,null,null,null,null,null,null,null,null,null,null,null,null,null,null,null,null,null,null,null,null,null,null,null,null,null,null,null,null,null,394,"Least Auklet"]
[0,0,0,0,0,0,0,0,0,0,0,0,"00395",null,null,null,null,null,null,null,null,null,null,null,null,null,null,null,null,null,null,null,null,null,null,null,null,null,null,null,null,null,null,null,null,null,null,null,null,null,null,395,"Least Bittern"]
[0,0,0,0,0,0,0,0,0,0,0,0,"00396",null,null,null,null,null,null,null,null,null,null,null,null,null,null,null,null,null,null,null,null,null,null,null,null,null,null,null,null,null,null,null,null,null,null,null,null,null,null,396,"Least Flycatcher"]
[0,0,0,0,0,0,0,0,0,0,0,0,"00397",null,null,null,null,null,null,null,null,null,null,null,null,null,null,null,null,null,null,null,null,null,null,null,null,null,null,null,null,null,null,null,null,null,null,null,null,null,null,397,"Least Grebe"]
[0,0,0,0,0,0,0,0,0,0,0,0,"00398",null,null,null,null,null,null,null,null,null,null,null,null,null,null,null,null,null,null,null,null,null,null,null,null,null,null,null,null,null,null,null,null,null,null,null,null,null,null,398,"Least Sandpiper"]
[0,0,0,0,0,0,0,0,0,0,0,0,"00399",null,null,null,null,null,null,null,null,null,null,null,null,null,null,null,null,null,null,null,null,null,null,null,null,null,null,null,null,null,null,null,null,null,null,null,null,null,null,399,"Least Storm-Petrel"]
[0,0,0,0,0,0,0,0,0,0,0,0,"00400",null,null,null,null,null,null,null,null,null,null,null,null,null,null,null,null,null,null,null,null,null,null,null,null,null,null,null,null,null,null,null,null,null,null,null,null,null,null,400,"Least Tern"]
[0,0,0,0,0,0,0,0,0,0,0,0,"00401",null,null,null,null,null,null,null,null,null,null,null,null,null,null,null,null,null,null,null,null,null,null,null,null,null,null,null,null,null,null,null,null,null,null,null,null,null,null,401,"Lesser Black-backed Gull"]
[0,0,0,0,0,0,0,0,0,0,0,0,"00402",null,null,null,null,null,null,null,null,null,null,null,null,null,null,null,null,null,null,null,null,null,null,null,null,null,null,null,null,null,null,null,null,null,null,null,null,null,null,402,"Lesser Goldfinch"]
[0,0,0,0,0,0,0,0,0,0,0,0,"00403",null,null,null,null,null,null,null,null,null,null,null,null,null,null,null,null,null,null,null,null,null,null,null,null,null,null,null,null,null,null,null,null,null,null,null,null,null,null,403,"Lesser Nighthawk"]
[0,0,0,0,0,0,0,0,0,0,0,0,"00404",null,null,null,null,null,null,null,null,null,null,null,null,null,null,null,null,null,null,null,null,null,null,null,null,null,null,null,null,null,null,null,null,null,null,null,null,null,null,404,"Lesser Prairie-Chicken"]
[0,0,0,0,0,0,0,0,0,0,0,0,"00405",null,null,null,null,null,null,null,null,null,null,null,null,null,null,null,null,null,null,null,null,null,null,null,null,null,null,null,null,null,null,null,null,null,null,null,null,null,null,405,"Lesser Scaup"]
[0,0,0,0,0,0,0,0,0,0,0,0,"00406",null,null,null,null,null,null,null,null,null,null,null,null,null,null,null,null,null,null,null,null,null,null,null,null,null,null,null,null,null,null,null,null,null,null,null,null,null,null,406,"Lesser Yellowlegs"]
[0,0,0,0,0,0,0,0,0,0,0,0,"00407",null,null,null,null,null,null,null,null,null,null,null,null,null,null,null,null,null,null,null,null,null,null,null,null,null,null,null,null,null,null,null,null,null,null,null,null,null,null,407,"Lewis's Woodpecker"]
[0,0,0,0,0,0,0,0,0,0,0,0,"00408",null,null,null,null,null,null,null,null,null,null,null,null,null,null,null,null,null,null,null,null,null,null,null,null,null,null,null,null,null,null,null,null,null,null,null,null,null,null,408,"Limpkin"]
[0,0,0,0,0,0,0,0,0,0,0,0,"00409",null,null,null,null,null,null,null,null,null,null,null,null,null,null,null,null,null,null,null,null,null,null,null,null,null,null,null,null,null,null,null,null,null,null,null,null,null,null,409,"Lincoln's Sparrow"]
[0,0,0,0,0,0,0,0,0,0,0,0,"00410",null,null,null,null,null,null,null,null,null,null,null,null,null,null,null,null,null,null,null,null,null,null,null,null,null,null,null,null,null,null,null,null,null,null,null,null,null,null,410,"Little Blue Heron"]
[0,0,0,0,0,0,0,0,0,0,0,0,"00411",null,null,null,null,null,null,null,null,null,null,null,null,null,null,null,null,null,null,null,null,null,null,null,null,null,null,null,null,null,null,null,null,null,null,null,null,null,null,411,"Little Gull"]
[0,0,0,0,0,0,0,0,0,0,0,0,"00412",null,null,null,null,null,null,null,null,null,null,null,null,null,null,null,null,null,null,null,null,null,null,null,null,null,null,null,null,null,null,null,null,null,null,null,null,null,null,412,"Little Tern"]
[0,0,0,0,0,0,0,0,0,0,0,0,"00413",null,null,null,null,null,null,null,null,null,null,null,null,null,null,null,null,null,null,null,null,null,null,null,null,null,null,null,null,null,null,null,null,null,null,null,null,null,null,413,"Loggerhead Shrike"]
[0,0,0,0,0,0,0,0,0,0,0,0,"00414",null,null,null,null,null,null,null,null,null,null,null,null,null,null,null,null,null,null,null,null,null,null,null,null,null,null,null,null,null,null,null,null,null,null,null,null,null,null,414,"Long-billed Curlew"]
[0,0,0,0,0,0,0,0,0,0,0,0,"00415",null,null,null,null,null,null,null,null,null,null,null,null,null,null,null,null,null,null,null,null,null,null,null,null,null,null,null,null,null,null,null,null,null,null,null,null,null,null,415,"Long-billed Dowitcher"]
[0,0,0,0,0,0,0,0,0,0,0,0,"00416",null,null,null,null,null,null,null,null,null,null,null,null,null,null,null,null,null,null,null,null,null,null,null,null,null,null,null,null,null,null,null,null,null,null,null,null,null,null,416,"Long-billed Murrelet"]
[0,0,0,0,0,0,0,0,0,0,0,0,"00417",null,null,null,null,null,null,null,null,null,null,null,null,null,null,null,null,null,null,null,null,null,null,null,null,null,null,null,null,null,null,null,null,null,null,null,null,null,null,417,"Long-billed Thrasher"]
[0,0,0,0,0,0,0,0,0,0,0,0,"00418",null,null,null,null,null,null,null,null,null,null,null,null,null,null,null,null,null,null,null,null,null,null,null,null,null,null,null,null,null,null,null,null,null,null,null,null,null,null,418,"Long-eared Owl"]
[0,0,0,0,0,0,0,0,0,0,0,0,"00419",null,null,null,null,null,null,null,null,null,null,null,null,null,null,null,null,null,null,null,null,null,null,null,null,null,null,null,null,null,null,null,null,null,null,null,null,null,null,419,"Long-tailed Duck"]
[0,0,0,0,0,0,0,0,0,0,0,0,"00420",null,null,null,null,null,null,null,null,null,null,null,null,null,null,null,null,null,null,null,null,null,null,null,null,null,null,null,null,null,null,null,null,null,null,null,null,null,null,420,"Long-tailed Jaeger"]
[0,0,0,0,0,0,0,0,0,0,0,0,"00421",null,null,null,null,null,null,null,null,null,null,null,null,null,null,null,null,null,null,null,null,null,null,null,null,null,null,null,null,null,null,null,null,null,null,null,null,null,null,421,"Louisiana Waterthrush"]
[0,0,0,0,0,0,0,0,0,0,0,0,"00422",null,null,null,null,null,null,null,null,null,null,null,null,null,null,null,null,null,null,null,null,null,null,null,null,null,null,null,null,null,null,null,null,null,null,null,null,null,null,422,"Lucifer Hummingbird"]
[0,0,0,0,0,0,0,0,0,0,0,0,"00423",null,null,null,null,null,null,null,null,null,null,null,null,null,null,null,null,null,null,null,null,null,null,null,null,null,null,null,null,null,null,null,null,null,null,null,null,null,null,423,"Lucy's Warbler"]
[0,0,0,0,0,0,0,0,0,0,0,0,"00424",null,null,null,null,null,null,null,null,null,null,null,null,null,null,null,null,null,null,null,null,null,null,null,null,null,null,null,null,null,null,null,null,null,null,null,null,null,null,424,"MacGillivray's Warbler"]
[0,0,0,0,0,0,0,0,0,0,0,0,"00425",null,null,null,null,null,null,null,null,null,null,null,null,null,null,null,null,null,null,null,null,null,null,null,null,null,null,null,null,null,null,null,null,null,null,null,null,null,null,425,"Magnificent Frigatebird"]
[0,0,0,0,0,0,0,0,0,0,0,0,"00426",null,null,null,null,null,null,null,null,null,null,null,null,null,null,null,null,null,null,null,null,null,null,null,null,null,null,null,null,null,null,null,null,null,null,null,null,null,null,426,"Magnificent Hummingbird"]
[0,0,0,0,0,0,0,0,0,0,0,0,"00427",null,null,null,null,null,null,null,null,null,null,null,null,null,null,null,null,null,null,null,null,null,null,null,null,null,null,null,null,null,null,null,null,null,null,null,null,null,null,427,"Magnolia Warbler"]
[0,0,0,0,0,0,0,0,0,0,0,0,"00428",null,null,null,null,null,null,null,null,null,null,null,null,null,null,null,null,null,null,null,null,null,null,null,null,null,null,null,null,null,null,null,null,null,null,null,null,null,null,428,"Mallard"]
[0,0,0,0,0,0,0,0,0,0,0,0,"00429",null,null,null,null,null,null,null,null,null,null,null,null,null,null,null,null,null,null,null,null,null,null,null,null,null,null,null,null,null,null,null,null,null,null,null,null,null,null,429,"Mangrove Cuckoo"]
[0,0,0,0,0,0,0,0,0,0,0,0,"00430",null,null,null,null,null,null,null,null,null,null,null,null,null,null,null,null,null,null,null,null,null,null,null,null,null,null,null,null,null,null,null,null,null,null,null,null,null,null,430,"Manx Shearwater"]
[0,0,0,0,0,0,0,0,0,0,0,0,"00431",null,null,null,null,null,null,null,null,null,null,null,null,null,null,null,null,null,null,null,null,null,null,null,null,null,null,null,null,null,null,null,null,null,null,null,null,null,null,431,"Marbled Godwit"]
[0,0,0,0,0,0,0,0,0,0,0,0,"00432",null,null,null,null,null,null,null,null,null,null,null,null,null,null,null,null,null,null,null,null,null,null,null,null,null,null,null,null,null,null,null,null,null,null,null,null,null,null,432,"Marbled Murrelet"]
[0,0,0,0,0,0,0,0,0,0,0,0,"00433",null,null,null,null,null,null,null,null,null,null,null,null,null,null,null,null,null,null,null,null,null,null,null,null,null,null,null,null,null,null,null,null,null,null,null,null,null,null,433,"Mariana Crow"]
[0,0,0,0,0,0,0,0,0,0,0,0,"00434",null,null,null,null,null,null,null,null,null,null,null,null,null,null,null,null,null,null,null,null,null,null,null,null,null,null,null,null,null,null,null,null,null,null,null,null,null,null,434,"Mariana Swiftlet"]
[0,0,0,0,0,0,0,0,0,0,0,0,"00435",null,null,null,null,null,null,null,null,null,null,null,null,null,null,null,null,null,null,null,null,null,null,null,null,null,null,null,null,null,null,null,null,null,null,null,null,null,null,435,"Marsh Wren"]
[0,0,0,0,0,0,0,0,0,0,0,0,"00436",null,null,null,null,null,null,null,null,null,null,null,null,null,null,null,null,null,null,null,null,null,null,null,null,null,null,null,null,null,null,null,null,null,null,null,null,null,null,436,"Masked Booby"]
[0,0,0,0,0,0,0,0,0,0,0,0,"00437",null,null,null,null,null,null,null,null,null,null,null,null,null,null,null,null,null,null,null,null,null,null,null,null,null,null,null,null,null,null,null,null,null,null,null,null,null,null,437,"Maui Alauahio"]
[0,0,0,0,0,0,0,0,0,0,0,0,"00438",null,null,null,null,null,null,null,null,null,null,null,null,null,null,null,null,null,null,null,null,null,null,null,null,null,null,null,null,null,null,null,null,null,null,null,null,null,null,438,"Maui Parrotbill"]
[0,0,0,0,0,0,0,0,0,0,0,0,"00439",null,null,null,null,null,null,null,null,null,null,null,null,null,null,null,null,null,null,null,null,null,null,null,null,null,null,null,null,null,null,null,null,null,null,null,null,null,null,439,"McCown's Longspur"]
[0,0,0,0,0,0,0,0,0,0,0,0,"00440",null,null,null,null,null,null,null,null,null,null,null,null,null,null,null,null,null,null,null,null,null,null,null,null,null,null,null,null,null,null,null,null,null,null,null,null,null,null,440,"McKay's Bunting"]
[0,0,0,0,0,0,0,0,0,0,0,0,"00441",null,null,null,null,null,null,null,null,null,null,null,null,null,null,null,null,null,null,null,null,null,null,null,null,null,null,null,null,null,null,null,null,null,null,null,null,null,null,441,"Merlin"]
[0,0,0,0,0,0,0,0,0,0,0,0,"00442",null,null,null,null,null,null,null,null,null,null,null,null,null,null,null,null,null,null,null,null,null,null,null,null,null,null,null,null,null,null,null,null,null,null,null,null,null,null,442,"Mew Gull"]
[0,0,0,0,0,0,0,0,0,0,0,0,"00443",null,null,null,null,null,null,null,null,null,null,null,null,null,null,null,null,null,null,null,null,null,null,null,null,null,null,null,null,null,null,null,null,null,null,null,null,null,null,443,"Mexican Chickadee"]
[0,0,0,0,0,0,0,0,0,0,0,0,"00444",null,null,null,null,null,null,null,null,null,null,null,null,null,null,null,null,null,null,null,null,null,null,null,null,null,null,null,null,null,null,null,null,null,null,null,null,null,null,444,"Mexican Jay"]
[0,0,0,0,0,0,0,0,0,0,0,0,"00445",null,null,null,null,null,null,null,null,null,null,null,null,null,null,null,null,null,null,null,null,null,null,null,null,null,null,null,null,null,null,null,null,null,null,null,null,null,null,445,"Mexican Whip-poor-will"]
[0,0,0,0,0,0,0,0,0,0,0,0,"00446",null,null,null,null,null,null,null,null,null,null,null,null,null,null,null,null,null,null,null,null,null,null,null,null,null,null,null,null,null,null,null,null,null,null,null,null,null,null,446,"Micronesian Kingfisher"]
[0,0,0,0,0,0,0,0,0,0,0,0,"00447",null,null,null,null,null,null,null,null,null,null,null,null,null,null,null,null,null,null,null,null,null,null,null,null,null,null,null,null,null,null,null,null,null,null,null,null,null,null,447,"Millerbird"]
[0,0,0,0,0,0,0,0,0,0,0,0,"00448",null,null,null,null,null,null,null,null,null,null,null,null,null,null,null,null,null,null,null,null,null,null,null,null,null,null,null,null,null,null,null,null,null,null,null,null,null,null,448,"Mississippi Kite"]
[{"$f":"Report_Year","v":0},{"$f":"Permittee_Name","v":0},{"$f":"FWS_Permit_Number","v":0},{"$f":"Project_Type_Transfer","v":0},{"$f":"Project_Subtype_Transfer","v":0},{"$f":"Project_Type_Other","v":0},{"$f":"Description","v":0},{"$f":"Primary_Contact_Name","v":0},{"$f":"Primary_Contact_Title","v":0},{"$f":"Primary_Contact_Phone","v":0},{"$f":"ProprietaryYesNo","v":0},{"$f":"Proprietary_Description","v":0},{"$f":"CONCATENATE(A452,C452,AZ452)","v":"00449"},null,null,null,null,null,null,null,null,null,null,null,null,null,null,null,null,null,null,null,null,null,null,null,null,null,null,null,null,null,null,null,null,null,null,null,null,null,null,449,"Mottled Duck"]
[0,0,0,0,0,0,0,0,0,0,0,0,"00450",null,null,null,null,null,null,null,null,null,null,null,null,null,null,null,null,null,null,null,null,null,null,null,null,null,null,null,null,null,null,null,null,null,null,null,null,null,null,450,"Mottled Petrel"]
[0,0,0,0,0,0,0,0,0,0,0,0,"00451",null,null,null,null,null,null,null,null,null,null,null,null,null,null,null,null,null,null,null,null,null,null,null,null,null,null,null,null,null,null,null,null,null,null,null,null,null,null,451,"Mountain Chickadee"]
[0,0,0,0,0,0,0,0,0,0,0,0,"00452",null,null,null,null,null,null,null,null,null,null,null,null,null,null,null,null,null,null,null,null,null,null,null,null,null,null,null,null,null,null,null,null,null,null,null,null,null,null,452,"Mountain Plover"]
[0,0,0,0,0,0,0,0,0,0,0,0,"00453",null,null,null,null,null,null,null,null,null,null,null,null,null,null,null,null,null,null,null,null,null,null,null,null,null,null,null,null,null,null,null,null,null,null,null,null,null,null,453,"Mourning Dove"]
[0,0,0,0,0,0,0,0,0,0,0,0,"00454",null,null,null,null,null,null,null,null,null,null,null,null,null,null,null,null,null,null,null,null,null,null,null,null,null,null,null,null,null,null,null,null,null,null,null,null,null,null,454,"Mourning Warbler"]
[0,0,0,0,0,0,0,0,0,0,0,0,"00455",null,null,null,null,null,null,null,null,null,null,null,null,null,null,null,null,null,null,null,null,null,null,null,null,null,null,null,null,null,null,null,null,null,null,null,null,null,null,455,"Murphy's Petrel"]
[0,0,0,0,0,0,0,0,0,0,0,0,"00456",null,null,null,null,null,null,null,null,null,null,null,null,null,null,null,null,null,null,null,null,null,null,null,null,null,null,null,null,null,null,null,null,null,null,null,null,null,null,456,"Muscovy Duck"]
[0,0,0,0,0,0,0,0,0,0,0,0,"00457",null,null,null,null,null,null,null,null,null,null,null,null,null,null,null,null,null,null,null,null,null,null,null,null,null,null,null,null,null,null,null,null,null,null,null,null,null,null,457,"Nashville Warbler"]
[0,0,0,0,0,0,0,0,0,0,0,0,"00458",null,null,null,null,null,null,null,null,null,null,null,null,null,null,null,null,null,null,null,null,null,null,null,null,null,null,null,null,null,null,null,null,null,null,null,null,null,null,458,"Nelson's Sparrow"]
[0,0,0,0,0,0,0,0,0,0,0,0,"00459",null,null,null,null,null,null,null,null,null,null,null,null,null,null,null,null,null,null,null,null,null,null,null,null,null,null,null,null,null,null,null,null,null,null,null,null,null,null,459,"Neotropic Cormorant"]
[0,0,0,0,0,0,0,0,0,0,0,0,"00460",null,null,null,null,null,null,null,null,null,null,null,null,null,null,null,null,null,null,null,null,null,null,null,null,null,null,null,null,null,null,null,null,null,null,null,null,null,null,460,"Nightingale Reed-Warbler"]
[0,0,0,0,0,0,0,0,0,0,0,0,"00461",null,null,null,null,null,null,null,null,null,null,null,null,null,null,null,null,null,null,null,null,null,null,null,null,null,null,null,null,null,null,null,null,null,null,null,null,null,null,461,"Nihoa Finch"]
[0,0,0,0,0,0,0,0,0,0,0,0,"00462",null,null,null,null,null,null,null,null,null,null,null,null,null,null,null,null,null,null,null,null,null,null,null,null,null,null,null,null,null,null,null,null,null,null,null,null,null,null,462,"Northern Beardless-Tyrannulet"]
[0,0,0,0,0,0,0,0,0,0,0,0,"00463",null,null,null,null,null,null,null,null,null,null,null,null,null,null,null,null,null,null,null,null,null,null,null,null,null,null,null,null,null,null,null,null,null,null,null,null,null,null,463,"Northern Cardinal"]
[0,0,0,0,0,0,0,0,0,0,0,0,"00464",null,null,null,null,null,null,null,null,null,null,null,null,null,null,null,null,null,null,null,null,null,null,null,null,null,null,null,null,null,null,null,null,null,null,null,null,null,null,464,"Northern Flicker"]
[0,0,0,0,0,0,0,0,0,0,0,0,"00465",null,null,null,null,null,null,null,null,null,null,null,null,null,null,null,null,null,null,null,null,null,null,null,null,null,null,null,null,null,null,null,null,null,null,null,null,null,null,465,"Northern Fulmar"]
[0,0,0,0,0,0,0,0,0,0,0,0,"00466",null,null,null,null,null,null,null,null,null,null,null,null,null,null,null,null,null,null,null,null,null,null,null,null,null,null,null,null,null,null,null,null,null,null,null,null,null,null,466,"Northern Gannet"]
[0,0,0,0,0,0,0,0,0,0,0,0,"00467",null,null,null,null,null,null,null,null,null,null,null,null,null,null,null,null,null,null,null,null,null,null,null,null,null,null,null,null,null,null,null,null,null,null,null,null,null,null,467,"Northern Goshawk"]
[0,0,0,0,0,0,0,0,0,0,0,0,"00468",null,null,null,null,null,null,null,null,null,null,null,null,null,null,null,null,null,null,null,null,null,null,null,null,null,null,null,null,null,null,null,null,null,null,null,null,null,null,468,"Northern Harrier"]
[0,0,0,0,0,0,0,0,0,0,0,0,"00469",null,null,null,null,null,null,null,null,null,null,null,null,null,null,null,null,null,null,null,null,null,null,null,null,null,null,null,null,null,null,null,null,null,null,null,null,null,null,469,"Northern Hawk Owl"]
[0,0,0,0,0,0,0,0,0,0,0,0,"00470",null,null,null,null,null,null,null,null,null,null,null,null,null,null,null,null,null,null,null,null,null,null,null,null,null,null,null,null,null,null,null,null,null,null,null,null,null,null,470,"Northern Mockingbird"]
[0,0,0,0,0,0,0,0,0,0,0,0,"00471",null,null,null,null,null,null,null,null,null,null,null,null,null,null,null,null,null,null,null,null,null,null,null,null,null,null,null,null,null,null,null,null,null,null,null,null,null,null,471,"Northern Parula"]
[0,0,0,0,0,0,0,0,0,0,0,0,"00472",null,null,null,null,null,null,null,null,null,null,null,null,null,null,null,null,null,null,null,null,null,null,null,null,null,null,null,null,null,null,null,null,null,null,null,null,null,null,472,"Northern Pintail"]
[0,0,0,0,0,0,0,0,0,0,0,0,"00473",null,null,null,null,null,null,null,null,null,null,null,null,null,null,null,null,null,null,null,null,null,null,null,null,null,null,null,null,null,null,null,null,null,null,null,null,null,null,473,"Northern Pygmy-Owl"]
[0,0,0,0,0,0,0,0,0,0,0,0,"00474",null,null,null,null,null,null,null,null,null,null,null,null,null,null,null,null,null,null,null,null,null,null,null,null,null,null,null,null,null,null,null,null,null,null,null,null,null,null,474,"Northern Rough-winged Swallow"]
[0,0,0,0,0,0,0,0,0,0,0,0,"00475",null,null,null,null,null,null,null,null,null,null,null,null,null,null,null,null,null,null,null,null,null,null,null,null,null,null,null,null,null,null,null,null,null,null,null,null,null,null,475,"Northern Saw-whet Owl"]
[0,0,0,0,0,0,0,0,0,0,0,0,"00476",null,null,null,null,null,null,null,null,null,null,null,null,null,null,null,null,null,null,null,null,null,null,null,null,null,null,null,null,null,null,null,null,null,null,null,null,null,null,476,"Northern Shoveler"]
[0,0,0,0,0,0,0,0,0,0,0,0,"00477",null,null,null,null,null,null,null,null,null,null,null,null,null,null,null,null,null,null,null,null,null,null,null,null,null,null,null,null,null,null,null,null,null,null,null,null,null,null,477,"Northern Shrike"]
[0,0,0,0,0,0,0,0,0,0,0,0,"00478",null,null,null,null,null,null,null,null,null,null,null,null,null,null,null,null,null,null,null,null,null,null,null,null,null,null,null,null,null,null,null,null,null,null,null,null,null,null,478,"Northern Waterthrush"]
[0,0,0,0,0,0,0,0,0,0,0,0,"00479",null,null,null,null,null,null,null,null,null,null,null,null,null,null,null,null,null,null,null,null,null,null,null,null,null,null,null,null,null,null,null,null,null,null,null,null,null,null,479,"Northwestern Crow"]
[0,0,0,0,0,0,0,0,0,0,0,0,"00480",null,null,null,null,null,null,null,null,null,null,null,null,null,null,null,null,null,null,null,null,null,null,null,null,null,null,null,null,null,null,null,null,null,null,null,null,null,null,480,"Nukupu'u"]
[0,0,0,0,0,0,0,0,0,0,0,0,"00481",null,null,null,null,null,null,null,null,null,null,null,null,null,null,null,null,null,null,null,null,null,null,null,null,null,null,null,null,null,null,null,null,null,null,null,null,null,null,481,"Nuttall's Woodpecker"]
[0,0,0,0,0,0,0,0,0,0,0,0,"00482",null,null,null,null,null,null,null,null,null,null,null,null,null,null,null,null,null,null,null,null,null,null,null,null,null,null,null,null,null,null,null,null,null,null,null,null,null,null,482,"Oahu 'Alauahio"]
[0,0,0,0,0,0,0,0,0,0,0,0,"00483",null,null,null,null,null,null,null,null,null,null,null,null,null,null,null,null,null,null,null,null,null,null,null,null,null,null,null,null,null,null,null,null,null,null,null,null,null,null,483,"Oahu Amakihi"]
[0,0,0,0,0,0,0,0,0,0,0,0,"00484",null,null,null,null,null,null,null,null,null,null,null,null,null,null,null,null,null,null,null,null,null,null,null,null,null,null,null,null,null,null,null,null,null,null,null,null,null,null,484,"Oahu Elepaio"]
[0,0,0,0,0,0,0,0,0,0,0,0,"00485",null,null,null,null,null,null,null,null,null,null,null,null,null,null,null,null,null,null,null,null,null,null,null,null,null,null,null,null,null,null,null,null,null,null,null,null,null,null,485,"Oak Titmouse"]
[0,0,0,0,0,0,0,0,0,0,0,0,"00486",null,null,null,null,null,null,null,null,null,null,null,null,null,null,null,null,null,null,null,null,null,null,null,null,null,null,null,null,null,null,null,null,null,null,null,null,null,null,486,"Olive Sparrow"]
[0,0,0,0,0,0,0,0,0,0,0,0,"00487",null,null,null,null,null,null,null,null,null,null,null,null,null,null,null,null,null,null,null,null,null,null,null,null,null,null,null,null,null,null,null,null,null,null,null,null,null,null,487,"Olive Warbler"]
[0,0,0,0,0,0,0,0,0,0,0,0,"00488",null,null,null,null,null,null,null,null,null,null,null,null,null,null,null,null,null,null,null,null,null,null,null,null,null,null,null,null,null,null,null,null,null,null,null,null,null,null,488,"Olive-backed Pipit"]
[0,0,0,0,0,0,0,0,0,0,0,0,"00489",null,null,null,null,null,null,null,null,null,null,null,null,null,null,null,null,null,null,null,null,null,null,null,null,null,null,null,null,null,null,null,null,null,null,null,null,null,null,489,"Olive-sided Flycatcher"]
[0,0,0,0,0,0,0,0,0,0,0,0,"00490",null,null,null,null,null,null,null,null,null,null,null,null,null,null,null,null,null,null,null,null,null,null,null,null,null,null,null,null,null,null,null,null,null,null,null,null,null,null,490,"Oloma'o"]
[0,0,0,0,0,0,0,0,0,0,0,0,"00491",null,null,null,null,null,null,null,null,null,null,null,null,null,null,null,null,null,null,null,null,null,null,null,null,null,null,null,null,null,null,null,null,null,null,null,null,null,null,491,"Oma'o"]
[0,0,0,0,0,0,0,0,0,0,0,0,"00492",null,null,null,null,null,null,null,null,null,null,null,null,null,null,null,null,null,null,null,null,null,null,null,null,null,null,null,null,null,null,null,null,null,null,null,null,null,null,492,"Orange-crowned Warbler"]
[0,0,0,0,0,0,0,0,0,0,0,0,"00493",null,null,null,null,null,null,null,null,null,null,null,null,null,null,null,null,null,null,null,null,null,null,null,null,null,null,null,null,null,null,null,null,null,null,null,null,null,null,493,"Orchard Oriole"]
[0,0,0,0,0,0,0,0,0,0,0,0,"00494",null,null,null,null,null,null,null,null,null,null,null,null,null,null,null,null,null,null,null,null,null,null,null,null,null,null,null,null,null,null,null,null,null,null,null,null,null,null,494,"Oriental Greenfinch"]
[0,0,0,0,0,0,0,0,0,0,0,0,"00495",null,null,null,null,null,null,null,null,null,null,null,null,null,null,null,null,null,null,null,null,null,null,null,null,null,null,null,null,null,null,null,null,null,null,null,null,null,null,495,"Osprey"]
[0,0,0,0,0,0,0,0,0,0,0,0,"00496",null,null,null,null,null,null,null,null,null,null,null,null,null,null,null,null,null,null,null,null,null,null,null,null,null,null,null,null,null,null,null,null,null,null,null,null,null,null,496,"O'u"]
[0,0,0,0,0,0,0,0,0,0,0,0,"00497",null,null,null,null,null,null,null,null,null,null,null,null,null,null,null,null,null,null,null,null,null,null,null,null,null,null,null,null,null,null,null,null,null,null,null,null,null,null,497,"Ovenbird"]
[0,0,0,0,0,0,0,0,0,0,0,0,"00499",null,null,null,null,null,null,null,null,null,null,null,null,null,null,null,null,null,null,null,null,null,null,null,null,null,null,null,null,null,null,null,null,null,null,null,null,null,null,499,"Pacific Loon"]
[0,0,0,0,0,0,0,0,0,0,0,0,"00501",null,null,null,null,null,null,null,null,null,null,null,null,null,null,null,null,null,null,null,null,null,null,null,null,null,null,null,null,null,null,null,null,null,null,null,null,null,null,501,"Pacific-slope Flycatcher"]
[0,0,0,0,0,0,0,0,0,0,0,0,"00504",null,null,null,null,null,null,null,null,null,null,null,null,null,null,null,null,null,null,null,null,null,null,null,null,null,null,null,null,null,null,null,null,null,null,null,null,null,null,504,"Palila"]
[0,0,0,0,0,0,0,0,0,0,0,0,"00508",null,null,null,null,null,null,null,null,null,null,null,null,null,null,null,null,null,null,null,null,null,null,null,null,null,null,null,null,null,null,null,null,null,null,null,null,null,null,508,"Pechora Pipit"]
[0,0,0,0,0,0,0,0,0,0,0,0,"00510",null,null,null,null,null,null,null,null,null,null,null,null,null,null,null,null,null,null,null,null,null,null,null,null,null,null,null,null,null,null,null,null,null,null,null,null,null,null,510,"Pelagic Cormorant"]
[{"$f":"Report_Year","v":0},{"$f":"Permittee_Name","v":0},{"$f":"FWS_Permit_Number","v":0},{"$f":"Project_Type_Transfer","v":0},{"$f":"Project_Subtype_Transfer","v":0},{"$f":"Project_Type_Other","v":0},{"$f":"Description","v":0},{"$f":"Primary_Contact_Name","v":0},{"$f":"Primary_Contact_Title","v":0},{"$f":"Primary_Contact_Phone","v":0},{"$f":"ProprietaryYesNo","v":0},{"$f":"Proprietary_Description","v":0},{"$f":"CONCATENATE(A516,C516,AZ516)","v":"00513"},null,null,null,null,null,null,null,null,null,null,null,null,null,null,null,null,null,null,null,null,null,null,null,null,null,null,null,null,null,null,null,null,null,null,null,null,null,null,513,"Philadelphia Vireo"]
[0,0,0,0,0,0,0,0,0,0,0,0,"00514",null,null,null,null,null,null,null,null,null,null,null,null,null,null,null,null,null,null,null,null,null,null,null,null,null,null,null,null,null,null,null,null,null,null,null,null,null,null,514,"Pied-billed Grebe"]
[0,0,0,0,0,0,0,0,0,0,0,0,"00517",null,null,null,null,null,null,null,null,null,null,null,null,null,null,null,null,null,null,null,null,null,null,null,null,null,null,null,null,null,null,null,null,null,null,null,null,null,null,517,"Pine Grosbeak"]
[0,0,0,0,0,0,0,0,0,0,0,0,"00521",null,null,null,null,null,null,null,null,null,null,null,null,null,null,null,null,null,null,null,null,null,null,null,null,null,null,null,null,null,null,null,null,null,null,null,null,null,null,521,"Pinyon Jay"]
[0,0,0,0,0,0,0,0,0,0,0,0,"00523",null,null,null,null,null,null,null,null,null,null,null,null,null,null,null,null,null,null,null,null,null,null,null,null,null,null,null,null,null,null,null,null,null,null,null,null,null,null,523,"Plain Pigeon"]
[0,0,0,0,0,0,0,0,0,0,0,0,"00526",null,null,null,null,null,null,null,null,null,null,null,null,null,null,null,null,null,null,null,null,null,null,null,null,null,null,null,null,null,null,null,null,null,null,null,null,null,null,526,"Pomarine Jaeger"]
[0,0,0,0,0,0,0,0,0,0,0,0,"00530",null,null,null,null,null,null,null,null,null,null,null,null,null,null,null,null,null,null,null,null,null,null,null,null,null,null,null,null,null,null,null,null,null,null,null,null,null,null,530,"Prothonotary Warbler"]
[0,0,0,0,0,0,0,0,0,0,0,0,"00532",null,null,null,null,null,null,null,null,null,null,null,null,null,null,null,null,null,null,null,null,null,null,null,null,null,null,null,null,null,null,null,null,null,null,null,null,null,null,532,"Puerto Rican Nightjar"]
[0,0,0,0,0,0,0,0,0,0,0,0,"00535",null,null,null,null,null,null,null,null,null,null,null,null,null,null,null,null,null,null,null,null,null,null,null,null,null,null,null,null,null,null,null,null,null,null,null,null,null,null,535,"Purple Martin"]
[0,0,0,0,0,0,0,0,0,0,0,0,"00536",null,null,null,null,null,null,null,null,null,null,null,null,null,null,null,null,null,null,null,null,null,null,null,null,null,null,null,null,null,null,null,null,null,null,null,null,null,null,536,"Purple Sandpiper"]
[0,0,0,0,0,0,0,0,0,0,0,0,"00539",null,null,null,null,null,null,null,null,null,null,null,null,null,null,null,null,null,null,null,null,null,null,null,null,null,null,null,null,null,null,null,null,null,null,null,null,null,null,539,"Razorbill"]
[0,0,0,0,0,0,0,0,0,0,0,0,"00543",null,null,null,null,null,null,null,null,null,null,null,null,null,null,null,null,null,null,null,null,null,null,null,null,null,null,null,null,null,null,null,null,null,null,null,null,null,null,543,"Red-bellied Woodpecker"]
[0,0,0,0,0,0,0,0,0,0,0,0,"00545",null,null,null,null,null,null,null,null,null,null,null,null,null,null,null,null,null,null,null,null,null,null,null,null,null,null,null,null,null,null,null,null,null,null,null,null,null,null,545,"Red-billed Tropicbird"]
[0,0,0,0,0,0,0,0,0,0,0,0,"00548",null,null,null,null,null,null,null,null,null,null,null,null,null,null,null,null,null,null,null,null,null,null,null,null,null,null,null,null,null,null,null,null,null,null,null,null,null,null,548,"Red-breasted Sapsucker"]
[0,0,0,0,0,0,0,0,0,0,0,0,"00552",null,null,null,null,null,null,null,null,null,null,null,null,null,null,null,null,null,null,null,null,null,null,null,null,null,null,null,null,null,null,null,null,null,null,null,null,null,null,552,"Red-faced Cormorant"]
[0,0,0,0,0,0,0,0,0,0,0,0,"00554",null,null,null,null,null,null,null,null,null,null,null,null,null,null,null,null,null,null,null,null,null,null,null,null,null,null,null,null,null,null,null,null,null,null,null,null,null,null,554,"Red-footed Booby"]
[0,0,0,0,0,0,0,0,0,0,0,0,"00555",null,null,null,null,null,null,null,null,null,null,null,null,null,null,null,null,null,null,null,null,null,null,null,null,null,null,null,null,null,null,null,null,null,null,null,null,null,null,555,"Redhead"]
[0,0,0,0,0,0,0,0,0,0,0,0,"00558",null,null,null,null,null,null,null,null,null,null,null,null,null,null,null,null,null,null,null,null,null,null,null,null,null,null,null,null,null,null,null,null,null,null,null,null,null,null,558,"Red-naped Sapsucker"]
[0,0,0,0,0,0,0,0,0,0,0,0,"00561",null,null,null,null,null,null,null,null,null,null,null,null,null,null,null,null,null,null,null,null,null,null,null,null,null,null,null,null,null,null,null,null,null,null,null,null,null,null,561,"Red-shouldered Hawk"]
[0,0,0,0,0,0,0,0,0,0,0,0,"00565",null,null,null,null,null,null,null,null,null,null,null,null,null,null,null,null,null,null,null,null,null,null,null,null,null,null,null,null,null,null,null,null,null,null,null,null,null,null,565,"Red-throated Pipit"]
[0,0,0,0,0,0,0,0,0,0,0,0,"00567",null,null,null,null,null,null,null,null,null,null,null,null,null,null,null,null,null,null,null,null,null,null,null,null,null,null,null,null,null,null,null,null,null,null,null,null,null,null,567,"Rhinoceros Auklet"]
[0,0,0,0,0,0,0,0,0,0,0,0,"00570",null,null,null,null,null,null,null,null,null,null,null,null,null,null,null,null,null,null,null,null,null,null,null,null,null,null,null,null,null,null,null,null,null,null,null,null,null,null,570,"Ring-necked Duck"]
[0,0,0,0,0,0,0,0,0,0,0,0,"00574",null,null,null,null,null,null,null,null,null,null,null,null,null,null,null,null,null,null,null,null,null,null,null,null,null,null,null,null,null,null,null,null,null,null,null,null,null,null,574,"Roseate Tern"]
[0,0,0,0,0,0,0,0,0,0,0,0,"00576",null,null,null,null,null,null,null,null,null,null,null,null,null,null,null,null,null,null,null,null,null,null,null,null,null,null,null,null,null,null,null,null,null,null,null,null,null,null,576,"Ross's Goose"]
[{"$f":"Report_Year","v":0},{"$f":"Permittee_Name","v":0},{"$f":"FWS_Permit_Number","v":0},{"$f":"Project_Type_Transfer","v":0},{"$f":"Project_Subtype_Transfer","v":0},{"$f":"Project_Type_Other","v":0},{"$f":"Description","v":0},{"$f":"Primary_Contact_Name","v":0},{"$f":"Primary_Contact_Title","v":0},{"$f":"Primary_Contact_Phone","v":0},{"$f":"ProprietaryYesNo","v":0},{"$f":"Proprietary_Description","v":0},{"$f":"CONCATENATE(A580,C580,AZ580)","v":"00577"},null,null,null,null,null,null,null,null,null,null,null,null,null,null,null,null,null,null,null,null,null,null,null,null,null,null,null,null,null,null,null,null,null,null,null,null,null,null,577,"Ross's Gull"]
[0,0,0,0,0,0,0,0,0,0,0,0,"00580",null,null,null,null,null,null,null,null,null,null,null,null,null,null,null,null,null,null,null,null,null,null,null,null,null,null,null,null,null,null,null,null,null,null,null,null,null,null,580,"Ruby-crowned Kinglet"]
[0,0,0,0,0,0,0,0,0,0,0,0,"00583",null,null,null,null,null,null,null,null,null,null,null,null,null,null,null,null,null,null,null,null,null,null,null,null,null,null,null,null,null,null,null,null,null,null,null,null,null,null,583,"Ruddy Ground-Dove"]
[0,0,0,0,0,0,0,0,0,0,0,0,"00587",null,null,null,null,null,null,null,null,null,null,null,null,null,null,null,null,null,null,null,null,null,null,null,null,null,null,null,null,null,null,null,null,null,null,null,null,null,null,587,"Rufous-backed Robin"]
[0,0,0,0,0,0,0,0,0,0,0,0,"00589",null,null,null,null,null,null,null,null,null,null,null,null,null,null,null,null,null,null,null,null,null,null,null,null,null,null,null,null,null,null,null,null,null,null,null,null,null,null,589,"Rufous-winged Sparrow"]
[0,0,0,0,0,0,0,0,0,0,0,0,"00592",null,null,null,null,null,null,null,null,null,null,null,null,null,null,null,null,null,null,null,null,null,null,null,null,null,null,null,null,null,null,null,null,null,null,null,null,null,null,592,"Sage Thrasher"]
[0,0,0,0,0,0,0,0,0,0,0,0,"00596",null,null,null,null,null,null,null,null,null,null,null,null,null,null,null,null,null,null,null,null,null,null,null,null,null,null,null,null,null,null,null,null,null,null,null,null,null,null,596,"Sandhill Crane"]
[0,0,0,0,0,0,0,0,0,0,0,0,"00598",null,null,null,null,null,null,null,null,null,null,null,null,null,null,null,null,null,null,null,null,null,null,null,null,null,null,null,null,null,null,null,null,null,null,null,null,null,null,598,"Savannah Sparrow"]
[0,0,0,0,0,0,0,0,0,0,0,0,"00599",null,null,null,null,null,null,null,null,null,null,null,null,null,null,null,null,null,null,null,null,null,null,null,null,null,null,null,null,null,null,null,null,null,null,null,null,null,null,599,"Say's Phoebe"]
[0,0,0,0,0,0,0,0,0,0,0,0,"00602",null,null,null,null,null,null,null,null,null,null,null,null,null,null,null,null,null,null,null,null,null,null,null,null,null,null,null,null,null,null,null,null,null,null,null,null,null,null,602,"Scott's Oriole"]
[0,0,0,0,0,0,0,0,0,0,0,0,"00605",null,null,null,null,null,null,null,null,null,null,null,null,null,null,null,null,null,null,null,null,null,null,null,null,null,null,null,null,null,null,null,null,null,null,null,null,null,null,605,"Sedge Wren"]
[0,0,0,0,0,0,0,0,0,0,0,0,"00609",null,null,null,null,null,null,null,null,null,null,null,null,null,null,null,null,null,null,null,null,null,null,null,null,null,null,null,null,null,null,null,null,null,null,null,null,null,null,609,"Shiny Cowbird"]
[0,0,0,0,0,0,0,0,0,0,0,0,"00611",null,null,null,null,null,null,null,null,null,null,null,null,null,null,null,null,null,null,null,null,null,null,null,null,null,null,null,null,null,null,null,null,null,null,null,null,null,null,611,"Short-eared Owl"]
[0,0,0,0,0,0,0,0,0,0,0,0,"00615",null,null,null,null,null,null,null,null,null,null,null,null,null,null,null,null,null,null,null,null,null,null,null,null,null,null,null,null,null,null,null,null,null,null,null,null,null,null,615,"Siberian Accentor"]
[0,0,0,0,0,0,0,0,0,0,0,0,"00618",null,null,null,null,null,null,null,null,null,null,null,null,null,null,null,null,null,null,null,null,null,null,null,null,null,null,null,null,null,null,null,null,null,null,null,null,null,null,618,"Smooth-billed Ani"]
[0,0,0,0,0,0,0,0,0,0,0,0,"00620",null,null,null,null,null,null,null,null,null,null,null,null,null,null,null,null,null,null,null,null,null,null,null,null,null,null,null,null,null,null,null,null,null,null,null,null,null,null,620,"Snow Bunting"]
[0,0,0,0,0,0,0,0,0,0,0,0,"00621",null,null,null,null,null,null,null,null,null,null,null,null,null,null,null,null,null,null,null,null,null,null,null,null,null,null,null,null,null,null,null,null,null,null,null,null,null,null,621,"Snow Goose"]
[0,0,0,0,0,0,0,0,0,0,0,0,"00624",null,null,null,null,null,null,null,null,null,null,null,null,null,null,null,null,null,null,null,null,null,null,null,null,null,null,null,null,null,null,null,null,null,null,null,null,null,null,624,"Snowy Plover"]
[0,0,0,0,0,0,0,0,0,0,0,0,"00627",null,null,null,null,null,null,null,null,null,null,null,null,null,null,null,null,null,null,null,null,null,null,null,null,null,null,null,null,null,null,null,null,null,null,null,null,null,null,627,"Sooty Shearwater"]
[0,0,0,0,0,0,0,0,0,0,0,0,"00631",null,null,null,null,null,null,null,null,null,null,null,null,null,null,null,null,null,null,null,null,null,null,null,null,null,null,null,null,null,null,null,null,null,null,null,null,null,null,631,"Spectacled Eider"]
[0,0,0,0,0,0,0,0,0,0,0,0,"00633",null,null,null,null,null,null,null,null,null,null,null,null,null,null,null,null,null,null,null,null,null,null,null,null,null,null,null,null,null,null,null,null,null,null,null,null,null,null,633,"Spotted Owl"]
[0,0,0,0,0,0,0,0,0,0,0,0,"00637",null,null,null,null,null,null,null,null,null,null,null,null,null,null,null,null,null,null,null,null,null,null,null,null,null,null,null,null,null,null,null,null,null,null,null,null,null,null,637,"Steller's Eider"]
[0,0,0,0,0,0,0,0,0,0,0,0,"00640",null,null,null,null,null,null,null,null,null,null,null,null,null,null,null,null,null,null,null,null,null,null,null,null,null,null,null,null,null,null,null,null,null,null,null,null,null,null,640,"Sulphur-bellied Flycatcher"]
[0,0,0,0,0,0,0,0,0,0,0,0,"00642",null,null,null,null,null,null,null,null,null,null,null,null,null,null,null,null,null,null,null,null,null,null,null,null,null,null,null,null,null,null,null,null,null,null,null,null,null,null,642,"Surf Scoter"]
[0,0,0,0,0,0,0,0,0,0,0,0,"00643",null,null,null,null,null,null,null,null,null,null,null,null,null,null,null,null,null,null,null,null,null,null,null,null,null,null,null,null,null,null,null,null,null,null,null,null,null,null,643,"Surfbird"]
[0,0,0,0,0,0,0,0,0,0,0,0,"00646",null,null,null,null,null,null,null,null,null,null,null,null,null,null,null,null,null,null,null,null,null,null,null,null,null,null,null,null,null,null,null,null,null,null,null,null,null,null,646,"Swainson's Warbler"]
[0,0,0,0,0,0,0,0,0,0,0,0,"00650",null,null,null,null,null,null,null,null,null,null,null,null,null,null,null,null,null,null,null,null,null,null,null,null,null,null,null,null,null,null,null,null,null,null,null,null,null,null,650,"Tamaulipas Crow"]
[0,0,0,0,0,0,0,0,0,0,0,0,"00653",null,null,null,null,null,null,null,null,null,null,null,null,null,null,null,null,null,null,null,null,null,null,null,null,null,null,null,null,null,null,null,null,null,null,null,null,null,null,653,"Thick-billed Kingbird"]
[0,0,0,0,0,0,0,0,0,0,0,0,"00655",null,null,null,null,null,null,null,null,null,null,null,null,null,null,null,null,null,null,null,null,null,null,null,null,null,null,null,null,null,null,null,null,null,null,null,null,null,null,655,"Thick-billed Vireo"]
[0,0,0,0,0,0,0,0,0,0,0,0,"00659",null,null,null,null,null,null,null,null,null,null,null,null,null,null,null,null,null,null,null,null,null,null,null,null,null,null,null,null,null,null,null,null,null,null,null,null,null,null,659,"Tree Swallow"]
[0,0,0,0,0,0,0,0,0,0,0,0,"00662",null,null,null,null,null,null,null,null,null,null,null,null,null,null,null,null,null,null,null,null,null,null,null,null,null,null,null,null,null,null,null,null,null,null,null,null,null,null,662,"Tropical Kingbird"]
[0,0,0,0,0,0,0,0,0,0,0,0,"00664",null,null,null,null,null,null,null,null,null,null,null,null,null,null,null,null,null,null,null,null,null,null,null,null,null,null,null,null,null,null,null,null,null,null,null,null,null,null,664,"Trumpeter Swan"]
[0,0,0,0,0,0,0,0,0,0,0,0,"00665",null,null,null,null,null,null,null,null,null,null,null,null,null,null,null,null,null,null,null,null,null,null,null,null,null,null,null,null,null,null,null,null,null,null,null,null,null,null,665,"Tufted Duck"]
[0,0,0,0,0,0,0,0,0,0,0,0,"00668",null,null,null,null,null,null,null,null,null,null,null,null,null,null,null,null,null,null,null,null,null,null,null,null,null,null,null,null,null,null,null,null,null,null,null,null,null,null,668,"Tundra Swan"]
[0,0,0,0,0,0,0,0,0,0,0,0,"00672",null,null,null,null,null,null,null,null,null,null,null,null,null,null,null,null,null,null,null,null,null,null,null,null,null,null,null,null,null,null,null,null,null,null,null,null,null,null,672,"Varied Bunting"]
[0,0,0,0,0,0,0,0,0,0,0,0,"00675",null,null,null,null,null,null,null,null,null,null,null,null,null,null,null,null,null,null,null,null,null,null,null,null,null,null,null,null,null,null,null,null,null,null,null,null,null,null,675,"Veery"]
[0,0,0,0,0,0,0,0,0,0,0,0,"00677",null,null,null,null,null,null,null,null,null,null,null,null,null,null,null,null,null,null,null,null,null,null,null,null,null,null,null,null,null,null,null,null,null,null,null,null,null,null,677,"Vermilion Flycatcher"]
[0,0,0,0,0,0,0,0,0,0,0,0,"00681",null,null,null,null,null,null,null,null,null,null,null,null,null,null,null,null,null,null,null,null,null,null,null,null,null,null,null,null,null,null,null,null,null,null,null,null,null,null,681,"Virginia Rail"]
[0,0,0,0,0,0,0,0,0,0,0,0,"00684",null,null,null,null,null,null,null,null,null,null,null,null,null,null,null,null,null,null,null,null,null,null,null,null,null,null,null,null,null,null,null,null,null,null,null,null,null,null,684,"Warbling Vireo"]
[0,0,0,0,0,0,0,0,0,0,0,0,"00686",null,null,null,null,null,null,null,null,null,null,null,null,null,null,null,null,null,null,null,null,null,null,null,null,null,null,null,null,null,null,null,null,null,null,null,null,null,null,686,"Western Grebe"]
[0,0,0,0,0,0,0,0,0,0,0,0,"00687",null,null,null,null,null,null,null,null,null,null,null,null,null,null,null,null,null,null,null,null,null,null,null,null,null,null,null,null,null,null,null,null,null,null,null,null,null,null,687,"Western Gull"]
[0,0,0,0,0,0,0,0,0,0,0,0,"00690",null,null,null,null,null,null,null,null,null,null,null,null,null,null,null,null,null,null,null,null,null,null,null,null,null,null,null,null,null,null,null,null,null,null,null,null,null,null,690,"Western Sandpiper"]
[0,0,0,0,0,0,0,0,0,0,0,0,"00694",null,null,null,null,null,null,null,null,null,null,null,null,null,null,null,null,null,null,null,null,null,null,null,null,null,null,null,null,null,null,null,null,null,null,null,null,null,null,694,"Western Wood-Pewee"]
[0,0,0,0,0,0,0,0,0,0,0,0,"00697",null,null,null,null,null,null,null,null,null,null,null,null,null,null,null,null,null,null,null,null,null,null,null,null,null,null,null,null,null,null,null,null,null,null,null,null,null,null,697,"Whiskered Screech-Owl"]
[0,0,0,0,0,0,0,0,0,0,0,0,"00699",null,null,null,null,null,null,null,null,null,null,null,null,null,null,null,null,null,null,null,null,null,null,null,null,null,null,null,null,null,null,null,null,null,null,null,null,null,null,699,"White Ibis"]
[0,0,0,0,0,0,0,0,0,0,0,0,"00703",null,null,null,null,null,null,null,null,null,null,null,null,null,null,null,null,null,null,null,null,null,null,null,null,null,null,null,null,null,null,null,null,null,null,null,null,null,null,703,"White-crowned Pigeon"]
[0,0,0,0,0,0,0,0,0,0,0,0,"00706",null,null,null,null,null,null,null,null,null,null,null,null,null,null,null,null,null,null,null,null,null,null,null,null,null,null,null,null,null,null,null,null,null,null,null,null,null,null,706,"White-eyed Vireo"]
[0,0,0,0,0,0,0,0,0,0,0,0,"00708",null,null,null,null,null,null,null,null,null,null,null,null,null,null,null,null,null,null,null,null,null,null,null,null,null,null,null,null,null,null,null,null,null,null,null,null,null,null,708,"White-faced Storm-Petrel"]
[0,0,0,0,0,0,0,0,0,0,0,0,"00709",null,null,null,null,null,null,null,null,null,null,null,null,null,null,null,null,null,null,null,null,null,null,null,null,null,null,null,null,null,null,null,null,null,null,null,null,null,null,709,"White-headed Woodpecker"]
[0,0,0,0,0,0,0,0,0,0,0,0,"00712",null,null,null,null,null,null,null,null,null,null,null,null,null,null,null,null,null,null,null,null,null,null,null,null,null,null,null,null,null,null,null,null,null,null,null,null,null,null,712,"White-tailed Hawk"]
[0,0,0,0,0,0,0,0,0,0,0,0,"00716",null,null,null,null,null,null,null,null,null,null,null,null,null,null,null,null,null,null,null,null,null,null,null,null,null,null,null,null,null,null,null,null,null,null,null,null,null,null,716,"White-throated Swift"]
[0,0,0,0,0,0,0,0,0,0,0,0,"00719",null,null,null,null,null,null,null,null,null,null,null,null,null,null,null,null,null,null,null,null,null,null,null,null,null,null,null,null,null,null,null,null,null,null,null,null,null,null,719,"White-winged Dove"]
[0,0,0,0,0,0,0,0,0,0,0,0,"00721",null,null,null,null,null,null,null,null,null,null,null,null,null,null,null,null,null,null,null,null,null,null,null,null,null,null,null,null,null,null,null,null,null,null,null,null,null,null,721,"White-winged Tern"]
[0,0,0,0,0,0,0,0,0,0,0,0,"00725",null,null,null,null,null,null,null,null,null,null,null,null,null,null,null,null,null,null,null,null,null,null,null,null,null,null,null,null,null,null,null,null,null,null,null,null,null,null,725,"Willow Flycatcher"]
[0,0,0,0,0,0,0,0,0,0,0,0,"00728",null,null,null,null,null,null,null,null,null,null,null,null,null,null,null,null,null,null,null,null,null,null,null,null,null,null,null,null,null,null,null,null,null,null,null,null,null,null,728,"Wilson's Snipe"]
[0,0,0,0,0,0,0,0,0,0,0,0,"00730",null,null,null,null,null,null,null,null,null,null,null,null,null,null,null,null,null,null,null,null,null,null,null,null,null,null,null,null,null,null,null,null,null,null,null,null,null,null,730,"Wilson's Warbler"]
[0,0,0,0,0,0,0,0,0,0,0,0,"00731",null,null,null,null,null,null,null,null,null,null,null,null,null,null,null,null,null,null,null,null,null,null,null,null,null,null,null,null,null,null,null,null,null,null,null,null,null,null,731,"Winter Wren"]
[0,0,0,0,0,0,0,0,0,0,0,0,"00734",null,null,null,null,null,null,null,null,null,null,null,null,null,null,null,null,null,null,null,null,null,null,null,null,null,null,null,null,null,null,null,null,null,null,null,null,null,null,734,"Wood Thrush"]
[0,0,0,0,0,0,0,0,0,0,0,0,"00738",null,null,null,null,null,null,null,null,null,null,null,null,null,null,null,null,null,null,null,null,null,null,null,null,null,null,null,null,null,null,null,null,null,null,null,null,null,null,738,"Yellow Warbler"]
[0,0,0,0,0,0,0,0,0,0,0,0,"00741",null,null,null,null,null,null,null,null,null,null,null,null,null,null,null,null,null,null,null,null,null,null,null,null,null,null,null,null,null,null,null,null,null,null,null,null,null,null,741,"Yellow-billed Cuckoo"]
[0,0,0,0,0,0,0,0,0,0,0,0,"00743",null,null,null,null,null,null,null,null,null,null,null,null,null,null,null,null,null,null,null,null,null,null,null,null,null,null,null,null,null,null,null,null,null,null,null,null,null,null,743,"Yellow-billed Magpie"]
[0,0,0,0,0,0,0,0,0,0,0,0,"00747",null,null,null,null,null,null,null,null,null,null,null,null,null,null,null,null,null,null,null,null,null,null,null,null,null,null,null,null,null,null,null,null,null,null,null,null,null,null,747,"Yellow-footed Gull"]
[0,0,0,0,0,0,0,0,0,0,0,0,"00750",null,null,null,null,null,null,null,null,null,null,null,null,null,null,null,null,null,null,null,null,null,null,null,null,null,null,null,null,null,null,null,null,null,null,null,null,null,null,750,"Yellow-rumped Warbler"]
[0,0,0,0,0,0,0,0,0,0,0,0,"00752",null,null,null,null,null,null,null,null,null,null,null,null,null,null,null,null,null,null,null,null,null,null,null,null,null,null,null,null,null,null,null,null,null,null,null,null,null,null,752,"Yellow-throated Vireo"]
[0,0,0,0,0,0,0,0,0,0,0,0,"00753",null,null,null,null,null,null,null,null,null,null,null,null,null,null,null,null,null,null,null,null,null,null,null,null,null,null,null,null,null,null,null,null,null,null,null,null,null,null,753,"Yellow-throated Warbler"]
[0,0,0,0,0,0,0,0,0,0,0,0,"00756",null,null,null,null,null,null,null,null,null,null,null,null,null,null,null,null,null,null,null,null,null,null,null,null,null,null,null,null,null,null,null,null,null,null,null,null,null,null,756]
[0,0,0,0,0,0,0,0,0,0,0,0,"00760",null,null,null,null,null,null,null,null,null,null,null,null,null,null,null,null,null,null,null,null,null,null,null,null,null,null,null,null,null,null,null,null,null,null,null,null,null,null,760]
[0,0,0,0,0,0,0,0,0,0,0,0,"00763",null,null,null,null,null,null,null,null,null,null,null,null,null,null,null,null,null,null,null,null,null,null,null,null,null,null,null,null,null,null,null,null,null,null,null,null,null,null,763]
[0,0,0,0,0,0,0,0,0,0,0,0,"00766",null,null,null,null,null,null,null,null,null,null,null,null,null,null,null,null,null,null,null,null,null,null,null,null,null,null,null,null,null,null,null,null,null,null,null,null,null,null,766]
[{"$f":"Report_Year","v":0},{"$f":"Permittee_Name","v":0},{"$f":"FWS_Permit_Number","v":0},{"$f":"Project_Type_Transfer","v":0},{"$f":"Project_Subtype_Transfer","v":0},{"$f":"Project_Type_Other","v":0},{"$f":"Description","v":0},{"$f":"Primary_Contact_Name","v":0},{"$f":"Primary_Contact_Title","v":0},{"$f":"Primary_Contact_Phone","v":0},{"$f":"ProprietaryYesNo","v":0},{"$f":"Proprietary_Description","v":0},{"$f":"CONCATENATE(A772,C772,AZ772)","v":"00769"},null,null,null,null,null,null,null,null,null,null,null,null,null,null,null,null,null,null,null,null,null,null,null,null,null,null,null,null,null,null,null,null,null,null,null,null,null,null,769]
[0,0,0,0,0,0,0,0,0,0,0,0,"00772",null,null,null,null,null,null,null,null,null,null,null,null,null,null,null,null,null,null,null,null,null,null,null,null,null,null,null,null,null,null,null,null,null,null,null,null,null,null,772]
[0,0,0,0,0,0,0,0,0,0,0,0,"00774",null,null,null,null,null,null,null,null,null,null,null,null,null,null,null,null,null,null,null,null,null,null,null,null,null,null,null,null,null,null,null,null,null,null,null,null,null,null,774]
[0,0,0,0,0,0,0,0,0,0,0,0,"00775",null,null,null,null,null,null,null,null,null,null,null,null,null,null,null,null,null,null,null,null,null,null,null,null,null,null,null,null,null,null,null,null,null,null,null,null,null,null,775]
[0,0,0,0,0,0,0,0,0,0,0,0,"00778",null,null,null,null,null,null,null,null,null,null,null,null,null,null,null,null,null,null,null,null,null,null,null,null,null,null,null,null,null,null,null,null,null,null,null,null,null,null,778]
[0,0,0,0,0,0,0,0,0,0,0,0,"00782",null,null,null,null,null,null,null,null,null,null,null,null,null,null,null,null,null,null,null,null,null,null,null,null,null,null,null,null,null,null,null,null,null,null,null,null,null,null,782]
[0,0,0,0,0,0,0,0,0,0,0,0,"00785",null,null,null,null,null,null,null,null,null,null,null,null,null,null,null,null,null,null,null,null,null,null,null,null,null,null,null,null,null,null,null,null,null,null,null,null,null,null,785]
[0,0,0,0,0,0,0,0,0,0,0,0,"00788",null,null,null,null,null,null,null,null,null,null,null,null,null,null,null,null,null,null,null,null,null,null,null,null,null,null,null,null,null,null,null,null,null,null,null,null,null,null,788]
[0,0,0,0,0,0,0,0,0,0,0,0,"00791",null,null,null,null,null,null,null,null,null,null,null,null,null,null,null,null,null,null,null,null,null,null,null,null,null,null,null,null,null,null,null,null,null,null,null,null,null,null,791]
[0,0,0,0,0,0,0,0,0,0,0,0,"00794",null,null,null,null,null,null,null,null,null,null,null,null,null,null,null,null,null,null,null,null,null,null,null,null,null,null,null,null,null,null,null,null,null,null,null,null,null,null,794]
[0,0,0,0,0,0,0,0,0,0,0,0,"00796",null,null,null,null,null,null,null,null,null,null,null,null,null,null,null,null,null,null,null,null,null,null,null,null,null,null,null,null,null,null,null,null,null,null,null,null,null,null,796]
[0,0,0,0,0,0,0,0,0,0,0,0,"00797",null,null,null,null,null,null,null,null,null,null,null,null,null,null,null,null,null,null,null,null,null,null,null,null,null,null,null,null,null,null,null,null,null,null,null,null,null,null,797]
[0,0,0,0,0,0,0,0,0,0,0,0,"00801",null,null,null,null,null,null,null,null,null,null,null,null,null,null,null,null,null,null,null,null,null,null,null,null,null,null,null,null,null,null,null,null,null,null,null,null,null,null,801]
[0,0,0,0,0,0,0,0,0,0,0,0,"00804",null,null,null,null,null,null,null,null,null,null,null,null,null,null,null,null,null,null,null,null,null,null,null,null,null,null,null,null,null,null,null,null,null,null,null,null,null,null,804]
[0,0,0,0,0,0,0,0,0,0,0,0,"00807",null,null,null,null,null,null,null,null,null,null,null,null,null,null,null,null,null,null,null,null,null,null,null,null,null,null,null,null,null,null,null,null,null,null,null,null,null,null,807]
[0,0,0,0,0,0,0,0,0,0,0,0,"00810",null,null,null,null,null,null,null,null,null,null,null,null,null,null,null,null,null,null,null,null,null,null,null,null,null,null,null,null,null,null,null,null,null,null,null,null,null,null,810]
[0,0,0,0,0,0,0,0,0,0,0,0,"00813",null,null,null,null,null,null,null,null,null,null,null,null,null,null,null,null,null,null,null,null,null,null,null,null,null,null,null,null,null,null,null,null,null,null,null,null,null,null,813]
[0,0,0,0,0,0,0,0,0,0,0,0,"00816",null,null,null,null,null,null,null,null,null,null,null,null,null,null,null,null,null,null,null,null,null,null,null,null,null,null,null,null,null,null,null,null,null,null,null,null,null,null,816]
[0,0,0,0,0,0,0,0,0,0,0,0,"00818",null,null,null,null,null,null,null,null,null,null,null,null,null,null,null,null,null,null,null,null,null,null,null,null,null,null,null,null,null,null,null,null,null,null,null,null,null,null,818]
[0,0,0,0,0,0,0,0,0,0,0,0,"00819",null,null,null,null,null,null,null,null,null,null,null,null,null,null,null,null,null,null,null,null,null,null,null,null,null,null,null,null,null,null,null,null,null,null,null,null,null,null,819]
[0,0,0,0,0,0,0,0,0,0,0,0,"00823",null,null,null,null,null,null,null,null,null,null,null,null,null,null,null,null,null,null,null,null,null,null,null,null,null,null,null,null,null,null,null,null,null,null,null,null,null,null,823]
[0,0,0,0,0,0,0,0,0,0,0,0,"00826",null,null,null,null,null,null,null,null,null,null,null,null,null,null,null,null,null,null,null,null,null,null,null,null,null,null,null,null,null,null,null,null,null,null,null,null,null,null,826]
[0,0,0,0,0,0,0,0,0,0,0,0,"00829",null,null,null,null,null,null,null,null,null,null,null,null,null,null,null,null,null,null,null,null,null,null,null,null,null,null,null,null,null,null,null,null,null,null,null,null,null,null,829]
[0,0,0,0,0,0,0,0,0,0,0,0,"00832",null,null,null,null,null,null,null,null,null,null,null,null,null,null,null,null,null,null,null,null,null,null,null,null,null,null,null,null,null,null,null,null,null,null,null,null,null,null,832]
[0,0,0,0,0,0,0,0,0,0,0,0,"00835",null,null,null,null,null,null,null,null,null,null,null,null,null,null,null,null,null,null,null,null,null,null,null,null,null,null,null,null,null,null,null,null,null,null,null,null,null,null,835]
[0,0,0,0,0,0,0,0,0,0,0,0,"00838",null,null,null,null,null,null,null,null,null,null,null,null,null,null,null,null,null,null,null,null,null,null,null,null,null,null,null,null,null,null,null,null,null,null,null,null,null,null,838]
[0,0,0,0,0,0,0,0,0,0,0,0,"00839",null,null,null,null,null,null,null,null,null,null,null,null,null,null,null,null,null,null,null,null,null,null,null,null,null,null,null,null,null,null,null,null,null,null,null,null,null,null,839]
[0,0,0,0,0,0,0,0,0,0,0,0,"00842",null,null,null,null,null,null,null,null,null,null,null,null,null,null,null,null,null,null,null,null,null,null,null,null,null,null,null,null,null,null,null,null,null,null,null,null,null,null,842]
[0,0,0,0,0,0,0,0,0,0,0,0,"00845",null,null,null,null,null,null,null,null,null,null,null,null,null,null,null,null,null,null,null,null,null,null,null,null,null,null,null,null,null,null,null,null,null,null,null,null,null,null,845]
[0,0,0,0,0,0,0,0,0,0,0,0,"00848",null,null,null,null,null,null,null,null,null,null,null,null,null,null,null,null,null,null,null,null,null,null,null,null,null,null,null,null,null,null,null,null,null,null,null,null,null,null,848]
[0,0,0,0,0,0,0,0,0,0,0,0,"00851",null,null,null,null,null,null,null,null,null,null,null,null,null,null,null,null,null,null,null,null,null,null,null,null,null,null,null,null,null,null,null,null,null,null,null,null,null,null,851]
[0,0,0,0,0,0,0,0,0,0,0,0,"00853",null,null,null,null,null,null,null,null,null,null,null,null,null,null,null,null,null,null,null,null,null,null,null,null,null,null,null,null,null,null,null,null,null,null,null,null,null,null,853]
[0,0,0,0,0,0,0,0,0,0,0,0,"00857",null,null,null,null,null,null,null,null,null,null,null,null,null,null,null,null,null,null,null,null,null,null,null,null,null,null,null,null,null,null,null,null,null,null,null,null,null,null,857]
[0,0,0,0,0,0,0,0,0,0,0,0,"00858",null,null,null,null,null,null,null,null,null,null,null,null,null,null,null,null,null,null,null,null,null,null,null,null,null,null,null,null,null,null,null,null,null,null,null,null,null,null,858]
[0,0,0,0,0,0,0,0,0,0,0,0,"00861",null,null,null,null,null,null,null,null,null,null,null,null,null,null,null,null,null,null,null,null,null,null,null,null,null,null,null,null,null,null,null,null,null,null,null,null,null,null,861]
[0,0,0,0,0,0,0,0,0,0,0,0,"00864",null,null,null,null,null,null,null,null,null,null,null,null,null,null,null,null,null,null,null,null,null,null,null,null,null,null,null,null,null,null,null,null,null,null,null,null,null,null,864]
[0,0,0,0,0,0,0,0,0,0,0,0,"00867",null,null,null,null,null,null,null,null,null,null,null,null,null,null,null,null,null,null,null,null,null,null,null,null,null,null,null,null,null,null,null,null,null,null,null,null,null,null,867]
[0,0,0,0,0,0,0,0,0,0,0,0,"00870",null,null,null,null,null,null,null,null,null,null,null,null,null,null,null,null,null,null,null,null,null,null,null,null,null,null,null,null,null,null,null,null,null,null,null,null,null,null,870]
[0,0,0,0,0,0,0,0,0,0,0,0,"00873",null,null,null,null,null,null,null,null,null,null,null,null,null,null,null,null,null,null,null,null,null,null,null,null,null,null,null,null,null,null,null,null,null,null,null,null,null,null,873]
[0,0,0,0,0,0,0,0,0,0,0,0,"00875",null,null,null,null,null,null,null,null,null,null,null,null,null,null,null,null,null,null,null,null,null,null,null,null,null,null,null,null,null,null,null,null,null,null,null,null,null,null,875]
[0,0,0,0,0,0,0,0,0,0,0,0,"00879",null,null,null,null,null,null,null,null,null,null,null,null,null,null,null,null,null,null,null,null,null,null,null,null,null,null,null,null,null,null,null,null,null,null,null,null,null,null,879]
[0,0,0,0,0,0,0,0,0,0,0,0,"00880",null,null,null,null,null,null,null,null,null,null,null,null,null,null,null,null,null,null,null,null,null,null,null,null,null,null,null,null,null,null,null,null,null,null,null,null,null,null,880]
[0,0,0,0,0,0,0,0,0,0,0,0,"00883",null,null,null,null,null,null,null,null,null,null,null,null,null,null,null,null,null,null,null,null,null,null,null,null,null,null,null,null,null,null,null,null,null,null,null,null,null,null,883]
[0,0,0,0,0,0,0,0,0,0,0,0,"00886",null,null,null,null,null,null,null,null,null,null,null,null,null,null,null,null,null,null,null,null,null,null,null,null,null,null,null,null,null,null,null,null,null,null,null,null,null,null,886]
[0,0,0,0,0,0,0,0,0,0,0,0,"00889",null,null,null,null,null,null,null,null,null,null,null,null,null,null,null,null,null,null,null,null,null,null,null,null,null,null,null,null,null,null,null,null,null,null,null,null,null,null,889]
[0,0,0,0,0,0,0,0,0,0,0,0,"00892",null,null,null,null,null,null,null,null,null,null,null,null,null,null,null,null,null,null,null,null,null,null,null,null,null,null,null,null,null,null,null,null,null,null,null,null,null,null,892]
[0,0,0,0,0,0,0,0,0,0,0,0,"00896",null,null,null,null,null,null,null,null,null,null,null,null,null,null,null,null,null,null,null,null,null,null,null,null,null,null,null,null,null,null,null,null,null,null,null,null,null,null,896]
[{"$f":"Report_Year","v":0},{"$f":"Permittee_Name","v":0},{"$f":"FWS_Permit_Number","v":0},{"$f":"Project_Type_Transfer","v":0},{"$f":"Project_Subtype_Transfer","v":0},{"$f":"Project_Type_Other","v":0},{"$f":"Description","v":0},{"$f":"Primary_Contact_Name","v":0},{"$f":"Primary_Contact_Title","v":0},{"$f":"Primary_Contact_Phone","v":0},{"$f":"ProprietaryYesNo","v":0},{"$f":"Proprietary_Description","v":0},{"$f":"CONCATENATE(A900,C900,AZ900)","v":"00897"},null,null,null,null,null,null,null,null,null,null,null,null,null,null,null,null,null,null,null,null,null,null,null,null,null,null,null,null,null,null,null,null,null,null,null,null,null,null,897]
[0,0,0,0,0,0,0,0,0,0,0,0,"00901",null,null,null,null,null,null,null,null,null,null,null,null,null,null,null,null,null,null,null,null,null,null,null,null,null,null,null,null,null,null,null,null,null,null,null,null,null,null,901]
[0,0,0,0,0,0,0,0,0,0,0,0,"00902",null,null,null,null,null,null,null,null,null,null,null,null,null,null,null,null,null,null,null,null,null,null,null,null,null,null,null,null,null,null,null,null,null,null,null,null,null,null,902]
[0,0,0,0,0,0,0,0,0,0,0,0,"00905",null,null,null,null,null,null,null,null,null,null,null,null,null,null,null,null,null,null,null,null,null,null,null,null,null,null,null,null,null,null,null,null,null,null,null,null,null,null,905]
[0,0,0,0,0,0,0,0,0,0,0,0,"00908",null,null,null,null,null,null,null,null,null,null,null,null,null,null,null,null,null,null,null,null,null,null,null,null,null,null,null,null,null,null,null,null,null,null,null,null,null,null,908]
[0,0,0,0,0,0,0,0,0,0,0,0,"00911",null,null,null,null,null,null,null,null,null,null,null,null,null,null,null,null,null,null,null,null,null,null,null,null,null,null,null,null,null,null,null,null,null,null,null,null,null,null,911]
[0,0,0,0,0,0,0,0,0,0,0,0,"00914",null,null,null,null,null,null,null,null,null,null,null,null,null,null,null,null,null,null,null,null,null,null,null,null,null,null,null,null,null,null,null,null,null,null,null,null,null,null,914]
[0,0,0,0,0,0,0,0,0,0,0,0,"00918",null,null,null,null,null,null,null,null,null,null,null,null,null,null,null,null,null,null,null,null,null,null,null,null,null,null,null,null,null,null,null,null,null,null,null,null,null,null,918]
[0,0,0,0,0,0,0,0,0,0,0,0,"00919",null,null,null,null,null,null,null,null,null,null,null,null,null,null,null,null,null,null,null,null,null,null,null,null,null,null,null,null,null,null,null,null,null,null,null,null,null,null,919]
[0,0,0,0,0,0,0,0,0,0,0,0,"00923",null,null,null,null,null,null,null,null,null,null,null,null,null,null,null,null,null,null,null,null,null,null,null,null,null,null,null,null,null,null,null,null,null,null,null,null,null,null,923]
[0,0,0,0,0,0,0,0,0,0,0,0,"00924",null,null,null,null,null,null,null,null,null,null,null,null,null,null,null,null,null,null,null,null,null,null,null,null,null,null,null,null,null,null,null,null,null,null,null,null,null,null,924]
[0,0,0,0,0,0,0,0,0,0,0,0,"00927",null,null,null,null,null,null,null,null,null,null,null,null,null,null,null,null,null,null,null,null,null,null,null,null,null,null,null,null,null,null,null,null,null,null,null,null,null,null,927]
[0,0,0,0,0,0,0,0,0,0,0,0,"00930",null,null,null,null,null,null,null,null,null,null,null,null,null,null,null,null,null,null,null,null,null,null,null,null,null,null,null,null,null,null,null,null,null,null,null,null,null,null,930]
[0,0,0,0,0,0,0,0,0,0,0,0,"00933",null,null,null,null,null,null,null,null,null,null,null,null,null,null,null,null,null,null,null,null,null,null,null,null,null,null,null,null,null,null,null,null,null,null,null,null,null,null,933]
[0,0,0,0,0,0,0,0,0,0,0,0,"00936",null,null,null,null,null,null,null,null,null,null,null,null,null,null,null,null,null,null,null,null,null,null,null,null,null,null,null,null,null,null,null,null,null,null,null,null,null,null,936]
[0,0,0,0,0,0,0,0,0,0,0,0,"00940",null,null,null,null,null,null,null,null,null,null,null,null,null,null,null,null,null,null,null,null,null,null,null,null,null,null,null,null,null,null,null,null,null,null,null,null,null,null,940]
[0,0,0,0,0,0,0,0,0,0,0,0,"00941",null,null,null,null,null,null,null,null,null,null,null,null,null,null,null,null,null,null,null,null,null,null,null,null,null,null,null,null,null,null,null,null,null,null,null,null,null,null,941]
[0,0,0,0,0,0,0,0,0,0,0,0,"00945",null,null,null,null,null,null,null,null,null,null,null,null,null,null,null,null,null,null,null,null,null,null,null,null,null,null,null,null,null,null,null,null,null,null,null,null,null,null,945]
[0,0,0,0,0,0,0,0,0,0,0,0,"00946",null,null,null,null,null,null,null,null,null,null,null,null,null,null,null,null,null,null,null,null,null,null,null,null,null,null,null,null,null,null,null,null,null,null,null,null,null,null,946]
[0,0,0,0,0,0,0,0,0,0,0,0,"00949",null,null,null,null,null,null,null,null,null,null,null,null,null,null,null,null,null,null,null,null,null,null,null,null,null,null,null,null,null,null,null,null,null,null,null,null,null,null,949]
[0,0,0,0,0,0,0,0,0,0,0,0,"00952",null,null,null,null,null,null,null,null,null,null,null,null,null,null,null,null,null,null,null,null,null,null,null,null,null,null,null,null,null,null,null,null,null,null,null,null,null,null,952]
[0,0,0,0,0,0,0,0,0,0,0,0,"00955",null,null,null,null,null,null,null,null,null,null,null,null,null,null,null,null,null,null,null,null,null,null,null,null,null,null,null,null,null,null,null,null,null,null,null,null,null,null,955]
[0,0,0,0,0,0,0,0,0,0,0,0,"00958",null,null,null,null,null,null,null,null,null,null,null,null,null,null,null,null,null,null,null,null,null,null,null,null,null,null,null,null,null,null,null,null,null,null,null,null,null,null,958]
[0,0,0,0,0,0,0,0,0,0,0,0,"00962",null,null,null,null,null,null,null,null,null,null,null,null,null,null,null,null,null,null,null,null,null,null,null,null,null,null,null,null,null,null,null,null,null,null,null,null,null,null,962]
[0,0,0,0,0,0,0,0,0,0,0,0,"00963",null,null,null,null,null,null,null,null,null,null,null,null,null,null,null,null,null,null,null,null,null,null,null,null,null,null,null,null,null,null,null,null,null,null,null,null,null,null,963]
[0,0,0,0,0,0,0,0,0,0,0,0,"00967",null,null,null,null,null,null,null,null,null,null,null,null,null,null,null,null,null,null,null,null,null,null,null,null,null,null,null,null,null,null,null,null,null,null,null,null,null,null,967]
[0,0,0,0,0,0,0,0,0,0,0,0,"00968",null,null,null,null,null,null,null,null,null,null,null,null,null,null,null,null,null,null,null,null,null,null,null,null,null,null,null,null,null,null,null,null,null,null,null,null,null,null,968]
[0,0,0,0,0,0,0,0,0,0,0,0,"00971",null,null,null,null,null,null,null,null,null,null,null,null,null,null,null,null,null,null,null,null,null,null,null,null,null,null,null,null,null,null,null,null,null,null,null,null,null,null,971]
[0,0,0,0,0,0,0,0,0,0,0,0,"00974",null,null,null,null,null,null,null,null,null,null,null,null,null,null,null,null,null,null,null,null,null,null,null,null,null,null,null,null,null,null,null,null,null,null,null,null,null,null,974]
[0,0,0,0,0,0,0,0,0,0,0,0,"00977",null,null,null,null,null,null,null,null,null,null,null,null,null,null,null,null,null,null,null,null,null,null,null,null,null,null,null,null,null,null,null,null,null,null,null,null,null,null,977]
[0,0,0,0,0,0,0,0,0,0,0,0,"00980",null,null,null,null,null,null,null,null,null,null,null,null,null,null,null,null,null,null,null,null,null,null,null,null,null,null,null,null,null,null,null,null,null,null,null,null,null,null,980]
[0,0,0,0,0,0,0,0,0,0,0,0,"00984",null,null,null,null,null,null,null,null,null,null,null,null,null,null,null,null,null,null,null,null,null,null,null,null,null,null,null,null,null,null,null,null,null,null,null,null,null,null,984]
[0,0,0,0,0,0,0,0,0,0,0,0,"00985",null,null,null,null,null,null,null,null,null,null,null,null,null,null,null,null,null,null,null,null,null,null,null,null,null,null,null,null,null,null,null,null,null,null,null,null,null,null,985]
[0,0,0,0,0,0,0,0,0,0,0,0,"00989",null,null,null,null,null,null,null,null,null,null,null,null,null,null,null,null,null,null,null,null,null,null,null,null,null,null,null,null,null,null,null,null,null,null,null,null,null,null,989]
[0,0,0,0,0,0,0,0,0,0,0,0,"00990",null,null,null,null,null,null,null,null,null,null,null,null,null,null,null,null,null,null,null,null,null,null,null,null,null,null,null,null,null,null,null,null,null,null,null,null,null,null,990]
[0,0,0,0,0,0,0,0,0,0,0,0,"00993",null,null,null,null,null,null,null,null,null,null,null,null,null,null,null,null,null,null,null,null,null,null,null,null,null,null,null,null,null,null,null,null,null,null,null,null,null,null,993]
[0,0,0,0,0,0,0,0,0,0,0,0,"00996",null,null,null,null,null,null,null,null,null,null,null,null,null,null,null,null,null,null,null,null,null,null,null,null,null,null,null,null,null,null,null,null,null,null,null,null,null,null,996]
[0,0,0,0,0,0,0,0,0,0,0,0,"00999",null,null,null,null,null,null,null,null,null,null,null,null,null,null,null,null,null,null,null,null,null,null,null,null,null,null,null,null,null,null,null,null,null,null,null,null,null,null,999]
[0,0,0,0,0,0,0,0,0,0,0,0,"001002",null,null,null,null,null,null,null,null,null,null,null,null,null,null,null,null,null,null,null,null,null,null,null,null,null,null,null,null,null,null,null,null,null,null,null,null,null,null,1002]
[0,0,0,0,0,0,0,0,0,0,0,0,"001006",null,null,null,null,null,null,null,null,null,null,null,null,null,null,null,null,null,null,null,null,null,null,null,null,null,null,null,null,null,null,null,null,null,null,null,null,null,null,1006]
[0,0,0,0,0,0,0,0,0,0,0,0,"001007",null,null,null,null,null,null,null,null,null,null,null,null,null,null,null,null,null,null,null,null,null,null,null,null,null,null,null,null,null,null,null,null,null,null,null,null,null,null,1007]
[0,0,0,0,0,0,0,0,0,0,0,0,"001009",null,null,null,null,null,null,null,null,null,null,null,null,null,null,null,null,null,null,null,null,null,null,null,null,null,null,null,null,null,null,null,null,null,null,null,null,null,null,1009]
[0,0,0,0,0,0,0,0,0,0,0,0,"001012",null,null,null,null,null,null,null,null,null,null,null,null,null,null,null,null,null,null,null,null,null,null,null,null,null,null,null,null,null,null,null,null,null,null,null,null,null,null,1012]
[0,0,0,0,0,0,0,0,0,0,0,0,"001015",null,null,null,null,null,null,null,null,null,null,null,null,null,null,null,null,null,null,null,null,null,null,null,null,null,null,null,null,null,null,null,null,null,null,null,null,null,null,1015]
[0,0,0,0,0,0,0,0,0,0,0,0,"001018",null,null,null,null,null,null,null,null,null,null,null,null,null,null,null,null,null,null,null,null,null,null,null,null,null,null,null,null,null,null,null,null,null,null,null,null,null,null,1018]
[0,0,0,0,0,0,0,0,0,0,0,0,"001021",null,null,null,null,null,null,null,null,null,null,null,null,null,null,null,null,null,null,null,null,null,null,null,null,null,null,null,null,null,null,null,null,null,null,null,null,null,null,1021]
[0,0,0,0,0,0,0,0,0,0,0,0,"001024",null,null,null,null,null,null,null,null,null,null,null,null,null,null,null,null,null,null,null,null,null,null,null,null,null,null,null,null,null,null,null,null,null,null,null,null,null,null,1024]
[0,0,0,0,0,0,0,0,0,0,0,0,"001028",null,null,null,null,null,null,null,null,null,null,null,null,null,null,null,null,null,null,null,null,null,null,null,null,null,null,null,null,null,null,null,null,null,null,null,null,null,null,1028]
[0,0,0,0,0,0,0,0,0,0,0,0,"001029",null,null,null,null,null,null,null,null,null,null,null,null,null,null,null,null,null,null,null,null,null,null,null,null,null,null,null,null,null,null,null,null,null,null,null,null,null,null,1029]
[0,0,0,0,0,0,0,0,0,0,0,0,"001031",null,null,null,null,null,null,null,null,null,null,null,null,null,null,null,null,null,null,null,null,null,null,null,null,null,null,null,null,null,null,null,null,null,null,null,null,null,null,1031]
[0,0,0,0,0,0,0,0,0,0,0,0,"001034",null,null,null,null,null,null,null,null,null,null,null,null,null,null,null,null,null,null,null,null,null,null,null,null,null,null,null,null,null,null,null,null,null,null,null,null,null,null,1034]
[0,0,0,0,0,0,0,0,0,0,0,0,"001037",null,null,null,null,null,null,null,null,null,null,null,null,null,null,null,null,null,null,null,null,null,null,null,null,null,null,null,null,null,null,null,null,null,null,null,null,null,null,1037]
[0,0,0,0,0,0,0,0,0,0,0,0,"001040",null,null,null,null,null,null,null,null,null,null,null,null,null,null,null,null,null,null,null,null,null,null,null,null,null,null,null,null,null,null,null,null,null,null,null,null,null,null,1040]
[0,0,0,0,0,0,0,0,0,0,0,0,"001043",null,null,null,null,null,null,null,null,null,null,null,null,null,null,null,null,null,null,null,null,null,null,null,null,null,null,null,null,null,null,null,null,null,null,null,null,null,null,1043]
[0,0,0,0,0,0,0,0,0,0,0,0,"001047",null,null,null,null,null,null,null,null,null,null,null,null,null,null,null,null,null,null,null,null,null,null,null,null,null,null,null,null,null,null,null,null,null,null,null,null,null,null,1047]
[0,0,0,0,0,0,0,0,0,0,0,0,"001050",null,null,null,null,null,null,null,null,null,null,null,null,null,null,null,null,null,null,null,null,null,null,null,null,null,null,null,null,null,null,null,null,null,null,null,null,null,null,1050]
[0,0,0,0,0,0,0,0,0,0,0,0,"001051",null,null,null,null,null,null,null,null,null,null,null,null,null,null,null,null,null,null,null,null,null,null,null,null,null,null,null,null,null,null,null,null,null,null,null,null,null,null,1051]
[0,0,0,0,0,0,0,0,0,0,0,0,"001053",null,null,null,null,null,null,null,null,null,null,null,null,null,null,null,null,null,null,null,null,null,null,null,null,null,null,null,null,null,null,null,null,null,null,null,null,null,null,1053]
[0,0,0,0,0,0,0,0,0,0,0,0,"001056",null,null,null,null,null,null,null,null,null,null,null,null,null,null,null,null,null,null,null,null,null,null,null,null,null,null,null,null,null,null,null,null,null,null,null,null,null,null,1056]
[0,0,0,0,0,0,0,0,0,0,0,0,"001059",null,null,null,null,null,null,null,null,null,null,null,null,null,null,null,null,null,null,null,null,null,null,null,null,null,null,null,null,null,null,null,null,null,null,null,null,null,null,1059]
[0,0,0,0,0,0,0,0,0,0,0,0,"001062",null,null,null,null,null,null,null,null,null,null,null,null,null,null,null,null,null,null,null,null,null,null,null,null,null,null,null,null,null,null,null,null,null,null,null,null,null,null,1062]
[0,0,0,0,0,0,0,0,0,0,0,0,"001065",null,null,null,null,null,null,null,null,null,null,null,null,null,null,null,null,null,null,null,null,null,null,null,null,null,null,null,null,null,null,null,null,null,null,null,null,null,null,1065]
[0,0,0,0,0,0,0,0,0,0,0,0,"001069",null,null,null,null,null,null,null,null,null,null,null,null,null,null,null,null,null,null,null,null,null,null,null,null,null,null,null,null,null,null,null,null,null,null,null,null,null,null,1069]
[0,0,0,0,0,0,0,0,0,0,0,0,"001072",null,null,null,null,null,null,null,null,null,null,null,null,null,null,null,null,null,null,null,null,null,null,null,null,null,null,null,null,null,null,null,null,null,null,null,null,null,null,1072]
[0,0,0,0,0,0,0,0,0,0,0,0,"001073",null,null,null,null,null,null,null,null,null,null,null,null,null,null,null,null,null,null,null,null,null,null,null,null,null,null,null,null,null,null,null,null,null,null,null,null,null,null,1073]
[0,0,0,0,0,0,0,0,0,0,0,0,"001075",null,null,null,null,null,null,null,null,null,null,null,null,null,null,null,null,null,null,null,null,null,null,null,null,null,null,null,null,null,null,null,null,null,null,null,null,null,null,1075]
[0,0,0,0,0,0,0,0,0,0,0,0,"001078",null,null,null,null,null,null,null,null,null,null,null,null,null,null,null,null,null,null,null,null,null,null,null,null,null,null,null,null,null,null,null,null,null,null,null,null,null,null,1078]
[0,0,0,0,0,0,0,0,0,0,0,0,"001081",null,null,null,null,null,null,null,null,null,null,null,null,null,null,null,null,null,null,null,null,null,null,null,null,null,null,null,null,null,null,null,null,null,null,null,null,null,null,1081]
[0,0,0,0,0,0,0,0,0,0,0,0,"001084",null,null,null,null,null,null,null,null,null,null,null,null,null,null,null,null,null,null,null,null,null,null,null,null,null,null,null,null,null,null,null,null,null,null,null,null,null,null,1084]
[0,0,0,0,0,0,0,0,0,0,0,0,"001087",null,null,null,null,null,null,null,null,null,null,null,null,null,null,null,null,null,null,null,null,null,null,null,null,null,null,null,null,null,null,null,null,null,null,null,null,null,null,1087]
[0,0,0,0,0,0,0,0,0,0,0,0,"001091",null,null,null,null,null,null,null,null,null,null,null,null,null,null,null,null,null,null,null,null,null,null,null,null,null,null,null,null,null,null,null,null,null,null,null,null,null,null,1091]
[0,0,0,0,0,0,0,0,0,0,0,0,"001094",null,null,null,null,null,null,null,null,null,null,null,null,null,null,null,null,null,null,null,null,null,null,null,null,null,null,null,null,null,null,null,null,null,null,null,null,null,null,1094]
[0,0,0,0,0,0,0,0,0,0,0,0,"001095",null,null,null,null,null,null,null,null,null,null,null,null,null,null,null,null,null,null,null,null,null,null,null,null,null,null,null,null,null,null,null,null,null,null,null,null,null,null,1095]
[0,0,0,0,0,0,0,0,0,0,0,0,"001097",null,null,null,null,null,null,null,null,null,null,null,null,null,null,null,null,null,null,null,null,null,null,null,null,null,null,null,null,null,null,null,null,null,null,null,null,null,null,1097]
[0,0,0,0,0,0,0,0,0,0,0,0,"001100",null,null,null,null,null,null,null,null,null,null,null,null,null,null,null,null,null,null,null,null,null,null,null,null,null,null,null,null,null,null,null,null,null,null,null,null,null,null,1100]
[0,0,0,0,0,0,0,0,0,0,0,0,"001104",null,null,null,null,null,null,null,null,null,null,null,null,null,null,null,null,null,null,null,null,null,null,null,null,null,null,null,null,null,null,null,null,null,null,null,null,null,null,1104]
[0,0,0,0,0,0,0,0,0,0,0,0,"001106",null,null,null,null,null,null,null,null,null,null,null,null,null,null,null,null,null,null,null,null,null,null,null,null,null,null,null,null,null,null,null,null,null,null,null,null,null,null,1106]
[0,0,0,0,0,0,0,0,0,0,0,0,"001109",null,null,null,null,null,null,null,null,null,null,null,null,null,null,null,null,null,null,null,null,null,null,null,null,null,null,null,null,null,null,null,null,null,null,null,null,null,null,1109]
[0,0,0,0,0,0,0,0,0,0,0,0,"001113",null,null,null,null,null,null,null,null,null,null,null,null,null,null,null,null,null,null,null,null,null,null,null,null,null,null,null,null,null,null,null,null,null,null,null,null,null,null,1113]
[0,0,0,0,0,0,0,0,0,0,0,0,"001116",null,null,null,null,null,null,null,null,null,null,null,null,null,null,null,null,null,null,null,null,null,null,null,null,null,null,null,null,null,null,null,null,null,null,null,null,null,null,1116]
[0,0,0,0,0,0,0,0,0,0,0,0,"001117",null,null,null,null,null,null,null,null,null,null,null,null,null,null,null,null,null,null,null,null,null,null,null,null,null,null,null,null,null,null,null,null,null,null,null,null,null,null,1117]
[0,0,0,0,0,0,0,0,0,0,0,0,"001119",null,null,null,null,null,null,null,null,null,null,null,null,null,null,null,null,null,null,null,null,null,null,null,null,null,null,null,null,null,null,null,null,null,null,null,null,null,null,1119]
[0,0,0,0,0,0,0,0,0,0,0,0,"001122",null,null,null,null,null,null,null,null,null,null,null,null,null,null,null,null,null,null,null,null,null,null,null,null,null,null,null,null,null,null,null,null,null,null,null,null,null,null,1122]
[0,0,0,0,0,0,0,0,0,0,0,0,"001126",null,null,null,null,null,null,null,null,null,null,null,null,null,null,null,null,null,null,null,null,null,null,null,null,null,null,null,null,null,null,null,null,null,null,null,null,null,null,1126]
[0,0,0,0,0,0,0,0,0,0,0,0,"001128",null,null,null,null,null,null,null,null,null,null,null,null,null,null,null,null,null,null,null,null,null,null,null,null,null,null,null,null,null,null,null,null,null,null,null,null,null,null,1128]
[0,0,0,0,0,0,0,0,0,0,0,0,"001131",null,null,null,null,null,null,null,null,null,null,null,null,null,null,null,null,null,null,null,null,null,null,null,null,null,null,null,null,null,null,null,null,null,null,null,null,null,null,1131]
[0,0,0,0,0,0,0,0,0,0,0,0,"001135",null,null,null,null,null,null,null,null,null,null,null,null,null,null,null,null,null,null,null,null,null,null,null,null,null,null,null,null,null,null,null,null,null,null,null,null,null,null,1135]
[0,0,0,0,0,0,0,0,0,0,0,0,"001138",null,null,null,null,null,null,null,null,null,null,null,null,null,null,null,null,null,null,null,null,null,null,null,null,null,null,null,null,null,null,null,null,null,null,null,null,null,null,1138]
[0,0,0,0,0,0,0,0,0,0,0,0,"001139",null,null,null,null,null,null,null,null,null,null,null,null,null,null,null,null,null,null,null,null,null,null,null,null,null,null,null,null,null,null,null,null,null,null,null,null,null,null,1139]
[0,0,0,0,0,0,0,0,0,0,0,0,"001141",null,null,null,null,null,null,null,null,null,null,null,null,null,null,null,null,null,null,null,null,null,null,null,null,null,null,null,null,null,null,null,null,null,null,null,null,null,null,1141]
[0,0,0,0,0,0,0,0,0,0,0,0,"001144",null,null,null,null,null,null,null,null,null,null,null,null,null,null,null,null,null,null,null,null,null,null,null,null,null,null,null,null,null,null,null,null,null,null,null,null,null,null,1144]
[0,0,0,0,0,0,0,0,0,0,0,0,"001148",null,null,null,null,null,null,null,null,null,null,null,null,null,null,null,null,null,null,null,null,null,null,null,null,null,null,null,null,null,null,null,null,null,null,null,null,null,null,1148]
[0,0,0,0,0,0,0,0,0,0,0,0,"001150",null,null,null,null,null,null,null,null,null,null,null,null,null,null,null,null,null,null,null,null,null,null,null,null,null,null,null,null,null,null,null,null,null,null,null,null,null,null,1150]
[{"$f":"Report_Year","v":0},{"$f":"Permittee_Name","v":0},{"$f":"FWS_Permit_Number","v":0},{"$f":"Project_Type_Transfer","v":0},{"$f":"Project_Subtype_Transfer","v":0},{"$f":"Project_Type_Other","v":0},{"$f":"Description","v":0},{"$f":"Primary_Contact_Name","v":0},{"$f":"Primary_Contact_Title","v":0},{"$f":"Primary_Contact_Phone","v":0},{"$f":"ProprietaryYesNo","v":0},{"$f":"Proprietary_Description","v":0},{"$f":"CONCATENATE(A1156,C1156,AZ1156)","v":"001153"},null,null,null,null,null,null,null,null,null,null,null,null,null,null,null,null,null,null,null,null,null,null,null,null,null,null,null,null,null,null,null,null,null,null,null,null,null,null,1153]
[0,0,0,0,0,0,0,0,0,0,0,0,"001157",null,null,null,null,null,null,null,null,null,null,null,null,null,null,null,null,null,null,null,null,null,null,null,null,null,null,null,null,null,null,null,null,null,null,null,null,null,null,1157]
[0,0,0,0,0,0,0,0,0,0,0,0,"001160",null,null,null,null,null,null,null,null,null,null,null,null,null,null,null,null,null,null,null,null,null,null,null,null,null,null,null,null,null,null,null,null,null,null,null,null,null,null,1160]
[0,0,0,0,0,0,0,0,0,0,0,0,"001161",null,null,null,null,null,null,null,null,null,null,null,null,null,null,null,null,null,null,null,null,null,null,null,null,null,null,null,null,null,null,null,null,null,null,null,null,null,null,1161]
[0,0,0,0,0,0,0,0,0,0,0,0,"001163",null,null,null,null,null,null,null,null,null,null,null,null,null,null,null,null,null,null,null,null,null,null,null,null,null,null,null,null,null,null,null,null,null,null,null,null,null,null,1163]
[0,0,0,0,0,0,0,0,0,0,0,0,"001166",null,null,null,null,null,null,null,null,null,null,null,null,null,null,null,null,null,null,null,null,null,null,null,null,null,null,null,null,null,null,null,null,null,null,null,null,null,null,1166]
[0,0,0,0,0,0,0,0,0,0,0,0,"001170",null,null,null,null,null,null,null,null,null,null,null,null,null,null,null,null,null,null,null,null,null,null,null,null,null,null,null,null,null,null,null,null,null,null,null,null,null,null,1170]
[0,0,0,0,0,0,0,0,0,0,0,0,"001172",null,null,null,null,null,null,null,null,null,null,null,null,null,null,null,null,null,null,null,null,null,null,null,null,null,null,null,null,null,null,null,null,null,null,null,null,null,null,1172]
[0,0,0,0,0,0,0,0,0,0,0,0,"001175",null,null,null,null,null,null,null,null,null,null,null,null,null,null,null,null,null,null,null,null,null,null,null,null,null,null,null,null,null,null,null,null,null,null,null,null,null,null,1175]
[0,0,0,0,0,0,0,0,0,0,0,0,"001179",null,null,null,null,null,null,null,null,null,null,null,null,null,null,null,null,null,null,null,null,null,null,null,null,null,null,null,null,null,null,null,null,null,null,null,null,null,null,1179]
[0,0,0,0,0,0,0,0,0,0,0,0,"001182",null,null,null,null,null,null,null,null,null,null,null,null,null,null,null,null,null,null,null,null,null,null,null,null,null,null,null,null,null,null,null,null,null,null,null,null,null,null,1182]
[0,0,0,0,0,0,0,0,0,0,0,0,"001183",null,null,null,null,null,null,null,null,null,null,null,null,null,null,null,null,null,null,null,null,null,null,null,null,null,null,null,null,null,null,null,null,null,null,null,null,null,null,1183]
[0,0,0,0,0,0,0,0,0,0,0,0,"001187",null,null,null,null,null,null,null,null,null,null,null,null,null,null,null,null,null,null,null,null,null,null,null,null,null,null,null,null,null,null,null,null,null,null,null,null,null,null,1187]
[0,0,0,0,0,0,0,0,0,0,0,0,"001188",null,null,null,null,null,null,null,null,null,null,null,null,null,null,null,null,null,null,null,null,null,null,null,null,null,null,null,null,null,null,null,null,null,null,null,null,null,null,1188]
[0,0,0,0,0,0,0,0,0,0,0,0,"001192",null,null,null,null,null,null,null,null,null,null,null,null,null,null,null,null,null,null,null,null,null,null,null,null,null,null,null,null,null,null,null,null,null,null,null,null,null,null,1192]
[0,0,0,0,0,0,0,0,0,0,0,0,"001195",null,null,null,null,null,null,null,null,null,null,null,null,null,null,null,null,null,null,null,null,null,null,null,null,null,null,null,null,null,null,null,null,null,null,null,null,null,null,1195]
[0,0,0,0,0,0,0,0,0,0,0,0,"001198",null,null,null,null,null,null,null,null,null,null,null,null,null,null,null,null,null,null,null,null,null,null,null,null,null,null,null,null,null,null,null,null,null,null,null,null,null,null,1198]
[0,0,0,0,0,0,0,0,0,0,0,0,"001201",null,null,null,null,null,null,null,null,null,null,null,null,null,null,null,null,null,null,null,null,null,null,null,null,null,null,null,null,null,null,null,null,null,null,null,null,null,null,1201]
[0,0,0,0,0,0,0,0,0,0,0,0,"001204",null,null,null,null,null,null,null,null,null,null,null,null,null,null,null,null,null,null,null,null,null,null,null,null,null,null,null,null,null,null,null,null,null,null,null,null,null,null,1204]
[0,0,0,0,0,0,0,0,0,0,0,0,"001205",null,null,null,null,null,null,null,null,null,null,null,null,null,null,null,null,null,null,null,null,null,null,null,null,null,null,null,null,null,null,null,null,null,null,null,null,null,null,1205]
[0,0,0,0,0,0,0,0,0,0,0,0,"001209",null,null,null,null,null,null,null,null,null,null,null,null,null,null,null,null,null,null,null,null,null,null,null,null,null,null,null,null,null,null,null,null,null,null,null,null,null,null,1209]
[0,0,0,0,0,0,0,0,0,0,0,0,"001210",null,null,null,null,null,null,null,null,null,null,null,null,null,null,null,null,null,null,null,null,null,null,null,null,null,null,null,null,null,null,null,null,null,null,null,null,null,null,1210]
[0,0,0,0,0,0,0,0,0,0,0,0,"001214",null,null,null,null,null,null,null,null,null,null,null,null,null,null,null,null,null,null,null,null,null,null,null,null,null,null,null,null,null,null,null,null,null,null,null,null,null,null,1214]
[{"$f":"Report_Year","v":0},{"$f":"Permittee_Name","v":0},{"$f":"FWS_Permit_Number","v":0},{"$f":"Project_Type_Transfer","v":0},{"$f":"Project_Subtype_Transfer","v":0},{"$f":"Project_Type_Other","v":0},{"$f":"Description","v":0},{"$f":"Primary_Contact_Name","v":0},{"$f":"Primary_Contact_Title","v":0},{"$f":"Primary_Contact_Phone","v":0},{"$f":"ProprietaryYesNo","v":0},{"$f":"Proprietary_Description","v":0},{"$f":"CONCATENATE(A1220,C1220,AZ1220)","v":"001217"},null,null,null,null,null,null,null,null,null,null,null,null,null,null,null,null,null,null,null,null,null,null,null,null,null,null,null,null,null,null,null,null,null,null,null,null,null,null,1217]
[0,0,0,0,0,0,0,0,0,0,0,0,"001220",null,null,null,null,null,null,null,null,null,null,null,null,null,null,null,null,null,null,null,null,null,null,null,null,null,null,null,null,null,null,null,null,null,null,null,null,null,null,1220]
[0,0,0,0,0,0,0,0,0,0,0,0,"001223",null,null,null,null,null,null,null,null,null,null,null,null,null,null,null,null,null,null,null,null,null,null,null,null,null,null,null,null,null,null,null,null,null,null,null,null,null,null,1223]
[0,0,0,0,0,0,0,0,0,0,0,0,"001226",null,null,null,null,null,null,null,null,null,null,null,null,null,null,null,null,null,null,null,null,null,null,null,null,null,null,null,null,null,null,null,null,null,null,null,null,null,null,1226]
[0,0,0,0,0,0,0,0,0,0,0,0,"001227",null,null,null,null,null,null,null,null,null,null,null,null,null,null,null,null,null,null,null,null,null,null,null,null,null,null,null,null,null,null,null,null,null,null,null,null,null,null,1227]
[0,0,0,0,0,0,0,0,0,0,0,0,"001231",null,null,null,null,null,null,null,null,null,null,null,null,null,null,null,null,null,null,null,null,null,null,null,null,null,null,null,null,null,null,null,null,null,null,null,null,null,null,1231]
[0,0,0,0,0,0,0,0,0,0,0,0,"001232",null,null,null,null,null,null,null,null,null,null,null,null,null,null,null,null,null,null,null,null,null,null,null,null,null,null,null,null,null,null,null,null,null,null,null,null,null,null,1232]
[0,0,0,0,0,0,0,0,0,0,0,0,"001236",null,null,null,null,null,null,null,null,null,null,null,null,null,null,null,null,null,null,null,null,null,null,null,null,null,null,null,null,null,null,null,null,null,null,null,null,null,null,1236]
[0,0,0,0,0,0,0,0,0,0,0,0,"001239",null,null,null,null,null,null,null,null,null,null,null,null,null,null,null,null,null,null,null,null,null,null,null,null,null,null,null,null,null,null,null,null,null,null,null,null,null,null,1239]
[0,0,0,0,0,0,0,0,0,0,0,0,"001242",null,null,null,null,null,null,null,null,null,null,null,null,null,null,null,null,null,null,null,null,null,null,null,null,null,null,null,null,null,null,null,null,null,null,null,null,null,null,1242]
[0,0,0,0,0,0,0,0,0,0,0,0,"001245",null,null,null,null,null,null,null,null,null,null,null,null,null,null,null,null,null,null,null,null,null,null,null,null,null,null,null,null,null,null,null,null,null,null,null,null,null,null,1245]
[0,0,0,0,0,0,0,0,0,0,0,0,"001248",null,null,null,null,null,null,null,null,null,null,null,null,null,null,null,null,null,null,null,null,null,null,null,null,null,null,null,null,null,null,null,null,null,null,null,null,null,null,1248]
[0,0,0,0,0,0,0,0,0,0,0,0,"001249",null,null,null,null,null,null,null,null,null,null,null,null,null,null,null,null,null,null,null,null,null,null,null,null,null,null,null,null,null,null,null,null,null,null,null,null,null,null,1249]
[0,0,0,0,0,0,0,0,0,0,0,0,"001253",null,null,null,null,null,null,null,null,null,null,null,null,null,null,null,null,null,null,null,null,null,null,null,null,null,null,null,null,null,null,null,null,null,null,null,null,null,null,1253]
[0,0,0,0,0,0,0,0,0,0,0,0,"001255",null,null,null,null,null,null,null,null,null,null,null,null,null,null,null,null,null,null,null,null,null,null,null,null,null,null,null,null,null,null,null,null,null,null,null,null,null,null,1255]
[0,0,0,0,0,0,0,0,0,0,0,0,"001258",null,null,null,null,null,null,null,null,null,null,null,null,null,null,null,null,null,null,null,null,null,null,null,null,null,null,null,null,null,null,null,null,null,null,null,null,null,null,1258]
[0,0,0,0,0,0,0,0,0,0,0,0,"001261",null,null,null,null,null,null,null,null,null,null,null,null,null,null,null,null,null,null,null,null,null,null,null,null,null,null,null,null,null,null,null,null,null,null,null,null,null,null,1261]
[0,0,0,0,0,0,0,0,0,0,0,0,"001264",null,null,null,null,null,null,null,null,null,null,null,null,null,null,null,null,null,null,null,null,null,null,null,null,null,null,null,null,null,null,null,null,null,null,null,null,null,null,1264]
[0,0,0,0,0,0,0,0,0,0,0,0,"001267",null,null,null,null,null,null,null,null,null,null,null,null,null,null,null,null,null,null,null,null,null,null,null,null,null,null,null,null,null,null,null,null,null,null,null,null,null,null,1267]
[0,0,0,0,0,0,0,0,0,0,0,0,"001270",null,null,null,null,null,null,null,null,null,null,null,null,null,null,null,null,null,null,null,null,null,null,null,null,null,null,null,null,null,null,null,null,null,null,null,null,null,null,1270]
[0,0,0,0,0,0,0,0,0,0,0,0,"001271",null,null,null,null,null,null,null,null,null,null,null,null,null,null,null,null,null,null,null,null,null,null,null,null,null,null,null,null,null,null,null,null,null,null,null,null,null,null,1271]
[0,0,0,0,0,0,0,0,0,0,0,0,"001275",null,null,null,null,null,null,null,null,null,null,null,null,null,null,null,null,null,null,null,null,null,null,null,null,null,null,null,null,null,null,null,null,null,null,null,null,null,null,1275]
[0,0,0,0,0,0,0,0,0,0,0,0,"001277",null,null,null,null,null,null,null,null,null,null,null,null,null,null,null,null,null,null,null,null,null,null,null,null,null,null,null,null,null,null,null,null,null,null,null,null,null,null,1277]
[0,0,0,0,0,0,0,0,0,0,0,0,"001280",null,null,null,null,null,null,null,null,null,null,null,null,null,null,null,null,null,null,null,null,null,null,null,null,null,null,null,null,null,null,null,null,null,null,null,null,null,null,1280]
[0,0,0,0,0,0,0,0,0,0,0,0,"001283",null,null,null,null,null,null,null,null,null,null,null,null,null,null,null,null,null,null,null,null,null,null,null,null,null,null,null,null,null,null,null,null,null,null,null,null,null,null,1283]
[0,0,0,0,0,0,0,0,0,0,0,0,"001286",null,null,null,null,null,null,null,null,null,null,null,null,null,null,null,null,null,null,null,null,null,null,null,null,null,null,null,null,null,null,null,null,null,null,null,null,null,null,1286]
[0,0,0,0,0,0,0,0,0,0,0,0,"001289",null,null,null,null,null,null,null,null,null,null,null,null,null,null,null,null,null,null,null,null,null,null,null,null,null,null,null,null,null,null,null,null,null,null,null,null,null,null,1289]
[0,0,0,0,0,0,0,0,0,0,0,0,"001290",null,null,null,null,null,null,null,null,null,null,null,null,null,null,null,null,null,null,null,null,null,null,null,null,null,null,null,null,null,null,null,null,null,null,null,null,null,null,1290]
[0,0,0,0,0,0,0,0,0,0,0,0,"001293",null,null,null,null,null,null,null,null,null,null,null,null,null,null,null,null,null,null,null,null,null,null,null,null,null,null,null,null,null,null,null,null,null,null,null,null,null,null,1293]
[0,0,0,0,0,0,0,0,0,0,0,0,"001297",null,null,null,null,null,null,null,null,null,null,null,null,null,null,null,null,null,null,null,null,null,null,null,null,null,null,null,null,null,null,null,null,null,null,null,null,null,null,1297]
[0,0,0,0,0,0,0,0,0,0,0,0,"001299",null,null,null,null,null,null,null,null,null,null,null,null,null,null,null,null,null,null,null,null,null,null,null,null,null,null,null,null,null,null,null,null,null,null,null,null,null,null,1299]
[0,0,0,0,0,0,0,0,0,0,0,0,"001302",null,null,null,null,null,null,null,null,null,null,null,null,null,null,null,null,null,null,null,null,null,null,null,null,null,null,null,null,null,null,null,null,null,null,null,null,null,null,1302]
[0,0,0,0,0,0,0,0,0,0,0,0,"001305",null,null,null,null,null,null,null,null,null,null,null,null,null,null,null,null,null,null,null,null,null,null,null,null,null,null,null,null,null,null,null,null,null,null,null,null,null,null,1305]
[0,0,0,0,0,0,0,0,0,0,0,0,"001308",null,null,null,null,null,null,null,null,null,null,null,null,null,null,null,null,null,null,null,null,null,null,null,null,null,null,null,null,null,null,null,null,null,null,null,null,null,null,1308]
[0,0,0,0,0,0,0,0,0,0,0,0,"001311",null,null,null,null,null,null,null,null,null,null,null,null,null,null,null,null,null,null,null,null,null,null,null,null,null,null,null,null,null,null,null,null,null,null,null,null,null,null,1311]
[0,0,0,0,0,0,0,0,0,0,0,0,"001312",null,null,null,null,null,null,null,null,null,null,null,null,null,null,null,null,null,null,null,null,null,null,null,null,null,null,null,null,null,null,null,null,null,null,null,null,null,null,1312]
[0,0,0,0,0,0,0,0,0,0,0,0,"001315",null,null,null,null,null,null,null,null,null,null,null,null,null,null,null,null,null,null,null,null,null,null,null,null,null,null,null,null,null,null,null,null,null,null,null,null,null,null,1315]
[0,0,0,0,0,0,0,0,0,0,0,0,"001319",null,null,null,null,null,null,null,null,null,null,null,null,null,null,null,null,null,null,null,null,null,null,null,null,null,null,null,null,null,null,null,null,null,null,null,null,null,null,1319]
[0,0,0,0,0,0,0,0,0,0,0,0,"001321",null,null,null,null,null,null,null,null,null,null,null,null,null,null,null,null,null,null,null,null,null,null,null,null,null,null,null,null,null,null,null,null,null,null,null,null,null,null,1321]
[0,0,0,0,0,0,0,0,0,0,0,0,"001324",null,null,null,null,null,null,null,null,null,null,null,null,null,null,null,null,null,null,null,null,null,null,null,null,null,null,null,null,null,null,null,null,null,null,null,null,null,null,1324]
[0,0,0,0,0,0,0,0,0,0,0,0,"001327",null,null,null,null,null,null,null,null,null,null,null,null,null,null,null,null,null,null,null,null,null,null,null,null,null,null,null,null,null,null,null,null,null,null,null,null,null,null,1327]
[0,0,0,0,0,0,0,0,0,0,0,0,"001330",null,null,null,null,null,null,null,null,null,null,null,null,null,null,null,null,null,null,null,null,null,null,null,null,null,null,null,null,null,null,null,null,null,null,null,null,null,null,1330]
[0,0,0,0,0,0,0,0,0,0,0,0,"001333",null,null,null,null,null,null,null,null,null,null,null,null,null,null,null,null,null,null,null,null,null,null,null,null,null,null,null,null,null,null,null,null,null,null,null,null,null,null,1333]
[0,0,0,0,0,0,0,0,0,0,0,0,"001334",null,null,null,null,null,null,null,null,null,null,null,null,null,null,null,null,null,null,null,null,null,null,null,null,null,null,null,null,null,null,null,null,null,null,null,null,null,null,1334]
[0,0,0,0,0,0,0,0,0,0,0,0,"001337",null,null,null,null,null,null,null,null,null,null,null,null,null,null,null,null,null,null,null,null,null,null,null,null,null,null,null,null,null,null,null,null,null,null,null,null,null,null,1337]
[0,0,0,0,0,0,0,0,0,0,0,0,"001341",null,null,null,null,null,null,null,null,null,null,null,null,null,null,null,null,null,null,null,null,null,null,null,null,null,null,null,null,null,null,null,null,null,null,null,null,null,null,1341]
[0,0,0,0,0,0,0,0,0,0,0,0,"001343",null,null,null,null,null,null,null,null,null,null,null,null,null,null,null,null,null,null,null,null,null,null,null,null,null,null,null,null,null,null,null,null,null,null,null,null,null,null,1343]
[0,0,0,0,0,0,0,0,0,0,0,0,"001346",null,null,null,null,null,null,null,null,null,null,null,null,null,null,null,null,null,null,null,null,null,null,null,null,null,null,null,null,null,null,null,null,null,null,null,null,null,null,1346]
[0,0,0,0,0,0,0,0,0,0,0,0,"001350",null,null,null,null,null,null,null,null,null,null,null,null,null,null,null,null,null,null,null,null,null,null,null,null,null,null,null,null,null,null,null,null,null,null,null,null,null,null,1350]
[0,0,0,0,0,0,0,0,0,0,0,0,"001352",null,null,null,null,null,null,null,null,null,null,null,null,null,null,null,null,null,null,null,null,null,null,null,null,null,null,null,null,null,null,null,null,null,null,null,null,null,null,1352]
[0,0,0,0,0,0,0,0,0,0,0,0,"001355",null,null,null,null,null,null,null,null,null,null,null,null,null,null,null,null,null,null,null,null,null,null,null,null,null,null,null,null,null,null,null,null,null,null,null,null,null,null,1355]
[0,0,0,0,0,0,0,0,0,0,0,0,"001356",null,null,null,null,null,null,null,null,null,null,null,null,null,null,null,null,null,null,null,null,null,null,null,null,null,null,null,null,null,null,null,null,null,null,null,null,null,null,1356]
[0,0,0,0,0,0,0,0,0,0,0,0,"001359",null,null,null,null,null,null,null,null,null,null,null,null,null,null,null,null,null,null,null,null,null,null,null,null,null,null,null,null,null,null,null,null,null,null,null,null,null,null,1359]
[0,0,0,0,0,0,0,0,0,0,0,0,"001363",null,null,null,null,null,null,null,null,null,null,null,null,null,null,null,null,null,null,null,null,null,null,null,null,null,null,null,null,null,null,null,null,null,null,null,null,null,null,1363]
[0,0,0,0,0,0,0,0,0,0,0,0,"001365",null,null,null,null,null,null,null,null,null,null,null,null,null,null,null,null,null,null,null,null,null,null,null,null,null,null,null,null,null,null,null,null,null,null,null,null,null,null,1365]
[0,0,0,0,0,0,0,0,0,0,0,0,"001368",null,null,null,null,null,null,null,null,null,null,null,null,null,null,null,null,null,null,null,null,null,null,null,null,null,null,null,null,null,null,null,null,null,null,null,null,null,null,1368]
[0,0,0,0,0,0,0,0,0,0,0,0,"001372",null,null,null,null,null,null,null,null,null,null,null,null,null,null,null,null,null,null,null,null,null,null,null,null,null,null,null,null,null,null,null,null,null,null,null,null,null,null,1372]
[0,0,0,0,0,0,0,0,0,0,0,0,"001374",null,null,null,null,null,null,null,null,null,null,null,null,null,null,null,null,null,null,null,null,null,null,null,null,null,null,null,null,null,null,null,null,null,null,null,null,null,null,1374]
[0,0,0,0,0,0,0,0,0,0,0,0,"001377",null,null,null,null,null,null,null,null,null,null,null,null,null,null,null,null,null,null,null,null,null,null,null,null,null,null,null,null,null,null,null,null,null,null,null,null,null,null,1377]
[0,0,0,0,0,0,0,0,0,0,0,0,"001378",null,null,null,null,null,null,null,null,null,null,null,null,null,null,null,null,null,null,null,null,null,null,null,null,null,null,null,null,null,null,null,null,null,null,null,null,null,null,1378]
[0,0,0,0,0,0,0,0,0,0,0,0,"001381",null,null,null,null,null,null,null,null,null,null,null,null,null,null,null,null,null,null,null,null,null,null,null,null,null,null,null,null,null,null,null,null,null,null,null,null,null,null,1381]
[0,0,0,0,0,0,0,0,0,0,0,0,"001385",null,null,null,null,null,null,null,null,null,null,null,null,null,null,null,null,null,null,null,null,null,null,null,null,null,null,null,null,null,null,null,null,null,null,null,null,null,null,1385]
[0,0,0,0,0,0,0,0,0,0,0,0,"001387",null,null,null,null,null,null,null,null,null,null,null,null,null,null,null,null,null,null,null,null,null,null,null,null,null,null,null,null,null,null,null,null,null,null,null,null,null,null,1387]
[0,0,0,0,0,0,0,0,0,0,0,0,"001390",null,null,null,null,null,null,null,null,null,null,null,null,null,null,null,null,null,null,null,null,null,null,null,null,null,null,null,null,null,null,null,null,null,null,null,null,null,null,1390]
[0,0,0,0,0,0,0,0,0,0,0,0,"001394",null,null,null,null,null,null,null,null,null,null,null,null,null,null,null,null,null,null,null,null,null,null,null,null,null,null,null,null,null,null,null,null,null,null,null,null,null,null,1394]
[0,0,0,0,0,0,0,0,0,0,0,0,"001396",null,null,null,null,null,null,null,null,null,null,null,null,null,null,null,null,null,null,null,null,null,null,null,null,null,null,null,null,null,null,null,null,null,null,null,null,null,null,1396]
[0,0,0,0,0,0,0,0,0,0,0,0,"001399",null,null,null,null,null,null,null,null,null,null,null,null,null,null,null,null,null,null,null,null,null,null,null,null,null,null,null,null,null,null,null,null,null,null,null,null,null,null,1399]
[0,0,0,0,0,0,0,0,0,0,0,0,"001400",null,null,null,null,null,null,null,null,null,null,null,null,null,null,null,null,null,null,null,null,null,null,null,null,null,null,null,null,null,null,null,null,null,null,null,null,null,null,1400]
[0,0,0,0,0,0,0,0,0,0,0,0,"001403",null,null,null,null,null,null,null,null,null,null,null,null,null,null,null,null,null,null,null,null,null,null,null,null,null,null,null,null,null,null,null,null,null,null,null,null,null,null,1403]
[0,0,0,0,0,0,0,0,0,0,0,0,"001407",null,null,null,null,null,null,null,null,null,null,null,null,null,null,null,null,null,null,null,null,null,null,null,null,null,null,null,null,null,null,null,null,null,null,null,null,null,null,1407]
[{"$f":"Report_Year","v":0},{"$f":"Permittee_Name","v":0},{"$f":"FWS_Permit_Number","v":0},{"$f":"Project_Type_Transfer","v":0},{"$f":"Project_Subtype_Transfer","v":0},{"$f":"Project_Type_Other","v":0},{"$f":"Description","v":0},{"$f":"Primary_Contact_Name","v":0},{"$f":"Primary_Contact_Title","v":0},{"$f":"Primary_Contact_Phone","v":0},{"$f":"ProprietaryYesNo","v":0},{"$f":"Proprietary_Description","v":0},{"$f":"CONCATENATE(A1412,C1412,AZ1412)","v":"001409"},null,null,null,null,null,null,null,null,null,null,null,null,null,null,null,null,null,null,null,null,null,null,null,null,null,null,null,null,null,null,null,null,null,null,null,null,null,null,1409]
[0,0,0,0,0,0,0,0,0,0,0,0,"001412",null,null,null,null,null,null,null,null,null,null,null,null,null,null,null,null,null,null,null,null,null,null,null,null,null,null,null,null,null,null,null,null,null,null,null,null,null,null,1412]
[0,0,0,0,0,0,0,0,0,0,0,0,"001416",null,null,null,null,null,null,null,null,null,null,null,null,null,null,null,null,null,null,null,null,null,null,null,null,null,null,null,null,null,null,null,null,null,null,null,null,null,null,1416]
[0,0,0,0,0,0,0,0,0,0,0,0,"001418",null,null,null,null,null,null,null,null,null,null,null,null,null,null,null,null,null,null,null,null,null,null,null,null,null,null,null,null,null,null,null,null,null,null,null,null,null,null,1418]
[0,0,0,0,0,0,0,0,0,0,0,0,"001421",null,null,null,null,null,null,null,null,null,null,null,null,null,null,null,null,null,null,null,null,null,null,null,null,null,null,null,null,null,null,null,null,null,null,null,null,null,null,1421]
[0,0,0,0,0,0,0,0,0,0,0,0,"001422",null,null,null,null,null,null,null,null,null,null,null,null,null,null,null,null,null,null,null,null,null,null,null,null,null,null,null,null,null,null,null,null,null,null,null,null,null,null,1422]
[0,0,0,0,0,0,0,0,0,0,0,0,"001425",null,null,null,null,null,null,null,null,null,null,null,null,null,null,null,null,null,null,null,null,null,null,null,null,null,null,null,null,null,null,null,null,null,null,null,null,null,null,1425]
[0,0,0,0,0,0,0,0,0,0,0,0,"001429",null,null,null,null,null,null,null,null,null,null,null,null,null,null,null,null,null,null,null,null,null,null,null,null,null,null,null,null,null,null,null,null,null,null,null,null,null,null,1429]
[0,0,0,0,0,0,0,0,0,0,0,0,"001431",null,null,null,null,null,null,null,null,null,null,null,null,null,null,null,null,null,null,null,null,null,null,null,null,null,null,null,null,null,null,null,null,null,null,null,null,null,null,1431]
[0,0,0,0,0,0,0,0,0,0,0,0,"001434",null,null,null,null,null,null,null,null,null,null,null,null,null,null,null,null,null,null,null,null,null,null,null,null,null,null,null,null,null,null,null,null,null,null,null,null,null,null,1434]
[0,0,0,0,0,0,0,0,0,0,0,0,"001438",null,null,null,null,null,null,null,null,null,null,null,null,null,null,null,null,null,null,null,null,null,null,null,null,null,null,null,null,null,null,null,null,null,null,null,null,null,null,1438]
[0,0,0,0,0,0,0,0,0,0,0,0,"001440",null,null,null,null,null,null,null,null,null,null,null,null,null,null,null,null,null,null,null,null,null,null,null,null,null,null,null,null,null,null,null,null,null,null,null,null,null,null,1440]
[0,0,0,0,0,0,0,0,0,0,0,0,"001441",null,null,null,null,null,null,null,null,null,null,null,null,null,null,null,null,null,null,null,null,null,null,null,null,null,null,null,null,null,null,null,null,null,null,null,null,null,null,1441]
[0,0,0,0,0,0,0,0,0,0,0,0,"001444",null,null,null,null,null,null,null,null,null,null,null,null,null,null,null,null,null,null,null,null,null,null,null,null,null,null,null,null,null,null,null,null,null,null,null,null,null,null,1444]
[0,0,0,0,0,0,0,0,0,0,0,0,"001447",null,null,null,null,null,null,null,null,null,null,null,null,null,null,null,null,null,null,null,null,null,null,null,null,null,null,null,null,null,null,null,null,null,null,null,null,null,null,1447]
[0,0,0,0,0,0,0,0,0,0,0,0,"001451",null,null,null,null,null,null,null,null,null,null,null,null,null,null,null,null,null,null,null,null,null,null,null,null,null,null,null,null,null,null,null,null,null,null,null,null,null,null,1451]
[0,0,0,0,0,0,0,0,0,0,0,0,"001453",null,null,null,null,null,null,null,null,null,null,null,null,null,null,null,null,null,null,null,null,null,null,null,null,null,null,null,null,null,null,null,null,null,null,null,null,null,null,1453]
[0,0,0,0,0,0,0,0,0,0,0,0,"001456",null,null,null,null,null,null,null,null,null,null,null,null,null,null,null,null,null,null,null,null,null,null,null,null,null,null,null,null,null,null,null,null,null,null,null,null,null,null,1456]
[0,0,0,0,0,0,0,0,0,0,0,0,"001460",null,null,null,null,null,null,null,null,null,null,null,null,null,null,null,null,null,null,null,null,null,null,null,null,null,null,null,null,null,null,null,null,null,null,null,null,null,null,1460]
[0,0,0,0,0,0,0,0,0,0,0,0,"001462",null,null,null,null,null,null,null,null,null,null,null,null,null,null,null,null,null,null,null,null,null,null,null,null,null,null,null,null,null,null,null,null,null,null,null,null,null,null,1462]
[0,0,0,0,0,0,0,0,0,0,0,0,"001463",null,null,null,null,null,null,null,null,null,null,null,null,null,null,null,null,null,null,null,null,null,null,null,null,null,null,null,null,null,null,null,null,null,null,null,null,null,null,1463]
[0,0,0,0,0,0,0,0,0,0,0,0,"001466",null,null,null,null,null,null,null,null,null,null,null,null,null,null,null,null,null,null,null,null,null,null,null,null,null,null,null,null,null,null,null,null,null,null,null,null,null,null,1466]
[0,0,0,0,0,0,0,0,0,0,0,0,"001469",null,null,null,null,null,null,null,null,null,null,null,null,null,null,null,null,null,null,null,null,null,null,null,null,null,null,null,null,null,null,null,null,null,null,null,null,null,null,1469]
[{"$f":"Report_Year","v":0},{"$f":"Permittee_Name","v":0},{"$f":"FWS_Permit_Number","v":0},{"$f":"Project_Type_Transfer","v":0},{"$f":"Project_Subtype_Transfer","v":0},{"$f":"Project_Type_Other","v":0},{"$f":"Description","v":0},{"$f":"Primary_Contact_Name","v":0},{"$f":"Primary_Contact_Title","v":0},{"$f":"Primary_Contact_Phone","v":0},{"$f":"ProprietaryYesNo","v":0},{"$f":"Proprietary_Description","v":0},{"$f":"CONCATENATE(A1476,C1476,AZ1476)","v":"001473"},null,null,null,null,null,null,null,null,null,null,null,null,null,null,null,null,null,null,null,null,null,null,null,null,null,null,null,null,null,null,null,null,null,null,null,null,null,null,1473]
[0,0,0,0,0,0,0,0,0,0,0,0,"001475",null,null,null,null,null,null,null,null,null,null,null,null,null,null,null,null,null,null,null,null,null,null,null,null,null,null,null,null,null,null,null,null,null,null,null,null,null,null,1475]
[0,0,0,0,0,0,0,0,0,0,0,0,"001478",null,null,null,null,null,null,null,null,null,null,null,null,null,null,null,null,null,null,null,null,null,null,null,null,null,null,null,null,null,null,null,null,null,null,null,null,null,null,1478]
[0,0,0,0,0,0,0,0,0,0,0,0,"001482",null,null,null,null,null,null,null,null,null,null,null,null,null,null,null,null,null,null,null,null,null,null,null,null,null,null,null,null,null,null,null,null,null,null,null,null,null,null,1482]
[0,0,0,0,0,0,0,0,0,0,0,0,"001484",null,null,null,null,null,null,null,null,null,null,null,null,null,null,null,null,null,null,null,null,null,null,null,null,null,null,null,null,null,null,null,null,null,null,null,null,null,null,1484]
[0,0,0,0,0,0,0,0,0,0,0,0,"001485",null,null,null,null,null,null,null,null,null,null,null,null,null,null,null,null,null,null,null,null,null,null,null,null,null,null,null,null,null,null,null,null,null,null,null,null,null,null,1485]
[0,0,0,0,0,0,0,0,0,0,0,0,"001488",null,null,null,null,null,null,null,null,null,null,null,null,null,null,null,null,null,null,null,null,null,null,null,null,null,null,null,null,null,null,null,null,null,null,null,null,null,null,1488]
[0,0,0,0,0,0,0,0,0,0,0,0,"001491",null,null,null,null,null,null,null,null,null,null,null,null,null,null,null,null,null,null,null,null,null,null,null,null,null,null,null,null,null,null,null,null,null,null,null,null,null,null,1491]
[0,0,0,0,0,0,0,0,0,0,0,0,"001495",null,null,null,null,null,null,null,null,null,null,null,null,null,null,null,null,null,null,null,null,null,null,null,null,null,null,null,null,null,null,null,null,null,null,null,null,null,null,1495]
[0,0,0,0,0,0,0,0,0,0,0,0,"001497",null,null,null,null,null,null,null,null,null,null,null,null,null,null,null,null,null,null,null,null,null,null,null,null,null,null,null,null,null,null,null,null,null,null,null,null,null,null,1497]
[0,0,0,0,0,0,0,0,0,0,0,0,"001501",null,null,null,null,null,null,null,null,null,null,null,null,null,null,null,null,null,null,null,null,null,null,null,null,null,null,null,null,null,null,null,null,null,null,null,null,null,null,1501]
[0,0,0,0,0,0,0,0,0,0,0,0,"001504",null,null,null,null,null,null,null,null,null,null,null,null,null,null,null,null,null,null,null,null,null,null,null,null,null,null,null,null,null,null,null,null,null,null,null,null,null,null,1504]
[0,0,0,0,0,0,0,0,0,0,0,0,"001506",null,null,null,null,null,null,null,null,null,null,null,null,null,null,null,null,null,null,null,null,null,null,null,null,null,null,null,null,null,null,null,null,null,null,null,null,null,null,1506]
[0,0,0,0,0,0,0,0,0,0,0,0,"001507",null,null,null,null,null,null,null,null,null,null,null,null,null,null,null,null,null,null,null,null,null,null,null,null,null,null,null,null,null,null,null,null,null,null,null,null,null,null,1507]
[0,0,0,0,0,0,0,0,0,0,0,0,"001510",null,null,null,null,null,null,null,null,null,null,null,null,null,null,null,null,null,null,null,null,null,null,null,null,null,null,null,null,null,null,null,null,null,null,null,null,null,null,1510]
[0,0,0,0,0,0,0,0,0,0,0,0,"001513",null,null,null,null,null,null,null,null,null,null,null,null,null,null,null,null,null,null,null,null,null,null,null,null,null,null,null,null,null,null,null,null,null,null,null,null,null,null,1513]
[0,0,0,0,0,0,0,0,0,0,0,0,"001517",null,null,null,null,null,null,null,null,null,null,null,null,null,null,null,null,null,null,null,null,null,null,null,null,null,null,null,null,null,null,null,null,null,null,null,null,null,null,1517]
[0,0,0,0,0,0,0,0,0,0,0,0,"001519",null,null,null,null,null,null,null,null,null,null,null,null,null,null,null,null,null,null,null,null,null,null,null,null,null,null,null,null,null,null,null,null,null,null,null,null,null,null,1519]
[0,0,0,0,0,0,0,0,0,0,0,0,"001523",null,null,null,null,null,null,null,null,null,null,null,null,null,null,null,null,null,null,null,null,null,null,null,null,null,null,null,null,null,null,null,null,null,null,null,null,null,null,1523]
[0,0,0,0,0,0,0,0,0,0,0,0,"001526",null,null,null,null,null,null,null,null,null,null,null,null,null,null,null,null,null,null,null,null,null,null,null,null,null,null,null,null,null,null,null,null,null,null,null,null,null,null,1526]
[0,0,0,0,0,0,0,0,0,0,0,0,"001529",null,null,null,null,null,null,null,null,null,null,null,null,null,null,null,null,null,null,null,null,null,null,null,null,null,null,null,null,null,null,null,null,null,null,null,null,null,null,1529]
[0,0,0,0,0,0,0,0,0,0,0,0,"001530",null,null,null,null,null,null,null,null,null,null,null,null,null,null,null,null,null,null,null,null,null,null,null,null,null,null,null,null,null,null,null,null,null,null,null,null,null,null,1530]
[0,0,0,0,0,0,0,0,0,0,0,0,"001532",null,null,null,null,null,null,null,null,null,null,null,null,null,null,null,null,null,null,null,null,null,null,null,null,null,null,null,null,null,null,null,null,null,null,null,null,null,null,1532]
[0,0,0,0,0,0,0,0,0,0,0,0,"001536",null,null,null,null,null,null,null,null,null,null,null,null,null,null,null,null,null,null,null,null,null,null,null,null,null,null,null,null,null,null,null,null,null,null,null,null,null,null,1536]
[0,0,0,0,0,0,0,0,0,0,0,0,"001539",null,null,null,null,null,null,null,null,null,null,null,null,null,null,null,null,null,null,null,null,null,null,null,null,null,null,null,null,null,null,null,null,null,null,null,null,null,null,1539]
[0,0,0,0,0,0,0,0,0,0,0,0,"001541",null,null,null,null,null,null,null,null,null,null,null,null,null,null,null,null,null,null,null,null,null,null,null,null,null,null,null,null,null,null,null,null,null,null,null,null,null,null,1541]
[0,0,0,0,0,0,0,0,0,0,0,0,"001545",null,null,null,null,null,null,null,null,null,null,null,null,null,null,null,null,null,null,null,null,null,null,null,null,null,null,null,null,null,null,null,null,null,null,null,null,null,null,1545]
[0,0,0,0,0,0,0,0,0,0,0,0,"001548",null,null,null,null,null,null,null,null,null,null,null,null,null,null,null,null,null,null,null,null,null,null,null,null,null,null,null,null,null,null,null,null,null,null,null,null,null,null,1548]
[0,0,0,0,0,0,0,0,0,0,0,0,"001551",null,null,null,null,null,null,null,null,null,null,null,null,null,null,null,null,null,null,null,null,null,null,null,null,null,null,null,null,null,null,null,null,null,null,null,null,null,null,1551]
[0,0,0,0,0,0,0,0,0,0,0,0,"001552",null,null,null,null,null,null,null,null,null,null,null,null,null,null,null,null,null,null,null,null,null,null,null,null,null,null,null,null,null,null,null,null,null,null,null,null,null,null,1552]
[0,0,0,0,0,0,0,0,0,0,0,0,"001554",null,null,null,null,null,null,null,null,null,null,null,null,null,null,null,null,null,null,null,null,null,null,null,null,null,null,null,null,null,null,null,null,null,null,null,null,null,null,1554]
[0,0,0,0,0,0,0,0,0,0,0,0,"001558",null,null,null,null,null,null,null,null,null,null,null,null,null,null,null,null,null,null,null,null,null,null,null,null,null,null,null,null,null,null,null,null,null,null,null,null,null,null,1558]
[0,0,0,0,0,0,0,0,0,0,0,0,"001561",null,null,null,null,null,null,null,null,null,null,null,null,null,null,null,null,null,null,null,null,null,null,null,null,null,null,null,null,null,null,null,null,null,null,null,null,null,null,1561]
[0,0,0,0,0,0,0,0,0,0,0,0,"001563",null,null,null,null,null,null,null,null,null,null,null,null,null,null,null,null,null,null,null,null,null,null,null,null,null,null,null,null,null,null,null,null,null,null,null,null,null,null,1563]
[0,0,0,0,0,0,0,0,0,0,0,0,"001567",null,null,null,null,null,null,null,null,null,null,null,null,null,null,null,null,null,null,null,null,null,null,null,null,null,null,null,null,null,null,null,null,null,null,null,null,null,null,1567]
[0,0,0,0,0,0,0,0,0,0,0,0,"001570",null,null,null,null,null,null,null,null,null,null,null,null,null,null,null,null,null,null,null,null,null,null,null,null,null,null,null,null,null,null,null,null,null,null,null,null,null,null,1570]
[0,0,0,0,0,0,0,0,0,0,0,0,"001573",null,null,null,null,null,null,null,null,null,null,null,null,null,null,null,null,null,null,null,null,null,null,null,null,null,null,null,null,null,null,null,null,null,null,null,null,null,null,1573]
[0,0,0,0,0,0,0,0,0,0,0,0,"001574",null,null,null,null,null,null,null,null,null,null,null,null,null,null,null,null,null,null,null,null,null,null,null,null,null,null,null,null,null,null,null,null,null,null,null,null,null,null,1574]
[0,0,0,0,0,0,0,0,0,0,0,0,"001576",null,null,null,null,null,null,null,null,null,null,null,null,null,null,null,null,null,null,null,null,null,null,null,null,null,null,null,null,null,null,null,null,null,null,null,null,null,null,1576]
[0,0,0,0,0,0,0,0,0,0,0,0,"001580",null,null,null,null,null,null,null,null,null,null,null,null,null,null,null,null,null,null,null,null,null,null,null,null,null,null,null,null,null,null,null,null,null,null,null,null,null,null,1580]
[0,0,0,0,0,0,0,0,0,0,0,0,"001583",null,null,null,null,null,null,null,null,null,null,null,null,null,null,null,null,null,null,null,null,null,null,null,null,null,null,null,null,null,null,null,null,null,null,null,null,null,null,1583]
[0,0,0,0,0,0,0,0,0,0,0,0,"001585",null,null,null,null,null,null,null,null,null,null,null,null,null,null,null,null,null,null,null,null,null,null,null,null,null,null,null,null,null,null,null,null,null,null,null,null,null,null,1585]
[0,0,0,0,0,0,0,0,0,0,0,0,"001589",null,null,null,null,null,null,null,null,null,null,null,null,null,null,null,null,null,null,null,null,null,null,null,null,null,null,null,null,null,null,null,null,null,null,null,null,null,null,1589]
[0,0,0,0,0,0,0,0,0,0,0,0,"001592",null,null,null,null,null,null,null,null,null,null,null,null,null,null,null,null,null,null,null,null,null,null,null,null,null,null,null,null,null,null,null,null,null,null,null,null,null,null,1592]
[0,0,0,0,0,0,0,0,0,0,0,0,"001593",null,null,null,null,null,null,null,null,null,null,null,null,null,null,null,null,null,null,null,null,null,null,null,null,null,null,null,null,null,null,null,null,null,null,null,null,null,null,1593]
[0,0,0,0,0,0,0,0,0,0,0,0,"001596",null,null,null,null,null,null,null,null,null,null,null,null,null,null,null,null,null,null,null,null,null,null,null,null,null,null,null,null,null,null,null,null,null,null,null,null,null,null,1596]
[0,0,0,0,0,0,0,0,0,0,0,0,"001598",null,null,null,null,null,null,null,null,null,null,null,null,null,null,null,null,null,null,null,null,null,null,null,null,null,null,null,null,null,null,null,null,null,null,null,null,null,null,1598]
[0,0,0,0,0,0,0,0,0,0,0,0,"001602",null,null,null,null,null,null,null,null,null,null,null,null,null,null,null,null,null,null,null,null,null,null,null,null,null,null,null,null,null,null,null,null,null,null,null,null,null,null,1602]
[0,0,0,0,0,0,0,0,0,0,0,0,"001605",null,null,null,null,null,null,null,null,null,null,null,null,null,null,null,null,null,null,null,null,null,null,null,null,null,null,null,null,null,null,null,null,null,null,null,null,null,null,1605]
[0,0,0,0,0,0,0,0,0,0,0,0,"001607",null,null,null,null,null,null,null,null,null,null,null,null,null,null,null,null,null,null,null,null,null,null,null,null,null,null,null,null,null,null,null,null,null,null,null,null,null,null,1607]
[0,0,0,0,0,0,0,0,0,0,0,0,"001611",null,null,null,null,null,null,null,null,null,null,null,null,null,null,null,null,null,null,null,null,null,null,null,null,null,null,null,null,null,null,null,null,null,null,null,null,null,null,1611]
[0,0,0,0,0,0,0,0,0,0,0,0,"001614",null,null,null,null,null,null,null,null,null,null,null,null,null,null,null,null,null,null,null,null,null,null,null,null,null,null,null,null,null,null,null,null,null,null,null,null,null,null,1614]
[0,0,0,0,0,0,0,0,0,0,0,0,"001615",null,null,null,null,null,null,null,null,null,null,null,null,null,null,null,null,null,null,null,null,null,null,null,null,null,null,null,null,null,null,null,null,null,null,null,null,null,null,1615]
[0,0,0,0,0,0,0,0,0,0,0,0,"001618",null,null,null,null,null,null,null,null,null,null,null,null,null,null,null,null,null,null,null,null,null,null,null,null,null,null,null,null,null,null,null,null,null,null,null,null,null,null,1618]
[0,0,0,0,0,0,0,0,0,0,0,0,"001620",null,null,null,null,null,null,null,null,null,null,null,null,null,null,null,null,null,null,null,null,null,null,null,null,null,null,null,null,null,null,null,null,null,null,null,null,null,null,1620]
[0,0,0,0,0,0,0,0,0,0,0,0,"001624",null,null,null,null,null,null,null,null,null,null,null,null,null,null,null,null,null,null,null,null,null,null,null,null,null,null,null,null,null,null,null,null,null,null,null,null,null,null,1624]
[0,0,0,0,0,0,0,0,0,0,0,0,"001627",null,null,null,null,null,null,null,null,null,null,null,null,null,null,null,null,null,null,null,null,null,null,null,null,null,null,null,null,null,null,null,null,null,null,null,null,null,null,1627]
[0,0,0,0,0,0,0,0,0,0,0,0,"001629",null,null,null,null,null,null,null,null,null,null,null,null,null,null,null,null,null,null,null,null,null,null,null,null,null,null,null,null,null,null,null,null,null,null,null,null,null,null,1629]
[0,0,0,0,0,0,0,0,0,0,0,0,"001633",null,null,null,null,null,null,null,null,null,null,null,null,null,null,null,null,null,null,null,null,null,null,null,null,null,null,null,null,null,null,null,null,null,null,null,null,null,null,1633]
[0,0,0,0,0,0,0,0,0,0,0,0,"001636",null,null,null,null,null,null,null,null,null,null,null,null,null,null,null,null,null,null,null,null,null,null,null,null,null,null,null,null,null,null,null,null,null,null,null,null,null,null,1636]
[0,0,0,0,0,0,0,0,0,0,0,0,"001637",null,null,null,null,null,null,null,null,null,null,null,null,null,null,null,null,null,null,null,null,null,null,null,null,null,null,null,null,null,null,null,null,null,null,null,null,null,null,1637]
[0,0,0,0,0,0,0,0,0,0,0,0,"001640",null,null,null,null,null,null,null,null,null,null,null,null,null,null,null,null,null,null,null,null,null,null,null,null,null,null,null,null,null,null,null,null,null,null,null,null,null,null,1640]
[0,0,0,0,0,0,0,0,0,0,0,0,"001642",null,null,null,null,null,null,null,null,null,null,null,null,null,null,null,null,null,null,null,null,null,null,null,null,null,null,null,null,null,null,null,null,null,null,null,null,null,null,1642]
[0,0,0,0,0,0,0,0,0,0,0,0,"001646",null,null,null,null,null,null,null,null,null,null,null,null,null,null,null,null,null,null,null,null,null,null,null,null,null,null,null,null,null,null,null,null,null,null,null,null,null,null,1646]
[0,0,0,0,0,0,0,0,0,0,0,0,"001649",null,null,null,null,null,null,null,null,null,null,null,null,null,null,null,null,null,null,null,null,null,null,null,null,null,null,null,null,null,null,null,null,null,null,null,null,null,null,1649]
[0,0,0,0,0,0,0,0,0,0,0,0,"001651",null,null,null,null,null,null,null,null,null,null,null,null,null,null,null,null,null,null,null,null,null,null,null,null,null,null,null,null,null,null,null,null,null,null,null,null,null,null,1651]
[0,0,0,0,0,0,0,0,0,0,0,0,"001655",null,null,null,null,null,null,null,null,null,null,null,null,null,null,null,null,null,null,null,null,null,null,null,null,null,null,null,null,null,null,null,null,null,null,null,null,null,null,1655]
[0,0,0,0,0,0,0,0,0,0,0,0,"001658",null,null,null,null,null,null,null,null,null,null,null,null,null,null,null,null,null,null,null,null,null,null,null,null,null,null,null,null,null,null,null,null,null,null,null,null,null,null,1658]
[0,0,0,0,0,0,0,0,0,0,0,0,"001659",null,null,null,null,null,null,null,null,null,null,null,null,null,null,null,null,null,null,null,null,null,null,null,null,null,null,null,null,null,null,null,null,null,null,null,null,null,null,1659]
[0,0,0,0,0,0,0,0,0,0,0,0,"001662",null,null,null,null,null,null,null,null,null,null,null,null,null,null,null,null,null,null,null,null,null,null,null,null,null,null,null,null,null,null,null,null,null,null,null,null,null,null,1662]
[0,0,0,0,0,0,0,0,0,0,0,0,"001664",null,null,null,null,null,null,null,null,null,null,null,null,null,null,null,null,null,null,null,null,null,null,null,null,null,null,null,null,null,null,null,null,null,null,null,null,null,null,1664]
[0,0,0,0,0,0,0,0,0,0,0,0,"001668",null,null,null,null,null,null,null,null,null,null,null,null,null,null,null,null,null,null,null,null,null,null,null,null,null,null,null,null,null,null,null,null,null,null,null,null,null,null,1668]
[0,0,0,0,0,0,0,0,0,0,0,0,"001671",null,null,null,null,null,null,null,null,null,null,null,null,null,null,null,null,null,null,null,null,null,null,null,null,null,null,null,null,null,null,null,null,null,null,null,null,null,null,1671]
[0,0,0,0,0,0,0,0,0,0,0,0,"001673",null,null,null,null,null,null,null,null,null,null,null,null,null,null,null,null,null,null,null,null,null,null,null,null,null,null,null,null,null,null,null,null,null,null,null,null,null,null,1673]
[0,0,0,0,0,0,0,0,0,0,0,0,"001677",null,null,null,null,null,null,null,null,null,null,null,null,null,null,null,null,null,null,null,null,null,null,null,null,null,null,null,null,null,null,null,null,null,null,null,null,null,null,1677]
[0,0,0,0,0,0,0,0,0,0,0,0,"001680",null,null,null,null,null,null,null,null,null,null,null,null,null,null,null,null,null,null,null,null,null,null,null,null,null,null,null,null,null,null,null,null,null,null,null,null,null,null,1680]
[0,0,0,0,0,0,0,0,0,0,0,0,"001681",null,null,null,null,null,null,null,null,null,null,null,null,null,null,null,null,null,null,null,null,null,null,null,null,null,null,null,null,null,null,null,null,null,null,null,null,null,null,1681]
[0,0,0,0,0,0,0,0,0,0,0,0,"001684",null,null,null,null,null,null,null,null,null,null,null,null,null,null,null,null,null,null,null,null,null,null,null,null,null,null,null,null,null,null,null,null,null,null,null,null,null,null,1684]
[0,0,0,0,0,0,0,0,0,0,0,0,"001687",null,null,null,null,null,null,null,null,null,null,null,null,null,null,null,null,null,null,null,null,null,null,null,null,null,null,null,null,null,null,null,null,null,null,null,null,null,null,1687]
[0,0,0,0,0,0,0,0,0,0,0,0,"001690",null,null,null,null,null,null,null,null,null,null,null,null,null,null,null,null,null,null,null,null,null,null,null,null,null,null,null,null,null,null,null,null,null,null,null,null,null,null,1690]
[0,0,0,0,0,0,0,0,0,0,0,0,"001693",null,null,null,null,null,null,null,null,null,null,null,null,null,null,null,null,null,null,null,null,null,null,null,null,null,null,null,null,null,null,null,null,null,null,null,null,null,null,1693]
[0,0,0,0,0,0,0,0,0,0,0,0,"001695",null,null,null,null,null,null,null,null,null,null,null,null,null,null,null,null,null,null,null,null,null,null,null,null,null,null,null,null,null,null,null,null,null,null,null,null,null,null,1695]
[0,0,0,0,0,0,0,0,0,0,0,0,"001699",null,null,null,null,null,null,null,null,null,null,null,null,null,null,null,null,null,null,null,null,null,null,null,null,null,null,null,null,null,null,null,null,null,null,null,null,null,null,1699]
[0,0,0,0,0,0,0,0,0,0,0,0,"001702",null,null,null,null,null,null,null,null,null,null,null,null,null,null,null,null,null,null,null,null,null,null,null,null,null,null,null,null,null,null,null,null,null,null,null,null,null,null,1702]
[0,0,0,0,0,0,0,0,0,0,0,0,"001703",null,null,null,null,null,null,null,null,null,null,null,null,null,null,null,null,null,null,null,null,null,null,null,null,null,null,null,null,null,null,null,null,null,null,null,null,null,null,1703]
[0,0,0,0,0,0,0,0,0,0,0,0,"001706",null,null,null,null,null,null,null,null,null,null,null,null,null,null,null,null,null,null,null,null,null,null,null,null,null,null,null,null,null,null,null,null,null,null,null,null,null,null,1706]
[0,0,0,0,0,0,0,0,0,0,0,0,"001709",null,null,null,null,null,null,null,null,null,null,null,null,null,null,null,null,null,null,null,null,null,null,null,null,null,null,null,null,null,null,null,null,null,null,null,null,null,null,1709]
[0,0,0,0,0,0,0,0,0,0,0,0,"001712",null,null,null,null,null,null,null,null,null,null,null,null,null,null,null,null,null,null,null,null,null,null,null,null,null,null,null,null,null,null,null,null,null,null,null,null,null,null,1712]
[0,0,0,0,0,0,0,0,0,0,0,0,"001715",null,null,null,null,null,null,null,null,null,null,null,null,null,null,null,null,null,null,null,null,null,null,null,null,null,null,null,null,null,null,null,null,null,null,null,null,null,null,1715]
[0,0,0,0,0,0,0,0,0,0,0,0,"001717",null,null,null,null,null,null,null,null,null,null,null,null,null,null,null,null,null,null,null,null,null,null,null,null,null,null,null,null,null,null,null,null,null,null,null,null,null,null,1717]
[0,0,0,0,0,0,0,0,0,0,0,0,"001721",null,null,null,null,null,null,null,null,null,null,null,null,null,null,null,null,null,null,null,null,null,null,null,null,null,null,null,null,null,null,null,null,null,null,null,null,null,null,1721]
[0,0,0,0,0,0,0,0,0,0,0,0,"001724",null,null,null,null,null,null,null,null,null,null,null,null,null,null,null,null,null,null,null,null,null,null,null,null,null,null,null,null,null,null,null,null,null,null,null,null,null,null,1724]
[0,0,0,0,0,0,0,0,0,0,0,0,"001725",null,null,null,null,null,null,null,null,null,null,null,null,null,null,null,null,null,null,null,null,null,null,null,null,null,null,null,null,null,null,null,null,null,null,null,null,null,null,1725]
[0,0,0,0,0,0,0,0,0,0,0,0,"001728",null,null,null,null,null,null,null,null,null,null,null,null,null,null,null,null,null,null,null,null,null,null,null,null,null,null,null,null,null,null,null,null,null,null,null,null,null,null,1728]
[0,0,0,0,0,0,0,0,0,0,0,0,"001731",null,null,null,null,null,null,null,null,null,null,null,null,null,null,null,null,null,null,null,null,null,null,null,null,null,null,null,null,null,null,null,null,null,null,null,null,null,null,1731]
[0,0,0,0,0,0,0,0,0,0,0,0,"001734",null,null,null,null,null,null,null,null,null,null,null,null,null,null,null,null,null,null,null,null,null,null,null,null,null,null,null,null,null,null,null,null,null,null,null,null,null,null,1734]
[0,0,0,0,0,0,0,0,0,0,0,0,"001737",null,null,null,null,null,null,null,null,null,null,null,null,null,null,null,null,null,null,null,null,null,null,null,null,null,null,null,null,null,null,null,null,null,null,null,null,null,null,1737]
[0,0,0,0,0,0,0,0,0,0,0,0,"001739",null,null,null,null,null,null,null,null,null,null,null,null,null,null,null,null,null,null,null,null,null,null,null,null,null,null,null,null,null,null,null,null,null,null,null,null,null,null,1739]
[0,0,0,0,0,0,0,0,0,0,0,0,"001743",null,null,null,null,null,null,null,null,null,null,null,null,null,null,null,null,null,null,null,null,null,null,null,null,null,null,null,null,null,null,null,null,null,null,null,null,null,null,1743]
[0,0,0,0,0,0,0,0,0,0,0,0,"001744",null,null,null,null,null,null,null,null,null,null,null,null,null,null,null,null,null,null,null,null,null,null,null,null,null,null,null,null,null,null,null,null,null,null,null,null,null,null,1744]
[0,0,0,0,0,0,0,0,0,0,0,0,"001747",null,null,null,null,null,null,null,null,null,null,null,null,null,null,null,null,null,null,null,null,null,null,null,null,null,null,null,null,null,null,null,null,null,null,null,null,null,null,1747]
[0,0,0,0,0,0,0,0,0,0,0,0,"001750",null,null,null,null,null,null,null,null,null,null,null,null,null,null,null,null,null,null,null,null,null,null,null,null,null,null,null,null,null,null,null,null,null,null,null,null,null,null,1750]
[0,0,0,0,0,0,0,0,0,0,0,0,"001753",null,null,null,null,null,null,null,null,null,null,null,null,null,null,null,null,null,null,null,null,null,null,null,null,null,null,null,null,null,null,null,null,null,null,null,null,null,null,1753]
[0,0,0,0,0,0,0,0,0,0,0,0,"001756",null,null,null,null,null,null,null,null,null,null,null,null,null,null,null,null,null,null,null,null,null,null,null,null,null,null,null,null,null,null,null,null,null,null,null,null,null,null,1756]
[0,0,0,0,0,0,0,0,0,0,0,0,"001759",null,null,null,null,null,null,null,null,null,null,null,null,null,null,null,null,null,null,null,null,null,null,null,null,null,null,null,null,null,null,null,null,null,null,null,null,null,null,1759]
[0,0,0,0,0,0,0,0,0,0,0,0,"001761",null,null,null,null,null,null,null,null,null,null,null,null,null,null,null,null,null,null,null,null,null,null,null,null,null,null,null,null,null,null,null,null,null,null,null,null,null,null,1761]
[0,0,0,0,0,0,0,0,0,0,0,0,"001765",null,null,null,null,null,null,null,null,null,null,null,null,null,null,null,null,null,null,null,null,null,null,null,null,null,null,null,null,null,null,null,null,null,null,null,null,null,null,1765]
[0,0,0,0,0,0,0,0,0,0,0,0,"001766",null,null,null,null,null,null,null,null,null,null,null,null,null,null,null,null,null,null,null,null,null,null,null,null,null,null,null,null,null,null,null,null,null,null,null,null,null,null,1766]
[0,0,0,0,0,0,0,0,0,0,0,0,"001769",null,null,null,null,null,null,null,null,null,null,null,null,null,null,null,null,null,null,null,null,null,null,null,null,null,null,null,null,null,null,null,null,null,null,null,null,null,null,1769]
[0,0,0,0,0,0,0,0,0,0,0,0,"001772",null,null,null,null,null,null,null,null,null,null,null,null,null,null,null,null,null,null,null,null,null,null,null,null,null,null,null,null,null,null,null,null,null,null,null,null,null,null,1772]
[0,0,0,0,0,0,0,0,0,0,0,0,"001775",null,null,null,null,null,null,null,null,null,null,null,null,null,null,null,null,null,null,null,null,null,null,null,null,null,null,null,null,null,null,null,null,null,null,null,null,null,null,1775]
[0,0,0,0,0,0,0,0,0,0,0,0,"001778",null,null,null,null,null,null,null,null,null,null,null,null,null,null,null,null,null,null,null,null,null,null,null,null,null,null,null,null,null,null,null,null,null,null,null,null,null,null,1778]
[0,0,0,0,0,0,0,0,0,0,0,0,"001781",null,null,null,null,null,null,null,null,null,null,null,null,null,null,null,null,null,null,null,null,null,null,null,null,null,null,null,null,null,null,null,null,null,null,null,null,null,null,1781]
[0,0,0,0,0,0,0,0,0,0,0,0,"001783",null,null,null,null,null,null,null,null,null,null,null,null,null,null,null,null,null,null,null,null,null,null,null,null,null,null,null,null,null,null,null,null,null,null,null,null,null,null,1783]
[0,0,0,0,0,0,0,0,0,0,0,0,"001787",null,null,null,null,null,null,null,null,null,null,null,null,null,null,null,null,null,null,null,null,null,null,null,null,null,null,null,null,null,null,null,null,null,null,null,null,null,null,1787]
[0,0,0,0,0,0,0,0,0,0,0,0,"001788",null,null,null,null,null,null,null,null,null,null,null,null,null,null,null,null,null,null,null,null,null,null,null,null,null,null,null,null,null,null,null,null,null,null,null,null,null,null,1788]
[0,0,0,0,0,0,0,0,0,0,0,0,"001791",null,null,null,null,null,null,null,null,null,null,null,null,null,null,null,null,null,null,null,null,null,null,null,null,null,null,null,null,null,null,null,null,null,null,null,null,null,null,1791]
[0,0,0,0,0,0,0,0,0,0,0,0,"001794",null,null,null,null,null,null,null,null,null,null,null,null,null,null,null,null,null,null,null,null,null,null,null,null,null,null,null,null,null,null,null,null,null,null,null,null,null,null,1794]
[0,0,0,0,0,0,0,0,0,0,0,0,"001797",null,null,null,null,null,null,null,null,null,null,null,null,null,null,null,null,null,null,null,null,null,null,null,null,null,null,null,null,null,null,null,null,null,null,null,null,null,null,1797]
[0,0,0,0,0,0,0,0,0,0,0,0,"001800",null,null,null,null,null,null,null,null,null,null,null,null,null,null,null,null,null,null,null,null,null,null,null,null,null,null,null,null,null,null,null,null,null,null,null,null,null,null,1800]
[0,0,0,0,0,0,0,0,0,0,0,0,"001804",null,null,null,null,null,null,null,null,null,null,null,null,null,null,null,null,null,null,null,null,null,null,null,null,null,null,null,null,null,null,null,null,null,null,null,null,null,null,1804]
[0,0,0,0,0,0,0,0,0,0,0,0,"001805",null,null,null,null,null,null,null,null,null,null,null,null,null,null,null,null,null,null,null,null,null,null,null,null,null,null,null,null,null,null,null,null,null,null,null,null,null,null,1805]
[0,0,0,0,0,0,0,0,0,0,0,0,"001809",null,null,null,null,null,null,null,null,null,null,null,null,null,null,null,null,null,null,null,null,null,null,null,null,null,null,null,null,null,null,null,null,null,null,null,null,null,null,1809]
[0,0,0,0,0,0,0,0,0,0,0,0,"001810",null,null,null,null,null,null,null,null,null,null,null,null,null,null,null,null,null,null,null,null,null,null,null,null,null,null,null,null,null,null,null,null,null,null,null,null,null,null,1810]
[0,0,0,0,0,0,0,0,0,0,0,0,"001813",null,null,null,null,null,null,null,null,null,null,null,null,null,null,null,null,null,null,null,null,null,null,null,null,null,null,null,null,null,null,null,null,null,null,null,null,null,null,1813]
[0,0,0,0,0,0,0,0,0,0,0,0,"001816",null,null,null,null,null,null,null,null,null,null,null,null,null,null,null,null,null,null,null,null,null,null,null,null,null,null,null,null,null,null,null,null,null,null,null,null,null,null,1816]
[0,0,0,0,0,0,0,0,0,0,0,0,"001819",null,null,null,null,null,null,null,null,null,null,null,null,null,null,null,null,null,null,null,null,null,null,null,null,null,null,null,null,null,null,null,null,null,null,null,null,null,null,1819]
[0,0,0,0,0,0,0,0,0,0,0,0,"001822",null,null,null,null,null,null,null,null,null,null,null,null,null,null,null,null,null,null,null,null,null,null,null,null,null,null,null,null,null,null,null,null,null,null,null,null,null,null,1822]
[0,0,0,0,0,0,0,0,0,0,0,0,"001826",null,null,null,null,null,null,null,null,null,null,null,null,null,null,null,null,null,null,null,null,null,null,null,null,null,null,null,null,null,null,null,null,null,null,null,null,null,null,1826]
[0,0,0,0,0,0,0,0,0,0,0,0,"001827",null,null,null,null,null,null,null,null,null,null,null,null,null,null,null,null,null,null,null,null,null,null,null,null,null,null,null,null,null,null,null,null,null,null,null,null,null,null,1827]
[0,0,0,0,0,0,0,0,0,0,0,0,"001831",null,null,null,null,null,null,null,null,null,null,null,null,null,null,null,null,null,null,null,null,null,null,null,null,null,null,null,null,null,null,null,null,null,null,null,null,null,null,1831]
[0,0,0,0,0,0,0,0,0,0,0,0,"001832",null,null,null,null,null,null,null,null,null,null,null,null,null,null,null,null,null,null,null,null,null,null,null,null,null,null,null,null,null,null,null,null,null,null,null,null,null,null,1832]
[0,0,0,0,0,0,0,0,0,0,0,0,"001835",null,null,null,null,null,null,null,null,null,null,null,null,null,null,null,null,null,null,null,null,null,null,null,null,null,null,null,null,null,null,null,null,null,null,null,null,null,null,1835]
[0,0,0,0,0,0,0,0,0,0,0,0,"001838",null,null,null,null,null,null,null,null,null,null,null,null,null,null,null,null,null,null,null,null,null,null,null,null,null,null,null,null,null,null,null,null,null,null,null,null,null,null,1838]
[0,0,0,0,0,0,0,0,0,0,0,0,"001841",null,null,null,null,null,null,null,null,null,null,null,null,null,null,null,null,null,null,null,null,null,null,null,null,null,null,null,null,null,null,null,null,null,null,null,null,null,null,1841]
[0,0,0,0,0,0,0,0,0,0,0,0,"001844",null,null,null,null,null,null,null,null,null,null,null,null,null,null,null,null,null,null,null,null,null,null,null,null,null,null,null,null,null,null,null,null,null,null,null,null,null,null,1844]
[0,0,0,0,0,0,0,0,0,0,0,0,"001848",null,null,null,null,null,null,null,null,null,null,null,null,null,null,null,null,null,null,null,null,null,null,null,null,null,null,null,null,null,null,null,null,null,null,null,null,null,null,1848]
[0,0,0,0,0,0,0,0,0,0,0,0,"001849",null,null,null,null,null,null,null,null,null,null,null,null,null,null,null,null,null,null,null,null,null,null,null,null,null,null,null,null,null,null,null,null,null,null,null,null,null,null,1849]
[0,0,0,0,0,0,0,0,0,0,0,0,"001853",null,null,null,null,null,null,null,null,null,null,null,null,null,null,null,null,null,null,null,null,null,null,null,null,null,null,null,null,null,null,null,null,null,null,null,null,null,null,1853]
[0,0,0,0,0,0,0,0,0,0,0,0,"001854",null,null,null,null,null,null,null,null,null,null,null,null,null,null,null,null,null,null,null,null,null,null,null,null,null,null,null,null,null,null,null,null,null,null,null,null,null,null,1854]
[{"$f":"Report_Year","v":0},{"$f":"Permittee_Name","v":0},{"$f":"FWS_Permit_Number","v":0},{"$f":"Project_Type_Transfer","v":0},{"$f":"Project_Subtype_Transfer","v":0},{"$f":"Project_Type_Other","v":0},{"$f":"Description","v":0},{"$f":"Primary_Contact_Name","v":0},{"$f":"Primary_Contact_Title","v":0},{"$f":"Primary_Contact_Phone","v":0},{"$f":"ProprietaryYesNo","v":0},{"$f":"Proprietary_Description","v":0},{"$f":"CONCATENATE(A1860,C1860,AZ1860)","v":"001857"},null,null,null,null,null,null,null,null,null,null,null,null,null,null,null,null,null,null,null,null,null,null,null,null,null,null,null,null,null,null,null,null,null,null,null,null,null,null,1857]
[0,0,0,0,0,0,0,0,0,0,0,0,"001860",null,null,null,null,null,null,null,null,null,null,null,null,null,null,null,null,null,null,null,null,null,null,null,null,null,null,null,null,null,null,null,null,null,null,null,null,null,null,1860]
[0,0,0,0,0,0,0,0,0,0,0,0,"001863",null,null,null,null,null,null,null,null,null,null,null,null,null,null,null,null,null,null,null,null,null,null,null,null,null,null,null,null,null,null,null,null,null,null,null,null,null,null,1863]
[0,0,0,0,0,0,0,0,0,0,0,0,"001866",null,null,null,null,null,null,null,null,null,null,null,null,null,null,null,null,null,null,null,null,null,null,null,null,null,null,null,null,null,null,null,null,null,null,null,null,null,null,1866]
[0,0,0,0,0,0,0,0,0,0,0,0,"001870",null,null,null,null,null,null,null,null,null,null,null,null,null,null,null,null,null,null,null,null,null,null,null,null,null,null,null,null,null,null,null,null,null,null,null,null,null,null,1870]
[0,0,0,0,0,0,0,0,0,0,0,0,"001873",null,null,null,null,null,null,null,null,null,null,null,null,null,null,null,null,null,null,null,null,null,null,null,null,null,null,null,null,null,null,null,null,null,null,null,null,null,null,1873]
[0,0,0,0,0,0,0,0,0,0,0,0,"001874",null,null,null,null,null,null,null,null,null,null,null,null,null,null,null,null,null,null,null,null,null,null,null,null,null,null,null,null,null,null,null,null,null,null,null,null,null,null,1874]
[0,0,0,0,0,0,0,0,0,0,0,0,"001875",null,null,null,null,null,null,null,null,null,null,null,null,null,null,null,null,null,null,null,null,null,null,null,null,null,null,null,null,null,null,null,null,null,null,null,null,null,null,1875]
[0,0,0,0,0,0,0,0,0,0,0,0,"001876",null,null,null,null,null,null,null,null,null,null,null,null,null,null,null,null,null,null,null,null,null,null,null,null,null,null,null,null,null,null,null,null,null,null,null,null,null,null,1876]
[0,0,0,0,0,0,0,0,0,0,0,0,"001877",null,null,null,null,null,null,null,null,null,null,null,null,null,null,null,null,null,null,null,null,null,null,null,null,null,null,null,null,null,null,null,null,null,null,null,null,null,null,1877]
[0,0,0,0,0,0,0,0,0,0,0,0,"001878",null,null,null,null,null,null,null,null,null,null,null,null,null,null,null,null,null,null,null,null,null,null,null,null,null,null,null,null,null,null,null,null,null,null,null,null,null,null,1878]
[0,0,0,0,0,0,0,0,0,0,0,0,"001879",null,null,null,null,null,null,null,null,null,null,null,null,null,null,null,null,null,null,null,null,null,null,null,null,null,null,null,null,null,null,null,null,null,null,null,null,null,null,1879]
[0,0,0,0,0,0,0,0,0,0,0,0,"001880",null,null,null,null,null,null,null,null,null,null,null,null,null,null,null,null,null,null,null,null,null,null,null,null,null,null,null,null,null,null,null,null,null,null,null,null,null,null,1880]
[0,0,0,0,0,0,0,0,0,0,0,0,"001881",null,null,null,null,null,null,null,null,null,null,null,null,null,null,null,null,null,null,null,null,null,null,null,null,null,null,null,null,null,null,null,null,null,null,null,null,null,null,1881]
[0,0,0,0,0,0,0,0,0,0,0,0,"001882",null,null,null,null,null,null,null,null,null,null,null,null,null,null,null,null,null,null,null,null,null,null,null,null,null,null,null,null,null,null,null,null,null,null,null,null,null,null,1882]
[0,0,0,0,0,0,0,0,0,0,0,0,"001883",null,null,null,null,null,null,null,null,null,null,null,null,null,null,null,null,null,null,null,null,null,null,null,null,null,null,null,null,null,null,null,null,null,null,null,null,null,null,1883]
[0,0,0,0,0,0,0,0,0,0,0,0,"001884",null,null,null,null,null,null,null,null,null,null,null,null,null,null,null,null,null,null,null,null,null,null,null,null,null,null,null,null,null,null,null,null,null,null,null,null,null,null,1884]
[0,0,0,0,0,0,0,0,0,0,0,0,"001885",null,null,null,null,null,null,null,null,null,null,null,null,null,null,null,null,null,null,null,null,null,null,null,null,null,null,null,null,null,null,null,null,null,null,null,null,null,null,1885]
[0,0,0,0,0,0,0,0,0,0,0,0,"001886",null,null,null,null,null,null,null,null,null,null,null,null,null,null,null,null,null,null,null,null,null,null,null,null,null,null,null,null,null,null,null,null,null,null,null,null,null,null,1886]
[0,0,0,0,0,0,0,0,0,0,0,0,"001887",null,null,null,null,null,null,null,null,null,null,null,null,null,null,null,null,null,null,null,null,null,null,null,null,null,null,null,null,null,null,null,null,null,null,null,null,null,null,1887]
[0,0,0,0,0,0,0,0,0,0,0,0,"001888",null,null,null,null,null,null,null,null,null,null,null,null,null,null,null,null,null,null,null,null,null,null,null,null,null,null,null,null,null,null,null,null,null,null,null,null,null,null,1888]
[0,0,0,0,0,0,0,0,0,0,0,0,"001889",null,null,null,null,null,null,null,null,null,null,null,null,null,null,null,null,null,null,null,null,null,null,null,null,null,null,null,null,null,null,null,null,null,null,null,null,null,null,1889]
[0,0,0,0,0,0,0,0,0,0,0,0,"001890",null,null,null,null,null,null,null,null,null,null,null,null,null,null,null,null,null,null,null,null,null,null,null,null,null,null,null,null,null,null,null,null,null,null,null,null,null,null,1890]
[0,0,0,0,0,0,0,0,0,0,0,0,"001891",null,null,null,null,null,null,null,null,null,null,null,null,null,null,null,null,null,null,null,null,null,null,null,null,null,null,null,null,null,null,null,null,null,null,null,null,null,null,1891]
[0,0,0,0,0,0,0,0,0,0,0,0,"001892",null,null,null,null,null,null,null,null,null,null,null,null,null,null,null,null,null,null,null,null,null,null,null,null,null,null,null,null,null,null,null,null,null,null,null,null,null,null,1892]
[0,0,0,0,0,0,0,0,0,0,0,0,"001893",null,null,null,null,null,null,null,null,null,null,null,null,null,null,null,null,null,null,null,null,null,null,null,null,null,null,null,null,null,null,null,null,null,null,null,null,null,null,1893]
[0,0,0,0,0,0,0,0,0,0,0,0,"001894",null,null,null,null,null,null,null,null,null,null,null,null,null,null,null,null,null,null,null,null,null,null,null,null,null,null,null,null,null,null,null,null,null,null,null,null,null,null,1894]
[0,0,0,0,0,0,0,0,0,0,0,0,"001895",null,null,null,null,null,null,null,null,null,null,null,null,null,null,null,null,null,null,null,null,null,null,null,null,null,null,null,null,null,null,null,null,null,null,null,null,null,null,1895]
[0,0,0,0,0,0,0,0,0,0,0,0,"001896",null,null,null,null,null,null,null,null,null,null,null,null,null,null,null,null,null,null,null,null,null,null,null,null,null,null,null,null,null,null,null,null,null,null,null,null,null,null,1896]
[0,0,0,0,0,0,0,0,0,0,0,0,"001897",null,null,null,null,null,null,null,null,null,null,null,null,null,null,null,null,null,null,null,null,null,null,null,null,null,null,null,null,null,null,null,null,null,null,null,null,null,null,1897]
[0,0,0,0,0,0,0,0,0,0,0,0,"001898",null,null,null,null,null,null,null,null,null,null,null,null,null,null,null,null,null,null,null,null,null,null,null,null,null,null,null,null,null,null,null,null,null,null,null,null,null,null,1898]
[0,0,0,0,0,0,0,0,0,0,0,0,"001899",null,null,null,null,null,null,null,null,null,null,null,null,null,null,null,null,null,null,null,null,null,null,null,null,null,null,null,null,null,null,null,null,null,null,null,null,null,null,1899]
[0,0,0,0,0,0,0,0,0,0,0,0,"001900",null,null,null,null,null,null,null,null,null,null,null,null,null,null,null,null,null,null,null,null,null,null,null,null,null,null,null,null,null,null,null,null,null,null,null,null,null,null,1900]
[0,0,0,0,0,0,0,0,0,0,0,0,"001901",null,null,null,null,null,null,null,null,null,null,null,null,null,null,null,null,null,null,null,null,null,null,null,null,null,null,null,null,null,null,null,null,null,null,null,null,null,null,1901]
[0,0,0,0,0,0,0,0,0,0,0,0,"001902",null,null,null,null,null,null,null,null,null,null,null,null,null,null,null,null,null,null,null,null,null,null,null,null,null,null,null,null,null,null,null,null,null,null,null,null,null,null,1902]
[0,0,0,0,0,0,0,0,0,0,0,0,"001903",null,null,null,null,null,null,null,null,null,null,null,null,null,null,null,null,null,null,null,null,null,null,null,null,null,null,null,null,null,null,null,null,null,null,null,null,null,null,1903]
[0,0,0,0,0,0,0,0,0,0,0,0,"001904",null,null,null,null,null,null,null,null,null,null,null,null,null,null,null,null,null,null,null,null,null,null,null,null,null,null,null,null,null,null,null,null,null,null,null,null,null,null,1904]
[0,0,0,0,0,0,0,0,0,0,0,0,"001905",null,null,null,null,null,null,null,null,null,null,null,null,null,null,null,null,null,null,null,null,null,null,null,null,null,null,null,null,null,null,null,null,null,null,null,null,null,null,1905]
[0,0,0,0,0,0,0,0,0,0,0,0,"001906",null,null,null,null,null,null,null,null,null,null,null,null,null,null,null,null,null,null,null,null,null,null,null,null,null,null,null,null,null,null,null,null,null,null,null,null,null,null,1906]
[0,0,0,0,0,0,0,0,0,0,0,0,"001907",null,null,null,null,null,null,null,null,null,null,null,null,null,null,null,null,null,null,null,null,null,null,null,null,null,null,null,null,null,null,null,null,null,null,null,null,null,null,1907]
[0,0,0,0,0,0,0,0,0,0,0,0,"001908",null,null,null,null,null,null,null,null,null,null,null,null,null,null,null,null,null,null,null,null,null,null,null,null,null,null,null,null,null,null,null,null,null,null,null,null,null,null,1908]
[0,0,0,0,0,0,0,0,0,0,0,0,"001909",null,null,null,null,null,null,null,null,null,null,null,null,null,null,null,null,null,null,null,null,null,null,null,null,null,null,null,null,null,null,null,null,null,null,null,null,null,null,1909]
[0,0,0,0,0,0,0,0,0,0,0,0,"001910",null,null,null,null,null,null,null,null,null,null,null,null,null,null,null,null,null,null,null,null,null,null,null,null,null,null,null,null,null,null,null,null,null,null,null,null,null,null,1910]
[0,0,0,0,0,0,0,0,0,0,0,0,"001911",null,null,null,null,null,null,null,null,null,null,null,null,null,null,null,null,null,null,null,null,null,null,null,null,null,null,null,null,null,null,null,null,null,null,null,null,null,null,1911]
[0,0,0,0,0,0,0,0,0,0,0,0,"001912",null,null,null,null,null,null,null,null,null,null,null,null,null,null,null,null,null,null,null,null,null,null,null,null,null,null,null,null,null,null,null,null,null,null,null,null,null,null,1912]
[0,0,0,0,0,0,0,0,0,0,0,0,"001913",null,null,null,null,null,null,null,null,null,null,null,null,null,null,null,null,null,null,null,null,null,null,null,null,null,null,null,null,null,null,null,null,null,null,null,null,null,null,1913]
[0,0,0,0,0,0,0,0,0,0,0,0,"001914",null,null,null,null,null,null,null,null,null,null,null,null,null,null,null,null,null,null,null,null,null,null,null,null,null,null,null,null,null,null,null,null,null,null,null,null,null,null,1914]
[0,0,0,0,0,0,0,0,0,0,0,0,"001915",null,null,null,null,null,null,null,null,null,null,null,null,null,null,null,null,null,null,null,null,null,null,null,null,null,null,null,null,null,null,null,null,null,null,null,null,null,null,1915]
[0,0,0,0,0,0,0,0,0,0,0,0,"001916",null,null,null,null,null,null,null,null,null,null,null,null,null,null,null,null,null,null,null,null,null,null,null,null,null,null,null,null,null,null,null,null,null,null,null,null,null,null,1916]
[0,0,0,0,0,0,0,0,0,0,0,0,"001917",null,null,null,null,null,null,null,null,null,null,null,null,null,null,null,null,null,null,null,null,null,null,null,null,null,null,null,null,null,null,null,null,null,null,null,null,null,null,1917]
[0,0,0,0,0,0,0,0,0,0,0,0,"001918",null,null,null,null,null,null,null,null,null,null,null,null,null,null,null,null,null,null,null,null,null,null,null,null,null,null,null,null,null,null,null,null,null,null,null,null,null,null,1918]
[0,0,0,0,0,0,0,0,0,0,0,0,"001919",null,null,null,null,null,null,null,null,null,null,null,null,null,null,null,null,null,null,null,null,null,null,null,null,null,null,null,null,null,null,null,null,null,null,null,null,null,null,1919]
[0,0,0,0,0,0,0,0,0,0,0,0,"001920",null,null,null,null,null,null,null,null,null,null,null,null,null,null,null,null,null,null,null,null,null,null,null,null,null,null,null,null,null,null,null,null,null,null,null,null,null,null,1920]
[{"$f":"Report_Year","v":0},{"$f":"Permittee_Name","v":0},{"$f":"FWS_Permit_Number","v":0},{"$f":"Project_Type_Transfer","v":0},{"$f":"Project_Subtype_Transfer","v":0},{"$f":"Project_Type_Other","v":0},{"$f":"Description","v":0},{"$f":"Primary_Contact_Name","v":0},{"$f":"Primary_Contact_Title","v":0},{"$f":"Primary_Contact_Phone","v":0},{"$f":"ProprietaryYesNo","v":0},{"$f":"Proprietary_Description","v":0},{"$f":"CONCATENATE(A1924,C1924,AZ1924)","v":"001921"},null,null,null,null,null,null,null,null,null,null,null,null,null,null,null,null,null,null,null,null,null,null,null,null,null,null,null,null,null,null,null,null,null,null,null,null,null,null,1921]
[0,0,0,0,0,0,0,0,0,0,0,0,"001922",null,null,null,null,null,null,null,null,null,null,null,null,null,null,null,null,null,null,null,null,null,null,null,null,null,null,null,null,null,null,null,null,null,null,null,null,null,null,1922]
[0,0,0,0,0,0,0,0,0,0,0,0,"001923",null,null,null,null,null,null,null,null,null,null,null,null,null,null,null,null,null,null,null,null,null,null,null,null,null,null,null,null,null,null,null,null,null,null,null,null,null,null,1923]
[0,0,0,0,0,0,0,0,0,0,0,0,"001924",null,null,null,null,null,null,null,null,null,null,null,null,null,null,null,null,null,null,null,null,null,null,null,null,null,null,null,null,null,null,null,null,null,null,null,null,null,null,1924]
[0,0,0,0,0,0,0,0,0,0,0,0,"001925",null,null,null,null,null,null,null,null,null,null,null,null,null,null,null,null,null,null,null,null,null,null,null,null,null,null,null,null,null,null,null,null,null,null,null,null,null,null,1925]
[0,0,0,0,0,0,0,0,0,0,0,0,"001926",null,null,null,null,null,null,null,null,null,null,null,null,null,null,null,null,null,null,null,null,null,null,null,null,null,null,null,null,null,null,null,null,null,null,null,null,null,null,1926]
[0,0,0,0,0,0,0,0,0,0,0,0,"001927",null,null,null,null,null,null,null,null,null,null,null,null,null,null,null,null,null,null,null,null,null,null,null,null,null,null,null,null,null,null,null,null,null,null,null,null,null,null,1927]
[0,0,0,0,0,0,0,0,0,0,0,0,"001928",null,null,null,null,null,null,null,null,null,null,null,null,null,null,null,null,null,null,null,null,null,null,null,null,null,null,null,null,null,null,null,null,null,null,null,null,null,null,1928]
[0,0,0,0,0,0,0,0,0,0,0,0,"001929",null,null,null,null,null,null,null,null,null,null,null,null,null,null,null,null,null,null,null,null,null,null,null,null,null,null,null,null,null,null,null,null,null,null,null,null,null,null,1929]
[0,0,0,0,0,0,0,0,0,0,0,0,"001930",null,null,null,null,null,null,null,null,null,null,null,null,null,null,null,null,null,null,null,null,null,null,null,null,null,null,null,null,null,null,null,null,null,null,null,null,null,null,1930]
[0,0,0,0,0,0,0,0,0,0,0,0,"001931",null,null,null,null,null,null,null,null,null,null,null,null,null,null,null,null,null,null,null,null,null,null,null,null,null,null,null,null,null,null,null,null,null,null,null,null,null,null,1931]
[0,0,0,0,0,0,0,0,0,0,0,0,"001932",null,null,null,null,null,null,null,null,null,null,null,null,null,null,null,null,null,null,null,null,null,null,null,null,null,null,null,null,null,null,null,null,null,null,null,null,null,null,1932]
[0,0,0,0,0,0,0,0,0,0,0,0,"001933",null,null,null,null,null,null,null,null,null,null,null,null,null,null,null,null,null,null,null,null,null,null,null,null,null,null,null,null,null,null,null,null,null,null,null,null,null,null,1933]
[0,0,0,0,0,0,0,0,0,0,0,0,"001934",null,null,null,null,null,null,null,null,null,null,null,null,null,null,null,null,null,null,null,null,null,null,null,null,null,null,null,null,null,null,null,null,null,null,null,null,null,null,1934]
[0,0,0,0,0,0,0,0,0,0,0,0,"001935",null,null,null,null,null,null,null,null,null,null,null,null,null,null,null,null,null,null,null,null,null,null,null,null,null,null,null,null,null,null,null,null,null,null,null,null,null,null,1935]
[0,0,0,0,0,0,0,0,0,0,0,0,"001936",null,null,null,null,null,null,null,null,null,null,null,null,null,null,null,null,null,null,null,null,null,null,null,null,null,null,null,null,null,null,null,null,null,null,null,null,null,null,1936]
[0,0,0,0,0,0,0,0,0,0,0,0,"001937",null,null,null,null,null,null,null,null,null,null,null,null,null,null,null,null,null,null,null,null,null,null,null,null,null,null,null,null,null,null,null,null,null,null,null,null,null,null,1937]
[0,0,0,0,0,0,0,0,0,0,0,0,"001938",null,null,null,null,null,null,null,null,null,null,null,null,null,null,null,null,null,null,null,null,null,null,null,null,null,null,null,null,null,null,null,null,null,null,null,null,null,null,1938]
[0,0,0,0,0,0,0,0,0,0,0,0,"001939",null,null,null,null,null,null,null,null,null,null,null,null,null,null,null,null,null,null,null,null,null,null,null,null,null,null,null,null,null,null,null,null,null,null,null,null,null,null,1939]
[0,0,0,0,0,0,0,0,0,0,0,0,"001940",null,null,null,null,null,null,null,null,null,null,null,null,null,null,null,null,null,null,null,null,null,null,null,null,null,null,null,null,null,null,null,null,null,null,null,null,null,null,1940]
[0,0,0,0,0,0,0,0,0,0,0,0,"001941",null,null,null,null,null,null,null,null,null,null,null,null,null,null,null,null,null,null,null,null,null,null,null,null,null,null,null,null,null,null,null,null,null,null,null,null,null,null,1941]
[0,0,0,0,0,0,0,0,0,0,0,0,"001942",null,null,null,null,null,null,null,null,null,null,null,null,null,null,null,null,null,null,null,null,null,null,null,null,null,null,null,null,null,null,null,null,null,null,null,null,null,null,1942]
[0,0,0,0,0,0,0,0,0,0,0,0,"001943",null,null,null,null,null,null,null,null,null,null,null,null,null,null,null,null,null,null,null,null,null,null,null,null,null,null,null,null,null,null,null,null,null,null,null,null,null,null,1943]
[0,0,0,0,0,0,0,0,0,0,0,0,"001944",null,null,null,null,null,null,null,null,null,null,null,null,null,null,null,null,null,null,null,null,null,null,null,null,null,null,null,null,null,null,null,null,null,null,null,null,null,null,1944]
[0,0,0,0,0,0,0,0,0,0,0,0,"001945",null,null,null,null,null,null,null,null,null,null,null,null,null,null,null,null,null,null,null,null,null,null,null,null,null,null,null,null,null,null,null,null,null,null,null,null,null,null,1945]
[0,0,0,0,0,0,0,0,0,0,0,0,"001946",null,null,null,null,null,null,null,null,null,null,null,null,null,null,null,null,null,null,null,null,null,null,null,null,null,null,null,null,null,null,null,null,null,null,null,null,null,null,1946]
[0,0,0,0,0,0,0,0,0,0,0,0,"001947",null,null,null,null,null,null,null,null,null,null,null,null,null,null,null,null,null,null,null,null,null,null,null,null,null,null,null,null,null,null,null,null,null,null,null,null,null,null,1947]
[0,0,0,0,0,0,0,0,0,0,0,0,"001948",null,null,null,null,null,null,null,null,null,null,null,null,null,null,null,null,null,null,null,null,null,null,null,null,null,null,null,null,null,null,null,null,null,null,null,null,null,null,1948]
[0,0,0,0,0,0,0,0,0,0,0,0,"001949",null,null,null,null,null,null,null,null,null,null,null,null,null,null,null,null,null,null,null,null,null,null,null,null,null,null,null,null,null,null,null,null,null,null,null,null,null,null,1949]
[0,0,0,0,0,0,0,0,0,0,0,0,"001950",null,null,null,null,null,null,null,null,null,null,null,null,null,null,null,null,null,null,null,null,null,null,null,null,null,null,null,null,null,null,null,null,null,null,null,null,null,null,1950]
[0,0,0,0,0,0,0,0,0,0,0,0,"001951",null,null,null,null,null,null,null,null,null,null,null,null,null,null,null,null,null,null,null,null,null,null,null,null,null,null,null,null,null,null,null,null,null,null,null,null,null,null,1951]
[0,0,0,0,0,0,0,0,0,0,0,0,"001952",null,null,null,null,null,null,null,null,null,null,null,null,null,null,null,null,null,null,null,null,null,null,null,null,null,null,null,null,null,null,null,null,null,null,null,null,null,null,1952]
[0,0,0,0,0,0,0,0,0,0,0,0,"001953",null,null,null,null,null,null,null,null,null,null,null,null,null,null,null,null,null,null,null,null,null,null,null,null,null,null,null,null,null,null,null,null,null,null,null,null,null,null,1953]
[0,0,0,0,0,0,0,0,0,0,0,0,"001954",null,null,null,null,null,null,null,null,null,null,null,null,null,null,null,null,null,null,null,null,null,null,null,null,null,null,null,null,null,null,null,null,null,null,null,null,null,null,1954]
[0,0,0,0,0,0,0,0,0,0,0,0,"001955",null,null,null,null,null,null,null,null,null,null,null,null,null,null,null,null,null,null,null,null,null,null,null,null,null,null,null,null,null,null,null,null,null,null,null,null,null,null,1955]
[0,0,0,0,0,0,0,0,0,0,0,0,"001956",null,null,null,null,null,null,null,null,null,null,null,null,null,null,null,null,null,null,null,null,null,null,null,null,null,null,null,null,null,null,null,null,null,null,null,null,null,null,1956]
[0,0,0,0,0,0,0,0,0,0,0,0,"001957",null,null,null,null,null,null,null,null,null,null,null,null,null,null,null,null,null,null,null,null,null,null,null,null,null,null,null,null,null,null,null,null,null,null,null,null,null,null,1957]
[0,0,0,0,0,0,0,0,0,0,0,0,"001958",null,null,null,null,null,null,null,null,null,null,null,null,null,null,null,null,null,null,null,null,null,null,null,null,null,null,null,null,null,null,null,null,null,null,null,null,null,null,1958]
[0,0,0,0,0,0,0,0,0,0,0,0,"001959",null,null,null,null,null,null,null,null,null,null,null,null,null,null,null,null,null,null,null,null,null,null,null,null,null,null,null,null,null,null,null,null,null,null,null,null,null,null,1959]
[0,0,0,0,0,0,0,0,0,0,0,0,"001960",null,null,null,null,null,null,null,null,null,null,null,null,null,null,null,null,null,null,null,null,null,null,null,null,null,null,null,null,null,null,null,null,null,null,null,null,null,null,1960]
[0,0,0,0,0,0,0,0,0,0,0,0,"001961",null,null,null,null,null,null,null,null,null,null,null,null,null,null,null,null,null,null,null,null,null,null,null,null,null,null,null,null,null,null,null,null,null,null,null,null,null,null,1961]
[0,0,0,0,0,0,0,0,0,0,0,0,"001962",null,null,null,null,null,null,null,null,null,null,null,null,null,null,null,null,null,null,null,null,null,null,null,null,null,null,null,null,null,null,null,null,null,null,null,null,null,null,1962]
[0,0,0,0,0,0,0,0,0,0,0,0,"001963",null,null,null,null,null,null,null,null,null,null,null,null,null,null,null,null,null,null,null,null,null,null,null,null,null,null,null,null,null,null,null,null,null,null,null,null,null,null,1963]
[0,0,0,0,0,0,0,0,0,0,0,0,"001964",null,null,null,null,null,null,null,null,null,null,null,null,null,null,null,null,null,null,null,null,null,null,null,null,null,null,null,null,null,null,null,null,null,null,null,null,null,null,1964]
[0,0,0,0,0,0,0,0,0,0,0,0,"001965",null,null,null,null,null,null,null,null,null,null,null,null,null,null,null,null,null,null,null,null,null,null,null,null,null,null,null,null,null,null,null,null,null,null,null,null,null,null,1965]
[0,0,0,0,0,0,0,0,0,0,0,0,"001966",null,null,null,null,null,null,null,null,null,null,null,null,null,null,null,null,null,null,null,null,null,null,null,null,null,null,null,null,null,null,null,null,null,null,null,null,null,null,1966]
[0,0,0,0,0,0,0,0,0,0,0,0,"001967",null,null,null,null,null,null,null,null,null,null,null,null,null,null,null,null,null,null,null,null,null,null,null,null,null,null,null,null,null,null,null,null,null,null,null,null,null,null,1967]
[0,0,0,0,0,0,0,0,0,0,0,0,"001968",null,null,null,null,null,null,null,null,null,null,null,null,null,null,null,null,null,null,null,null,null,null,null,null,null,null,null,null,null,null,null,null,null,null,null,null,null,null,1968]
[0,0,0,0,0,0,0,0,0,0,0,0,"001969",null,null,null,null,null,null,null,null,null,null,null,null,null,null,null,null,null,null,null,null,null,null,null,null,null,null,null,null,null,null,null,null,null,null,null,null,null,null,1969]
[0,0,0,0,0,0,0,0,0,0,0,0,"001970",null,null,null,null,null,null,null,null,null,null,null,null,null,null,null,null,null,null,null,null,null,null,null,null,null,null,null,null,null,null,null,null,null,null,null,null,null,null,1970]
[0,0,0,0,0,0,0,0,0,0,0,0,"001971",null,null,null,null,null,null,null,null,null,null,null,null,null,null,null,null,null,null,null,null,null,null,null,null,null,null,null,null,null,null,null,null,null,null,null,null,null,null,1971]
[0,0,0,0,0,0,0,0,0,0,0,0,"001972",null,null,null,null,null,null,null,null,null,null,null,null,null,null,null,null,null,null,null,null,null,null,null,null,null,null,null,null,null,null,null,null,null,null,null,null,null,null,1972]
[0,0,0,0,0,0,0,0,0,0,0,0,"001973",null,null,null,null,null,null,null,null,null,null,null,null,null,null,null,null,null,null,null,null,null,null,null,null,null,null,null,null,null,null,null,null,null,null,null,null,null,null,1973]
[0,0,0,0,0,0,0,0,0,0,0,0,"001974",null,null,null,null,null,null,null,null,null,null,null,null,null,null,null,null,null,null,null,null,null,null,null,null,null,null,null,null,null,null,null,null,null,null,null,null,null,null,1974]
[0,0,0,0,0,0,0,0,0,0,0,0,"001975",null,null,null,null,null,null,null,null,null,null,null,null,null,null,null,null,null,null,null,null,null,null,null,null,null,null,null,null,null,null,null,null,null,null,null,null,null,null,1975]
[0,0,0,0,0,0,0,0,0,0,0,0,"001976",null,null,null,null,null,null,null,null,null,null,null,null,null,null,null,null,null,null,null,null,null,null,null,null,null,null,null,null,null,null,null,null,null,null,null,null,null,null,1976]
[0,0,0,0,0,0,0,0,0,0,0,0,"001977",null,null,null,null,null,null,null,null,null,null,null,null,null,null,null,null,null,null,null,null,null,null,null,null,null,null,null,null,null,null,null,null,null,null,null,null,null,null,1977]
[0,0,0,0,0,0,0,0,0,0,0,0,"001978",null,null,null,null,null,null,null,null,null,null,null,null,null,null,null,null,null,null,null,null,null,null,null,null,null,null,null,null,null,null,null,null,null,null,null,null,null,null,1978]
[0,0,0,0,0,0,0,0,0,0,0,0,"001979",null,null,null,null,null,null,null,null,null,null,null,null,null,null,null,null,null,null,null,null,null,null,null,null,null,null,null,null,null,null,null,null,null,null,null,null,null,null,1979]
[0,0,0,0,0,0,0,0,0,0,0,0,"001980",null,null,null,null,null,null,null,null,null,null,null,null,null,null,null,null,null,null,null,null,null,null,null,null,null,null,null,null,null,null,null,null,null,null,null,null,null,null,1980]
[0,0,0,0,0,0,0,0,0,0,0,0,"001981",null,null,null,null,null,null,null,null,null,null,null,null,null,null,null,null,null,null,null,null,null,null,null,null,null,null,null,null,null,null,null,null,null,null,null,null,null,null,1981]
[0,0,0,0,0,0,0,0,0,0,0,0,"001982",null,null,null,null,null,null,null,null,null,null,null,null,null,null,null,null,null,null,null,null,null,null,null,null,null,null,null,null,null,null,null,null,null,null,null,null,null,null,1982]
[0,0,0,0,0,0,0,0,0,0,0,0,"001983",null,null,null,null,null,null,null,null,null,null,null,null,null,null,null,null,null,null,null,null,null,null,null,null,null,null,null,null,null,null,null,null,null,null,null,null,null,null,1983]
[0,0,0,0,0,0,0,0,0,0,0,0,"001984",null,null,null,null,null,null,null,null,null,null,null,null,null,null,null,null,null,null,null,null,null,null,null,null,null,null,null,null,null,null,null,null,null,null,null,null,null,null,1984]
[{"$f":"Report_Year","v":0},{"$f":"Permittee_Name","v":0},{"$f":"FWS_Permit_Number","v":0},{"$f":"Project_Type_Transfer","v":0},{"$f":"Project_Subtype_Transfer","v":0},{"$f":"Project_Type_Other","v":0},{"$f":"Description","v":0},{"$f":"Primary_Contact_Name","v":0},{"$f":"Primary_Contact_Title","v":0},{"$f":"Primary_Contact_Phone","v":0},{"$f":"ProprietaryYesNo","v":0},{"$f":"Proprietary_Description","v":0},{"$f":"CONCATENATE(A1988,C1988,AZ1988)","v":"001985"},null,null,null,null,null,null,null,null,null,null,null,null,null,null,null,null,null,null,null,null,null,null,null,null,null,null,null,null,null,null,null,null,null,null,null,null,null,null,1985]
[0,0,0,0,0,0,0,0,0,0,0,0,"001986",null,null,null,null,null,null,null,null,null,null,null,null,null,null,null,null,null,null,null,null,null,null,null,null,null,null,null,null,null,null,null,null,null,null,null,null,null,null,1986]
[0,0,0,0,0,0,0,0,0,0,0,0,"001987",null,null,null,null,null,null,null,null,null,null,null,null,null,null,null,null,null,null,null,null,null,null,null,null,null,null,null,null,null,null,null,null,null,null,null,null,null,null,1987]
[0,0,0,0,0,0,0,0,0,0,0,0,"001988",null,null,null,null,null,null,null,null,null,null,null,null,null,null,null,null,null,null,null,null,null,null,null,null,null,null,null,null,null,null,null,null,null,null,null,null,null,null,1988]
[0,0,0,0,0,0,0,0,0,0,0,0,"001989",null,null,null,null,null,null,null,null,null,null,null,null,null,null,null,null,null,null,null,null,null,null,null,null,null,null,null,null,null,null,null,null,null,null,null,null,null,null,1989]
[0,0,0,0,0,0,0,0,0,0,0,0,"001990",null,null,null,null,null,null,null,null,null,null,null,null,null,null,null,null,null,null,null,null,null,null,null,null,null,null,null,null,null,null,null,null,null,null,null,null,null,null,1990]
[0,0,0,0,0,0,0,0,0,0,0,0,"001991",null,null,null,null,null,null,null,null,null,null,null,null,null,null,null,null,null,null,null,null,null,null,null,null,null,null,null,null,null,null,null,null,null,null,null,null,null,null,1991]
[0,0,0,0,0,0,0,0,0,0,0,0,"001992",null,null,null,null,null,null,null,null,null,null,null,null,null,null,null,null,null,null,null,null,null,null,null,null,null,null,null,null,null,null,null,null,null,null,null,null,null,null,1992]
[0,0,0,0,0,0,0,0,0,0,0,0,"001993",null,null,null,null,null,null,null,null,null,null,null,null,null,null,null,null,null,null,null,null,null,null,null,null,null,null,null,null,null,null,null,null,null,null,null,null,null,null,1993]
[0,0,0,0,0,0,0,0,0,0,0,0,"001994",null,null,null,null,null,null,null,null,null,null,null,null,null,null,null,null,null,null,null,null,null,null,null,null,null,null,null,null,null,null,null,null,null,null,null,null,null,null,1994]
[0,0,0,0,0,0,0,0,0,0,0,0,"001995",null,null,null,null,null,null,null,null,null,null,null,null,null,null,null,null,null,null,null,null,null,null,null,null,null,null,null,null,null,null,null,null,null,null,null,null,null,null,1995]
[0,0,0,0,0,0,0,0,0,0,0,0,"001996",null,null,null,null,null,null,null,null,null,null,null,null,null,null,null,null,null,null,null,null,null,null,null,null,null,null,null,null,null,null,null,null,null,null,null,null,null,null,1996]
[0,0,0,0,0,0,0,0,0,0,0,0,"001997",null,null,null,null,null,null,null,null,null,null,null,null,null,null,null,null,null,null,null,null,null,null,null,null,null,null,null,null,null,null,null,null,null,null,null,null,null,null,1997]
[0,0,0,0,0,0,0,0,0,0,0,0,"001998",null,null,null,null,null,null,null,null,null,null,null,null,null,null,null,null,null,null,null,null,null,null,null,null,null,null,null,null,null,null,null,null,null,null,null,null,null,null,1998]

{"sheet":"GLOSSARY OF TERMS","index":3,"n_rows":9,"n_cols":1,"rows_kept":9,"cut":false,"hidden":false,"merged":[]}
["GLOSSARY OF TERMS"]
["Brine Pond: A type of non-focusing solar collector consisting of a pool of salt water heated by the sun."]
["De-Oiled: A breakdown of the fine structure of a bird's feathers that makes them waterproof. This waterproof system works like a winter coat whose outer layer covers a thicker layer of material that traps air, keeping the wearer warm and dry. When this structure is disrupted, as can commonly occur when birds are oiled during an oil spill, the bird is no longer properly insulated from the cold air and water and can die from exposure to the elements."]
["Incidental Finding: is used to describe a bird was found any way other than a structured survey process (either a Mortality survey, Routine infrastructure survey, or Structured Research). Examples of incidental findings are: (1) the finding occurred as a result of a power outage; (2) an individual just happened upon a bird in the course of another activity; (3) an individual was out looking for birds, but not using any structure survey protocol or recording search time and effort (e.g. they may go out every day, but walk a different route and search for different periods of time and do not record either)\n"]
["Mortality Survey: Refers to a structured survey designed to find dead/injured birds within a defined area and time. It includes a consistent and clearly defined search area, search times and intervals, and standardized search protocols."]
["Project Proponent:  An entity with overall responsibility for the implementation and registration of projects. This is as opposed to the operating company who simply owns and finances these projects. For instance, project proponent Western Wind is a developer that is owned by the Terra-Gen Power LLC operating company."]
["Routine Infrastructure Survey: Refers to a routine and systematic facility or infrastructure survey (e.g., monitoring of buildings, electric utility lines, wind turbine pads, towers, oil pits, pipes, fences) that includes a consistent and clearly defined search area, search times and search intervals. For example, if maintenance staff goes out every week day (Mon-Fri) for 4 hours and walks the same route to systematically inspect each turbine pad in a wind energy facility, that qualifies as a Routine infrastructure survey. If consistent search areas, times and intervals such as these cannot be applied to the monitoring being conducted at the time of the finding, then the option Incidental finding should be used. "]
["Structured Research: Refers to research activities such as field work, bird re-release and use of telemetry (satellite, VHF, PTT). "]
["Sub-Adult: A bird that has some adult characteristics but is not yet sexually mature. The term Sub-Adult usually refers to larger birds such as gulls and raptors that may take several years to reach full maturity and recognizable adult plumage."]

{"sheet":"NOTICES","index":4,"n_rows":9,"n_cols":1,"rows_kept":9,"cut":false,"hidden":false,"merged":[]}
["NOTICES"]
["PRIVACY ACT STATEMENT"]
["Authority:  The information requested is authorized by the following: the Bald and Golden Eagle Protection Act (16 U.S.C. 668), 50 CFR 22; the Endangered Species Act (16 U.S.C. 1531-1544), 50 CFR 17; the Migratory Bird Treaty Act (16 U.S.C. 703-712), 50 CFR 21; the Wild Bird Conservation Act (16 U.S.C. 4901-4916), 50 CFR 15; the Lacey Act: Injurious Wildlife (18 U.S.C. 42), 50 CFR 16; Convention on International Trade in Endangered Species of Wild Fauna and Flora (TIAS 8249), 50 CFR 23; General Provisions, 50 CFR 10; General Permit Procedures, 50 CFR 13; and Wildlife Provisions (Import/export/transport), 50 CFR 14.\n\nPurpose:  The collection of contact information is to verify the individual has an eligible permit to conduct activities which affect protected species.  The information the individual provides helps the FWS monitor and report on protected species and assess the impact of permitted activities on the conservation and management of species and their habitats. \n\nRoutine Uses:  The collected information may be used to verify an applicant’s eligibility for a permit to conduct activities with protected wildlife; to provide the public and the permittees with permit related information; to monitor activities under a permit; to analyze data and produce reports to monitor the use of protected wildlife; to assess the impact of permitted activities on the conservation and management of protected species and their habitats; and to evaluate the effectiveness of the permit programs.  More information about routine uses can be found in the System of Records Notice, Permits System, FWS-21. \n\nDisclosure:  The information requested in this form is voluntary.  However, submission of requested information is required to process applications for permits authorized under the listed authorities.  Failure to provide the requested information may be sufficient cause for the U.S. Fish & Wildlife Service to deny the request. \n\n\n    \n       \n\n"]
["PAPERWORK REDUCTION ACT STATEMENT"]
["In accordance with the Paperwork Reduction Act (44 U.S.C. 3501), the U.S. Fish and Wildlife Service collects information necessary to consider a permit application, under the applicable laws governing the requested activity, for which a permit is requested, and to respond to requests made under the Freedom of Information Act and the Privacy Act of 1974. Information requested in this form is purely voluntary. However, submission of requested information is required in order to process applications for permits authorized under the above laws. Failure to provide all requested information may be sufficient cause for the U.S. Fish and Wildlife Service to deny the request. According to the Paperwork Reduction Act of 1995, an agency may not conduct or sponsor and a person is not required to respond to a collection of information unless it displays a currently valid OMB control number. OMB has approved this collection of information and assigned Control No. 1018-0022. \n\n"]
["ESTIMATED BURDEN STATEMENT"]
["We estimate public reporting for this collection of information averages:\n\nOriginal submission - paper-based:  5 hours (reporting) and 1 hour (recordkeeping)\nOriginal submission - electronic:  4 hours (reporting) and 1 hour (recordkeeping) \n\nThese estimates include time for reviewing instructions, gathering and maintaining data and completing and reviewing the form. Direct comments regarding the burden estimate or any other aspect of the form to the Service Information Clearance Officer, Fish and Wildlife Service, U.S. Department of the Interior, 5275 Leesburg Pike, MS: PRB/PERMA (JAO), Falls Church, VA 22041-3803, or via email at Info_Coll@fws.gov. Please do not send your completed form to this address."]
["FREEDOM OF INFORMATION ACT"]
["For organizations, businesses, or individuals operating as a business (i.e., permittees not covered by the Privacy Act), we request that you identify any information that should be considered privileged and confidential business information to allow the Service to meet its responsibilities under FOIA. Confidential business information must be clearly marked \"Business Confidential\" at the top of the letter or page and each succeeding page and must be accompanied by a non-confidential summary of the confidential information. The non-confidential summary and remaining documents may be made available to the public under FOIA [43 CFR 2.26 – 2.33].\n"]

{"sheet":"Picklists","index":5,"n_rows":757,"n_cols":18,"rows_kept":757,"cut":false,"hidden":true,"merged":[]}
["Disposition","Project Type","Location Accuracy","How Found","Condition","Age","Surrounding Habitat","How aged","Sex","How Identified","Suspected Cause","Event Observed","StateList","Specific Species","General Species Type","Project Subtype","Proprietary","X"]
["Buried","Brine ponds","Exact location","Mortality survey","Alive","Adult","Agriculture","Bloom & Clark 2001","Male","Expert opinion","Barotrauma","Yes","AL","Bald Eagle","Bat","Distribution line","Yes","X"]
["Disposed of in trash","Communication tower","Nearest cross-street","Incidental finding","Dead","Sub-adult","Desert","Expert opinion","Female","Feather Atlas","Blinded/optical damage (radiant flux)","No","AK","Golden Eagle","Bird","Solar power tower","No"]
["Disposition pending","Electric utility","Facility address","Routine infrastructure survey",null,"Juvenile","Forest","Guess","Multiple sexes","Field Guide","Collision ",null,"AZ","Albert's Towhee","Eagle","Solar PV"]
["Euthanized","Geothermal","City","Structured research",null,"Nestling","River or stream","Identification Guide to North American Birds (Pyle)","Unknown","Guess","Collision with fence",null,"AR","Acadian Flycatcher","Falcon","Substation"]
["Freezer off site","Hydroelectric","County","Unknown",null,"Egg","Shrubland and grassland","USFWS Feather Guide",null,"Other resource","Collision with solar panel/heliostat",null,"CA","Acorn Woodpecker","Grouse","Transmission line"]
["Freezer on site","Mining and processing","Township",null,null,"Multiple ages","Urban","Other",null,"Unknown","Collision with wind turbine",null,"CO","Akeke'e","Hawk","Other"]
["Incinerated","Oil and gas","HUC",null,null,"Unknown","Water","Unknown",null,null,"Collision with window",null,"CT","Akepa","Heron/Egret","NA"]
["Lab","Pesticides","Other",null,null,null,"Wetland",null,null,null,"Collision with wire",null,"DE","Akiapola'au","Owl"]
["Law Enforcement","Pipeline",null,null,null,null,"Other",null,null,null,"Collision/electrocution",null,"DC","Akikiki","Pigeon/Dove"]
["Left in place","Solar",null,null,null,null,null,null,null,null,"De-oiled",null,"FL","Akohekohe","Shorebird"]
["Rehab center","Transporation",null,null,null,null,null,null,null,null,"Determination pending",null,"GA","Alder Flycatcher","Songbird"]
["Released to wild","Wind",null,null,null,null,null,null,null,null,"Disease",null,"HI","Aleutian Tern","Starling"]
["Sent to National Eagle Repository","Other",null,null,null,null,null,null,null,null,"Drowned",null,"ID","Allen's Hummingbird","Turkey"]
["Transferred to other permittee",null,null,null,null,null,null,null,null,null,"Drowned (container/pit)",null,"IL","Altamira Oriole","Vulture"]
["Used in research trials (searcher efficiency and dead animal removal)",null,null,null,null,null,null,null,null,null,"Drowned (entangled)",null,"IN","American Avocet","Waterbird"]
["Veterinarian",null,null,null,null,null,null,null,null,null,"Drowned (evaporation pond)",null,"IA","American Bittern","Waterfowl"]
["Other ",null,null,null,null,null,null,null,null,null,"Drowned (stock tank)",null,"KS","American Black Duck"]
["Unknown",null,null,null,null,null,null,null,null,null,"Electrocution",null,"KY","American Coot"]
[null,null,null,null,null,null,null,null,null,null,"Emaciation",null,"LA","American Crow"]
[null,null,null,null,null,null,null,null,null,null,"Entangled (net)",null,"ME","American Dipper"]
[null,null,null,null,null,null,null,null,null,null,"Entrapped",null,"MD","American Golden-Plover"]
[null,null,null,null,null,null,null,null,null,null,"Exposure/dehydration",null,"MA","American Goldfinch"]
[null,null,null,null,null,null,null,null,null,null,"Fall from nest",null,"MI","American Kestrel"]
[null,null,null,null,null,null,null,null,null,null,"Fire",null,"MN","American Oystercatcher"]
[null,null,null,null,null,null,null,null,null,null,"Infection",null,"MS","American Pipit"]
[null,null,null,null,null,null,null,null,null,null,"Killed/injured by animal",null,"MO","American Redstart"]
[null,null,null,null,null,null,null,null,null,null,"Killed/injured by animal while entangled",null,"MT","American Robin"]
[null,null,null,null,null,null,null,null,null,null,"Oiled",null,"NE","American Three-toed Woodpecker"]
[null,null,null,null,null,null,null,null,null,null,"Poisoned",null,"NV","American Tree Sparrow"]
[null,null,null,null,null,null,null,null,null,null,"Poisoned (lead)",null,"NH","American White Pelican"]
[null,null,null,null,null,null,null,null,null,null,"Poisoned (pesticide)",null,"NJ","American Wigeon"]
[null,null,null,null,null,null,null,null,null,null,"Salt encrustation",null,"NM","American Woodcock"]
[null,null,null,null,null,null,null,null,null,null,"Salt toxicity",null,"NY","Ancient Murrelet"]
[null,null,null,null,null,null,null,null,null,null,"Scorched or singed",null,"NC","Anhinga"]
[null,null,null,null,null,null,null,null,null,null,"Shot",null,"ND","Anianiau"]
[null,null,null,null,null,null,null,null,null,null,"Starvation",null,"OH","Anna's Hummingbird"]
[null,null,null,null,null,null,null,null,null,null,"Trapped",null,"OK","Apapane"]
[null,null,null,null,null,null,null,null,null,null,"Trauma",null,"OR","Aplomado Falcon"]
[null,null,null,null,null,null,null,null,null,null,"Weather",null,"PA","Arctic Loon"]
[null,null,null,null,null,null,null,null,null,null,"Unknown",null,"RI","Arctic Tern"]
[null,null,null,null,null,null,null,null,null,null,"Other",null,"SC","Arizona Woodpecker"]
[null,null,null,null,null,null,null,null,null,null,null,null,"SD","Ash-throated Flycatcher"]
[null,null,null,null,null,null,null,null,null,null,null,null,"TN","Ashy Storm-Petrel"]
[null,null,null,null,null,null,null,null,null,null,null,null,"TX","Atlantic Puffin"]
[null,null,null,null,null,null,null,null,null,null,null,null,"UT","Audubon's Oriole"]
[null,null,null,null,null,null,null,null,null,null,null,null,"VT","Audubon's Shearwater"]
[null,null,null,null,null,null,null,null,null,null,null,null,"VA","Aztec Thrush"]
[null,null,null,null,null,null,null,null,null,null,null,null,"WA","Bachman's Sparrow"]
[null,null,null,null,null,null,null,null,null,null,null,null,"WV","Bachman's Warbler"]
[null,null,null,null,null,null,null,null,null,null,null,null,"WI","Bahama Mockingbird"]
[null,null,null,null,null,null,null,null,null,null,null,null,"WY","Baird's Sandpiper"]
[null,null,null,null,null,null,null,null,null,null,null,null,null,"Baird's Sparrow"]
[null,null,null,null,null,null,null,null,null,null,null,null,null,"Baltimore Oriole"]
[null,null,null,null,null,null,null,null,null,null,null,null,null,"Band-rumped Storm-Petrel"]
[null,null,null,null,null,null,null,null,null,null,null,null,null,"Band-tailed Pigeon"]
[null,null,null,null,null,null,null,null,null,null,null,null,null,"Bank Swallow"]
[null,null,null,null,null,null,null,null,null,null,null,null,null,"Barn Owl"]
[null,null,null,null,null,null,null,null,null,null,null,null,null,"Barn Swallow"]
[null,null,null,null,null,null,null,null,null,null,null,null,null,"Barnacle Goose"]
[null,null,null,null,null,null,null,null,null,null,null,null,null,"Barred Owl"]
[null,null,null,null,null,null,null,null,null,null,null,null,null,"Barrow's Goldeneye"]
[null,null,null,null,null,null,null,null,null,null,null,null,null,"Bar-tailed Godwit"]
[null,null,null,null,null,null,null,null,null,null,null,null,null,"Bay-breasted Warbler"]
[null,null,null,null,null,null,null,null,null,null,null,null,null,"Bell's Sparrow"]
[null,null,null,null,null,null,null,null,null,null,null,null,null,"Bell's Vireo"]
[null,null,null,null,null,null,null,null,null,null,null,null,null,"Belted Kingfisher"]
[null,null,null,null,null,null,null,null,null,null,null,null,null,"Bendire's Thrasher"]
[null,null,null,null,null,null,null,null,null,null,null,null,null,"Bermuda Petrel"]
[null,null,null,null,null,null,null,null,null,null,null,null,null,"Berylline Hummingbird"]
[null,null,null,null,null,null,null,null,null,null,null,null,null,"Bewick's Wren"]
[null,null,null,null,null,null,null,null,null,null,null,null,null,"Bicknell's Thrush"]
[null,null,null,null,null,null,null,null,null,null,null,null,null,"Black Guillemot"]
[null,null,null,null,null,null,null,null,null,null,null,null,null,"Black Noddy"]
[null,null,null,null,null,null,null,null,null,null,null,null,null,"Black Oystercatcher"]
[null,null,null,null,null,null,null,null,null,null,null,null,null,"Black Phoebe"]
[null,null,null,null,null,null,null,null,null,null,null,null,null,"Black Rail"]
[null,null,null,null,null,null,null,null,null,null,null,null,null,"Black Rosy-Finch"]
[null,null,null,null,null,null,null,null,null,null,null,null,null,"Black Scoter"]
[null,null,null,null,null,null,null,null,null,null,null,null,null,"Black Skimmer"]
[null,null,null,null,null,null,null,null,null,null,null,null,null,"Black Storm-Petrel"]
[null,null,null,null,null,null,null,null,null,null,null,null,null,"Black Swift"]
[null,null,null,null,null,null,null,null,null,null,null,null,null,"Black Tern"]
[null,null,null,null,null,null,null,null,null,null,null,null,null,"Black Turnstone"]
[null,null,null,null,null,null,null,null,null,null,null,null,null,"Black Vulture"]
[null,null,null,null,null,null,null,null,null,null,null,null,null,"Black-and-white Warbler"]
[null,null,null,null,null,null,null,null,null,null,null,null,null,"Black-backed Woodpecker"]
[null,null,null,null,null,null,null,null,null,null,null,null,null,"Black-bellied Plover"]
[null,null,null,null,null,null,null,null,null,null,null,null,null,"Black-bellied Whistling-Duck"]
[null,null,null,null,null,null,null,null,null,null,null,null,null,"Black-billed Cuckoo"]
[null,null,null,null,null,null,null,null,null,null,null,null,null,"Black-billed Magpie"]
[null,null,null,null,null,null,null,null,null,null,null,null,null,"Blackburnian Warbler"]
[null,null,null,null,null,null,null,null,null,null,null,null,null,"Black-capped Chickadee"]
[null,null,null,null,null,null,null,null,null,null,null,null,null,"Black-capped Gnatcatcher"]
[null,null,null,null,null,null,null,null,null,null,null,null,null,"Black-capped Petrel"]
[null,null,null,null,null,null,null,null,null,null,null,null,null,"Black-capped Vireo"]
[null,null,null,null,null,null,null,null,null,null,null,null,null,"Black-chinned Hummingbird"]
[null,null,null,null,null,null,null,null,null,null,null,null,null,"Black-chinned Sparrow"]
[null,null,null,null,null,null,null,null,null,null,null,null,null,"Black-crested Titmouse"]
[null,null,null,null,null,null,null,null,null,null,null,null,null,"Black-crowned Night-Heron"]
[null,null,null,null,null,null,null,null,null,null,null,null,null,"Black-footed Albatross"]
[null,null,null,null,null,null,null,null,null,null,null,null,null,"Black-headed Grosbeak"]
[null,null,null,null,null,null,null,null,null,null,null,null,null,"Black-headed Gull"]
[null,null,null,null,null,null,null,null,null,null,null,null,null,"Black-legged Kittiwake"]
[null,null,null,null,null,null,null,null,null,null,null,null,null,"Black-necked Stilt"]
[null,null,null,null,null,null,null,null,null,null,null,null,null,"Blackpoll Warbler"]
[null,null,null,null,null,null,null,null,null,null,null,null,null,"Black-tailed Gnatcatcher"]
[null,null,null,null,null,null,null,null,null,null,null,null,null,"Black-tailed Godwit"]
[null,null,null,null,null,null,null,null,null,null,null,null,null,"Black-throated Blue Warbler"]
[null,null,null,null,null,null,null,null,null,null,null,null,null,"Black-throated Gray Warbler"]
[null,null,null,null,null,null,null,null,null,null,null,null,null,"Black-throated Green Warbler"]
[null,null,null,null,null,null,null,null,null,null,null,null,null,"Black-throated Sparrow"]
[null,null,null,null,null,null,null,null,null,null,null,null,null,"Black-vented Shearwater"]
[null,null,null,null,null,null,null,null,null,null,null,null,null,"Black-whiskered Vireo"]
[null,null,null,null,null,null,null,null,null,null,null,null,null,"Blue Grosbeak"]
[null,null,null,null,null,null,null,null,null,null,null,null,null,"Blue Jay"]
[null,null,null,null,null,null,null,null,null,null,null,null,null,"Blue-footed Booby"]
[null,null,null,null,null,null,null,null,null,null,null,null,null,"Blue-gray Gnatcatcher"]
[null,null,null,null,null,null,null,null,null,null,null,null,null,"Blue-gray Noddy"]
[null,null,null,null,null,null,null,null,null,null,null,null,null,"Blue-headed Vireo"]
[null,null,null,null,null,null,null,null,null,null,null,null,null,"Blue-throated Hummingbird"]
[null,null,null,null,null,null,null,null,null,null,null,null,null,"Blue-winged Teal"]
[null,null,null,null,null,null,null,null,null,null,null,null,null,"Blue-winged Warbler"]
[null,null,null,null,null,null,null,null,null,null,null,null,null,"Boat-tailed Grackle"]
[null,null,null,null,null,null,null,null,null,null,null,null,null,"Bobolink"]
[null,null,null,null,null,null,null,null,null,null,null,null,null,"Bohemian Waxwing"]
[null,null,null,null,null,null,null,null,null,null,null,null,null,"Bonaparte's Gull"]
[null,null,null,null,null,null,null,null,null,null,null,null,null,"Bonin Petrel"]
[null,null,null,null,null,null,null,null,null,null,null,null,null,"Boreal Chickadee"]
[null,null,null,null,null,null,null,null,null,null,null,null,null,"Boreal Owl"]
[null,null,null,null,null,null,null,null,null,null,null,null,null,"Botteri's Sparrow"]
[null,null,null,null,null,null,null,null,null,null,null,null,null,"Brandt's Cormorant"]
[null,null,null,null,null,null,null,null,null,null,null,null,null,"Brant"]
[null,null,null,null,null,null,null,null,null,null,null,null,null,"Brewer's Blackbird"]
[null,null,null,null,null,null,null,null,null,null,null,null,null,"Brewer's Sparrow"]
[null,null,null,null,null,null,null,null,null,null,null,null,null,"Bridled Tern"]
[null,null,null,null,null,null,null,null,null,null,null,null,null,"Bridled Titmouse"]
[null,null,null,null,null,null,null,null,null,null,null,null,null,"Bristle-thighed Curlew"]
[null,null,null,null,null,null,null,null,null,null,null,null,null,"Broad-billed Hummingbird"]
[null,null,null,null,null,null,null,null,null,null,null,null,null,"Broad-tailed Hummingbird"]
[null,null,null,null,null,null,null,null,null,null,null,null,null,"Broad-winged Hawk"]
[null,null,null,null,null,null,null,null,null,null,null,null,null,"Bronzed Cowbird"]
[null,null,null,null,null,null,null,null,null,null,null,null,null,"Brown Booby"]
[null,null,null,null,null,null,null,null,null,null,null,null,null,"Brown Creeper"]
[null,null,null,null,null,null,null,null,null,null,null,null,null,"Brown Jay"]
[null,null,null,null,null,null,null,null,null,null,null,null,null,"Brown Noddy"]
[null,null,null,null,null,null,null,null,null,null,null,null,null,"Brown Pelican"]
[null,null,null,null,null,null,null,null,null,null,null,null,null,"Brown Thrasher"]
[null,null,null,null,null,null,null,null,null,null,null,null,null,"Brown-capped Rosy-Finch"]
[null,null,null,null,null,null,null,null,null,null,null,null,null,"Brown-crested Flycatcher"]
[null,null,null,null,null,null,null,null,null,null,null,null,null,"Brown-headed Cowbird"]
[null,null,null,null,null,null,null,null,null,null,null,null,null,"Brown-headed Nuthatch"]
[null,null,null,null,null,null,null,null,null,null,null,null,null,"Buff-bellied Hummingbird"]
[null,null,null,null,null,null,null,null,null,null,null,null,null,"Buff-breasted Flycatcher"]
[null,null,null,null,null,null,null,null,null,null,null,null,null,"Buff-breasted Sandpiper"]
[null,null,null,null,null,null,null,null,null,null,null,null,null,"Buff-collared Nightjar"]
[null,null,null,null,null,null,null,null,null,null,null,null,null,"Bufflehead"]
[null,null,null,null,null,null,null,null,null,null,null,null,null,"Buller's Shearwater"]
[null,null,null,null,null,null,null,null,null,null,null,null,null,"Bullock's Oriole"]
[null,null,null,null,null,null,null,null,null,null,null,null,null,"Burrowing Owl"]
[null,null,null,null,null,null,null,null,null,null,null,null,null,"Bushtit"]
[null,null,null,null,null,null,null,null,null,null,null,null,null,"Cackling Goose"]
[null,null,null,null,null,null,null,null,null,null,null,null,null,"Cactus Wren"]
[null,null,null,null,null,null,null,null,null,null,null,null,null,"California Condor"]
[null,null,null,null,null,null,null,null,null,null,null,null,null,"California Gnatcatcher"]
[null,null,null,null,null,null,null,null,null,null,null,null,null,"California Gull"]
[null,null,null,null,null,null,null,null,null,null,null,null,null,"California Thrasher"]
[null,null,null,null,null,null,null,null,null,null,null,null,null,"California Towhee"]
[null,null,null,null,null,null,null,null,null,null,null,null,null,"Calliope Hummingbird"]
[null,null,null,null,null,null,null,null,null,null,null,null,null,"Canada Goose"]
[null,null,null,null,null,null,null,null,null,null,null,null,null,"Canada Warbler"]
[null,null,null,null,null,null,null,null,null,null,null,null,null,"Canvasback"]
[null,null,null,null,null,null,null,null,null,null,null,null,null,"Canyon Towhee"]
[null,null,null,null,null,null,null,null,null,null,null,null,null,"Canyon Wren"]
[null,null,null,null,null,null,null,null,null,null,null,null,null,"Cape May Warbler"]
[null,null,null,null,null,null,null,null,null,null,null,null,null,"Cape Verde Shearwater"]
[null,null,null,null,null,null,null,null,null,null,null,null,null,"Carolina Chickadee"]
[null,null,null,null,null,null,null,null,null,null,null,null,null,"Carolina Wren"]
[null,null,null,null,null,null,null,null,null,null,null,null,null,"Caspian Tern"]
[null,null,null,null,null,null,null,null,null,null,null,null,null,"Cassin's Auklet"]
[null,null,null,null,null,null,null,null,null,null,null,null,null,"Cassin's Finch"]
[null,null,null,null,null,null,null,null,null,null,null,null,null,"Cassin's Kingbird"]
[null,null,null,null,null,null,null,null,null,null,null,null,null,"Cassin's Sparrow"]
[null,null,null,null,null,null,null,null,null,null,null,null,null,"Cassin's Vireo"]
[null,null,null,null,null,null,null,null,null,null,null,null,null,"Cattle Egret"]
[null,null,null,null,null,null,null,null,null,null,null,null,null,"Cave Swallow"]
[null,null,null,null,null,null,null,null,null,null,null,null,null,"Cedar Waxwing"]
[null,null,null,null,null,null,null,null,null,null,null,null,null,"Cerulean Warbler"]
[null,null,null,null,null,null,null,null,null,null,null,null,null,"Chestnut-backed Chickadee"]
[null,null,null,null,null,null,null,null,null,null,null,null,null,"Chestnut-collared Longspur"]
[null,null,null,null,null,null,null,null,null,null,null,null,null,"Chestnut-sided Warbler"]
[null,null,null,null,null,null,null,null,null,null,null,null,null,"Chihuahuan Raven"]
[null,null,null,null,null,null,null,null,null,null,null,null,null,"Chimney Swift"]
[null,null,null,null,null,null,null,null,null,null,null,null,null,"Chipping Sparrow"]
[null,null,null,null,null,null,null,null,null,null,null,null,null,"Chuck-will's-widow"]
[null,null,null,null,null,null,null,null,null,null,null,null,null,"Cinnamon Teal"]
[null,null,null,null,null,null,null,null,null,null,null,null,null,"Citrine Wagtail"]
[null,null,null,null,null,null,null,null,null,null,null,null,null,"Clapper Rail"]
[null,null,null,null,null,null,null,null,null,null,null,null,null,"Clark's Grebe"]
[null,null,null,null,null,null,null,null,null,null,null,null,null,"Clark's Nutcracker"]
[null,null,null,null,null,null,null,null,null,null,null,null,null,"Clay-colored Sparrow"]
[null,null,null,null,null,null,null,null,null,null,null,null,null,"Clay-colored Thrush"]
[null,null,null,null,null,null,null,null,null,null,null,null,null,"Cliff Swallow"]
[null,null,null,null,null,null,null,null,null,null,null,null,null,"Colima Warbler"]
[null,null,null,null,null,null,null,null,null,null,null,null,null,"Common Black-Hawk"]
[null,null,null,null,null,null,null,null,null,null,null,null,null,"Common Eider"]
[null,null,null,null,null,null,null,null,null,null,null,null,null,"Common Gallinule"]
[null,null,null,null,null,null,null,null,null,null,null,null,null,"Common Goldeneye"]
[null,null,null,null,null,null,null,null,null,null,null,null,null,"Common Grackle"]
[null,null,null,null,null,null,null,null,null,null,null,null,null,"Common Ground-Dove"]
[null,null,null,null,null,null,null,null,null,null,null,null,null,"Common Loon"]
[null,null,null,null,null,null,null,null,null,null,null,null,null,"Common Merganser"]
[null,null,null,null,null,null,null,null,null,null,null,null,null,"Common Murre"]
[null,null,null,null,null,null,null,null,null,null,null,null,null,"Common Nighthawk"]
[null,null,null,null,null,null,null,null,null,null,null,null,null,"Common Pauraque"]
[null,null,null,null,null,null,null,null,null,null,null,null,null,"Common Poorwill"]
[null,null,null,null,null,null,null,null,null,null,null,null,null,"Common Raven"]
[null,null,null,null,null,null,null,null,null,null,null,null,null,"Common Redpoll"]
[null,null,null,null,null,null,null,null,null,null,null,null,null,"Common Tern"]
[null,null,null,null,null,null,null,null,null,null,null,null,null,"Common Yellowthroat"]
[null,null,null,null,null,null,null,null,null,null,null,null,null,"Connecticut Warbler"]
[null,null,null,null,null,null,null,null,null,null,null,null,null,"Cook's Petrel"]
[null,null,null,null,null,null,null,null,null,null,null,null,null,"Cooper's Hawk"]
[null,null,null,null,null,null,null,null,null,null,null,null,null,"Cordilleran Flycatcher"]
[null,null,null,null,null,null,null,null,null,null,null,null,null,"Cory's Shearwater"]
[null,null,null,null,null,null,null,null,null,null,null,null,null,"Costa's Hummingbird"]
[null,null,null,null,null,null,null,null,null,null,null,null,null,"Couch's Kingbird"]
[null,null,null,null,null,null,null,null,null,null,null,null,null,"Craveri's Murrelet"]
[null,null,null,null,null,null,null,null,null,null,null,null,null,"Crested Auklet"]
[null,null,null,null,null,null,null,null,null,null,null,null,null,"Crested Caracara"]
[null,null,null,null,null,null,null,null,null,null,null,null,null,"Crimson-collared Grosbeak"]
[null,null,null,null,null,null,null,null,null,null,null,null,null,"Crissal Thrasher"]
[null,null,null,null,null,null,null,null,null,null,null,null,null,"Curve-billed Thrasher"]
[null,null,null,null,null,null,null,null,null,null,null,null,null,"Dark-eyed Junco"]
[null,null,null,null,null,null,null,null,null,null,null,null,null,"Dickcissel"]
[null,null,null,null,null,null,null,null,null,null,null,null,null,"Double-crested Cormorant"]
[null,null,null,null,null,null,null,null,null,null,null,null,null,"Dovekie"]
[null,null,null,null,null,null,null,null,null,null,null,null,null,"Downy Woodpecker"]
[null,null,null,null,null,null,null,null,null,null,null,null,null,"Dunlin"]
[null,null,null,null,null,null,null,null,null,null,null,null,null,"Dusky Flycatcher"]
[null,null,null,null,null,null,null,null,null,null,null,null,null,"Dusky-capped Flycatcher"]
[null,null,null,null,null,null,null,null,null,null,null,null,null,"Eared Grebe"]
[null,null,null,null,null,null,null,null,null,null,null,null,null,"Eared Quetzal"]
[null,null,null,null,null,null,null,null,null,null,null,null,null,"Eastern Kingbird"]
[null,null,null,null,null,null,null,null,null,null,null,null,null,"Eastern Meadowlark"]
[null,null,null,null,null,null,null,null,null,null,null,null,null,"Eastern Phoebe"]
[null,null,null,null,null,null,null,null,null,null,null,null,null,"Eastern Screech-Owl"]
[null,null,null,null,null,null,null,null,null,null,null,null,null,"Eastern Towhee"]
[null,null,null,null,null,null,null,null,null,null,null,null,null,"Eastern Whip-poor-will"]
[null,null,null,null,null,null,null,null,null,null,null,null,null,"Eastern Wood-Pewee"]
[null,null,null,null,null,null,null,null,null,null,null,null,null,"Eastern Yellow Wagtail"]
[null,null,null,null,null,null,null,null,null,null,null,null,null,"Elegant Tern"]
[null,null,null,null,null,null,null,null,null,null,null,null,null,"Elegant Trogon"]
[null,null,null,null,null,null,null,null,null,null,null,null,null,"Elf Owl"]
[null,null,null,null,null,null,null,null,null,null,null,null,null,"Elfin-woods Warbler"]
[null,null,null,null,null,null,null,null,null,null,null,null,null,"Emperor Goose"]
[null,null,null,null,null,null,null,null,null,null,null,null,null,"Eurasian Bullfinch"]
[null,null,null,null,null,null,null,null,null,null,null,null,null,"Eurasian Wigeon"]
[null,null,null,null,null,null,null,null,null,null,null,null,null,"Evening Grosbeak"]
[null,null,null,null,null,null,null,null,null,null,null,null,null,"Falcated Duck"]
[null,null,null,null,null,null,null,null,null,null,null,null,null,"Ferruginous Hawk"]
[null,null,null,null,null,null,null,null,null,null,null,null,null,"Ferruginous Pygmy-Owl"]
[null,null,null,null,null,null,null,null,null,null,null,null,null,"Field Sparrow"]
[null,null,null,null,null,null,null,null,null,null,null,null,null,"Fish Crow"]
[null,null,null,null,null,null,null,null,null,null,null,null,null,"Five-striped Sparrow"]
[null,null,null,null,null,null,null,null,null,null,null,null,null,"Flame-colored Tanager"]
[null,null,null,null,null,null,null,null,null,null,null,null,null,"Flammulated Owl"]
[null,null,null,null,null,null,null,null,null,null,null,null,null,"Flesh-footed Shearwater"]
[null,null,null,null,null,null,null,null,null,null,null,null,null,"Florida Scrub-Jay"]
[null,null,null,null,null,null,null,null,null,null,null,null,null,"Fork-tailed Storm-Petrel"]
[null,null,null,null,null,null,null,null,null,null,null,null,null,"Forster's Tern"]
[null,null,null,null,null,null,null,null,null,null,null,null,null,"Fox Sparrow"]
[null,null,null,null,null,null,null,null,null,null,null,null,null,"Franklin's Gull"]
[null,null,null,null,null,null,null,null,null,null,null,null,null,"Friendly Ground-Dove"]
[null,null,null,null,null,null,null,null,null,null,null,null,null,"Fulvous Whistling-Duck"]
[null,null,null,null,null,null,null,null,null,null,null,null,null,"Gadwall"]
[null,null,null,null,null,null,null,null,null,null,null,null,null,"Gila Woodpecker"]
[null,null,null,null,null,null,null,null,null,null,null,null,null,"Gilded Flicker"]
[null,null,null,null,null,null,null,null,null,null,null,null,null,"Glaucous Gull"]
[null,null,null,null,null,null,null,null,null,null,null,null,null,"Glaucous-winged Gull"]
[null,null,null,null,null,null,null,null,null,null,null,null,null,"Glossy Ibis"]
[null,null,null,null,null,null,null,null,null,null,null,null,null,"Golden-cheeked Warbler"]
[null,null,null,null,null,null,null,null,null,null,null,null,null,"Golden-crowned Kinglet"]
[null,null,null,null,null,null,null,null,null,null,null,null,null,"Golden-crowned Sparrow"]
[null,null,null,null,null,null,null,null,null,null,null,null,null,"Golden-fronted Woodpecker"]
[null,null,null,null,null,null,null,null,null,null,null,null,null,"Golden-winged Warbler"]
[null,null,null,null,null,null,null,null,null,null,null,null,null,"Grace's Warbler"]
[null,null,null,null,null,null,null,null,null,null,null,null,null,"Grasshopper Sparrow"]
[null,null,null,null,null,null,null,null,null,null,null,null,null,"Gray Catbird"]
[null,null,null,null,null,null,null,null,null,null,null,null,null,"Gray Flycatcher"]
[null,null,null,null,null,null,null,null,null,null,null,null,null,"Gray Hawk"]
[null,null,null,null,null,null,null,null,null,null,null,null,null,"Gray Jay"]
[null,null,null,null,null,null,null,null,null,null,null,null,null,"Gray Kingbird"]
[null,null,null,null,null,null,null,null,null,null,null,null,null,"Gray Vireo"]
[null,null,null,null,null,null,null,null,null,null,null,null,null,"Gray Wagtail"]
[null,null,null,null,null,null,null,null,null,null,null,null,null,"Gray-backed Tern"]
[null,null,null,null,null,null,null,null,null,null,null,null,null,"Gray-cheeked Thrush"]
[null,null,null,null,null,null,null,null,null,null,null,null,null,"Gray-crowned Rosy-Finch"]
[null,null,null,null,null,null,null,null,null,null,null,null,null,"Gray-headed Chickadee"]
[null,null,null,null,null,null,null,null,null,null,null,null,null,"Gray-tailed Tattler"]
[null,null,null,null,null,null,null,null,null,null,null,null,null,"Great Black-backed Gull"]
[null,null,null,null,null,null,null,null,null,null,null,null,null,"Great Blue Heron"]
[null,null,null,null,null,null,null,null,null,null,null,null,null,"Great Cormorant"]
[null,null,null,null,null,null,null,null,null,null,null,null,null,"Great Crested Flycatcher"]
[null,null,null,null,null,null,null,null,null,null,null,null,null,"Great Crested Tern"]
[null,null,null,null,null,null,null,null,null,null,null,null,null,"Great Egret"]
[null,null,null,null,null,null,null,null,null,null,null,null,null,"Great Gray Owl"]
[null,null,null,null,null,null,null,null,null,null,null,null,null,"Great Horned Owl"]
[null,null,null,null,null,null,null,null,null,null,null,null,null,"Great Kiskadee"]
[null,null,null,null,null,null,null,null,null,null,null,null,null,"Great Shearwater"]
[null,null,null,null,null,null,null,null,null,null,null,null,null,"Great Skua"]
[null,null,null,null,null,null,null,null,null,null,null,null,null,"Greater 'Akialoa"]
[null,null,null,null,null,null,null,null,null,null,null,null,null,"Greater Pewee"]
[null,null,null,null,null,null,null,null,null,null,null,null,null,"Greater Prairie-Chicken"]
[null,null,null,null,null,null,null,null,null,null,null,null,null,"Greater Roadrunner"]
[null,null,null,null,null,null,null,null,null,null,null,null,null,"Greater Sage-Grouse"]
[null,null,null,null,null,null,null,null,null,null,null,null,null,"Greater Scaup"]
[null,null,null,null,null,null,null,null,null,null,null,null,null,"Greater White-fronted Goose"]
[null,null,null,null,null,null,null,null,null,null,null,null,null,"Greater Yellowlegs"]
[null,null,null,null,null,null,null,null,null,null,null,null,null,"Great-tailed Grackle"]
[null,null,null,null,null,null,null,null,null,null,null,null,null,"Green Heron"]
[null,null,null,null,null,null,null,null,null,null,null,null,null,"Green Jay"]
[null,null,null,null,null,null,null,null,null,null,null,null,null,"Green Kingfisher"]
[null,null,null,null,null,null,null,null,null,null,null,null,null,"Green-tailed Towhee"]
[null,null,null,null,null,null,null,null,null,null,null,null,null,"Green-winged Teal"]
[null,null,null,null,null,null,null,null,null,null,null,null,null,"Groove-billed Ani"]
[null,null,null,null,null,null,null,null,null,null,null,null,null,"Guadalupe Murrelet"]
[null,null,null,null,null,null,null,null,null,null,null,null,null,"Guam Rail"]
[null,null,null,null,null,null,null,null,null,null,null,null,null,"Gull-billed Tern"]
[null,null,null,null,null,null,null,null,null,null,null,null,null,"Gunnison Sage-Grouse"]
[null,null,null,null,null,null,null,null,null,null,null,null,null,"Gyrfalcon"]
[null,null,null,null,null,null,null,null,null,null,null,null,null,"Hairy Woodpecker"]
[null,null,null,null,null,null,null,null,null,null,null,null,null,"Hammond's Flycatcher"]
[null,null,null,null,null,null,null,null,null,null,null,null,null,"Harlequin Duck"]
[null,null,null,null,null,null,null,null,null,null,null,null,null,"Harris's Hawk"]
[null,null,null,null,null,null,null,null,null,null,null,null,null,"Harris's Sparrow"]
[null,null,null,null,null,null,null,null,null,null,null,null,null,"Hawaii Amakihi"]
[null,null,null,null,null,null,null,null,null,null,null,null,null,"Hawaii Creeper"]
[null,null,null,null,null,null,null,null,null,null,null,null,null,"Hawaiian Coot"]
[null,null,null,null,null,null,null,null,null,null,null,null,null,"Hawaiian Crow"]
[null,null,null,null,null,null,null,null,null,null,null,null,null,"Hawaiian Duck"]
[null,null,null,null,null,null,null,null,null,null,null,null,null,"Hawaiian Goose"]
[null,null,null,null,null,null,null,null,null,null,null,null,null,"Hawaiian Hawk"]
[null,null,null,null,null,null,null,null,null,null,null,null,null,"Hawaiian Petrel"]
[null,null,null,null,null,null,null,null,null,null,null,null,null,"Heermann's Gull"]
[null,null,null,null,null,null,null,null,null,null,null,null,null,"Henslow's Sparrow"]
[null,null,null,null,null,null,null,null,null,null,null,null,null,"Hepatic Tanager"]
[null,null,null,null,null,null,null,null,null,null,null,null,null,"Herald Petrel"]
[null,null,null,null,null,null,null,null,null,null,null,null,null,"Hermit Thrush"]
[null,null,null,null,null,null,null,null,null,null,null,null,null,"Hermit Warbler"]
[null,null,null,null,null,null,null,null,null,null,null,null,null,"Herring Gull"]
[null,null,null,null,null,null,null,null,null,null,null,null,null,"Hoary Redpoll"]
[null,null,null,null,null,null,null,null,null,null,null,null,null,"Hooded Merganser"]
[null,null,null,null,null,null,null,null,null,null,null,null,null,"Hooded Oriole"]
[null,null,null,null,null,null,null,null,null,null,null,null,null,"Hooded Warbler"]
[null,null,null,null,null,null,null,null,null,null,null,null,null,"Hook-billed Kite"]
[null,null,null,null,null,null,null,null,null,null,null,null,null,"Horned Grebe"]
[null,null,null,null,null,null,null,null,null,null,null,null,null,"Horned Lark"]
[null,null,null,null,null,null,null,null,null,null,null,null,null,"Horned Puffin"]
[null,null,null,null,null,null,null,null,null,null,null,null,null,"House Finch"]
[null,null,null,null,null,null,null,null,null,null,null,null,null,"House Wren"]
[null,null,null,null,null,null,null,null,null,null,null,null,null,"Hudsonian Godwit"]
[null,null,null,null,null,null,null,null,null,null,null,null,null,"Hutton's Vireo"]
[null,null,null,null,null,null,null,null,null,null,null,null,null,"Iceland Gull"]
[null,null,null,null,null,null,null,null,null,null,null,null,null,"Iiwi"]
[null,null,null,null,null,null,null,null,null,null,null,null,null,"Inca Dove"]
[null,null,null,null,null,null,null,null,null,null,null,null,null,"Indigo Bunting"]
[null,null,null,null,null,null,null,null,null,null,null,null,null,"Island Scrub-Jay"]
[null,null,null,null,null,null,null,null,null,null,null,null,null,"Ivory Gull"]
[null,null,null,null,null,null,null,null,null,null,null,null,null,"Juniper Titmouse"]
[null,null,null,null,null,null,null,null,null,null,null,null,null,"Kakawahie"]
[null,null,null,null,null,null,null,null,null,null,null,null,null,"Kama'o"]
[null,null,null,null,null,null,null,null,null,null,null,null,null,"Kauai Amakihi"]
[null,null,null,null,null,null,null,null,null,null,null,null,null,"Kauai 'O'o"]
[null,null,null,null,null,null,null,null,null,null,null,null,null,"Kelp Gull"]
[null,null,null,null,null,null,null,null,null,null,null,null,null,"Kentucky Warbler"]
[null,null,null,null,null,null,null,null,null,null,null,null,null,"Killdeer"]
[null,null,null,null,null,null,null,null,null,null,null,null,null,"King Eider"]
[null,null,null,null,null,null,null,null,null,null,null,null,null,"King Rail"]
[null,null,null,null,null,null,null,null,null,null,null,null,null,"Kirtland's Warbler"]
[null,null,null,null,null,null,null,null,null,null,null,null,null,"Kittlitz's Murrelet"]
[null,null,null,null,null,null,null,null,null,null,null,null,null,"Ladder-backed Woodpecker"]
[null,null,null,null,null,null,null,null,null,null,null,null,null,"Lapland Longspur"]
[null,null,null,null,null,null,null,null,null,null,null,null,null,"Large-billed Tern"]
[null,null,null,null,null,null,null,null,null,null,null,null,null,"Lark Bunting"]
[null,null,null,null,null,null,null,null,null,null,null,null,null,"Lark Sparrow"]
[null,null,null,null,null,null,null,null,null,null,null,null,null,"Laughing Gull"]
[null,null,null,null,null,null,null,null,null,null,null,null,null,"Lawrence's Goldfinch"]
[null,null,null,null,null,null,null,null,null,null,null,null,null,"Laysan Albatross"]
[null,null,null,null,null,null,null,null,null,null,null,null,null,"Laysan Duck"]
[null,null,null,null,null,null,null,null,null,null,null,null,null,"Laysan Finch"]
[null,null,null,null,null,null,null,null,null,null,null,null,null,"Lazuli Bunting"]
[null,null,null,null,null,null,null,null,null,null,null,null,null,"Le Conte's Sparrow"]
[null,null,null,null,null,null,null,null,null,null,null,null,null,"Le Conte's Thrasher"]
[null,null,null,null,null,null,null,null,null,null,null,null,null,"Leach's Storm-Petrel"]
[null,null,null,null,null,null,null,null,null,null,null,null,null,"Least Auklet"]
[null,null,null,null,null,null,null,null,null,null,null,null,null,"Least Bittern"]
[null,null,null,null,null,null,null,null,null,null,null,null,null,"Least Flycatcher"]
[null,null,null,null,null,null,null,null,null,null,null,null,null,"Least Grebe"]
[null,null,null,null,null,null,null,null,null,null,null,null,null,"Least Sandpiper"]
[null,null,null,null,null,null,null,null,null,null,null,null,null,"Least Storm-Petrel"]
[null,null,null,null,null,null,null,null,null,null,null,null,null,"Least Tern"]
[null,null,null,null,null,null,null,null,null,null,null,null,null,"Lesser Black-backed Gull"]
[null,null,null,null,null,null,null,null,null,null,null,null,null,"Lesser Goldfinch"]
[null,null,null,null,null,null,null,null,null,null,null,null,null,"Lesser Nighthawk"]
[null,null,null,null,null,null,null,null,null,null,null,null,null,"Lesser Prairie-Chicken"]
[null,null,null,null,null,null,null,null,null,null,null,null,null,"Lesser Scaup"]
[null,null,null,null,null,null,null,null,null,null,null,null,null,"Lesser Yellowlegs"]
[null,null,null,null,null,null,null,null,null,null,null,null,null,"Lewis's Woodpecker"]
[null,null,null,null,null,null,null,null,null,null,null,null,null,"Limpkin"]
[null,null,null,null,null,null,null,null,null,null,null,null,null,"Lincoln's Sparrow"]
[null,null,null,null,null,null,null,null,null,null,null,null,null,"Little Blue Heron"]
[null,null,null,null,null,null,null,null,null,null,null,null,null,"Little Gull"]
[null,null,null,null,null,null,null,null,null,null,null,null,null,"Little Tern"]
[null,null,null,null,null,null,null,null,null,null,null,null,null,"Loggerhead Shrike"]
[null,null,null,null,null,null,null,null,null,null,null,null,null,"Long-billed Curlew"]
[null,null,null,null,null,null,null,null,null,null,null,null,null,"Long-billed Dowitcher"]
[null,null,null,null,null,null,null,null,null,null,null,null,null,"Long-billed Murrelet"]
[null,null,null,null,null,null,null,null,null,null,null,null,null,"Long-billed Thrasher"]
[null,null,null,null,null,null,null,null,null,null,null,null,null,"Long-eared Owl"]
[null,null,null,null,null,null,null,null,null,null,null,null,null,"Long-tailed Duck"]
[null,null,null,null,null,null,null,null,null,null,null,null,null,"Long-tailed Jaeger"]
[null,null,null,null,null,null,null,null,null,null,null,null,null,"Louisiana Waterthrush"]
[null,null,null,null,null,null,null,null,null,null,null,null,null,"Lucifer Hummingbird"]
[null,null,null,null,null,null,null,null,null,null,null,null,null,"Lucy's Warbler"]
[null,null,null,null,null,null,null,null,null,null,null,null,null,"MacGillivray's Warbler"]
[null,null,null,null,null,null,null,null,null,null,null,null,null,"Magnificent Frigatebird"]
[null,null,null,null,null,null,null,null,null,null,null,null,null,"Magnificent Hummingbird"]
[null,null,null,null,null,null,null,null,null,null,null,null,null,"Magnolia Warbler"]
[null,null,null,null,null,null,null,null,null,null,null,null,null,"Mallard"]
[null,null,null,null,null,null,null,null,null,null,null,null,null,"Mangrove Cuckoo"]
[null,null,null,null,null,null,null,null,null,null,null,null,null,"Manx Shearwater"]
[null,null,null,null,null,null,null,null,null,null,null,null,null,"Marbled Godwit"]
[null,null,null,null,null,null,null,null,null,null,null,null,null,"Marbled Murrelet"]
[null,null,null,null,null,null,null,null,null,null,null,null,null,"Mariana Crow"]
[null,null,null,null,null,null,null,null,null,null,null,null,null,"Mariana Swiftlet"]
[null,null,null,null,null,null,null,null,null,null,null,null,null,"Marsh Wren"]
[null,null,null,null,null,null,null,null,null,null,null,null,null,"Masked Booby"]
[null,null,null,null,null,null,null,null,null,null,null,null,null,"Maui Alauahio"]
[null,null,null,null,null,null,null,null,null,null,null,null,null,"Maui Parrotbill"]
[null,null,null,null,null,null,null,null,null,null,null,null,null,"McCown's Longspur"]
[null,null,null,null,null,null,null,null,null,null,null,null,null,"McKay's Bunting"]
[null,null,null,null,null,null,null,null,null,null,null,null,null,"Merlin"]
[null,null,null,null,null,null,null,null,null,null,null,null,null,"Mew Gull"]
[null,null,null,null,null,null,null,null,null,null,null,null,null,"Mexican Chickadee"]
[null,null,null,null,null,null,null,null,null,null,null,null,null,"Mexican Jay"]
[null,null,null,null,null,null,null,null,null,null,null,null,null,"Mexican Whip-poor-will"]
[null,null,null,null,null,null,null,null,null,null,null,null,null,"Micronesian Kingfisher"]
[null,null,null,null,null,null,null,null,null,null,null,null,null,"Millerbird"]
[null,null,null,null,null,null,null,null,null,null,null,null,null,"Mississippi Kite"]
[null,null,null,null,null,null,null,null,null,null,null,null,null,"Mottled Duck"]
[null,null,null,null,null,null,null,null,null,null,null,null,null,"Mottled Petrel"]
[null,null,null,null,null,null,null,null,null,null,null,null,null,"Mountain Chickadee"]
[null,null,null,null,null,null,null,null,null,null,null,null,null,"Mountain Plover"]
[null,null,null,null,null,null,null,null,null,null,null,null,null,"Mourning Dove"]
[null,null,null,null,null,null,null,null,null,null,null,null,null,"Mourning Warbler"]
[null,null,null,null,null,null,null,null,null,null,null,null,null,"Murphy's Petrel"]
[null,null,null,null,null,null,null,null,null,null,null,null,null,"Muscovy Duck"]
[null,null,null,null,null,null,null,null,null,null,null,null,null,"Nashville Warbler"]
[null,null,null,null,null,null,null,null,null,null,null,null,null,"Nelson's Sparrow"]
[null,null,null,null,null,null,null,null,null,null,null,null,null,"Neotropic Cormorant"]
[null,null,null,null,null,null,null,null,null,null,null,null,null,"Nightingale Reed-Warbler"]
[null,null,null,null,null,null,null,null,null,null,null,null,null,"Nihoa Finch"]
[null,null,null,null,null,null,null,null,null,null,null,null,null,"Northern Beardless-Tyrannulet"]
[null,null,null,null,null,null,null,null,null,null,null,null,null,"Northern Cardinal"]
[null,null,null,null,null,null,null,null,null,null,null,null,null,"Northern Flicker"]
[null,null,null,null,null,null,null,null,null,null,null,null,null,"Northern Fulmar"]
[null,null,null,null,null,null,null,null,null,null,null,null,null,"Northern Gannet"]
[null,null,null,null,null,null,null,null,null,null,null,null,null,"Northern Goshawk"]
[null,null,null,null,null,null,null,null,null,null,null,null,null,"Northern Harrier"]
[null,null,null,null,null,null,null,null,null,null,null,null,null,"Northern Hawk Owl"]
[null,null,null,null,null,null,null,null,null,null,null,null,null,"Northern Mockingbird"]
[null,null,null,null,null,null,null,null,null,null,null,null,null,"Northern Parula"]
[null,null,null,null,null,null,null,null,null,null,null,null,null,"Northern Pintail"]
[null,null,null,null,null,null,null,null,null,null,null,null,null,"Northern Pygmy-Owl"]
[null,null,null,null,null,null,null,null,null,null,null,null,null,"Northern Rough-winged Swallow"]
[null,null,null,null,null,null,null,null,null,null,null,null,null,"Northern Saw-whet Owl"]
[null,null,null,null,null,null,null,null,null,null,null,null,null,"Northern Shoveler"]
[null,null,null,null,null,null,null,null,null,null,null,null,null,"Northern Shrike"]
[null,null,null,null,null,null,null,null,null,null,null,null,null,"Northern Waterthrush"]
[null,null,null,null,null,null,null,null,null,null,null,null,null,"Northwestern Crow"]
[null,null,null,null,null,null,null,null,null,null,null,null,null,"Nukupu'u"]
[null,null,null,null,null,null,null,null,null,null,null,null,null,"Nuttall's Woodpecker"]
[null,null,null,null,null,null,null,null,null,null,null,null,null,"Oahu 'Alauahio"]
[null,null,null,null,null,null,null,null,null,null,null,null,null,"Oahu Amakihi"]
[null,null,null,null,null,null,null,null,null,null,null,null,null,"Oahu Elepaio"]
[null,null,null,null,null,null,null,null,null,null,null,null,null,"Oak Titmouse"]
[null,null,null,null,null,null,null,null,null,null,null,null,null,"Olive Sparrow"]
[null,null,null,null,null,null,null,null,null,null,null,null,null,"Olive Warbler"]
[null,null,null,null,null,null,null,null,null,null,null,null,null,"Olive-backed Pipit"]
[null,null,null,null,null,null,null,null,null,null,null,null,null,"Olive-sided Flycatcher"]
[null,null,null,null,null,null,null,null,null,null,null,null,null,"Oloma'o"]
[null,null,null,null,null,null,null,null,null,null,null,null,null,"Oma'o"]
[null,null,null,null,null,null,null,null,null,null,null,null,null,"Orange-crowned Warbler"]
[null,null,null,null,null,null,null,null,null,null,null,null,null,"Orchard Oriole"]
[null,null,null,null,null,null,null,null,null,null,null,null,null,"Oriental Greenfinch"]
[null,null,null,null,null,null,null,null,null,null,null,null,null,"Osprey"]
[null,null,null,null,null,null,null,null,null,null,null,null,null,"O'u"]
[null,null,null,null,null,null,null,null,null,null,null,null,null,"Ovenbird"]
[null,null,null,null,null,null,null,null,null,null,null,null,null,"Pacific Golden-Plover"]
[null,null,null,null,null,null,null,null,null,null,null,null,null,"Pacific Loon"]
[null,null,null,null,null,null,null,null,null,null,null,null,null,"Pacific Wren"]
[null,null,null,null,null,null,null,null,null,null,null,null,null,"Pacific-slope Flycatcher"]
[null,null,null,null,null,null,null,null,null,null,null,null,null,"Painted Bunting"]
[null,null,null,null,null,null,null,null,null,null,null,null,null,"Painted Redstart"]
[null,null,null,null,null,null,null,null,null,null,null,null,null,"Palila"]
[null,null,null,null,null,null,null,null,null,null,null,null,null,"Palm Warbler"]
[null,null,null,null,null,null,null,null,null,null,null,null,null,"Parakeet Auklet"]
[null,null,null,null,null,null,null,null,null,null,null,null,null,"Parasitic Jaeger"]
[null,null,null,null,null,null,null,null,null,null,null,null,null,"Pechora Pipit"]
[null,null,null,null,null,null,null,null,null,null,null,null,null,"Pectoral Sandpiper"]
[null,null,null,null,null,null,null,null,null,null,null,null,null,"Pelagic Cormorant"]
[null,null,null,null,null,null,null,null,null,null,null,null,null,"Peregrine Falcon"]
[null,null,null,null,null,null,null,null,null,null,null,null,null,"Phainopepla"]
[null,null,null,null,null,null,null,null,null,null,null,null,null,"Philadelphia Vireo"]
[null,null,null,null,null,null,null,null,null,null,null,null,null,"Pied-billed Grebe"]
[null,null,null,null,null,null,null,null,null,null,null,null,null,"Pigeon Guillemot"]
[null,null,null,null,null,null,null,null,null,null,null,null,null,"Pileated Woodpecker"]
[null,null,null,null,null,null,null,null,null,null,null,null,null,"Pine Grosbeak"]
[null,null,null,null,null,null,null,null,null,null,null,null,null,"Pine Siskin"]
[null,null,null,null,null,null,null,null,null,null,null,null,null,"Pine Warbler"]
[null,null,null,null,null,null,null,null,null,null,null,null,null,"Pink-footed Shearwater"]
[null,null,null,null,null,null,null,null,null,null,null,null,null,"Pinyon Jay"]
[null,null,null,null,null,null,null,null,null,null,null,null,null,"Piping Plover"]
[null,null,null,null,null,null,null,null,null,null,null,null,null,"Plain Pigeon"]
[null,null,null,null,null,null,null,null,null,null,null,null,null,"Plain-capped Starthroat"]
[null,null,null,null,null,null,null,null,null,null,null,null,null,"Plumbeous Vireo"]
[null,null,null,null,null,null,null,null,null,null,null,null,null,"Pomarine Jaeger"]
[null,null,null,null,null,null,null,null,null,null,null,null,null,"Po'o-uli"]
[null,null,null,null,null,null,null,null,null,null,null,null,null,"Prairie Falcon"]
[null,null,null,null,null,null,null,null,null,null,null,null,null,"Prairie Warbler"]
[null,null,null,null,null,null,null,null,null,null,null,null,null,"Prothonotary Warbler"]
[null,null,null,null,null,null,null,null,null,null,null,null,null,"Puaiohi"]
[null,null,null,null,null,null,null,null,null,null,null,null,null,"Puerto Rican Nightjar"]
[null,null,null,null,null,null,null,null,null,null,null,null,null,"Purple Finch"]
[null,null,null,null,null,null,null,null,null,null,null,null,null,"Purple Gallinule"]
[null,null,null,null,null,null,null,null,null,null,null,null,null,"Purple Martin"]
[null,null,null,null,null,null,null,null,null,null,null,null,null,"Purple Sandpiper"]
[null,null,null,null,null,null,null,null,null,null,null,null,null,"Pygmy Nuthatch"]
[null,null,null,null,null,null,null,null,null,null,null,null,null,"Pyrrhuloxia"]
[null,null,null,null,null,null,null,null,null,null,null,null,null,"Razorbill"]
[null,null,null,null,null,null,null,null,null,null,null,null,null,"Red Crossbill"]
[null,null,null,null,null,null,null,null,null,null,null,null,null,"Red Knot"]
[null,null,null,null,null,null,null,null,null,null,null,null,null,"Red Phalarope"]
[null,null,null,null,null,null,null,null,null,null,null,null,null,"Red-bellied Woodpecker"]
[null,null,null,null,null,null,null,null,null,null,null,null,null,"Red-billed Pigeon"]
[null,null,null,null,null,null,null,null,null,null,null,null,null,"Red-billed Tropicbird"]
[null,null,null,null,null,null,null,null,null,null,null,null,null,"Red-breasted Merganser"]
[null,null,null,null,null,null,null,null,null,null,null,null,null,"Red-breasted Nuthatch"]
[null,null,null,null,null,null,null,null,null,null,null,null,null,"Red-breasted Sapsucker"]
[null,null,null,null,null,null,null,null,null,null,null,null,null,"Red-cockaded Woodpecker"]
[null,null,null,null,null,null,null,null,null,null,null,null,null,"Reddish Egret"]
[null,null,null,null,null,null,null,null,null,null,null,null,null,"Red-eyed Vireo"]
[null,null,null,null,null,null,null,null,null,null,null,null,null,"Red-faced Cormorant"]
[null,null,null,null,null,null,null,null,null,null,null,null,null,"Red-faced Warbler"]
[null,null,null,null,null,null,null,null,null,null,null,null,null,"Red-footed Booby"]
[null,null,null,null,null,null,null,null,null,null,null,null,null,"Redhead"]
[null,null,null,null,null,null,null,null,null,null,null,null,null,"Red-headed Woodpecker"]
[null,null,null,null,null,null,null,null,null,null,null,null,null,"Red-legged Kittiwake"]
[null,null,null,null,null,null,null,null,null,null,null,null,null,"Red-naped Sapsucker"]
[null,null,null,null,null,null,null,null,null,null,null,null,null,"Red-necked Grebe"]
[null,null,null,null,null,null,null,null,null,null,null,null,null,"Red-necked Phalarope"]
[null,null,null,null,null,null,null,null,null,null,null,null,null,"Red-shouldered Hawk"]
[null,null,null,null,null,null,null,null,null,null,null,null,null,"Red-tailed Hawk"]
[null,null,null,null,null,null,null,null,null,null,null,null,null,"Red-tailed Tropicbird"]
[null,null,null,null,null,null,null,null,null,null,null,null,null,"Red-throated Loon"]
[null,null,null,null,null,null,null,null,null,null,null,null,null,"Red-throated Pipit"]
[null,null,null,null,null,null,null,null,null,null,null,null,null,"Red-winged Blackbird"]
[null,null,null,null,null,null,null,null,null,null,null,null,null,"Rhinoceros Auklet"]
[null,null,null,null,null,null,null,null,null,null,null,null,null,"Ring-billed Gull"]
[null,null,null,null,null,null,null,null,null,null,null,null,null,"Ringed Kingfisher"]
[null,null,null,null,null,null,null,null,null,null,null,null,null,"Ring-necked Duck"]
[null,null,null,null,null,null,null,null,null,null,null,null,null,"Rock Sandpiper"]
[null,null,null,null,null,null,null,null,null,null,null,null,null,"Rock Wren"]
[null,null,null,null,null,null,null,null,null,null,null,null,null,"Roseate Spoonbill"]
[null,null,null,null,null,null,null,null,null,null,null,null,null,"Roseate Tern"]
[null,null,null,null,null,null,null,null,null,null,null,null,null,"Rose-breasted Grosbeak"]
[null,null,null,null,null,null,null,null,null,null,null,null,null,"Ross's Goose"]
[null,null,null,null,null,null,null,null,null,null,null,null,null,"Ross's Gull"]
[null,null,null,null,null,null,null,null,null,null,null,null,null,"Rough-legged Hawk"]
[null,null,null,null,null,null,null,null,null,null,null,null,null,"Royal Tern"]
[null,null,null,null,null,null,null,null,null,null,null,null,null,"Ruby-crowned Kinglet"]
[null,null,null,null,null,null,null,null,null,null,null,null,null,"Ruby-throated Hummingbird"]
[null,null,null,null,null,null,null,null,null,null,null,null,null,"Ruddy Duck"]
[null,null,null,null,null,null,null,null,null,null,null,null,null,"Ruddy Ground-Dove"]
[null,null,null,null,null,null,null,null,null,null,null,null,null,"Ruddy Turnstone"]
[null,null,null,null,null,null,null,null,null,null,null,null,null,"Ruff"]
[null,null,null,null,null,null,null,null,null,null,null,null,null,"Rufous Hummingbird"]
[null,null,null,null,null,null,null,null,null,null,null,null,null,"Rufous-backed Robin"]
[null,null,null,null,null,null,null,null,null,null,null,null,null,"Rufous-crowned Sparrow"]
[null,null,null,null,null,null,null,null,null,null,null,null,null,"Rufous-winged Sparrow"]
[null,null,null,null,null,null,null,null,null,null,null,null,null,"Rusty Blackbird"]
[null,null,null,null,null,null,null,null,null,null,null,null,null,"Sabine's Gull"]
[null,null,null,null,null,null,null,null,null,null,null,null,null,"Sage Thrasher"]
[null,null,null,null,null,null,null,null,null,null,null,null,null,"Sagebrush Sparrow"]
[null,null,null,null,null,null,null,null,null,null,null,null,null,"Saltmarsh Sparrow"]
[null,null,null,null,null,null,null,null,null,null,null,null,null,"Sanderling"]
[null,null,null,null,null,null,null,null,null,null,null,null,null,"Sandhill Crane"]
[null,null,null,null,null,null,null,null,null,null,null,null,null,"Sandwich Tern"]
[null,null,null,null,null,null,null,null,null,null,null,null,null,"Savannah Sparrow"]
[null,null,null,null,null,null,null,null,null,null,null,null,null,"Say's Phoebe"]
[null,null,null,null,null,null,null,null,null,null,null,null,null,"Scarlet Tanager"]
[null,null,null,null,null,null,null,null,null,null,null,null,null,"Scissor-tailed Flycatcher"]
[null,null,null,null,null,null,null,null,null,null,null,null,null,"Scott's Oriole"]
[null,null,null,null,null,null,null,null,null,null,null,null,null,"Scripps's Murrelet"]
[null,null,null,null,null,null,null,null,null,null,null,null,null,"Seaside Sparrow"]
[null,null,null,null,null,null,null,null,null,null,null,null,null,"Sedge Wren"]
[null,null,null,null,null,null,null,null,null,null,null,null,null,"Semipalmated Plover"]
[null,null,null,null,null,null,null,null,null,null,null,null,null,"Semipalmated Sandpiper"]
[null,null,null,null,null,null,null,null,null,null,null,null,null,"Sharp-shinned Hawk"]
[null,null,null,null,null,null,null,null,null,null,null,null,null,"Shiny Cowbird"]
[null,null,null,null,null,null,null,null,null,null,null,null,null,"Short-billed Dowitcher"]
[null,null,null,null,null,null,null,null,null,null,null,null,null,"Short-eared Owl"]
[null,null,null,null,null,null,null,null,null,null,null,null,null,"Short-tailed Albatross"]
[null,null,null,null,null,null,null,null,null,null,null,null,null,"Short-tailed Hawk"]
[null,null,null,null,null,null,null,null,null,null,null,null,null,"Short-tailed Shearwater"]
[null,null,null,null,null,null,null,null,null,null,null,null,null,"Siberian Accentor"]
[null,null,null,null,null,null,null,null,null,null,null,null,null,"Sky Lark"]
[null,null,null,null,null,null,null,null,null,null,null,null,null,"Smith's Longspur"]
[null,null,null,null,null,null,null,null,null,null,null,null,null,"Smooth-billed Ani"]
[null,null,null,null,null,null,null,null,null,null,null,null,null,"Snail Kite"]
[null,null,null,null,null,null,null,null,null,null,null,null,null,"Snow Bunting"]
[null,null,null,null,null,null,null,null,null,null,null,null,null,"Snow Goose"]
[null,null,null,null,null,null,null,null,null,null,null,null,null,"Snowy Egret"]
[null,null,null,null,null,null,null,null,null,null,null,null,null,"Snowy Owl"]
[null,null,null,null,null,null,null,null,null,null,null,null,null,"Snowy Plover"]
[null,null,null,null,null,null,null,null,null,null,null,null,null,"Solitary Sandpiper"]
[null,null,null,null,null,null,null,null,null,null,null,null,null,"Song Sparrow"]
[null,null,null,null,null,null,null,null,null,null,null,null,null,"Sooty Shearwater"]
[null,null,null,null,null,null,null,null,null,null,null,null,null,"Sooty Tern"]
[null,null,null,null,null,null,null,null,null,null,null,null,null,"Sora"]
[null,null,null,null,null,null,null,null,null,null,null,null,null,"South Polar Skua"]
[null,null,null,null,null,null,null,null,null,null,null,null,null,"Spectacled Eider"]
[null,null,null,null,null,null,null,null,null,null,null,null,null,"Spotless Crake"]
[null,null,null,null,null,null,null,null,null,null,null,null,null,"Spotted Owl"]
[null,null,null,null,null,null,null,null,null,null,null,null,null,"Spotted Sandpiper"]
[null,null,null,null,null,null,null,null,null,null,null,null,null,"Spotted Towhee"]
[null,null,null,null,null,null,null,null,null,null,null,null,null,"Sprague's Pipit"]
[null,null,null,null,null,null,null,null,null,null,null,null,null,"Steller's Eider"]
[null,null,null,null,null,null,null,null,null,null,null,null,null,"Steller's Jay"]
[null,null,null,null,null,null,null,null,null,null,null,null,null,"Stilt Sandpiper"]
[null,null,null,null,null,null,null,null,null,null,null,null,null,"Sulphur-bellied Flycatcher"]
[null,null,null,null,null,null,null,null,null,null,null,null,null,"Summer Tanager"]
[null,null,null,null,null,null,null,null,null,null,null,null,null,"Surf Scoter"]
[null,null,null,null,null,null,null,null,null,null,null,null,null,"Surfbird"]
[null,null,null,null,null,null,null,null,null,null,null,null,null,"Swainson's Hawk"]
[null,null,null,null,null,null,null,null,null,null,null,null,null,"Swainson's Thrush"]
[null,null,null,null,null,null,null,null,null,null,null,null,null,"Swainson's Warbler"]
[null,null,null,null,null,null,null,null,null,null,null,null,null,"Swallow-tailed Kite"]
[null,null,null,null,null,null,null,null,null,null,null,null,null,"Swamp Sparrow"]
[null,null,null,null,null,null,null,null,null,null,null,null,null,"Tahiti Petrel"]
[null,null,null,null,null,null,null,null,null,null,null,null,null,"Tamaulipas Crow"]
[null,null,null,null,null,null,null,null,null,null,null,null,null,"Tennessee Warbler"]
[null,null,null,null,null,null,null,null,null,null,null,null,null,"Thayer's Gull"]
[null,null,null,null,null,null,null,null,null,null,null,null,null,"Thick-billed Kingbird"]
[null,null,null,null,null,null,null,null,null,null,null,null,null,"Thick-billed Murre"]
[null,null,null,null,null,null,null,null,null,null,null,null,null,"Thick-billed Vireo"]
[null,null,null,null,null,null,null,null,null,null,null,null,null,"Townsend's Shearwater"]
[null,null,null,null,null,null,null,null,null,null,null,null,null,"Townsend's Warbler"]
[null,null,null,null,null,null,null,null,null,null,null,null,null,"Tree Pipit"]
[null,null,null,null,null,null,null,null,null,null,null,null,null,"Tree Swallow"]
[null,null,null,null,null,null,null,null,null,null,null,null,null,"Tricolored Blackbird"]
[null,null,null,null,null,null,null,null,null,null,null,null,null,"Tricolored Heron"]
[null,null,null,null,null,null,null,null,null,null,null,null,null,"Tropical Kingbird"]
[null,null,null,null,null,null,null,null,null,null,null,null,null,"Tropical Parula"]
[null,null,null,null,null,null,null,null,null,null,null,null,null,"Trumpeter Swan"]
[null,null,null,null,null,null,null,null,null,null,null,null,null,"Tufted Duck"]
[null,null,null,null,null,null,null,null,null,null,null,null,null,"Tufted Puffin"]
[null,null,null,null,null,null,null,null,null,null,null,null,null,"Tufted Titmouse"]
[null,null,null,null,null,null,null,null,null,null,null,null,null,"Tundra Swan"]
[null,null,null,null,null,null,null,null,null,null,null,null,null,"Turkey Vulture"]
[null,null,null,null,null,null,null,null,null,null,null,null,null,"Unknown Eagle"]
[null,null,null,null,null,null,null,null,null,null,null,null,null,"Upland Sandpiper"]
[null,null,null,null,null,null,null,null,null,null,null,null,null,"Varied Bunting"]
[null,null,null,null,null,null,null,null,null,null,null,null,null,"Varied Thrush"]
[null,null,null,null,null,null,null,null,null,null,null,null,null,"Vaux's Swift"]
[null,null,null,null,null,null,null,null,null,null,null,null,null,"Veery"]
[null,null,null,null,null,null,null,null,null,null,null,null,null,"Verdin"]
[null,null,null,null,null,null,null,null,null,null,null,null,null,"Vermilion Flycatcher"]
[null,null,null,null,null,null,null,null,null,null,null,null,null,"Vesper Sparrow"]
[null,null,null,null,null,null,null,null,null,null,null,null,null,"Violet-crowned Hummingbird"]
[null,null,null,null,null,null,null,null,null,null,null,null,null,"Violet-green Swallow"]
[null,null,null,null,null,null,null,null,null,null,null,null,null,"Virginia Rail"]
[null,null,null,null,null,null,null,null,null,null,null,null,null,"Virginia's Warbler"]
[null,null,null,null,null,null,null,null,null,null,null,null,null,"Wandering Tattler"]
[null,null,null,null,null,null,null,null,null,null,null,null,null,"Warbling Vireo"]
[null,null,null,null,null,null,null,null,null,null,null,null,null,"Wedge-tailed Shearwater"]
[null,null,null,null,null,null,null,null,null,null,null,null,null,"Western Grebe"]
[null,null,null,null,null,null,null,null,null,null,null,null,null,"Western Gull"]
[null,null,null,null,null,null,null,null,null,null,null,null,null,"Western Kingbird"]
[null,null,null,null,null,null,null,null,null,null,null,null,null,"Western Meadowlark"]
[null,null,null,null,null,null,null,null,null,null,null,null,null,"Western Sandpiper"]
[null,null,null,null,null,null,null,null,null,null,null,null,null,"Western Screech-Owl"]
[null,null,null,null,null,null,null,null,null,null,null,null,null,"Western Scrub-Jay"]
[null,null,null,null,null,null,null,null,null,null,null,null,null,"Western Tanager"]
[null,null,null,null,null,null,null,null,null,null,null,null,null,"Western Wood-Pewee"]
[null,null,null,null,null,null,null,null,null,null,null,null,null,"Whimbrel"]
[null,null,null,null,null,null,null,null,null,null,null,null,null,"Whiskered Auklet"]
[null,null,null,null,null,null,null,null,null,null,null,null,null,"Whiskered Screech-Owl"]
[null,null,null,null,null,null,null,null,null,null,null,null,null,"Whiskered Tern"]
[null,null,null,null,null,null,null,null,null,null,null,null,null,"White Ibis"]
[null,null,null,null,null,null,null,null,null,null,null,null,null,"White Tern"]
[null,null,null,null,null,null,null,null,null,null,null,null,null,"White Wagtail"]
[null,null,null,null,null,null,null,null,null,null,null,null,null,"White-breasted Nuthatch"]
[null,null,null,null,null,null,null,null,null,null,null,null,null,"White-crowned Pigeon"]
[null,null,null,null,null,null,null,null,null,null,null,null,null,"White-crowned Sparrow"]
[null,null,null,null,null,null,null,null,null,null,null,null,null,"White-eared Hummingbird"]
[null,null,null,null,null,null,null,null,null,null,null,null,null,"White-eyed Vireo"]
[null,null,null,null,null,null,null,null,null,null,null,null,null,"White-faced Ibis"]
[null,null,null,null,null,null,null,null,null,null,null,null,null,"White-faced Storm-Petrel"]
[null,null,null,null,null,null,null,null,null,null,null,null,null,"White-headed Woodpecker"]
[null,null,null,null,null,null,null,null,null,null,null,null,null,"White-necked Crow"]
[null,null,null,null,null,null,null,null,null,null,null,null,null,"White-rumped Sandpiper"]
[null,null,null,null,null,null,null,null,null,null,null,null,null,"White-tailed Hawk"]
[null,null,null,null,null,null,null,null,null,null,null,null,null,"White-tailed Kite"]
[null,null,null,null,null,null,null,null,null,null,null,null,null,"White-tailed Tropicbird"]
[null,null,null,null,null,null,null,null,null,null,null,null,null,"White-throated Sparrow"]
[null,null,null,null,null,null,null,null,null,null,null,null,null,"White-throated Swift"]
[null,null,null,null,null,null,null,null,null,null,null,null,null,"White-tipped Dove"]
[null,null,null,null,null,null,null,null,null,null,null,null,null,"White-winged Crossbill"]
[null,null,null,null,null,null,null,null,null,null,null,null,null,"White-winged Dove"]
[null,null,null,null,null,null,null,null,null,null,null,null,null,"White-winged Scoter"]
[null,null,null,null,null,null,null,null,null,null,null,null,null,"White-winged Tern"]
[null,null,null,null,null,null,null,null,null,null,null,null,null,"Whooping Crane"]
[null,null,null,null,null,null,null,null,null,null,null,null,null,"Willet"]
[null,null,null,null,null,null,null,null,null,null,null,null,null,"Williamson's Sapsucker"]
[null,null,null,null,null,null,null,null,null,null,null,null,null,"Willow Flycatcher"]
[null,null,null,null,null,null,null,null,null,null,null,null,null,"Wilson's Phalarope"]
[null,null,null,null,null,null,null,null,null,null,null,null,null,"Wilson's Plover"]
[null,null,null,null,null,null,null,null,null,null,null,null,null,"Wilson's Snipe"]
[null,null,null,null,null,null,null,null,null,null,null,null,null,"Wilson's Storm-Petrel"]
[null,null,null,null,null,null,null,null,null,null,null,null,null,"Wilson's Warbler"]
[null,null,null,null,null,null,null,null,null,null,null,null,null,"Winter Wren"]
[null,null,null,null,null,null,null,null,null,null,null,null,null,"Wood Duck"]
[null,null,null,null,null,null,null,null,null,null,null,null,null,"Wood Stork"]
[null,null,null,null,null,null,null,null,null,null,null,null,null,"Wood Thrush"]
[null,null,null,null,null,null,null,null,null,null,null,null,null,"Worm-eating Warbler"]
[null,null,null,null,null,null,null,null,null,null,null,null,null,"Wrentit"]
[null,null,null,null,null,null,null,null,null,null,null,null,null,"Yellow Rail"]
[null,null,null,null,null,null,null,null,null,null,null,null,null,"Yellow Warbler"]
[null,null,null,null,null,null,null,null,null,null,null,null,null,"Yellow-bellied Flycatcher"]
[null,null,null,null,null,null,null,null,null,null,null,null,null,"Yellow-bellied Sapsucker"]
[null,null,null,null,null,null,null,null,null,null,null,null,null,"Yellow-billed Cuckoo"]
[null,null,null,null,null,null,null,null,null,null,null,null,null,"Yellow-billed Loon"]
[null,null,null,null,null,null,null,null,null,null,null,null,null,"Yellow-billed Magpie"]
[null,null,null,null,null,null,null,null,null,null,null,null,null,"Yellow-breasted Chat"]
[null,null,null,null,null,null,null,null,null,null,null,null,null,"Yellow-crowned Night-Heron"]
[null,null,null,null,null,null,null,null,null,null,null,null,null,"Yellow-eyed Junco"]
[null,null,null,null,null,null,null,null,null,null,null,null,null,"Yellow-footed Gull"]
[null,null,null,null,null,null,null,null,null,null,null,null,null,"Yellow-green Vireo"]
[null,null,null,null,null,null,null,null,null,null,null,null,null,"Yellow-headed Blackbird"]
[null,null,null,null,null,null,null,null,null,null,null,null,null,"Yellow-rumped Warbler"]
[null,null,null,null,null,null,null,null,null,null,null,null,null,"Yellow-shouldered Blackbird"]
[null,null,null,null,null,null,null,null,null,null,null,null,null,"Yellow-throated Vireo"]
[null,null,null,null,null,null,null,null,null,null,null,null,null,"Yellow-throated Warbler"]
[null,null,null,null,null,null,null,null,null,null,null,null,null,"Zenaida Dove"]
[null,null,null,null,null,null,null,null,null,null,null,null,null,"Zone-tailed Hawk"]